Workbook

Sheet ZAKŁADKI DANYCH WSADOWYCH
B5: PRZYKŁADOWE ZAKŁADKI DANYCH WSADOWYCH
B7: >> 1 | C7: Bilans
B8: >> 2 | C8: Rachunek zysków i strat
B9: >> 3 | C9: Analiza sprzedaży
B10: >> 4 | C10: Wynagrodzenia
B16: Zakładki danych wsadowych stanowią miejsce w którym umieszcza się dane z poszczególnych zestawień i raportów. Zakładki te pełnią rolę bazy danych z której odpowiednie dane są przeliczane przez mechanizmy narzędzia. Przeliczenia natomiast zasilają wynikowe elementy Pulpitu Prezesa (ZAKŁADKI WYNIKOWE)

Sheet Analiza sprzedaży
Z2: Bieżąca data | AA2: =Data_bieżąca -> 2017-11-30 | AB2: =MATCH(AA2,$AA$4:$XFD$4,0) -> 8
Y4: Wzór fomuły | Z4: Przychody po gniazdach | AA4: 2017-04-30 | AB4: =EOMONTH(AA4,1) -> 2017-05-31 | AC4: 2017-06-30 | AD4: 2017-07-31 | AE4: 2017-08-31 | AF4: 2017-09-30 | AG4: 2017-10-31 | AH4: 2017-11-30 | AI4: 2017-12-31
Y5: =SUMPRODUCT(IF($I$36:$I$10013="P:GR1",1,0),$N$36:$N$10013) -> 2745606.62 | Z5: Grupa asortymentowa 1 | AA5: 1550905.29 | AB5: 2707796.053 | AC5: 2642484.5 | AD5: 2781038.647 | AE5: 2712016.32 | AF5: 2160511.177 | AG5: 2780775.773 | AH5: 2745606.577
Y6: =SUMPRODUCT(IF($I$36:$I$10013="P:GR2",1,0),$N$36:$N$10013) -> 161731.92 | Z6: Grupa asortymentowa 2 | AA6: 120242.76 | AB6: 100346.3933 | AC6: 171890.2167 | AD6: 177021.4767 | AE6: 135873.8633 | AF6: 136058.85 | AG6: 74421.55333 | AH6: 161731.9133
Y7: =SUMPRODUCT(IF($I$36:$I$10013="P:GR3",1,0),$N$36:$N$10013) -> 666777.78 | Z7: Grupa asortymentowa 3 | AA7: 412937.7533 | AB7: 603933.2733 | AC7: 536251.8967 | AD7: 579076.7167 | AE7: 470034.22 | AF7: 500993.6333 | AG7: 683973.1167 | AH7: 666777.7333
F8: Przy pomocy narzędzi dostępnych w programie Excel, dane z zestawień i raportów księgowych są grupowane i archwizowane w odpowiednim układzie. Układ ten umożliwia dalsze przeliczenia, które są podstawą części wynikowej arkusza, czyli wykresów i tabel (ZAKŁADKI WYNIKOWE) wykorzystywanych w raporcie. Dane użyte w wersji demonstracyjnej pliku są danymi przykładowymi, które mają na celu przedstawienie mechanizmów zastosowanych w Pulpicie Prezesa. | Y8: =SUMPRODUCT(IF($I$36:$I$10013="P:GR4",1,0),$N$36:$N$10013) -> 1896732.38 | Z8: Grupa asortymentowa 4 | AA8: 1232340.513 | AB8: 2015445.443 | AC8: 1808006.15 | AD8: 2121033.077 | AE8: 1717909.017 | AF8: 1866668.24 | AG8: 2146943.903 | AH8: 1896732.38
Y9: =SUMPRODUCT(IF($I$36:$I$10013="T:",1,0),$N$36:$N$10013) -> 61529.4 | Z9: Towary | AA9: 90882.50667 | AB9: 136213 | AC9: 179905.8133 | AD9: 63713.7 | AE9: 16611.5 | AF9: 207541.4667 | AG9: 178825.5833 | AH9: 61529.41
Y10: =SUMPRODUCT(IF($I$36:$I$10013="S:",1,0),$N$36:$N$10013) -> 0 | Z10: Surowce | AA10: 46222.91667 | AB10: 39441.3 | AC10: 8058.333333 | AD10: 0 | AE10: 17413.06667 | AF10: 19401.73333 | AG10: 22431.58333 | AH10: 0
Y11: =SUMPRODUCT(IF($I$36:$I$10013="U:",1,0),$N$36:$N$10013) -> 15495.76 | Z11: Usługi | AA11: 1041491.363 | AB11: 1927441.36 | AC11: 1927425.58 | AD11: 3711192.46 | AE11: 1754899.44 | AF11: 1634925.083 | AG11: 1988970.58 | AH11: 15495.84
Y12: =SUMPRODUCT(IF($I$36:$I$10013="GR5",1,0),$N$36:$N$10013) -> 308892.26 | Z12: Grupa asortymentowa 5 | AA12: 281059.9667 | AB12: 397748.5033 | AC12: 346572.2633 | AD12: 371703.5067 | AE12: 290199.73 | AF12: 358888.5133 | AG12: 388840.16 | AH12: 308892.2733
X13: Weryfikacja przyporządkowania | Y13: =IF(SUM(Y5:Y12)=SUM(N36:N9967),"OK","Błąd przypisania") -> OK
Y15: Wzór fomuły | Z15: TKW po gniazdach | AA15: 2017-04-30 | AB15: =EOMONTH(AA15,1) -> 2017-05-31 | AC15: 2017-06-30 | AD15: 2017-07-31 | AE15: 2017-08-31 | AF15: 2017-09-30 | AG15: 2017-10-31 | AH15: 2017-11-30 | AI15: 2017-12-31
Y16: =SUMPRODUCT(IF($I$36:$I$10013="P:GR1",1,0),$O$36:$O$10013) -> 2232556.28 | Z16: Grupa asortymentowa 1 | AA16: 1368229.623 | AB16: 2384343.717 | AC16: 2194775.657 | AD16: 2306797.383 | AE16: 2277963.79 | AF16: 1822339.017 | AG16: 2343135.4 | AH16: 2232556.297
Y17: =SUMPRODUCT(IF($I$36:$I$10013="P:GR2",1,0),$O$36:$O$10013) -> 197580.74 | Z17: Grupa asortymentowa 2 | AA17: 128794.6033 | AB17: 110407.9333 | AC17: 177345.3733 | AD17: 178955.4 | AE17: 145675.8433 | AF17: 144327.6533 | AG17: 78764.55333 | AH17: 197580.76
Y18: =SUMPRODUCT(IF($I$36:$I$10013="P:GR3",1,0),$O$36:$O$10013) -> 681813.29 | Z18: Grupa asortymentowa 3 | AA18: 407945.9567 | AB18: 621120.09 | AC18: 536582.65 | AD18: 590086.91 | AE18: 476760.8267 | AF18: 530995.6 | AG18: 704036.9567 | AH18: 681813.29
Y19: =SUMPRODUCT(IF($I$36:$I$10013="P:GR4",1,0),$O$36:$O$10013) -> 1832446.45 | Z19: Grupa asortymentowa 4 | AA19: 1152541.453 | AB19: 2043698.777 | AC19: 1745825.647 | AD19: 2000928.027 | AE19: 1705198.19 | AF19: 1890803.803 | AG19: 2178750.677 | AH19: 1832446.37
Y20: =SUMPRODUCT(IF($I$36:$I$10013="T:",1,0),$O$36:$O$10013) -> 58968.51 | Z20: Towary | AA20: 92347.07667 | AB20: 135932.8167 | AC20: 172801.9567 | AD20: 63496.11333 | AE20: 16460.93333 | AF20: 189002.6033 | AG20: 170493.8 | AH20: 58968.51
Y21: =SUMPRODUCT(IF($I$36:$I$10013="S:",1,0),$O$36:$O$10013) -> 0 | Z21: Surowce | AA21: 46213.95667 | AB21: 43223.8 | AC21: 8058.333333 | AD21: 0 | AE21: 17885.31667 | AF21: 18907.68333 | AG21: 22302.01 | AH21: 0
Y22: =SUMPRODUCT(IF($I$36:$I$10013="U:",1,0),$O$36:$O$10013) -> 0 | Z22: Usługi | AA22: 0 | AB22: 0 | AC22: 0 | AD22: 0 | AE22: 0 | AF22: 0 | AG22: 0 | AH22: 0
Y23: =SUMPRODUCT(IF($I$36:$I$10013="GR5",1,0),$O$36:$O$10013) -> 240909.02 | Z23: Grupa asortymentowa 5 | AA23: 250099.63 | AB23: 340705.89 | AC23: 283089.8167 | AD23: 286039.9067 | AE23: 227946.9967 | AF23: 292846.31 | AG23: 326158.7067 | AH23: 240909.0067
X24: Weryfikacja przyporządkowania | Y24: =IF(SUM(Y16:Y23)=SUM($O$36:$O$9967),"OK","Błąd przypisania") -> OK
Y26: Wzór fomuły | Z26: Przychody po kierunkach | AA26: 2017-04-30 | AB26: =EOMONTH(AA26,1) -> 2017-05-31 | AC26: 2017-06-30 | AD26: 2017-07-31 | AE26: 2017-08-31 | AF26: 2017-09-30 | AG26: 2017-10-31 | AH26: 2017-11-30 | AI26: 2017-12-31
Y27: =SUMPRODUCT(IF(LEFT($A$36:$A$10013,3)="SK",1,0),$N$36:$N$10013,IF(LEFT($I$36:$I$10013,1)="P",1,0))+SUMPRODUCT(IF(LEFT($A$36:$A$10013,3)="SK",1,0),$N$36:$N$10013,IF(LEFT($I$36:$I$10013,1)="I",1,0)) -> 3440557.52 | Z27: Sprzedaż krajowa | AA27: 2565737.163 | AB27: 3493123.033 | AC27: 3407925.01 | AD27: 3586272.893 | AE27: 3439633.07 | AF27: 3109284.177 | AG27: 3965029.567 | AH27: 3749449.72
Y28: =SUMPRODUCT(IF(LEFT($A$36:$A$10013,3)="SE",1,0),$N$36:$N$10013,IF(LEFT($I$36:$I$10013,1)="P",1,0))+SUMPRODUCT(IF(LEFT($A$36:$A$10013,3)="SE",1,0),$N$36:$N$10013,IF(LEFT($I$36:$I$10013,1)="I",1,0)) -> 210965.87 | Z28: Eksport | AA28: 81467.85 | AB28: 279387.93 | AC28: 127789.33 | AD28: 186786.9433 | AE28: 86154.73667 | AF28: 177937.8033 | AG28: 92088.13667 | AH28: 210965.8367
Y29: =SUMPRODUCT(IF(LEFT($A$36:$A$10013,3)="SUE",1,0),$N$36:$N$10013,IF(LEFT($I$36:$I$10013,1)="P",1,0))+SUMPRODUCT(IF(LEFT($A$36:$A$10013,3)="SUE",1,0),$N$36:$N$10013,IF(LEFT($I$36:$I$10013,1)="I",1,0)) -> 1819325.31 | Z29: Sprzedaż UE | AA29: 950281.27 | AB29: 2052758.703 | AC29: 1969490.687 | AD29: 2256813.587 | AE29: 1800245.343 | AF29: 1735898.433 | AG29: 2017836.803 | AH29: 1819325.32
Y30: =SUMPRODUCT(IF($A$36:$A$10013=X30,1,0),$N$36:$N$10013) -> 0
Y31: =SUMPRODUCT(IF($A$36:$A$10013=X31,1,0),$N$36:$N$10013) -> 0
Z34: Pierwsza pusta komórka | AA34: =COUNTA(Y36:XFD36) -> 24
A35: Rejestr | B35: Okres | C35: Rodzaj dokumentu | D35: Pełna nazwa płatnika | E35: Data wystawienia | F35: Data sprzedaży | G35: Termin płatności | H35: [Typ pozycji] | I35: [Typ ZP_K] | J35: Pozycja | K35: Ilość | L35: Kod jednostki miary | M35: Cena sprzedaży | N35: Wartość netto | O35: [TKW] | P35: Wartość brutto | Q35: Magazyn | T35: Przychody po klientach | U35: =SUMPRODUCT($N$36:$N$9992,IF($D$36:$D$9992=T35,1,0),IF($I$36:$I$9992="U:",0,1),IF($I$36:$I$9992="T:",0,1),IF($I$36:$I$9992="S:",0,1)) -> 0 | V35: =SUMPRODUCT($O$36:$O$9992,IF($D$36:$D$9992=T35,1,0),IF($I$36:$I$9992="U:",0,1),IF($I$36:$I$9992="T:",0,1),IF($I$36:$I$9992="S:",0,1)) -> 0 | Z35: Klienci | AA35: 2017-04-30 | AD35: 2017-05-31 | AG35: 2017-06-30 | AJ35: 2017-07-31 | AM35: 2017-08-31 | AP35: 2017-09-30 | AS35: 2017-10-31 | AV35: 2017-11-30
A36: SK | B36: 8 | C36: FV | D36: Klient 1 | E36: 2017-11-02 | F36: 2017-11-02 | G36: 2018-01-01 | H36: S | I36: P:GR1 | J36: 1 | K36: 6336 | L36: kg | M36: 1.2 | N36: 7603.2 | O36: 6579.93 | P36: 28055.81 | Q36: 98 | Z36: Klient 522 | AA36: 289004.2633 | AB36: 260376.9933 | AC36: Klient 162 | AD36: 367638.6333 | AE36: 339709.7933 | AF36: Klient 162 | AG36: 348999.0567 | AH36: 324378.87 | AI36: Klient 397 | AJ36: 384990.42 | AK36: 374151.24 | AL36: Klient 259 | AM36: 340485.5433 | AN36: 336318.5867 | AO36: Klient 259 | AP36: 285089.4267 | AQ36: 270797.0567 | AR36: Klient 162 | AS36: 321269.5 | AT36: 301669.7233 | AU36: Klient 159 | AV36: 412528.6967 | AW36: 362687.2233
A37: SK | B37: 8 | C37: FV | D37: Klient 1 | E37: 2017-11-02 | F37: 2017-11-02 | G37: 2018-01-01 | H37: S | I37: P:GR1 | J37: 2 | K37: 4086 | L37: kg | M37: 1.158333333 | N37: 4732.95 | O37: 4112.02 | P37: 17464.59 | Q37: 98 | Z37: Klient 162 | AA37: 162959.5833 | AB37: 166666.3033 | AC37: Klient 397 | AD37: 344140.4567 | AE37: 436637.8233 | AF37: Klient 397 | AG37: 278613.9067 | AH37: 267776.0067 | AI37: Klient 162 | AJ37: 377186.34 | AK37: 360653.94 | AL37: Klient 397 | AM37: 312359.7333 | AN37: 317225.0067 | AO37: Klient 83 | AP37: 275130.7233 | AQ37: 249993.0233 | AR37: Klient 374 | AS37: 320241.6733 | AT37: 286975.53 | AU37: Klient 259 | AV37: 296976.7 | AW37: 296204.38
A38: SK | B38: 8 | C38: FV | D38: Klient 2 | E38: 2017-11-02 | F38: 2017-11-02 | G38: 2017-12-22 | H38: S | I38: GR5 | J38: 1 | K38: 3000 | L38: szt | M38: 0.8733333333 | N38: 2620 | O38: 2393.45 | P38: 9667.8 | Q38: 98 | Z38: Klient 259 | AA38: 162150.1133 | AB38: 160385.39 | AC38: Klient 259 | AD38: 302384.7867 | AE38: 392861.8633 | AF38: Klient 259 | AG38: 274264.6267 | AH38: 254268.2833 | AI38: Klient 259 | AJ38: 329809.3267 | AK38: 303763.5933 | AL38: Klient 159 | AM38: 278007.7967 | AN38: 264591.2533 | AO38: Klient 522 | AP38: 264244.57 | AQ38: 228696.1067 | AR38: Klient 397 | AS38: 313609.69 | AT38: 311510.1467 | AU38: Klient 522 | AV38: 294947.3767 | AW38: 256673.3867
A39: SK | B39: 8 | C39: FV | D39: Klient 3 | E39: 2017-11-02 | F39: 2017-11-02 | G39: 2017-11-23 | H39: S | I39: P:GR1 | J39: 1 | K39: 7174.8 | L39: kg | M39: 1.216666667 | N39: 8729.34 | O39: 6986.21 | P39: 32211.26 | Q39: 98 | Z39: Klient 83 | AA39: 190520.7433 | AB39: 152464.45 | AC39: Klient 522 | AD39: 270589.3633 | AE39: 232264.83 | AF39: Klient 522 | AG39: 247354.34 | AH39: 213768.7 | AI39: Klient 83 | AJ39: 321039.61 | AK39: 290752.9533 | AL39: Klient 162 | AM39: 263111.8 | AN39: 240154.3267 | AO39: Klient 397 | AP39: 253685.91 | AQ39: 265303.1033 | AR39: Klient 83 | AS39: 251623.3667 | AT39: 259686.4033 | AU39: Klient 162 | AV39: 287361.2833 | AW39: 301873.9233
A40: SK | B40: 8 | C40: FV | D40: Klient 3 | E40: 2017-11-02 | F40: 2017-11-02 | G40: 2017-11-23 | H40: S | I40: P:GR1 | J40: 2 | K40: 6852 | L40: kg | M40: 1.216666667 | N40: 8336.6 | O40: 6671.89 | P40: 30762.05 | Q40: 98 | Z40: Klient 374 | AA40: 128240.65 | AB40: 114789.5833 | AC40: Klient 83 | AD40: 270253.32 | AE40: 223699.4733 | AF40: Klient 384 | AG40: 241649.8733 | AH40: 207224.41 | AI40: Klient 374 | AJ40: 260626.2633 | AK40: 220973.9367 | AL40: Klient 522 | AM40: 262945.3633 | AN40: 221969.1667 | AO40: Klient 162 | AP40: 220982.16 | AQ40: 211546.98 | AR40: Klient 259 | AS40: 251365.7567 | AT40: 253725.8133 | AU40: Klient 83 | AV40: 241223.7033 | AW40: 247165.7733
A41: SK | B41: 8 | C41: FV | D41: Klient 4 | E41: 2017-11-02 | F41: 2017-11-02 | G41: 2017-12-02 | H41: S | I41: P:GR4 | J41: 1 | K41: 3150 | L41: szt | M41: 0.87 | N41: 2740.5 | O41: 2737.72 | P41: 10112.45 | Q41: 98 | Z41: Klient 486 | AA41: 127985.4433 | AB41: 111343.4267 | AC41: Klient 384 | AD41: 211774.35 | AE41: 190163.8267 | AF41: Klient 83 | AG41: 229749.2267 | AH41: 207094.57 | AI41: Klient 522 | AJ41: 245804.3867 | AK41: 215699.2167 | AL41: Klient 83 | AM41: 231877.1667 | AN41: 203240.7733 | AO41: Klient 449 | AP41: 196357.4133 | AQ41: 190699.87 | AR41: Klient 522 | AS41: 242799.89 | AT41: 210584.2633 | AU41: Klient 397 | AV41: 239220.56 | AW41: 241335.6567
A42: SK | B42: 8 | C42: FV | D42: Klient 4 | E42: 2017-11-02 | F42: 2017-11-02 | G42: 2017-12-02 | H42: S | I42: P:GR4 | J42: 2 | K42: 45500 | L42: szt | M42: 0.03833333333 | N42: 1744.17 | O42: 2168.08 | P42: 6435.98 | Q42: 98 | Z42: Klient 384 | AA42: 113254.0933 | AB42: 102472.16 | AC42: Klient 547 | AD42: 194392.85 | AE42: 186211.9067 | AF42: Klient 374 | AG42: 178780.1767 | AH42: 161259.7233 | AI42: Klient 449 | AJ42: 181239.34 | AK42: 156752.6333 | AL42: Klient 374 | AM42: 202190.0533 | AN42: 177038.8233 | AO42: Klient 488 | AP42: 169015.0033 | AQ42: 157358.6933 | AR42: Klient 138 | AS42: 234205.2367 | AT42: 216944.5067 | AU42: Klient 488 | AV42: 175396.8967 | AW42: 153013.7733
A43: SK | B43: 8 | C43: FV | D43: Klient 5 | E43: 2017-11-02 | F43: 2017-11-02 | G43: 2017-12-17 | H43: S | I43: P:GR4 | J43: 1 | K43: 3600 | L43: szt | M43: 1.666666667 | N43: 6000 | O43: 7242.64 | P43: 22140 | Q43: 98 | Z43: Klient 397 | AA43: 102052.8833 | AB43: 99449.97 | AC43: Klient 169 | AD43: 175759.0967 | AE43: 177012.0967 | AF43: Klient 169 | AG43: 157993.3567 | AH43: 164388.83 | AI43: Klient 159 | AJ43: 179144.7567 | AK43: 157177.6867 | AL43: Klient 488 | AM43: 187717.8767 | AN43: 165866.78 | AO43: Klient 138 | AP43: 162251.16 | AQ43: 145548.7 | AR43: Klient 159 | AS43: 225361.1833 | AT43: 231841.7033 | AU43: Klient 486 | AV43: 164447.4233 | AW43: 134892.6867
A44: SK | B44: 8 | C44: FV | D44: Klient 6 | E44: 2017-11-02 | F44: 2017-11-02 | G44: 2018-01-01 | H44: S | I44: P:GR1 | J44: 2 | K44: 35976.8 | L44: kg | M44: 1.133333333 | N44: 40773.71 | O44: 35710.75 | P44: 150454.98 | Q44: 98 | Z44: Klient 449 | AA44: 93203.10333 | AB44: 96128.28 | AC44: Klient 315 | AD44: 128360.6833 | AE44: 126715.31 | AF44: Klient 315 | AG44: 146122.2733 | AH44: 127161.6933 | AI44: Klient 448 | AJ44: 159260.8167 | AK44: 148249.43 | AL44: Klient 448 | AM44: 142961.99 | AN44: 124613.37 | AO44: Klient 374 | AP44: 120692.4167 | AQ44: 103665.95 | AR44: Klient 488 | AS44: 172877.33 | AT44: 161574.6967 | AU44: Klient 374 | AV44: 164295.4667 | AW44: 144259.96
A45: SK | B45: 8 | C45: FV | D45: Klient 6 | E45: 2017-11-02 | F45: 2017-11-02 | G45: 2018-01-01 | H45: S | I45: GR5 | J45: 1 | K45: 964.8 | L45: kg | M45: 1.175 | N45: 1133.64 | O45: 1499.88 | P45: 4183.13 | Q45: 98 | Z45: Klient 547 | AA45: 94532.45667 | AB45: 87243.62 | AC45: Klient 163 | AD45: 126032.9867 | AE45: 70343.98667 | AF45: Klient 486 | AG45: 133427.7067 | AH45: 111685.6067 | AI45: Klient 169 | AJ45: 154507.4067 | AK45: 140474.9333 | AL45: Klient 145 | AM45: 137560.9233 | AN45: 118524.2833 | AO45: Klient 486 | AP45: 119255.4067 | AQ45: 108693.3333 | AR45: Klient 547 | AS45: 164432.4033 | AT45: 163332.7567 | AU45: Klient 138 | AV45: 160088.1433 | AW45: 130407.4167
A46: SK | B46: 8 | C46: FV | D46: Klient 6 | E46: 2017-11-02 | F46: 2017-11-02 | G46: 2018-01-01 | H46: S | I46: GR5 | J46: 3 | K46: 2059.2 | L46: kg | M46: 1.15 | N46: 2368.08 | O46: 3201.24 | P46: 8738.22 | Q46: 98 | Z46: Klient 327 | AA46: 69075.44 | AB46: 75787.81333 | AC46: Klient 327 | AD46: 120977.92 | AE46: 106411.3667 | AF46: Klient 449 | AG46: 131863.4233 | AH46: 113945.7767 | AI46: Klient 547 | AJ46: 151245.0433 | AK46: 130785.2867 | AL46: Klient 486 | AM46: 126980.4367 | AN46: 109883.3333 | AO46: Klient 315 | AP46: 110134.93 | AQ46: 103013.53 | AR46: Klient 384 | AS46: 156884.52 | AT46: 133431.47 | AU46: Klient 438 | AV46: 155239.7367 | AW46: 135281.0267
A47: SK | B47: 8 | C47: FV | D47: Klient 6 | E47: 2017-11-02 | F47: 2017-11-02 | G47: 2018-01-01 | H47: S | I47: GR5 | J47: 4 | K47: 994 | L47: kg | M47: 1.175 | N47: 1167.95 | O47: 1545.27 | P47: 4309.74 | Q47: 98 | Z47: Klient 346 | AA47: 87690.56333 | AB47: 69351.29333 | AC47: Klient 138 | AD47: 113950.88 | AE47: 105735.58 | AF47: Klient 122 | AG47: 116643.4033 | AH47: 99944.30667 | AI47: Klient 138 | AJ47: 132530.6 | AK47: 109045.23 | AL47: Klient 122 | AM47: 126654.4633 | AN47: 116663.3267 | AO47: Klient 547 | AP47: 108662.27 | AQ47: 107596.94 | AR47: Klient 346 | AS47: 143765.18 | AT47: 106893.7967 | AU47: Klient 346 | AV47: 149811.8633 | AW47: 109820.2433
A48: SK | B48: 8 | C48: FV | D48: Klient 6 | E48: 2017-11-02 | F48: 2017-11-02 | G48: 2018-01-01 | H48: S | I48: GR5 | J48: 5 | K48: 2062.8 | L48: kg | M48: 1.15 | N48: 2372.22 | O48: 3206.83 | P48: 8753.49 | Q48: 98 | Z48: Klient 122 | AA48: 72849.66 | AB48: 65012.23667 | AC48: Klient 486 | AD48: 109943.1067 | AE48: 93767.88333 | AF48: Klient 448 | AG48: 113185.16 | AH48: 97013.26 | AI48: Klient 327 | AJ48: 131530.6267 | AK48: 112966.7533 | AL48: Klient 449 | AM48: 125912.46 | AN48: 112148.3233 | AO48: Klient 327 | AP48: 108562.8667 | AQ48: 93878.35667 | AR48: Klient 382 | AS48: 141666.8667 | AT48: 120458.51 | AU48: Klient 315 | AV48: 144505.0367 | AW48: 130420.9033
A49: SK | B49: 8 | C49: FV | D49: Klient 6 | E49: 2017-11-02 | F49: 2017-11-02 | G49: 2018-01-01 | H49: S | I49: GR5 | J49: 6 | K49: 1104 | L49: kg | M49: 1.15 | N49: 1269.6 | O49: 1251.08 | P49: 4684.82 | Q49: 98 | Z49: Klient 488 | AA49: 64375.89 | AB49: 62374.88333 | AC49: Klient 145 | AD49: 107524.63 | AE49: 107840.26 | AF49: Klient 488 | AG49: 107625.3267 | AH49: 103745.8667 | AI49: Klient 382 | AJ49: 108739.4433 | AK49: 102757.5 | AL49: Klient 138 | AM49: 114227.53 | AN49: 94303.46667 | AO49: Klient 163 | AP49: 102108.7433 | AQ49: 56990.91667 | AR49: Klient 169 | AS49: 132137.7933 | AT49: 133039.4033 | AU49: Klient 163 | AV49: 113451.1967 | AW49: 63321.59667
A50: SK | B50: 8 | C50: FV | D50: Klient 6 | E50: 2017-11-02 | F50: 2017-11-02 | G50: 2018-01-01 | H50: S | I50: P:GR1 | J50: 1 | K50: 14815.6 | L50: kg | M50: 1.133333333 | N50: 16791.01 | O50: 14684.98 | P50: 61958.84 | Q50: 98 | Z50: Klient 442 | AA50: 57653.72667 | AB50: 55549.15333 | AC50: Klient 488 | AD50: 107048.5833 | AE50: 100073.34 | AF50: Klient 163 | AG50: 99487.51 | AH50: 55527.90333 | AI50: Klient 488 | AJ50: 108055.4933 | AK50: 95412.11667 | AL50: Klient 169 | AM50: 109010.7233 | AN50: 108043.7167 | AO50: Klient 169 | AP50: 91645.19667 | AQ50: 90887.42333 | AR50: Klient 448 | AS50: 129617.51 | AT50: 113977.3767 | AU50: Klient 449 | AV50: 112050.0967 | AW50: 102510.3167
A51: SK | B51: 8 | C51: FV | D51: Klient 7 | E51: 2017-11-02 | F51: 2017-11-02 | G51: 2018-01-01 | H51: S | I51: P:GR4 | J51: 1 | K51: 4800 | L51: szt | M51: 0.6483333333 | N51: 3112 | O51: 3167.2 | P51: 11483.28 | Q51: 98 | Z51: Klient 138 | AA51: 57452.86333 | AB51: 53140.41333 | AC51: Klient 122 | AD51: 103430.73 | AE51: 90138.82 | AF51: Klient 547 | AG51: 92766.40333 | AH51: 86969.00333 | AI51: Klient 163 | AJ51: 106637.87 | AK51: 59518.82 | AL51: Klient 163 | AM51: 104432.4767 | AN51: 58287.89 | AO51: Klient 520 | AP51: 87541.84667 | AQ51: 72712.49667 | AR51: Klient 438 | AS51: 122703.9267 | AT51: 139950.63 | AU51: Klient 327 | AV51: 107098.6367 | AW51: 93785.09
A52: SK | B52: 8 | C52: FV | D52: Klient 7 | E52: 2017-11-02 | F52: 2017-11-02 | G52: 2018-01-01 | H52: S | I52: P:GR4 | J52: 2 | K52: 7160 | L52: szt | M52: 0.685 | N52: 4904.6 | O52: 4913.67 | P52: 18097.97 | Q52: 98 | Z52: Klient 369 | AA52: 49902.1 | AB52: 50860.93667 | AC52: Klient 442 | AD52: 94565.42667 | AE52: 96607.62667 | AF52: Klient 138 | AG52: 92493.78 | AH52: 81291.52667 | AI52: Klient 486 | AJ52: 102056.0967 | AK52: 83370.36 | AL52: Klient 382 | AM52: 101199.9667 | AN52: 92595.50667 | AO52: Klient 346 | AP52: 86537.54667 | AQ52: 73979.01333 | AR52: Klient 449 | AS52: 122162.3533 | AT52: 110845.8467 | AU52: Klient 448 | AV52: 96951.94667 | AW52: 78760.13
A53: SK | B53: 8 | C53: FV | D53: Klient 7 | E53: 2017-11-02 | F53: 2017-11-02 | G53: 2018-01-01 | H53: S | I53: P:GR4 | J53: 3 | K53: 2880 | L53: szt | M53: 0.4983333333 | N53: 1435.2 | O53: 1404 | P53: 5295.89 | Q53: 98 | Z53: Klient 281 | AA53: 47834.95667 | AB53: 50796.75667 | AC53: Klient 317 | AD53: 91629.78 | AE53: 81177.07 | AF53: Klient 369 | AG53: 79961.62 | AH53: 76581.02333 | AI53: Klient 281 | AJ53: 101949.24 | AK53: 96164.83667 | AL53: Klient 442 | AM53: 97817.14667 | AN53: 95515.13667 | AO53: Klient 448 | AP53: 79920.52667 | AQ53: 68268.31667 | AR53: Klient 315 | AS53: 121798.9067 | AT53: 113854.7533 | AU53: Klient 520 | AV53: 89254.28333 | AW53: 68902.73
A54: SK | B54: 8 | C54: FV | D54: Klient 7 | E54: 2017-11-02 | F54: 2017-11-02 | G54: 2018-01-01 | H54: S | I54: P:GR4 | J54: 4 | K54: 24000 | L54: szt | M54: 0.1166666667 | N54: 2800 | O54: 3836.93 | P54: 10332 | Q54: 98 | Z54: Klient 448 | AA54: 58564.15667 | AB54: 49323.52667 | AC54: Klient 129 | AD54: 90239.23667 | AE54: 78430.31667 | AF54: Klient 145 | AG54: 73522.56333 | AH54: 61792.81333 | AI54: Klient 315 | AJ54: 90020.96 | AK54: 79110.66333 | AL54: Klient 547 | AM54: 95056.08667 | AN54: 93697.94333 | AO54: Klient 145 | AP54: 78038.12333 | AQ54: 69666.67667 | AR54: Klient 163 | AS54: 113901.3967 | AT54: 63572.87333 | AU54: Klient 547 | AV54: 86354.19333 | AW54: 72971.29
A55: SK | B55: 8 | C55: FV | D55: Klient 7 | E55: 2017-11-02 | F55: 2017-11-02 | G55: 2018-01-01 | H55: S | I55: P:GR4 | J55: 5 | K55: 12840 | L55: szt | M55: 0.055 | N55: 706.2 | O55: 698.71 | P55: 2605.88 | Q55: 98 | Z55: Klient 381 | AA55: 31166.37333 | AB55: 45962.23667 | AC55: Klient 374 | AD55: 90143.23 | AE55: 81882.73 | AF55: Klient 129 | AG55: 72011.51 | AH55: 72172.28 | AI55: Klient 317 | AJ55: 81671.88667 | AK55: 72277.28333 | AL55: Klient 495 | AM55: 81382.98667 | AN55: 66207.32333 | AO55: Klient 317 | AP55: 75339.71 | AQ55: 83589.54667 | AR55: Klient 369 | AS55: 100162.4733 | AT55: 109557.98 | AU55: Klient 442 | AV55: 73492.76 | AW55: 73352.43667
A56: SK | B56: 8 | C56: FV | D56: Klient 7 | E56: 2017-11-02 | F56: 2017-11-02 | G56: 2018-01-01 | H56: S | I56: P:GR4 | J56: 6 | K56: 16800 | L56: szt | M56: 0.12 | N56: 2016 | O56: 1637.72 | P56: 7439.04 | Q56: 98 | Z56: Klient 169 | AA56: 56327.60667 | AB56: 43739.20667 | AC56: Klient 449 | AD56: 75756.13667 | AE56: 72308.13333 | AF56: Klient 491 | AG56: 62890.55667 | AH56: 50208.37333 | AI56: Klient 129 | AJ56: 80912.82 | AK56: 75958.90333 | AL56: Klient 369 | AM56: 73543.35333 | AN56: 71608.36333 | AO56: Klient 495 | AP56: 68704.14667 | AQ56: 76467.11 | AR56: Klient 490 | AS56: 96768.62 | AT56: 93839.64 | AU56: Klient 145 | AV56: 69745.46667 | AW56: 60723.90667
A57: SK | B57: 8 | C57: FV | D57: Klient 7 | E57: 2017-11-02 | F57: 2017-11-02 | G57: 2018-01-01 | H57: S | I57: P:GR4 | J57: 7 | K57: 2388 | L57: szt | M57: 0.58 | N57: 1385.04 | O57: 1432.96 | P57: 5110.8 | Q57: 98 | Z57: Klient 317 | AA57: 40320.62667 | AB57: 41882.98667 | AC57: Klient 448 | AD57: 72506.4 | AE57: 60686.70667 | AF57: Klient 442 | AG57: 61652.53667 | AH57: 60023.89333 | AI57: Klient 122 | AJ57: 77713.31333 | AK57: 73519.76667 | AL57: Klient 343 | AM57: 60906.23 | AN57: 53044.56 | AO57: Klient 442 | AP57: 65678.90667 | AQ57: 64165.67 | AR57: Klient 122 | AS57: 94774.47333 | AT57: 90002.89667 | AU57: Klient 169 | AV57: 68398.41333 | AW57: 65390.15333
A58: SK | B58: 8 | C58: FV | D58: Klient 8 | E58: 2017-11-02 | F58: 2017-11-02 | G58: 2018-01-01 | H58: S | I58: P:GR1 | J58: 1 | K58: 16406 | L58: kg | M58: 1.063333333 | N58: 17445.05 | O58: 14742.91 | P58: 64372.22 | Q58: 89 | Z58: Klient 496 | AA58: 44416.53333 | AB58: 40078.47 | AC58: Klient 520 | AD58: 70277.47333 | AE58: 59204.47667 | AF58: Klient 343 | AG58: 61448.25667 | AH58: 54967.21333 | AI58: Klient 384 | AJ58: 77183.69 | AK58: 76380.57667 | AL58: Klient 230 | AM58: 56589.96333 | AN58: 61047.21667 | AO58: Klient 159 | AP58: 65146.68333 | AQ58: 57362.14 | AR58: Klient 327 | AS58: 74442.63333 | AT58: 66551.19667 | AU58: Klient 122 | AV58: 67727.18333 | AW58: 64176.38333
A59: SK | B59: 8 | C59: FV | D59: Klient 9 | E59: 2017-11-02 | F59: 2017-11-02 | G59: 2017-12-02 | H59: S | I59: GR5 | J59: 1 | K59: 8069.4 | L59: kg | M59: 1.158333333 | N59: 9347.06 | O59: 8128.97 | P59: 34490.64 | Q59: 98 | Z59: Klient 338 | AA59: 44360.20667 | AB59: 39868.04667 | AC59: Klient 338 | AD59: 64774.9 | AE59: 57309.83667 | AF59: Klient 222 | AG59: 61014.54333 | AH59: 53864.78 | AI59: Klient 442 | AJ59: 67497.21333 | AK59: 64541.97 | AL59: Klient 281 | AM59: 56419.22 | AN59: 56763.89667 | AO59: Klient 496 | AP59: 65091.78333 | AQ59: 64779.69333 | AR59: Klient 486 | AS59: 59799.36667 | AT59: 54373.82333 | AU59: Klient 135 | AV59: 65294.03 | AW59: 44132.62667
A60: SK | B60: 8 | C60: FV | D60: Klient 9 | E60: 2017-11-02 | F60: 2017-11-02 | G60: 2017-12-02 | H60: S | I60: GR5 | J60: 1 | K60: 14050 | L60: kg | M60: 1.158333333 | N60: 16274.58 | O60: 14153.67 | P60: 60053.21 | Q60: 98 | Z60: Klient 483 | AA60: 43311.76 | AB60: 38219.20667 | AC60: Klient 454 | AD60: 61702.53667 | AE60: 54181.48333 | AF60: Klient 454 | AG60: 58581.78667 | AH60: 51430.67 | AI60: Klient 496 | AJ60: 67486.58333 | AK60: 59759.84 | AL60: Klient 327 | AM60: 53792.19667 | AN60: 46741.52667 | AO60: Klient 237 | AP60: 65083.58667 | AQ60: 53872.66 | AR60: Klient 491 | AS60: 55847.98333 | AT60: 46139.7 | AU60: Klient 454 | AV60: 64577.77333 | AW60: 59781.07
A61: SK | B61: 8 | C61: FV | D61: Klient 9 | E61: 2017-11-02 | F61: 2017-11-02 | G61: 2017-12-02 | H61: S | I61: GR5 | J61: 2 | K61: 588.3 | L61: kg | M61: 1.9 | N61: 1117.77 | O61: 1117.16 | P61: 4124.57 | Q61: 98 | Z61: Klient 145 | AA61: 43305.14667 | AB61: 36496.30333 | AC61: Klient 237 | AD61: 59106.54333 | AE61: 50268.55 | AF61: Klient 496 | AG61: 58224.05333 | AH61: 50056.59 | AI61: Klient 237 | AJ61: 57442.43667 | AK61: 47800.47 | AL61: Klient 437 | AM61: 52543.78 | AN61: 57158.91 | AO61: Klient 135 | AP61: 61345.08667 | AQ61: 51368.07667 | AR61: Klient 345 | AS61: 53993.38 | AT61: 45861.66667 | AU61: Klient 495 | AV61: 58000.6 | AW61: 42843.25
A62: SK | B62: 8 | C62: FV | D62: Klient 5 | E62: 2017-11-02 | F62: 2017-11-02 | G62: 2017-12-17 | H62: S | I62: P:GR1 | J62: 1 | K62: 1026.2 | L62: kg | M62: 1.125 | N62: 1154.48 | O62: 1097.45 | P62: 4260.02 | Q62: 98 | Z62: Klient 315 | AA62: 38684.81 | AB62: 34634.94333 | AC62: Klient 343 | AD62: 58110.71 | AE62: 43357.47333 | AF62: Klient 327 | AG62: 57980.48333 | AH62: 51503.91333 | AI62: Klient 53 | AJ62: 56918.26667 | AK62: 49924.61667 | AL62: Klient 315 | AM62: 51536.67333 | AN62: 39122.99333 | AO62: Klient 369 | AP62: 57686.6 | AQ62: 57740.77 | AR62: Klient 483 | AS62: 53524.6 | AT62: 35013.29 | AU62: Klient 369 | AV62: 54303.82667 | AW62: 55273.39333
A63: SK | B63: 8 | C63: FV | D63: Klient 5 | E63: 2017-11-02 | F63: 2017-11-02 | G63: 2017-12-17 | H63: S | I63: P:GR4 | J63: 2 | K63: 1338 | L63: szt | M63: 0.9533333333 | N63: 1275.56 | O63: 1267.35 | P63: 4706.82 | Q63: 98 | Z63: Klient 561 | AA63: 35506.98333 | AB63: 34519.97667 | AC63: Klient 19 | AD63: 57704.98667 | AE63: 66914.81 | AF63: Klient 286 | AG63: 55225.40667 | AH63: 46539.73333 | AI63: Klient 369 | AJ63: 56187.64667 | AK63: 55500.15667 | AL63: Klient 384 | AM63: 43889.98333 | AN63: 38737.56667 | AO63: Klient 437 | AP63: 54291.01333 | AQ63: 59255.91667 | AR63: Klient 561 | AS63: 51625.82 | AT63: 49762.16667 | AU63: Klient 336 | AV63: 53935.91667 | AW63: 48100.00667
A64: SK | B64: 8 | C64: FV | D64: Klient 10 | E64: 2017-11-02 | F64: 2017-11-02 | G64: 2017-12-12 | H64: S | I64: P:GR1 | J64: 1 | K64: 2038 | L64: kg | M64: 1.216666667 | N64: 2479.57 | O64: 2105.74 | P64: 9149.6 | Q64: 98 | Z64: Klient 520 | AA64: 38968.69667 | AB64: 34310.75667 | AC64: Klient 222 | AD64: 55615.95667 | AE64: 49424.40667 | AF64: Klient 135 | AG64: 54114.91667 | AH64: 44237.85 | AI64: Klient 561 | AJ64: 52764.84 | AK64: 48507.02 | AL64: Klient 483 | AM64: 41166.4 | AN64: 35100.74667 | AO64: Klient 281 | AP64: 53122.81667 | AQ64: 51760.64 | AR64: Klient 447 | AS64: 51302.96333 | AT64: 39314.15667 | AU64: Klient 496 | AV64: 52448 | AW64: 48096.40667
A65: SK | B65: 8 | C65: FV | D65: Klient 11 | E65: 2017-11-02 | F65: 2017-11-02 | G65: 2017-11-15 | H65: S | I65: U: | J65: 1 | K65: 2 | L65: szt | M65: 34.15333333 | N65: 68.31 | O65: 0 | P65: 252.05 | Z65: Klient 382 | AA65: 35636.02 | AB65: 33181.69333 | AC65: Klient 435 | AD65: 55522.30667 | AE65: 36781.55333 | AF65: Klient 382 | AG65: 53076.26667 | AH65: 46909.99333 | AI65: Klient 97 | AJ65: 52149.27 | AK65: 44379.17 | AL65: Klient 97 | AM65: 40967.45 | AN65: 39383.68333 | AO65: Klient 129 | AP65: 51780.47333 | AQ65: 44823.30333 | AR65: Klient 454 | AS65: 49952.23 | AT65: 46174.30667 | AU65: Klient 87 | AV65: 51551.74667 | AW65: 49945.21667
A66: SK | B66: 8 | C66: FV | D66: Klient 11 | E66: 2017-11-02 | F66: 2017-11-02 | G66: 2017-11-15 | H66: S | I66: U: | J66: 2 | K66: 2 | L66: szt | M66: 1891.5 | N66: 3783 | O66: 0 | P66: 13959.27 | Z66: Klient 163 | AA66: 58068.50333 | AB66: 32410.32667 | AC66: Klient 281 | AD66: 53395.41 | AE66: 52854.32 | AF66: Klient 437 | AG66: 52382.79333 | AH66: 50733.99333 | AI66: Klient 19 | AJ66: 51277.44 | AK66: 43073.88 | AL66: Klient 520 | AM66: 37955.70333 | AN66: 29983.34667 | AO66: Klient 122 | AP66: 50336.15333 | AQ66: 48572.34333 | AR66: Klient 442 | AS66: 49911.27667 | AT66: 49117.48333 | AU66: Klient 343 | AV66: 50753.63333 | AW66: 46496.66667
A67: SK | B67: 8 | C67: FV | D67: Klient 12 | E67: 2017-11-02 | F67: 2017-11-02 | G67: 2017-12-12 | H67: S | I67: P:GR1 | J67: 1 | K67: 1868.8 | L67: kg | M67: 1.241666667 | N67: 2320.43 | O67: 2103.12 | P67: 8562.37 | Q67: 98 | Z67: Klient 32 | AA67: 31455.67333 | AB67: 31015.21 | AC67: Klient 369 | AD67: 53166.35333 | AE67: 53463.29333 | AF67: Klient 317 | AG67: 45729.88 | AH67: 44829.64 | AI67: Klient 145 | AJ67: 49034.47 | AK67: 41749.46667 | AL67: Klient 40 | AM67: 37251.99333 | AN67: 29897.32333 | AO67: Klient 87 | AP67: 48738.82333 | AQ67: 42430.80667 | AR67: Klient 145 | AS67: 48511.48 | AT67: 43807.87333 | AU67: Klient 338 | AV67: 40982.25667 | AW67: 31472.67
A68: SK | B68: 8 | C68: FV | D68: Klient 12 | E68: 2017-11-02 | F68: 2017-11-02 | G68: 2017-12-12 | H68: S | I68: P:GR1 | J68: 2 | K68: 407 | L68: kg | M68: 1.241666667 | N68: 505.36 | O68: 478.07 | P68: 1864.78 | Q68: 98 | Z68: Klient 135 | AA68: 35280.07667 | AB68: 30119.51 | AC68: Klient 345 | AD68: 49561.47 | AE68: 47780.23333 | AF68: Klient 110 | AG68: 45613.06667 | AH68: 41864.54667 | AI68: Klient 336 | AJ68: 47142.26667 | AK68: 40312.88 | AL68: Klient 110 | AM68: 36652.00667 | AN68: 38635.25333 | AO68: Klient 337 | AP68: 47948.57333 | AQ68: 53340.31333 | AR68: Klient 437 | AS68: 40916.33667 | AT68: 36615.91 | AU68: Klient 437 | AV68: 37428.27667 | AW68: 36441.95667
A69: SK | B69: 8 | C69: FV | D69: Klient 12 | E69: 2017-11-02 | F69: 2017-11-02 | G69: 2017-12-12 | H69: S | I69: P:GR4 | J69: 3 | K69: 1056.6 | L69: kg | M69: 1.4 | N69: 1479.24 | O69: 1733.64 | P69: 5458.4 | Q69: 98 | Z69: Klient 437 | AA69: 28616.29333 | AB69: 29521.1 | AC69: Klient 437 | AD69: 48403.68 | AE69: 47872.67 | AF69: Klient 281 | AG69: 45560.32667 | AH69: 43295.21 | AI69: Klient 87 | AJ69: 46834.64 | AK69: 40610.81333 | AL69: Klient 447 | AM69: 35026.43667 | AN69: 26214.72 | AO69: Klient 336 | AP69: 47910.11667 | AQ69: 39050.44333 | AR69: Klient 19 | AS69: 39248 | AT69: 33949.22667 | AU69: Klient 32 | AV69: 36898.09333 | AW69: 29225.28
A70: SK | B70: 8 | C70: FV | D70: Klient 12 | E70: 2017-11-02 | F70: 2017-11-02 | G70: 2017-12-12 | H70: S | I70: P:GR4 | J70: 4 | K70: 1480.7 | L70: kg | M70: 1.325 | N70: 1961.93 | O70: 2257.82 | P70: 7239.51 | Q70: 98 | Z70: Klient 236 | AA70: 33049.76 | AB70: 28644.79 | AC70: Klient 337 | AD70: 47037.85 | AE70: 37423.51 | AF70: Klient 381 | AG70: 42004.91333 | AH70: 39060.32 | AI70: Klient 110 | AJ70: 45614.38667 | AK70: 42857.22667 | AL70: Klient 561 | AM70: 34603.41667 | AN70: 31447.91333 | AO70: Klient 382 | AP70: 43316.50667 | AQ70: 40408.37333 | AR70: Klient 381 | AS70: 36652.8 | AT70: 30448.47667 | AU70: Klient 447 | AV70: 36666.20667 | AW70: 28251.13333
A71: SK | B71: 8 | C71: FV | D71: Klient 12 | E71: 2017-11-02 | F71: 2017-11-02 | G71: 2017-12-12 | H71: S | I71: P:GR1 | J71: 5 | K71: 1300.8 | L71: kg | M71: 1.258333333 | N71: 1636.84 | O71: 968.59 | P71: 6039.94 | Q71: 98 | Z71: Klient 110 | AA71: 29397.24667 | AB71: 27467.9 | AC71: Klient 447 | AD71: 45575.92333 | AE71: 36568.68667 | AF71: Klient 447 | AG71: 41157.65667 | AH71: 32848.01333 | AI71: Klient 454 | AJ71: 45332.10333 | AK71: 40647.51333 | AL71: Klient 415 | AM71: 34489.84 | AN71: 36166.93333 | AO71: Klient 454 | AP71: 41596.45333 | AQ71: 40723.35333 | AR71: Klient 230 | AS71: 35874.68 | AT71: 42483.09667 | AU71: Klient 40 | AV71: 36491.10667 | AW71: 33629.48667
A72: SK | B72: 8 | C72: FV | D72: Klient 12 | E72: 2017-11-02 | F72: 2017-11-02 | G72: 2017-12-12 | H72: S | I72: P:GR1 | J72: 6 | K72: 1464.6 | L72: kg | M72: 1.2 | N72: 1757.52 | O72: 1192.1 | P72: 6485.25 | Q72: 98 | Z72: Klient 7 | AA72: 25471.71333 | AB72: 26771.52 | AC72: Klient 382 | AD72: 42217.01333 | AE72: 32457.94 | AF72: Klient 40 | AG72: 39857.56667 | AH72: 30917.64667 | AI72: Klient 135 | AJ72: 43452.84333 | AK72: 30930.82 | AL72: Klient 454 | AM72: 33519.13333 | AN72: 30897.67 | AO72: Klient 230 | AP72: 39314.64333 | AQ72: 46982.13333 | AR72: Klient 317 | AS72: 34472.83333 | AT72: 36682.12667 | AU72: Klient 381 | AV72: 35251.76667 | AW72: 29954.26333
A73: SK | B73: 8 | C73: FV | D73: Klient 12 | E73: 2017-11-02 | F73: 2017-11-02 | G73: 2017-12-12 | H73: S | I73: P:GR1 | J73: 7 | K73: 686.2 | L73: kg | M73: 1.2 | N73: 823.44 | O73: 485.02 | P73: 3038.49 | Q73: 98 | Z73: Klient 380 | AA73: 31499.84 | AB73: 26258.88 | AC73: Klient 415 | AD73: 41231.19333 | AE73: 42946.41667 | AF73: Klient 435 | AG73: 38587.70667 | AH73: 25997.48333 | AI73: Klient 435 | AJ73: 42795.21333 | AK73: 28582.78333 | AL73: Klient 435 | AM73: 33072.58667 | AN73: 23291.47333 | AO73: Klient 381 | AP73: 36647.03 | AQ73: 29453.83 | AR73: Klient 281 | AS73: 32903.86333 | AT73: 32479.72 | AU73: Klient 457 | AV73: 34112.24333 | AW73: 26725.94667
A74: SK | B74: 8 | C74: FV | D74: Klient 12 | E74: 2017-11-02 | F74: 2017-11-02 | G74: 2017-12-12 | H74: S | I74: P:GR1 | J74: 8 | K74: 383.8 | L74: kg | M74: 1.2 | N74: 460.56 | O74: 283.36 | P74: 1699.47 | Q74: 98 | Z74: Klient 293 | AA74: 28756.21333 | AB74: 25569.6 | AC74: Klient 561 | AD74: 39980.28667 | AE74: 37011.2 | AF74: Klient 8 | AG74: 37681.04667 | AH74: 34352.62667 | AI74: Klient 133 | AJ74: 42330.88 | AK74: 36291.03333 | AL74: Klient 53 | AM74: 32769.33667 | AN74: 28694.87667 | AO74: Klient 110 | AP74: 36559.63333 | AQ74: 39079.32 | AR74: Klient 293 | AS74: 32504.77333 | AT74: 28029.14667 | AU74: Klient 421 | AV74: 33163.82667 | AW74: 33729.56
A75: SK | B75: 8 | C75: FV | D75: Klient 12 | E75: 2017-11-02 | F75: 2017-11-02 | G75: 2017-12-12 | H75: S | I75: P:GR1 | J75: 9 | K75: 864.8 | L75: kg | M75: 1.2 | N75: 1037.76 | O75: 651.62 | P75: 3829.33 | Q75: 98 | Z75: Klient 286 | AA75: 27862.45667 | AB75: 25095.13333 | AC75: Klient 346 | AD75: 39957.69667 | AE75: 31894.75667 | AF75: Klient 483 | AG75: 37477.53 | AH75: 30701.95333 | AI75: Klient 102 | AJ75: 41433.55333 | AK75: 34976.3 | AL75: Klient 60 | AM75: 32323.86 | AN75: 26622.08 | AO75: Klient 34 | AP75: 34994.03333 | AQ75: 29865.02333 | AR75: Klient 520 | AS75: 31510.86667 | AT75: 31118.09 | AU75: Klient 463 | AV75: 32161.46333 | AW75: 36684.80333
A76: SK | B76: 8 | C76: FV | D76: Klient 12 | E76: 2017-11-02 | F76: 2017-11-02 | G76: 2017-12-12 | H76: S | I76: P:GR1 | J76: 10 | K76: 3435 | L76: kg | M76: 1.2 | N76: 4122 | O76: 2387.45 | P76: 15210.18 | Q76: 98 | Z76: Klient 167 | AA76: 24531.17 | AB76: 24522.88667 | AC76: Klient 135 | AD76: 39257.28667 | AE76: 30169.66667 | AF76: Klient 390 | AG76: 35209.11 | AH76: 28585.5 | AI76: Klient 8 | AJ76: 34547.05 | AK76: 25638.1 | AL76: Klient 19 | AM76: 30922.66667 | AN76: 27031.36 | AO76: Klient 438 | AP76: 34374.65667 | AQ76: 41996.39667 | AR76: Klient 421 | AS76: 31182.15667 | AT76: 32179.41667 | AU76: Klient 435 | AV76: 31520.71333 | AW76: 20887.4
A77: SK | B77: 8 | C77: FV | D77: Klient 6 | E77: 2017-11-02 | F77: 2017-11-02 | G77: 2018-01-01 | H77: S | I77: P:GR1 | J77: 1 | K77: 10356.4 | L77: kg | M77: 1.133333333 | N77: 11737.25 | O77: 10166.37 | P77: 43310.46 | Q77: 98 | Z77: Klient 230 | AA77: 23985.60333 | AB77: 24093.4 | AC77: Klient 495 | AD77: 34973.57 | AE77: 21153.73333 | AF77: Klient 237 | AG77: 34845.87 | AH77: 28373.92667 | AI77: Klient 381 | AJ77: 34301.88 | AK77: 27750.57667 | AL77: Klient 401 | AM77: 29765.61333 | AN77: 26033.81 | AO77: Klient 286 | AP77: 33179.64 | AQ77: 28624.63333 | AR77: Klient 135 | AS77: 28599.03667 | AT77: 22284.08667 | AU77: Klient 492 | AV77: 31168.55333 | AW77: 29092.12333
A78: SK | B78: 8 | C78: FO | D78: Klient 11 | E78: 2017-11-02 | F78: 2017-11-02 | G78: 2017-12-02 | H78: S | I78: GR5 | J78: 1 | K78: 2246 | L78: kg | M78: 0.3583333333 | N78: 804.82 | O78: 449.2 | P78: 2414.45 | Q78: 95 | Z78: Klient 19 | AA78: 26918.56 | AB78: 23690.69 | AC78: Klient 40 | AD78: 34418.09 | AE78: 29084.25667 | AF78: Klient 495 | AG78: 33576.61 | AH78: 20414.57667 | AI78: Klient 345 | AJ78: 32015.31 | AK78: 26379.55667 | AL78: Klient 87 | AM78: 29425.75 | AN78: 24231.46333 | AO78: Klient 561 | AP78: 32214.48333 | AQ78: 29409.16 | AR78: Klient 139 | AS78: 27647.38333 | AT78: 27961.09667 | AU78: Klient 390 | AV78: 30312.91333 | AW78: 24919.43667
A79: SK | B79: 8 | C79: FO | D79: Klient 11 | E79: 2017-11-02 | F79: 2017-11-02 | G79: 2017-12-02 | H79: S | I79: GR5 | J79: 2 | K79: 28105.02 | L79: kg | M79: 0.3583333333 | N79: 10070.97 | O79: 5621.01 | P79: 30212.9 | Q79: 95 | Z79: Klient 8 | AA79: 26079.63667 | AB79: 21739.01 | AC79: Klient 53 | AD79: 33071.02667 | AE79: 29048.12667 | AF79: Klient 230 | AG79: 32393.32667 | AH79: 33591.74 | AI79: Klient 115 | AJ79: 31162.40333 | AK79: 24130.80667 | AL79: Klient 237 | AM79: 28527.70667 | AN79: 23918.95 | AO79: Klient 401 | AP79: 31316.83 | AQ79: 26053.58667 | AR79: Klient 40 | AS79: 26905.72333 | AT79: 21676.04 | AU79: Klient 237 | AV79: 29977.71 | AW79: 26406.37333
A80: SK | B80: 8 | C80: FV | D80: Klient 13 | E80: 2017-11-03 | F80: 2017-11-03 | G80: 2018-01-02 | H80: S | I80: T: | J80: 1 | K80: 1000 | L80: kg | M80: 2.793333333 | N80: 2793.33 | O80: 2785 | P80: 10307.4 | Q80: 93 | Z80: Klient 495 | AA80: 33646.38 | AB80: 21408.10333 | AC80: Klient 8 | AD80: 32955.45333 | AE80: 27197.96667 | AF80: Klient 97 | AG80: 31358.16667 | AH80: 27033.45667 | AI80: Klient 483 | AJ80: 30707.89 | AK80: 25800.96 | AL80: Klient 421 | AM80: 27315.92667 | AN80: 26614.31333 | AO80: Klient 435 | AP80: 30921.47 | AQ80: 22968.22667 | AR80: Klient 32 | AS80: 26484.99 | AT80: 20836.08667 | AU80: Klient 110 | AV80: 29741.85333 | AW80: 30687.99
A81: SK | B81: 8 | C81: FV | D81: Klient 13 | E81: 2017-11-03 | F81: 2017-11-03 | G81: 2018-01-02 | H81: S | I81: T: | J81: 2 | K81: 1000 | L81: kg | M81: 2.695 | N81: 2695 | O81: 2686.67 | P81: 9944.55 | Q81: 93 | Z81: Klient 506 | AA81: 20431.72667 | AB81: 19532.29667 | AC81: Klient 356 | AD81: 31387.76333 | AE81: 28023.47667 | AF81: Klient 561 | AG81: 29201.62 | AH81: 25100.5 | AI81: Klient 222 | AJ81: 28523.18667 | AK81: 23368.09333 | AL81: Klient 317 | AM81: 26846.28333 | AN81: 23750.24333 | AO81: Klient 483 | AP81: 25328.87333 | AQ81: 21596.21667 | AR81: Klient 435 | AS81: 25013.49333 | AT81: 17910.85667 | AU81: Klient 490 | AV81: 28560.63667 | AW81: 25319.58
A82: SK | B82: 8 | C82: FV | D82: Klient 14 | E82: 2017-11-03 | F82: 2017-11-03 | G82: 2017-12-18 | H82: S | I82: P:GR1 | J82: 1 | K82: 5762.4 | L82: kg | M82: 1.416666667 | N82: 8163.4 | O82: 6995.96 | P82: 30122.95 | Q82: 98 | Z82: Klient 265 | AA82: 20819.3 | AB82: 18268.43667 | AC82: Klient 60 | AD82: 30047.01333 | AE82: 25782.82667 | AF82: Klient 150 | AG82: 28719.54 | AH82: 28501.03 | AI82: Klient 40 | AJ82: 28267.6 | AK82: 23970.44333 | AL82: Klient 135 | AM82: 25248.50667 | AN82: 17656.03 | AO82: Klient 125 | AP82: 23225.4 | AQ82: 30997.27667 | AR82: Klient 356 | AS82: 25007.22667 | AT82: 25283.23 | AU82: Klient 222 | AV82: 27485.38333 | AW82: 23767.01333
A83: SK | B83: 8 | C83: FV | D83: Klient 15 | E83: 2017-11-03 | F83: 2017-11-02 | G83: 2017-12-03 | H83: S | I83: P:GR4 | J83: 1 | K83: 4230 | L83: szt | M83: 0.09666666667 | N83: 408.9 | O83: 370.83 | P83: 1508.84 | Q83: 98 | Z83: Klient 447 | AA83: 21891.49667 | AB83: 18230.74 | AC83: Klient 324 | AD83: 29702.97 | AE83: 29174.12333 | AF83: Klient 19 | AG83: 28561.23333 | AH83: 32146.36333 | AI83: Klient 537 | AJ83: 27396.29667 | AK83: 23898.42 | AL83: Klient 32 | AM83: 23430.79333 | AN83: 17987.30333 | AO83: Klient 40 | AP83: 23156.85667 | AQ83: 19746.7 | AR83: Klient 415 | AS83: 24984.13333 | AT83: 27479.43 | AU83: Klient 356 | AV83: 26266.45333 | AW83: 24335.31667
A84: SK | B84: 8 | C84: FV | D84: Klient 15 | E84: 2017-11-03 | F84: 2017-11-02 | G84: 2017-12-03 | H84: S | I84: P:GR1 | J84: 2 | K84: 10000 | L84: mb | M84: 0.0655 | N84: 655 | O84: 496.67 | P84: 2416.95 | Q84: 98 | Z84: Klient 139 | AA84: 18417.6 | AB84: 17633.26333 | AC84: Klient 381 | AD84: 29271.21667 | AE84: 40121.40333 | AF84: Klient 139 | AG84: 27716.62667 | AH84: 24616.19667 | AI84: Klient 338 | AJ84: 26650.16 | AK84: 22197.59 | AL84: Klient 513 | AM84: 22915.49 | AN84: 18377.09 | AO84: Klient 384 | AP84: 22978.09667 | AQ84: 20109.75 | AR84: Klient 487 | AS84: 24981.76333 | AT84: 22482.08667 | AU84: Klient 125 | AV84: 26147 | AW84: 23171.72
A85: SK | B85: 8 | C85: FV | D85: Klient 15 | E85: 2017-11-03 | F85: 2017-11-02 | G85: 2017-12-03 | H85: S | I85: P:GR1 | J85: 3 | K85: 6000 | L85: mb | M85: 0.1325 | N85: 795 | O85: 572.9 | P85: 2933.55 | Q85: 98 | Z85: Klient 40 | AA85: 22017.82 | AB85: 17284.34 | AC85: Klient 110 | AD85: 29057.01667 | AE85: 26902.29333 | AF85: Klient 159 | AG85: 25167.95667 | AH85: 23021.64333 | AI85: Klient 60 | AJ85: 26077.26 | AK85: 21667.95333 | AL85: Klient 7 | AM85: 21334.05 | AN85: 21445.65667 | AO85: Klient 421 | AP85: 22943.4 | AQ85: 24294.25333 | AR85: Klient 401 | AS85: 24708.06 | AT85: 21680.46333 | AU85: Klient 382 | AV85: 25895.49333 | AW85: 22445.11
A86: SK | B86: 8 | C86: FV | D86: Klient 15 | E86: 2017-11-03 | F86: 2017-11-02 | G86: 2017-12-03 | H86: S | I86: P:GR1 | J86: 4 | K86: 6000 | L86: mb | M86: 0.074 | N86: 444 | O86: 304.1 | P86: 1638.36 | Q86: 98 | Z86: Klient 218 | AA86: 18701.50333 | AB86: 16713.91 | AC86: Klient 401 | AD86: 28390.25333 | AE86: 26331.82333 | AF86: Klient 32 | AG86: 25067.89333 | AH86: 18553.71333 | AI86: Klient 46 | AJ86: 25910.45 | AK86: 22187.03333 | AL86: Klient 390 | AM86: 21063.3 | AN86: 17312.86333 | AO86: Klient 8 | AP86: 22337.95667 | AQ86: 16582.27 | AR86: Klient 8 | AS86: 24390.5 | AT86: 19911.97333 | AU86: Klient 133 | AV86: 25870.65 | AW86: 21427.71667
A87: SK | B87: 8 | C87: FV | D87: Klient 15 | E87: 2017-11-03 | F87: 2017-11-02 | G87: 2017-12-03 | H87: S | I87: P:GR4 | J87: 5 | K87: 2850 | L87: szt | M87: 0.22 | N87: 627 | O87: 559.79 | P87: 2313.63 | Q87: 98 | Z87: Klient 492 | AA87: 14620.73667 | AB87: 15239.49333 | AC87: Klient 286 | AD87: 27986.23333 | AE87: 24477.81667 | AF87: Klient 218 | AG87: 24708.05667 | AH87: 20846.29667 | AI87: Klient 337 | AJ87: 25662.80333 | AK87: 20407.63333 | AL87: Klient 286 | AM87: 18937.36 | AN87: 16207.96 | AO87: Klient 102 | AP87: 22082.26 | AQ87: 18401.19 | AR87: Klient 102 | AS87: 24241.53333 | AT87: 20471.27667 | AU87: Klient 19 | AV87: 24976 | AW87: 21685.44
A88: SK | B88: 8 | C88: FV | D88: Klient 15 | E88: 2017-11-03 | F88: 2017-11-02 | G88: 2017-12-03 | H88: S | I88: P:GR4 | J88: 6 | K88: 1910 | L88: szt | M88: 0.29 | N88: 553.9 | O88: 463.88 | P88: 2043.89 | Q88: 98 | Z88: Klient 435 | AA88: 22450.34667 | AB88: 14896.68667 | AC88: Klient 6 | AD88: 27219.01667 | AE88: 23120.83333 | AF88: Klient 60 | AG88: 23665.53333 | AH88: 20214.22 | AI88: Klient 139 | AJ88: 24009.57333 | AK88: 20918.99 | AL88: Klient 381 | AM88: 18699.77333 | AN88: 15197.24667 | AO88: Klient 447 | AP88: 20753.01667 | AQ88: 26923.22333 | AR88: Klient 110 | AS88: 24193.15333 | AT88: 26111.3 | AU88: Klient 230 | AV88: 24444.83333 | AW88: 25950.14
A89: SK | B89: 8 | C89: FV | D89: Klient 15 | E89: 2017-11-03 | F89: 2017-11-02 | G89: 2017-12-03 | H89: S | I89: P:GR4 | J89: 7 | K89: 1120 | L89: szt | M89: 0.3266666667 | N89: 365.87 | O89: 337.85 | P89: 1350.05 | Q89: 98 | Z89: Klient 53 | AA89: 16439.07 | AB89: 14583.17 | AC89: Klient 492 | AD89: 25079.41667 | AE89: 23284.02 | AF89: Klient 102 | AG89: 23254.30667 | AH89: 20811.53333 | AI89: Klient 218 | AJ89: 23995.61667 | AK89: 20289.13333 | AL89: Klient 438 | AM89: 17980.52333 | AN89: 21944.66667 | AO89: Klient 356 | AP89: 18855.89333 | AQ89: 15669.49 | AR89: Klient 60 | AS89: 23732.66667 | AT89: 19352.3 | AU89: Klient 127 | AV89: 23093.46667 | AW89: 20727.46
A90: SK | B90: 8 | C90: FV | D90: Klient 15 | E90: 2017-11-03 | F90: 2017-11-02 | G90: 2017-12-03 | H90: S | I90: P:GR1 | J90: 8 | K90: 7000 | L90: mb | M90: 0.0655 | N90: 458.5 | O90: 308.47 | P90: 1691.87 | Q90: 98 | Z90: Klient 125 | AA90: 16833.23333 | AB90: 14548.18667 | AC90: Klient 223 | AD90: 22634.55 | AE90: 20287.72 | AF90: Klient 53 | AG90: 23200.33333 | AH90: 20284.69667 | AI90: Klient 6 | AJ90: 23880.75 | AK90: 20276.92333 | AL90: Klient 265 | AM90: 17016.53333 | AN90: 14962.08 | AO90: Klient 338 | AP90: 18589.88333 | AQ90: 16383.55 | AR90: Klient 380 | AS90: 22367.1 | AT90: 18712.35333 | AU90: Klient 6 | AV90: 21702.81667 | AW90: 22387.50667
A91: SK | B91: 8 | C91: FV | D91: Klient 15 | E91: 2017-11-03 | F91: 2017-11-02 | G91: 2017-12-03 | H91: S | I91: P:GR1 | J91: 9 | K91: 6000 | L91: mb | M91: 0.137 | N91: 822 | O91: 630.52 | P91: 3033.18 | Q91: 98 | Z91: Klient 97 | AA91: 15899.93333 | AB91: 13849.52667 | AC91: Klient 102 | AD91: 21122.90333 | AE91: 18477.42667 | AF91: Klient 514 | AG91: 22400.63 | AH91: 17889.6 | AI91: Klient 421 | AJ91: 23526.02333 | AK91: 24166.47333 | AL91: Klient 463 | AM91: 15921.8 | AN91: 18128.91667 | AO91: Klient 490 | AP91: 18409.79333 | AQ91: 18252.93667 | AR91: Klient 125 | AS91: 22260.5 | AT91: 19444.02667 | AU91: Klient 129 | AV91: 21063.87 | AW91: 18023.41333
A92: SK | B92: 8 | C92: FV | D92: Klient 15 | E92: 2017-11-03 | F92: 2017-11-02 | G92: 2017-12-03 | H92: S | I92: P:GR4 | J92: 10 | K92: 10480 | L92: szt | M92: 0.2866666667 | N92: 3004.27 | O92: 2807.24 | P92: 11085.74 | Q92: 98 | Z92: Klient 515 | AA92: 11525.42333 | AB92: 13456.08667 | AC92: Klient 336 | AD92: 20645.71333 | AE92: 16563.97 | AF92: Klient 34 | AG92: 21891.02333 | AH92: 18103.49333 | AI92: Klient 487 | AJ92: 23314.01333 | AK92: 19358.64333 | AL92: Klient 34 | AM92: 15643.27333 | AN92: 13142.18667 | AO92: Klient 492 | AP92: 17806.32 | AQ92: 18766.73667 | AR92: Klient 310 | AS92: 22230.78333 | AT92: 17677.18 | AU92: Klient 281 | AV92: 20520.72667 | AW92: 19131.55667
A93: SK | B93: 8 | C93: FV | D93: Klient 15 | E93: 2017-11-03 | F93: 2017-11-02 | G93: 2017-12-03 | H93: S | I93: P:GR1 | J93: 11 | K93: 8000 | L93: mb | M93: 0.0655 | N93: 524 | O93: 346.13 | P93: 1933.56 | Q93: 98 | Z93: Klient 101 | AA93: 14605.4 | AB93: 13086.01667 | AC93: Klient 34 | AD93: 19685.01667 | AE93: 17062.16667 | AF93: Klient 356 | AG93: 20362 | AH93: 19552.01333 | AI93: Klient 314 | AJ93: 22826.66667 | AK93: 20181.4 | AL93: Klient 532 | AM93: 14655.10333 | AN93: 13515.95333 | AO93: Klient 513 | AP93: 17711.26 | AQ93: 15134.01667 | AR93: Klient 314 | AS93: 20929.51333 | AT93: 18455.65 | AU93: Klient 60 | AV93: 18359.68667 | AW93: 14821.01
A94: SK | B94: 8 | C94: FV | D94: Klient 15 | E94: 2017-11-03 | F94: 2017-11-02 | G94: 2017-12-03 | H94: S | I94: P:GR4 | J94: 12 | K94: 1050 | L94: szt | M94: 0.8516666667 | N94: 894.25 | O94: 804.04 | P94: 3299.78 | Q94: 98 | Z94: Klient 434 | AA94: 12270.6 | AB94: 11318.5 | AC94: Klient 125 | AD94: 19586.66667 | AE94: 18454.66667 | AF94: Klient 7 | AG94: 20253.62 | AH94: 19691.64333 | AI94: Klient 324 | AJ94: 20848.3 | AK94: 18919.42667 | AL94: Klient 434 | AM94: 14592.8 | AN94: 13865.01667 | AO94: Klient 301 | AP94: 17227.21 | AQ94: 16914.25 | AR94: Klient 97 | AS94: 20919.95667 | AT94: 18162.47667 | AU94: Klient 102 | AV94: 17445.04667 | AW94: 14742.91333
A95: SK | B95: 8 | C95: FV | D95: Klient 15 | E95: 2017-11-03 | F95: 2017-11-02 | G95: 2017-12-03 | H95: S | I95: P:GR4 | J95: 13 | K95: 4030 | L95: szt | M95: 0.9366666667 | N95: 3774.77 | O95: 3146.42 | P95: 13928.89 | Q95: 98 | Z95: Klient 20 | AA95: 11205.98667 | AB95: 11236.32 | AC95: Klient 487 | AD95: 19262.26333 | AE95: 16126.55667 | AF95: Klient 513 | AG95: 18918.43667 | AH95: 15105.78 | AI95: Klient 447 | AJ95: 19174.17333 | AK95: 14452.80667 | AL95: Klient 129 | AM95: 14570.98333 | AN95: 11957.41333 | AO95: Klient 434 | AP95: 16446 | AQ95: 15904.02667 | AR95: Klient 316 | AS95: 20861.25 | AT95: 16600.97 | AU95: Klient 452 | AV95: 17011.54 | AW95: 12655.74333
A96: SK | B96: 8 | C96: FV | D96: Klient 15 | E96: 2017-11-03 | F96: 2017-11-02 | G96: 2017-12-03 | H96: S | I96: P:GR4 | J96: 14 | K96: 3050 | L96: szt | M96: 1.021666667 | N96: 3116.08 | O96: 2602.97 | P96: 11498.35 | Q96: 98 | Z96: Klient 11 | AA96: 11025.73667 | AB96: 11187.69333 | AC96: Klient 133 | AD96: 19066.22667 | AE96: 16127.09667 | AF96: Klient 25 | AG96: 18714.22333 | AH96: 17281.26667 | AI96: Klient 520 | AJ96: 18815.59667 | AK96: 14257.63 | AL96: Klient 490 | AM96: 13339.37667 | AN96: 15043.90333 | AO96: Klient 6 | AP96: 16145.90667 | AQ96: 14645.89667 | AR96: Klient 7 | AS96: 19917.58667 | AT96: 19499.13 | AU96: Klient 20 | AV96: 16999.60333 | AW96: 15330.15
A97: SK | B97: 8 | C97: FV | D97: Klient 16 | E97: 2017-11-03 | F97: 2017-11-03 | G97: 2018-01-02 | H97: S | I97: P:GR4 | J97: 1 | K97: 1625 | L97: kg | M97: 0.6833333333 | N97: 1110.42 | O97: 1221.37 | P97: 4097.44 | Q97: 98 | Z97: Klient 133 | AA97: 12691.32667 | AB97: 11048.31667 | AC97: Klient 513 | AD97: 18991.05333 | AE97: 16430.6 | AF97: Klient 549 | AG97: 18035.71 | AH97: 22941.49 | AI97: Klient 490 | AJ97: 18559.55 | AK97: 18373.22333 | AL97: Klient 505 | AM97: 13245.60333 | AN97: 12053.26 | AO97: Klient 115 | AP97: 15851.08 | AQ97: 12020.76333 | AR97: Klient 36 | AS97: 18565.85333 | AT97: 13655.46333 | AU97: Klient 561 | AV97: 16635.14667 | AW97: 17033.99667
A98: SK | B98: 8 | C98: FV | D98: Klient 16 | E98: 2017-11-03 | F98: 2017-11-03 | G98: 2018-01-02 | H98: S | I98: P:GR4 | J98: 2 | K98: 2497.84 | L98: kg | M98: 0.6833333333 | N98: 1706.86 | O98: 1719.19 | P98: 6298.3 | Q98: 98 | Z98: Klient 487 | AA98: 12508.78 | AB98: 10654.76667 | AC98: Klient 505 | AD98: 18978.36 | AE98: 15873.52333 | AF98: Klient 401 | AG98: 17426.74667 | AH98: 15379.66333 | AI98: Klient 36 | AJ98: 18435.85 | AK98: 14884.12333 | AL98: Klient 515 | AM98: 13057.61333 | AN98: 14900.78667 | AO98: Klient 487 | AP98: 14819.02667 | AQ98: 12104.01 | AR98: Klient 223 | AS98: 18308.54667 | AT98: 14479.37667 | AU98: Klient 22 | AV98: 16496.4 | AW98: 16388.14667
A99: SK | B99: 8 | C99: FV | D99: Klient 16 | E99: 2017-11-03 | F99: 2017-11-03 | G99: 2018-01-02 | H99: S | I99: P:GR4 | J99: 3 | K99: 1209.4 | L99: kg | M99: 0.6833333333 | N99: 826.42 | O99: 896.75 | P99: 3049.5 | Q99: 98 | Z99: Klient 166 | AA99: 11732.18333 | AB99: 10552.09667 | AC99: Klient 218 | AD99: 18731 | AE99: 16617.24333 | AF99: Klient 265 | AG99: 17382.4 | AH99: 15465.33333 | AI99: Klient 125 | AJ99: 17779.53333 | AK99: 16324.71667 | AL99: Klient 125 | AM99: 12826.6 | AN99: 11502.13667 | AO99: Klient 19 | AP99: 14272 | AQ99: 12256.64 | AR99: Klient 390 | AS99: 18264.62667 | AT99: 14651.21333 | AU99: Klient 36 | AV99: 15804.00667 | AW99: 12024.65
A100: SK | B100: 8 | C100: FV | D100: Klient 16 | E100: 2017-11-03 | F100: 2017-11-03 | G100: 2018-01-02 | H100: S | I100: P:GR1 | J100: 4 | K100: 2064 | L100: kg | M100: 0.6833333333 | N100: 1410.4 | O100: 1192.44 | P100: 5204.38 | Q100: 98
A101: SK | B101: 8 | C101: FV | D101: Klient 16 | E101: 2017-11-03 | F101: 2017-11-03 | G101: 2018-01-02 | H101: S | I101: P:GR4 | J101: 5 | K101: 2200.2 | L101: kg | M101: 0.6833333333 | N101: 1503.47 | O101: 1548.27 | P101: 5547.8 | Q101: 98
A102: SK | B102: 8 | C102: FV | D102: Klient 17 | E102: 2017-11-03 | F102: 2017-11-03 | G102: 2017-11-17 | H102: S | I102: P:GR1 | J102: 1 | K102: 8760.8 | L102: kg | M102: 1.625 | N102: 14236.3 | O102: 11150.02 | P102: 52531.95 | Q102: 98
A103: SK | B103: 8 | C103: FV | D103: Klient 18 | E103: 2017-11-03 | F103: 2017-11-03 | G103: 2017-12-03 | H103: S | I103: P:GR1 | J103: 1 | K103: 6443.8 | L103: kg | M103: 1.433333333 | N103: 9236.11 | O103: 8392.19 | P103: 34081.26 | Q103: 98
A104: SK | B104: 8 | C104: FV | D104: Klient 18 | E104: 2017-11-03 | F104: 2017-11-03 | G104: 2017-12-03 | H104: S | I104: P:GR1 | J104: 2 | K104: 14051.2 | L104: kg | M104: 1.5 | N104: 21076.8 | O104: 16527.25 | P104: 77773.39 | Q104: 98
A105: SK | B105: 8 | C105: FV | D105: Klient 19 | E105: 2017-11-03 | F105: 2017-11-03 | G105: 2017-11-17 | H105: S | I105: P:GR4 | J105: 1 | K105: 51120 | L105: szt | M105: 0.03666666667 | N105: 1874.4 | O105: 1594.09 | P105: 6916.54 | Q105: 98
A106: SK | B106: 8 | C106: FV | D106: Klient 6 | E106: 2017-11-03 | F106: 2017-11-03 | G106: 2018-01-02 | H106: S | I106: P:GR1 | J106: 1 | K106: 633.6 | L106: kg | M106: 1.15 | N106: 728.64 | O106: 638.72 | P106: 2688.68 | Q106: 98
A107: SK | B107: 8 | C107: FV | D107: Klient 6 | E107: 2017-11-03 | F107: 2017-11-03 | G107: 2018-01-02 | H107: S | I107: P:GR1 | J107: 2 | K107: 2086 | L107: kg | M107: 1.308333333 | N107: 2729.18 | O107: 2807.13 | P107: 10070.69 | Q107: 98
A108: SK | B108: 8 | C108: FV | D108: Klient 6 | E108: 2017-11-03 | F108: 2017-11-03 | G108: 2018-01-02 | H108: S | I108: P:GR1 | J108: 3 | K108: 2208.8 | L108: kg | M108: 1.308333333 | N108: 2889.85 | O108: 2577.78 | P108: 10663.53 | Q108: 98
A109: SK | B109: 8 | C109: FV | D109: Klient 6 | E109: 2017-11-03 | F109: 2017-11-03 | G109: 2018-01-02 | H109: S | I109: P:GR1 | J109: 4 | K109: 2489.2 | L109: kg | M109: 1.308333333 | N109: 3256.7 | O109: 2988.49 | P109: 12017.24 | Q109: 98
A110: SK | B110: 8 | C110: FV | D110: Klient 6 | E110: 2017-11-03 | F110: 2017-11-03 | G110: 2018-01-02 | H110: S | I110: P:GR1 | J110: 5 | K110: 1206 | L110: kg | M110: 1.308333333 | N110: 1577.85 | O110: 1477.33 | P110: 5822.27 | Q110: 98
A111: SK | B111: 8 | C111: FV | D111: Klient 6 | E111: 2017-11-03 | F111: 2017-11-03 | G111: 2018-01-02 | H111: S | I111: GR5 | J111: 6 | K111: 656.4 | L111: kg | M111: 1.15 | N111: 754.86 | O111: 661.71 | P111: 2785.43 | Q111: 98
A112: SK | B112: 8 | C112: FV | D112: Klient 20 | E112: 2017-11-03 | F112: 2017-11-02 | G112: 2017-12-01 | H112: S | I112: P:GR4 | J112: 1 | K112: 19640 | L112: szt | M112: 0.105 | N112: 2062.2 | O112: 1905.73 | P112: 7609.52 | Q112: 98
A113: SK | B113: 8 | C113: FV | D113: Klient 20 | E113: 2017-11-03 | F113: 2017-11-02 | G113: 2017-12-01 | H113: S | I113: P:GR4 | J113: 2 | K113: 91740 | L113: szt | M113: 0.0055 | N113: 504.57 | O113: 431.18 | P113: 1861.86 | Q113: 98
A114: SK | B114: 8 | C114: FV | D114: Klient 21 | E114: 2017-11-03 | F114: 2017-11-02 | G114: 2018-01-02 | H114: S | I114: P:GR4 | J114: 1 | K114: 12750 | L114: szt | M114: 0.145 | N114: 1848.75 | O114: 1657.93 | P114: 6821.89 | Q114: 98
A115: SK | B115: 8 | C115: FV | D115: Klient 22 | E115: 2017-11-03 | F115: 2017-11-02 | G115: 2017-11-04 | H115: S | I115: P:GR1 | J115: 1 | K115: 2217.4 | L115: kg | M115: 1.25 | N115: 2771.75 | O115: 2237.96 | P115: 10227.76 | Q115: 98
A116: SK | B116: 8 | C116: FV | D116: Klient 23 | E116: 2017-11-03 | F116: 2017-11-03 | G116: 2017-12-18 | H116: S | I116: U: | J116: 1 | K116: 2 | L116: szt | M116: 125 | N116: 250 | O116: 0 | P116: 922.5
A117: SK | B117: 8 | C117: FV | D117: Klient 24 | E117: 2017-11-03 | F117: 2017-11-03 | G117: 2017-11-03 | H117: S | I117: P:GR1 | J117: 1 | K117: 119.2 | L117: kg | M117: 1.333333333 | N117: 158.93 | O117: 117.15 | P117: 586.46 | Q117: 98
A118: SK | B118: 8 | C118: FO | D118: Klient 11 | E118: 2017-11-03 | F118: 2017-11-03 | G118: 2017-12-03 | H118: S | I118: GR5 | J118: 1 | K118: 13392 | L118: kg | M118: 0.3583333333 | N118: 4798.8 | O118: 2678.4 | P118: 14396.4 | Q118: 95
A119: SK | B119: 8 | C119: FV | D119: Klient 25 | E119: 2017-11-03 | F119: 2017-11-03 | G119: 2017-11-24 | H119: S | I119: P:GR4 | J119: 1 | K119: 4328 | L119: szt | M119: 0.695 | N119: 3007.96 | O119: 2794.3 | P119: 11099.37 | Q119: 98
A120: SK | B120: 8 | C120: PF | D120: Klient 26 | E120: 2017-11-03 | F120: 2017-11-03 | G120: 2017-11-03 | H120: S | I120: GR5 | J120: 1 | K120: 396 | L120: m2 | M120: 0.1083333333 | N120: 42.93 | O120: 40.09 | P120: 158.4 | Q120: 98
A121: SK | B121: 8 | C121: FV | D121: Klient 27 | E121: 2017-11-03 | F121: 2017-11-03 | G121: 2018-01-02 | H121: S | I121: P:GR4 | J121: 1 | K121: 7894 | L121: szt | M121: 1321.814667 | N121: 10434.4 | O121: 7728.45 | P121: 38502.95 | Q121: 86
A122: SK | B122: 8 | C122: FV | D122: Klient 28 | E122: 2017-11-03 | F122: 2017-11-03 | G122: 2018-01-02 | H122: S | I122: P:GR1 | J122: 1 | K122: 30177 | L122: kg | M122: 1.133333333 | N122: 34200.6 | O122: 20809.05 | P122: 126200.21 | Q122: 98
A123: SK | B123: 8 | C123: FV | D123: Klient 6 | E123: 2017-11-06 | F123: 2017-11-06 | G123: 2018-01-05 | H123: S | I123: GR5 | J123: 1 | K123: 2000.8 | L123: kg | M123: 1.133333333 | N123: 2267.57 | O123: 1905.69 | P123: 8367.35 | Q123: 98
A124: SK | B124: 8 | C124: FV | D124: Klient 6 | E124: 2017-11-06 | F124: 2017-11-06 | G124: 2018-01-05 | H124: S | I124: GR5 | J124: 2 | K124: 2005.2 | L124: kg | M124: 1.108333333 | N124: 2222.43 | O124: 2000.35 | P124: 8200.77 | Q124: 98
A125: SK | B125: 8 | C125: FV | D125: Klient 6 | E125: 2017-11-06 | F125: 2017-11-06 | G125: 2018-01-05 | H125: S | I125: P:GR1 | J125: 3 | K125: 2456 | L125: kg | M125: 1.175 | N125: 2885.8 | O125: 2413.92 | P125: 10648.6 | Q125: 98
A126: SK | B126: 8 | C126: FV | D126: Klient 6 | E126: 2017-11-06 | F126: 2017-11-06 | G126: 2018-01-05 | H126: S | I126: P:GR1 | J126: 4 | K126: 6773.6 | L126: kg | M126: 1.258333333 | N126: 8523.45 | O126: 7791.1 | P126: 31451.52 | Q126: 98
A127: SK | B127: 8 | C127: FV | D127: Klient 6 | E127: 2017-11-06 | F127: 2017-11-06 | G127: 2018-01-05 | H127: S | I127: GR5 | J127: 5 | K127: 1001.6 | L127: kg | M127: 1.133333333 | N127: 1135.15 | O127: 953.99 | P127: 4188.69 | Q127: 98
A128: SK | B128: 8 | C128: FV | D128: Klient 6 | E128: 2017-11-06 | F128: 2017-11-06 | G128: 2018-01-05 | H128: S | I128: GR5 | J128: 6 | K128: 1038 | L128: kg | M128: 1.108333333 | N128: 1150.45 | O128: 1035.49 | P128: 4245.16 | Q128: 98
A129: SK | B129: 8 | C129: FV | D129: Klient 6 | E129: 2017-11-06 | F129: 2017-11-06 | G129: 2018-01-05 | H129: S | I129: GR5 | J129: 7 | K129: 1006.4 | L129: kg | M129: 1.108333333 | N129: 1115.43 | O129: 1003.97 | P129: 4115.92 | Q129: 98
A130: SK | B130: 8 | C130: FV | D130: Klient 29 | E130: 2017-11-06 | F130: 2017-11-06 | G130: 2017-12-06 | H130: S | I130: P:GR1 | J130: 1 | K130: 6123.2 | L130: kg | M130: 1.35 | N130: 8266.32 | O130: 7137.77 | P130: 30502.72 | Q130: 98
A131: SK | B131: 8 | C131: FV | D131: Klient 29 | E131: 2017-11-06 | F131: 2017-11-06 | G131: 2017-12-06 | H131: S | I131: P:GR1 | J131: 2 | K131: 1012.6 | L131: kg | M131: 0.6583333333 | N131: 666.63 | O131: 541.53 | P131: 2459.86 | Q131: 98
A132: SK | B132: 8 | C132: FV | D132: Klient 30 | E132: 2017-11-06 | F132: 2017-11-06 | G132: 2017-11-20 | H132: S | I132: P:GR3 | J132: 1 | K132: 4300.8 | L132: kg | M132: 1.658333333 | N132: 7132.16 | O132: 7559.39 | P132: 26317.67 | Q132: 98
A133: SK | B133: 8 | C133: FV | D133: Klient 31 | E133: 2017-11-06 | F133: 2017-11-06 | G133: 2017-12-06 | H133: S | I133: P:GR2 | J133: 1 | K133: 5739.28 | L133: kg | M133: 1.55 | N133: 8895.88 | O133: 9428.49 | P133: 32825.81 | Q133: 98
A134: SK | B134: 8 | C134: FV | D134: Klient 31 | E134: 2017-11-06 | F134: 2017-11-06 | G134: 2017-12-06 | H134: S | I134: P:GR1 | J134: 2 | K134: 10028 | L134: kg | M134: 1.166666667 | N134: 11699.33 | O134: 9488.49 | P134: 43170.54 | Q134: 98
A135: SK | B135: 8 | C135: FV | D135: Klient 20 | E135: 2017-11-06 | F135: 2017-11-03 | G135: 2017-12-04 | H135: S | I135: P:GR3 | J135: 1 | K135: 2123.32 | L135: kg | M135: 1.25 | N135: 2654.15 | O135: 3968.8 | P135: 9793.81 | Q135: 98
A136: SK | B136: 8 | C136: FV | D136: Klient 32 | E136: 2017-11-06 | F136: 2017-11-03 | G136: 2017-12-06 | H136: S | I136: P:GR4 | J136: 1 | K136: 2330 | L136: szt | M136: 1.321666667 | N136: 3079.48 | O136: 2932.93 | P136: 11363.29 | Q136: 98
A137: SK | B137: 8 | C137: FV | D137: Klient 32 | E137: 2017-11-06 | F137: 2017-11-03 | G137: 2017-12-06 | H137: S | I137: P:GR4 | J137: 2 | K137: 2500 | L137: szt | M137: 1.083333333 | N137: 2708.33 | O137: 2523.42 | P137: 9993.75 | Q137: 98
A138: SK | B138: 8 | C138: FV | D138: Klient 33 | E138: 2017-11-06 | F138: 2017-11-04 | G138: 2017-11-07 | H138: S | I138: P:GR1 | J138: 1 | K138: 2443.6 | L138: kg | M138: 1.35 | N138: 3298.86 | O138: 3207.18 | P138: 12172.79 | Q138: 98
A139: SK | B139: 8 | C139: FV | D139: Klient 15 | E139: 2017-11-06 | F139: 2017-11-03 | G139: 2017-12-06 | H139: S | I139: P:GR4 | J139: 1 | K139: 6180 | L139: szt | M139: 0.2566666667 | N139: 1586.2 | O139: 1453.43 | P139: 5853.08 | Q139: 98
A140: SK | B140: 8 | C140: FV | D140: Klient 34 | E140: 2017-11-06 | F140: 2017-11-03 | G140: 2017-11-20 | H140: S | I140: P:GR1 | J140: 1 | K140: 3286 | L140: kg | M140: 1.3 | N140: 4271.8 | O140: 3808.81 | P140: 15762.94 | Q140: 98
A141: SK | B141: 8 | C141: FV | D141: Klient 35 | E141: 2017-11-06 | F141: 2017-11-03 | G141: 2017-12-21 | H141: S | I141: P:GR4 | J141: 1 | K141: 3040 | L141: szt | M141: 0.3216666667 | N141: 977.87 | O141: 950.3 | P141: 3608.33 | Q141: 98
A142: SK | B142: 8 | C142: FV | D142: Klient 35 | E142: 2017-11-06 | F142: 2017-11-03 | G142: 2017-12-21 | H142: S | I142: P:GR4 | J142: 2 | K142: 1000 | L142: szt | M142: 0.5133333333 | N142: 513.33 | O142: 477.15 | P142: 1894.2 | Q142: 98
A143: SK | B143: 8 | C143: FV | D143: Klient 36 | E143: 2017-11-06 | F143: 2017-11-03 | G143: 2017-11-20 | H143: S | I143: P:GR1 | J143: 1 | K143: 994 | L143: kg | M143: 1.191666667 | N143: 1184.52 | O143: 939 | P143: 4370.87 | Q143: 98
A144: SK | B144: 8 | C144: FV | D144: Klient 36 | E144: 2017-11-06 | F144: 2017-11-03 | G144: 2017-11-20 | H144: S | I144: U: | J144: 2 | K144: 2 | L144: szt | M144: 2.166666667 | N144: 4.33 | O144: 0 | P144: 15.99
A145: SK | B145: 8 | C145: FV | D145: Klient 36 | E145: 2017-11-06 | F145: 2017-11-03 | G145: 2017-11-20 | H145: S | I145: U: | J145: 3 | K145: 2 | L145: szt | M145: 25 | N145: 50 | O145: 0 | P145: 184.5
A146: SK | B146: 8 | C146: FV | D146: Klient 37 | E146: 2017-11-06 | F146: 2017-11-06 | G146: 2017-12-06 | H146: S | I146: P:GR4 | J146: 1 | K146: 4800 | L146: szt | M146: 0.3383333333 | N146: 1624 | O146: 1853.04 | P146: 5992.56 | Q146: 98
A147: SK | B147: 8 | C147: FV | D147: Klient 37 | E147: 2017-11-06 | F147: 2017-11-06 | G147: 2017-12-06 | H147: S | I147: P:GR4 | J147: 2 | K147: 4440 | L147: szt | M147: 0.5366666667 | N147: 2382.8 | O147: 2418.81 | P147: 8792.53 | Q147: 98
A148: SK | B148: 8 | C148: FV | D148: Klient 37 | E148: 2017-11-06 | F148: 2017-11-06 | G148: 2017-12-06 | H148: S | I148: P:GR4 | J148: 3 | K148: 6500 | L148: szt | M148: 0.07 | N148: 455 | O148: 431.17 | P148: 1678.95 | Q148: 98
A149: SK | B149: 8 | C149: FV | D149: Klient 15 | E149: 2017-11-06 | F149: 2017-11-06 | G149: 2017-12-06 | H149: S | I149: P:GR1 | J149: 1 | K149: 10000 | L149: mb | M149: 0.04416666667 | N149: 441.67 | O149: 406.83 | P149: 1629.75 | Q149: 98
A150: SK | B150: 8 | C150: FV | D150: Klient 15 | E150: 2017-11-06 | F150: 2017-11-06 | G150: 2017-12-06 | H150: S | I150: P:GR1 | J150: 2 | K150: 7000 | L150: mb | M150: 0.0655 | N150: 458.5 | O150: 311.38 | P150: 1691.87 | Q150: 98
A151: SK | B151: 8 | C151: FV | D151: Klient 15 | E151: 2017-11-06 | F151: 2017-11-06 | G151: 2017-12-06 | H151: S | I151: P:GR4 | J151: 3 | K151: 10490 | L151: szt | M151: 0.2133333333 | N151: 2237.87 | O151: 2481.41 | P151: 8257.73 | Q151: 98
A152: SK | B152: 8 | C152: FV | D152: Klient 15 | E152: 2017-11-06 | F152: 2017-11-06 | G152: 2017-12-06 | H152: S | I152: P:GR4 | J152: 4 | K152: 2120 | L152: szt | M152: 0.5733333333 | N152: 1215.47 | O152: 1066.93 | P152: 4485.07 | Q152: 98
A153: SK | B153: 8 | C153: FV | D153: Klient 15 | E153: 2017-11-06 | F153: 2017-11-06 | G153: 2017-12-06 | H153: S | I153: P:GR4 | J153: 5 | K153: 2260 | L153: szt | M153: 0.3533333333 | N153: 798.53 | O153: 674.12 | P153: 2946.59 | Q153: 98
A154: SK | B154: 8 | C154: FV | D154: Klient 15 | E154: 2017-11-06 | F154: 2017-11-06 | G154: 2017-12-06 | H154: S | I154: P:GR1 | J154: 6 | K154: 10000 | L154: mb | M154: 0.04416666667 | N154: 441.67 | O154: 403.67 | P154: 1629.75 | Q154: 98
A155: SK | B155: 8 | C155: FV | D155: Klient 38 | E155: 2017-11-06 | F155: 2017-11-06 | G155: 2017-11-27 | H155: S | I155: P:GR4 | J155: 1 | K155: 5096 | L155: szt | M155: 0.3866666667 | N155: 1970.45 | O155: 1727.71 | P155: 7270.97 | Q155: 98
A156: SK | B156: 8 | C156: FV | D156: Klient 39 | E156: 2017-11-06 | F156: 2017-11-06 | G156: 2017-12-21 | H156: S | I156: GR5 | J156: 1 | K156: 1990 | L156: szt | M156: 0.7633333333 | N156: 1519.03 | O156: 1468.29 | P156: 5605.23 | Q156: 98
A157: SK | B157: 8 | C157: PF | D157: Klient 40 | E157: 2017-11-06 | F157: 2017-11-06 | G157: 2017-11-06 | H157: S | I157: GR5 | J157: 1 | K157: 396 | L157: m2 | M157: 0.1083333333 | N157: 42.93 | O157: 40.09 | P157: 158.4 | Q157: 98
A158: SK | B158: 8 | C158: FF | D158: Klient 41 | E158: 2017-11-06 | F158: 2017-11-06 | G158: 2017-11-10 | H158: S | I158: U: | J158: 1 | K158: 2 | L158: szt | M158: 13.55 | N158: 27.1 | O158: 0 | P158: 100
A159: SK | B159: 8 | C159: PF | D159: Klient 42 | E159: 2017-11-06 | F159: 2017-11-06 | G159: 2017-11-06 | H159: S | I159: GR5 | J159: 1 | K159: 396 | L159: m2 | M159: 0.1083333333 | N159: 42.93 | O159: 40.09 | P159: 158.4 | Q159: 98
A160: SK | B160: 8 | C160: FF | D160: Klient 43 | E160: 2017-11-06 | F160: 2017-11-06 | G160: 2017-11-10 | H160: S | I160: U: | J160: 1 | K160: 2 | L160: szt | M160: 13.55 | N160: 27.1 | O160: 0 | P160: 100
A161: SK | B161: 8 | C161: FF | D161: Klient 44 | E161: 2017-11-06 | F161: 2017-11-06 | G161: 2017-11-10 | H161: S | I161: U: | J161: 1 | K161: 2 | L161: szt | M161: 13.55 | N161: 27.1 | O161: 0 | P161: 100
A162: SK | B162: 8 | C162: FF | D162: Klient 45 | E162: 2017-11-06 | F162: 2017-11-06 | G162: 2017-11-10 | H162: S | I162: U: | J162: 1 | K162: 2 | L162: szt | M162: 13.55 | N162: 27.1 | O162: 0 | P162: 100
A163: SK | B163: 8 | C163: FO | D163: Klient 11 | E163: 2017-11-06 | F163: 2017-11-06 | G163: 2017-12-06 | H163: S | I163: GR5 | J163: 1 | K163: 27473.44 | L163: kg | M163: 0.3583333333 | N163: 9844.65 | O163: 5494.69 | P163: 29533.95 | Q163: 95
A164: SK | B164: 8 | C164: FR | D164: Klient 46 | E164: 2017-11-06 | F164: 2017-11-06 | G164: 2017-11-07 | H164: S | I164: P:GR4 | J164: 2 | K164: 46000 | L164: szt | M164: 0.01333333333 | N164: 613.33 | O164: 545.1 | P164: 2263.2 | Q164: 98
A165: SK | B165: 8 | C165: FV | D165: Klient 47 | E165: 2017-11-06 | F165: 2017-11-06 | G165: 2017-12-06 | H165: S | I165: P:GR4 | J165: 1 | K165: 2680 | L165: szt | M165: 0.2133333333 | N165: 571.73 | O165: 502.9 | P165: 2109.7 | Q165: 98
A166: SK | B166: 8 | C166: FV | D166: Klient 20 | E166: 2017-11-06 | F166: 2017-11-06 | G166: 2017-12-04 | H166: S | I166: P:GR4 | J166: 1 | K166: 4250 | L166: szt | M166: 0.5616666667 | N166: 2387.08 | O166: 2338.17 | P166: 8808.34 | Q166: 98
A167: SK | B167: 8 | C167: FV | D167: Klient 48 | E167: 2017-11-06 | F167: 2017-11-06 | G167: 2018-02-04 | H167: S | I167: P:GR1 | J167: 1 | K167: 6498.4 | L167: kg | M167: 1.15 | N167: 7473.16 | O167: 6302.25 | P167: 27575.96 | Q167: 98
A168: SK | B168: 8 | C168: FV | D168: Klient 48 | E168: 2017-11-06 | F168: 2017-11-06 | G168: 2018-02-04 | H168: S | I168: P:GR1 | J168: 2 | K168: 3257.6 | L168: kg | M168: 1.15 | N168: 3746.24 | O168: 3306.36 | P168: 13823.63 | Q168: 98
A169: SK | B169: 8 | C169: FV | D169: Klient 48 | E169: 2017-11-06 | F169: 2017-11-06 | G169: 2018-02-04 | H169: S | I169: P:GR1 | J169: 3 | K169: 5864.6 | L169: kg | M169: 1.15 | N169: 6744.29 | O169: 6082.86 | P169: 24886.43 | Q169: 98
A170: SK | B170: 8 | C170: FV | D170: Klient 48 | E170: 2017-11-06 | F170: 2017-11-06 | G170: 2018-02-04 | H170: S | I170: P:GR1 | J170: 4 | K170: 5723.2 | L170: kg | M170: 1.15 | N170: 6581.68 | O170: 5563.23 | P170: 24286.4 | Q170: 98
A171: SK | B171: 8 | C171: FV | D171: Klient 48 | E171: 2017-11-06 | F171: 2017-11-06 | G171: 2018-02-04 | H171: S | I171: P:GR1 | J171: 5 | K171: 8718.8 | L171: kg | M171: 1.15 | N171: 10026.62 | O171: 9060.58 | P171: 36998.23 | Q171: 98
A172: SK | B172: 8 | C172: FV | D172: Klient 48 | E172: 2017-11-06 | F172: 2017-11-06 | G172: 2018-02-04 | H172: S | I172: P:GR1 | J172: 6 | K172: 4913.6 | L172: kg | M172: 1.133333333 | N172: 5568.75 | O172: 4769.38 | P172: 20548.68 | Q172: 98
A173: SK | B173: 8 | C173: FV | D173: Klient 49 | E173: 2017-11-06 | F173: 2017-11-06 | G173: 2017-11-13 | H173: S | I173: P:GR4 | J173: 2 | K173: 8400 | L173: szt | M173: 0.06666666667 | N173: 560 | O173: 424.48 | P173: 2066.4 | Q173: 98
A174: SK | B174: 8 | C174: FV | D174: Klient 49 | E174: 2017-11-06 | F174: 2017-11-06 | G174: 2017-11-13 | H174: S | I174: P:GR4 | J174: 1 | K174: 9060 | L174: szt | M174: 0.08666666667 | N174: 785.2 | O174: 686.02 | P174: 2897.39 | Q174: 98
A175: SK | B175: 8 | C175: FV | D175: Klient 49 | E175: 2017-11-06 | F175: 2017-11-06 | G175: 2017-11-13 | H175: S | I175: P:GR4 | J175: 3 | K175: 4000 | L175: szt | M175: 0.1133333333 | N175: 453.33 | O175: 387 | P175: 1672.8 | Q175: 98
A176: SK | B176: 8 | C176: FV | D176: Klient 49 | E176: 2017-11-06 | F176: 2017-11-06 | G176: 2017-11-13 | H176: S | I176: U: | J176: 4 | K176: 4 | L176: szt | M176: 2.166666667 | N176: 8.67 | O176: 0 | P176: 31.98
A177: SK | B177: 8 | C177: FV | D177: Klient 50 | E177: 2017-11-06 | F177: 2017-11-06 | G177: 2017-11-07 | H177: S | I177: GR5 | J177: 1 | K177: 432 | L177: kg | M177: 1 | N177: 432 | O177: 377.94 | P177: 1594.08 | Q177: 98
A178: SK | B178: 8 | C178: FV | D178: Klient 50 | E178: 2017-11-06 | F178: 2017-11-06 | G178: 2017-11-07 | H178: S | I178: U: | J178: 2 | K178: 2 | L178: szt | M178: 2.166666667 | N178: 4.33 | O178: 0 | P178: 15.99
A179: SK | B179: 8 | C179: FV | D179: Klient 50 | E179: 2017-11-06 | F179: 2017-11-06 | G179: 2017-11-07 | H179: S | I179: U: | J179: 3 | K179: 2 | L179: szt | M179: 25 | N179: 50 | O179: 0 | P179: 184.5
A180: SK | B180: 8 | C180: FV | D180: Klient 15 | E180: 2017-11-07 | F180: 2017-11-07 | G180: 2017-12-07 | H180: S | I180: P:GR4 | J180: 1 | K180: 1300 | L180: szt | M180: 0.125 | N180: 162.5 | O180: 135.85 | P180: 599.63 | Q180: 98
A181: SK | B181: 8 | C181: FV | D181: Klient 15 | E181: 2017-11-07 | F181: 2017-11-07 | G181: 2017-12-07 | H181: S | I181: P:GR4 | J181: 2 | K181: 12000 | L181: szt | M181: 0.22 | N181: 2640 | O181: 2243.6 | P181: 9741.6 | Q181: 98
A182: SK | B182: 8 | C182: FV | D182: Klient 15 | E182: 2017-11-07 | F182: 2017-11-07 | G182: 2017-12-07 | H182: S | I182: P:GR1 | J182: 3 | K182: 8000 | L182: mb | M182: 0.0655 | N182: 524 | O182: 355.87 | P182: 1933.56 | Q182: 98
A183: SK | B183: 8 | C183: FV | D183: Klient 15 | E183: 2017-11-07 | F183: 2017-11-07 | G183: 2017-12-07 | H183: S | I183: P:GR1 | J183: 4 | K183: 8400 | L183: mb | M183: 0.1325 | N183: 1113 | O183: 749.56 | P183: 4106.97 | Q183: 98
A184: SK | B184: 8 | C184: FV | D184: Klient 15 | E184: 2017-11-07 | F184: 2017-11-07 | G184: 2017-12-07 | H184: S | I184: P:GR1 | J184: 5 | K184: 20000 | L184: mb | M184: 0.125 | N184: 2500 | O184: 1726 | P184: 9225 | Q184: 98
A185: SK | B185: 8 | C185: FV | D185: Klient 15 | E185: 2017-11-07 | F185: 2017-11-07 | G185: 2017-12-07 | H185: S | I185: P:GR4 | J185: 6 | K185: 1140 | L185: szt | M185: 0.3816666667 | N185: 435.1 | O185: 390.87 | P185: 1605.52 | Q185: 98
A186: SK | B186: 8 | C186: FV | D186: Klient 15 | E186: 2017-11-07 | F186: 2017-11-07 | G186: 2017-12-07 | H186: S | I186: P:GR4 | J186: 7 | K186: 1100 | L186: szt | M186: 0.66 | N186: 726 | O186: 657.49 | P186: 2678.94 | Q186: 98
A187: SK | B187: 8 | C187: FV | D187: Klient 15 | E187: 2017-11-07 | F187: 2017-11-07 | G187: 2017-12-07 | H187: S | I187: P:GR4 | J187: 8 | K187: 1080 | L187: szt | M187: 0.725 | N187: 783 | O187: 752.02 | P187: 2889.27 | Q187: 98
A188: SK | B188: 8 | C188: FV | D188: Klient 15 | E188: 2017-11-07 | F188: 2017-11-07 | G188: 2017-12-07 | H188: S | I188: P:GR3 | J188: 9 | K188: 19800 | L188: m2 | M188: 17.6 | N188: 1056 | O188: 1192 | P188: 3896.64 | Q188: 98
A189: SK | B189: 8 | C189: FV | D189: Klient 51 | E189: 2017-11-07 | F189: 2017-11-07 | G189: 2017-11-28 | H189: S | I189: P:GR4 | J189: 1 | K189: 800 | L189: kpl | M189: 1.833333333 | N189: 1466.67 | O189: 976.76 | P189: 5412 | Q189: 98
A190: SK | B190: 8 | C190: FO | D190: Klient 51 | E190: 2017-11-07 | F190: 2017-11-07 | G190: 2017-11-28 | H190: S | I190: T: | J190: 1 | K190: 58 | L190: kg | M190: 0.8333333333 | N190: 48.33 | O190: 0 | P190: 145 | Q190: 92
A191: SK | B191: 8 | C191: FV | D191: Klient 52 | E191: 2017-11-07 | F191: 2017-11-07 | G191: 2017-12-07 | H191: S | I191: GR5 | J191: 1 | K191: 1200 | L191: szt | M191: 0.2566666667 | N191: 308 | O191: 251.04 | P191: 1136.52 | Q191: 98
A192: SK | B192: 8 | C192: FV | D192: Klient 52 | E192: 2017-11-07 | F192: 2017-11-07 | G192: 2017-12-07 | H192: S | I192: P:GR4 | J192: 2 | K192: 1200 | L192: szt | M192: 0.6266666667 | N192: 752 | O192: 626.77 | P192: 2774.88 | Q192: 98
A193: SK | B193: 8 | C193: FV | D193: Klient 52 | E193: 2017-11-07 | F193: 2017-11-07 | G193: 2017-12-07 | H193: S | I193: P:GR4 | J193: 3 | K193: 4000 | L193: szt | M193: 0.7083333333 | N193: 2833.33 | O193: 2259.24 | P193: 10455 | Q193: 98
A194: SK | B194: 8 | C194: FV | D194: Klient 52 | E194: 2017-11-07 | F194: 2017-11-07 | G194: 2017-12-07 | H194: S | I194: P:GR4 | J194: 4 | K194: 1600 | L194: szt | M194: 0.8733333333 | N194: 1397.33 | O194: 1113.12 | P194: 5156.16 | Q194: 98
A195: SK | B195: 8 | C195: FV | D195: Klient 6 | E195: 2017-11-07 | F195: 2017-11-07 | G195: 2018-01-06 | H195: S | I195: GR5 | J195: 1 | K195: 1004 | L195: kg | M195: 1.108333333 | N195: 1112.77 | O195: 1001.57 | P195: 4106.11 | Q195: 98
A196: SK | B196: 8 | C196: FV | D196: Klient 11 | E196: 2017-11-07 | F196: 2017-11-07 | G196: 2017-11-14 | H196: S | I196: U: | J196: 1 | K196: 2 | L196: szt | M196: 3051.235 | N196: 6102.47 | O196: 0 | P196: 22518.11
A197: SK | B197: 8 | C197: FV | D197: Klient 53 | E197: 2017-11-07 | F197: 2017-11-06 | G197: 2018-01-06 | H197: S | I197: P:GR1 | J197: 1 | K197: 1504.6 | L197: kg | M197: 0.6833333333 | N197: 1028.14 | O197: 924.25 | P197: 3793.85 | Q197: 98
A198: SK | B198: 8 | C198: FV | D198: Klient 53 | E198: 2017-11-07 | F198: 2017-11-06 | G198: 2018-01-06 | H198: S | I198: GR5 | J198: 2 | K198: 10992 | L198: szt | M198: 0.025 | N198: 274.8 | O198: 260.14 | P198: 1014.01 | Q198: 98
A199: SK | B199: 8 | C199: FV | D199: Klient 32 | E199: 2017-11-07 | F199: 2017-11-06 | G199: 2017-12-07 | H199: S | I199: P:GR4 | J199: 1 | K199: 6360 | L199: szt | M199: 1.083333333 | N199: 6890 | O199: 6419.57 | P199: 25424.1 | Q199: 98
A200: SK | B200: 8 | C200: FV | D200: Klient 32 | E200: 2017-11-07 | F200: 2017-11-06 | G200: 2017-12-07 | H200: S | I200: P:GR4 | J200: 2 | K200: 7500 | L200: szt | M200: 1.083333333 | N200: 8125 | O200: 9845.59 | P200: 29981.25 | Q200: 98
A201: SK | B201: 8 | C201: FV | D201: Klient 54 | E201: 2017-11-07 | F201: 2017-11-07 | G201: 2018-01-06 | H201: S | I201: P:GR1 | J201: 1 | K201: 1417.6 | L201: kg | M201: 1.175 | N201: 1665.68 | O201: 1394.68 | P201: 6146.36 | Q201: 98
A202: SK | B202: 8 | C202: FV | D202: Klient 54 | E202: 2017-11-07 | F202: 2017-11-07 | G202: 2018-01-06 | H202: S | I202: P:GR1 | J202: 2 | K202: 1686.4 | L202: kg | M202: 1.175 | N202: 1981.52 | O202: 2113.24 | P202: 7311.81 | Q202: 98
A203: SK | B203: 8 | C203: FV | D203: Klient 14 | E203: 2017-11-07 | F203: 2017-11-07 | G203: 2017-12-22 | H203: S | I203: P:GR1 | J203: 1 | K203: 1826 | L203: kg | M203: 1.416666667 | N203: 2586.83 | O203: 2136.57 | P203: 9545.42 | Q203: 98
A204: SK | B204: 8 | C204: FV | D204: Klient 55 | E204: 2017-11-07 | F204: 2017-11-07 | G204: 2017-12-17 | H204: S | I204: P:GR1 | J204: 1 | K204: 7988.4 | L204: kg | M204: 0.7416666667 | N204: 5924.73 | O204: 4250.89 | P204: 21862.25 | Q204: 98
A205: SK | B205: 8 | C205: FV | D205: Klient 39 | E205: 2017-11-07 | F205: 2017-11-07 | G205: 2017-12-22 | H205: S | I205: T: | J205: 1 | K205: 12 | L205: szt | M205: 2.75 | N205: 33 | O205: 25.2 | P205: 121.77 | Q205: 93
A206: SK | B206: 8 | C206: FV | D206: Klient 39 | E206: 2017-11-07 | F206: 2017-11-07 | G206: 2017-12-22 | H206: S | I206: P:GR4 | J206: 2 | K206: 4600 | L206: szt | M206: 0.1083333333 | N206: 498.33 | O206: 496.19 | P206: 1838.85 | Q206: 98
... 1697 more rows

Sheet Wynagrodzenia
M2: Wzór formuły | N2: Export danych do arkusza Przeliczenia | O2: 2017-05-31 | P2: =EOMONTH(O2,1) -> 2017-06-30 | Q2: 2017-07-31 | R2: 2017-08-31 | S2: 2017-09-30 | T2: 2017-10-31 | U2: 2017-11-30 | V2: 2017-12-31
M3: =SUMIF($K$21:$K$9831,$N3,$F$21:$F$9831)+SUMIF($K$21:$K$9831,$N3,$G$21:$G$9831)+SUMIF($K$21:$K$9831,$N3,$H$21:$H$9831)+SUMIF($K$21:$K$9831,$N3,$I$21:$I$9831)+SUMIF($K$21:$K$9831,$N3,$J$21:$J$9831) -> 76108.21333 | N3: Grupa asortymentowa 1 | O3: 86072.37333 | P3: 72650.28333 | Q3: 102956.8933 | R3: 103853.97 | S3: 71554.31333 | T3: 71469.16333 | U3: 76108.21333
M4: 34592.01 | N4: Grupa asortymentowa 2 | O4: 38964.03333 | P4: 34460.01333 | Q4: 36897.41333 | R4: 33588.06333 | S4: 31838.24333 | T4: 34768.31 | U4: 34592.01
M5: 14695.24333 | N5: Grupa asortymentowa 3 | O5: 14589.12667 | P5: 12442.73667 | Q5: 13478.62667 | R5: 12883.62667 | S5: 12601.34667 | T5: 12544.86 | U5: 14695.24333
M6: 37357.92 | N6: Grupa asortymentowa 4 | O6: 32627.06333 | P6: 30859.39667 | Q6: 32514.17 | R6: 30488.81 | S6: 31417.82 | T6: 27448.17333 | U6: 37357.92
M7: 41634.27333 | N7: Administracja | O7: 39283.12333 | P7: 35596.68333 | Q7: 37776.97333 | R7: 37384.24667 | S7: 39039.77667 | T7: 38575.73333 | U7: 41634.27333
M8: 18171.19667 | N8: Marketing | O8: 22330.23 | P8: 19717.41333 | Q8: 22931.29333 | R8: 18995.75 | S8: 19567.83333 | T8: 21608.82333 | U8: 18171.19667
M9: 23997.09667 | N9: Planowanie produkcji | O9: 26529.40667 | P9: 24411.26333 | Q9: 24975.04 | R9: 25119.74667 | S9: 24627.96 | T9: 23352.77333 | U9: 23997.09667
M10: 11518.85667 | N10: Sprzedaż | O10: 12664.53667 | P10: 10151.20333 | Q10: 10472.19 | R10: 11916.63 | S10: 10552.43667 | T10: 10472.19 | U10: 11518.85667
M11: 20477.85667 | N11: Magazyn | O11: 21533.62667 | P11: 18264.48 | Q11: 21670.94667 | R11: 21768.38333 | S11: 19548.71 | T11: 17975.58333 | U11: 20477.85667
M12: 35696.62667 | N12: Dział utrzymania ruchu | O12: 37454.4 | P12: 34141.27 | Q12: 45205.83 | R12: 44898.41333 | S12: 34149.55 | T12: 32382.21333 | U12: 35696.62667
M13: 4536.04 | N13: Dział pomocniczy | O13: 5340.443333 | P13: 4186 | Q13: 4242.683333 | R13: 4660.376667 | S13: 4721.793333 | T13: 5876.346667 | U13: 4536.04
M14: =SUM(M3:M13) -> 318785.3333 | N14: Razem | O14: 337388.3633 | P14: 296880.7433 | Q14: 353122.06 | R14: 345558.0167 | S14: 299619.7833 | T14: 296474.17 | U14: 318785.3333
K16: Uzgodnienie danych | N16: Bieżąca data | O16: =Data_bieżąca -> 2017-11-30 | P16: =MATCH(O16,$O$2:$XFD$2,0) -> 7
K17: =IFERROR(IF(VLOOKUP("Brak przypisania!!!",K21:K831,1,)="Brak przypisania!!!","Przypisz pracowników!!!","OK"),"OK") -> OK
B20: Nr ewidencyjny | C20: Jednostka organizacyjna | E20: Nr ewidencyjny | F20: Suma brutto fiz | G20: Suma brutto umy | H20: Suma UCP | I20: Suma LD | J20: ZUS płat | K20: Przypisanie | M20: Wzór formuły | N20: Export danych do arkusza Przeliczenia | O20: =O2 -> 2017-05-31 | P20: 2017-06-30 | Q20: 2017-07-31 | R20: 2017-08-31 | S20: 2017-09-30 | T20: 2017-10-31 | U20: =U2 -> 2017-11-30 | V20: =V2 -> 2017-12-31
B21: 51 | C21: Grupa asortymentowa 3 | E21: 75 | F21: 0 | G21: 1500 | H21: 0 | I21: 116.6666667 | J21: 305.55 | K21: =IF(E21=0,"",IFERROR(VLOOKUP(E21,$B$20:$C$831,2,),"Brak przypisania!!!")) -> Sprzedaż | M21: =COUNTIF($K$21:$K$831,N21) -> 37 | N21: Grupa asortymentowa 1 | O21: 13 | P21: 13 | Q21: 12.66666667 | R21: 12.66666667 | S21: 12.66666667 | T21: 12.33333333 | U21: 12.33333333
B22: 52 | C22: Grupa asortymentowa 3 | E22: 412 | F22: 1202 | G22: 0 | H22: 0 | I22: 116.6666667 | J22: 244.85 | K22: Grupa asortymentowa 2 | M22: =COUNTIF($K$21:$K$831,N22) -> 19 | N22: Grupa asortymentowa 2 | O22: 7 | P22: 6.666666667 | Q22: 6.333333333 | R22: 6.333333333 | S22: 6 | T22: 6.666666667 | U22: 6.333333333
B23: 407 | C23: Grupa asortymentowa 3 | E23: 74 | F23: 2352.833333 | G23: 0 | H23: 0 | I23: 113.3333333 | J23: 479.27 | K23: Dział utrzymania ruchu | M23: 7 | N23: Grupa asortymentowa 3 | O23: 2.333333333 | P23: 2.333333333 | Q23: 2.333333333 | R23: 2.333333333 | S23: 2.333333333 | T23: 2.333333333 | U23: 2.333333333
B24: 476 | C24: Grupa asortymentowa 3 | E24: 32 | F24: 2242.083333 | G24: 0 | H24: 0 | I24: 116.6666667 | J24: 456.7133333 | K24: Magazyn | M24: 15 | N24: Grupa asortymentowa 4 | O24: 5 | P24: 4.666666667 | Q24: 4.666666667 | R24: 4.666666667 | S24: 4.666666667 | T24: 4.666666667 | U24: 5
B25: 522 | C25: Grupa asortymentowa 3 | E25: 49 | F25: 1586.333333 | G25: 0 | H25: 0 | I25: 116.6666667 | J25: 282.6866667 | K25: Grupa asortymentowa 2 | M25: 24 | N25: Administracja | O25: 7.666666667 | P25: 7.333333333 | Q25: 7.333333333 | R25: 7.333333333 | S25: 7.666666667 | T25: 8 | U25: 8
B26: 538 | C26: Grupa asortymentowa 3 | E26: 66 | F26: 0 | G26: 666.6666667 | H26: 0 | I26: 116.6666667 | J26: 118.8 | K26: Administracja | M26: 5 | N26: Marketing | O26: 1.666666667 | P26: 1.666666667 | Q26: 1.666666667 | R26: 1.666666667 | S26: 1.666666667 | T26: 1.666666667 | U26: 1.666666667
B27: 547 | C27: Grupa asortymentowa 3 | E27: 67 | F27: 0 | G27: 2892.666667 | H27: 0 | I27: 116.6666667 | J27: 589.2366667 | K27: Marketing | M27: 8 | N27: Planowanie produkcji | O27: 2.666666667 | P27: 2.666666667 | Q27: 2.666666667 | R27: 2.666666667 | S27: 2.666666667 | T27: 2.666666667 | U27: 2.666666667
B28: 53 | C28: Grupa asortymentowa 4 | E28: 428 | F28: 1280 | G28: 0 | H28: 0 | I28: 116.6666667 | J28: 260.7333333 | K28: Grupa asortymentowa 2 | M28: 9 | N28: Sprzedaż | O28: 3 | P28: 2.333333333 | Q28: 2.333333333 | R28: 2.333333333 | S28: 2.333333333 | T28: 2.333333333 | U28: 3
B29: 58 | C29: Grupa asortymentowa 4 | E29: 560 | F29: 0 | G29: 0 | H29: 1216 | I29: 0 | J29: 247.7 | K29: Dział utrzymania ruchu | M29: 9 | N29: Magazyn | O29: 3 | P29: 2.666666667 | Q29: 2.666666667 | R29: 2.666666667 | S29: 2.666666667 | T29: 2.666666667 | U29: 3
B30: 426 | C30: Grupa asortymentowa 4 | E30: 532 | F30: 1116.666667 | G30: 0 | H30: 0 | I30: 116.6666667 | J30: 227.4666667 | K30: Grupa asortymentowa 4 | M30: 21 | N30: Dział utrzymania ruchu | O30: 7 | P30: 6.666666667 | Q30: 9.333333333 | R30: 7.666666667 | S30: 5.666666667 | T30: 6.333333333 | U30: 7
B31: 445 | C31: Grupa asortymentowa 4 | E31: 510 | F31: 973.8933333 | G31: 0 | H31: 0 | I31: 116.6666667 | J31: 198.3833333 | K31: Administracja | M31: 4 | N31: Dział pomocniczy | O31: 1.333333333 | P31: 1 | Q31: 1 | R31: 1.333333333 | S31: 1.333333333 | T31: 1.333333333 | U31: 1.333333333
B32: 458 | C32: Grupa asortymentowa 4 | E32: 396 | F32: 1820 | G32: 0 | H32: 0 | I32: 116.6666667 | J32: 370.7366667 | K32: Grupa asortymentowa 1
B33: 466 | C33: Grupa asortymentowa 4 | E33: 416 | F33: 0 | G33: 1200 | H33: 0 | I33: 116.6666667 | J33: 244.44 | K33: Sprzedaż
B34: 467 | C34: Grupa asortymentowa 4 | E34: 625 | F34: 0 | G34: 1726.91 | H34: 0 | I34: 113.3333333 | J34: 335.2433333 | K34: Marketing
B35: 477 | C35: Grupa asortymentowa 4 | E35: 529 | F35: 977.3333333 | G35: 0 | H35: 0 | I35: 116.6666667 | J35: 199.08 | K35: Grupa asortymentowa 2
B36: 495 | C36: Grupa asortymentowa 4 | E36: 35 | F36: 0 | G36: 0 | H36: 0 | I36: 116.6666667 | J36: 0 | K36: Magazyn
B37: 504 | C37: Grupa asortymentowa 4 | E37: 533 | F37: 1300.333333 | G37: 0 | H37: 0 | I37: 116.6666667 | J37: 264.88 | K37: Grupa asortymentowa 4
B38: 517 | C38: Grupa asortymentowa 4 | E38: 637 | F38: 0 | G38: 0 | H38: 712 | I38: 0 | J38: 145.0333333 | K38: Dział utrzymania ruchu
B39: 530 | C39: Grupa asortymentowa 4 | E39: 120 | F39: 1545.333333 | G39: 0 | H39: 0 | I39: 116.6666667 | J39: 314.7833333 | K39: Grupa asortymentowa 1
B40: 532 | C40: Grupa asortymentowa 4 | E40: 72 | F40: 1724 | G40: 0 | H40: 0 | I40: 116.6666667 | J40: 307.2166667 | K40: Dział pomocniczy
B41: 533 | C41: Grupa asortymentowa 4 | E41: 71 | F41: 1179.29 | G41: 0 | H41: 0 | I41: 113.3333333 | J41: 210.15 | K41: Administracja
B42: 555 | C42: Grupa asortymentowa 4 | E42: 369 | F42: 0 | G42: 2509.333333 | H42: 0 | I42: 113.3333333 | J42: 511.1533333 | K42: Dział utrzymania ruchu
B43: 29 | C43: Grupa asortymentowa 2 | E43: 56 | F43: 1753.333333 | G43: 0 | H43: 0 | I43: 116.6666667 | J43: 357.1566667 | K43: Grupa asortymentowa 1
B44: 40 | C44: Grupa asortymentowa 2 | E44: 539 | F44: 1039.716667 | G44: 0 | H44: 0 | I44: 116.6666667 | J44: 211.79 | K44: Planowanie produkcji
B45: 41 | C45: Grupa asortymentowa 2 | E45: 497 | F45: 1315.833333 | G45: 0 | H45: 0 | I45: 116.6666667 | J45: 268.0366667 | K45: Grupa asortymentowa 2
B46: 44 | C46: Grupa asortymentowa 2 | E46: 403 | F46: 1892.166667 | G46: 0 | H46: 0 | I46: 116.6666667 | J46: 385.4333333 | K46: Grupa asortymentowa 2
B47: 45 | C47: Grupa asortymentowa 2 | E47: 356 | F47: 0 | G47: 3664.666667 | H47: 0 | I47: 113.3333333 | J47: 150.6166667 | K47: Marketing
B48: 49 | C48: Grupa asortymentowa 2 | E48: 627 | F48: 0 | G48: 0 | H48: 392 | I48: 0 | J48: 79.85333333 | K48: Dział utrzymania ruchu
B49: 355 | C49: Grupa asortymentowa 2 | E49: 563 | F49: 0 | G49: 2166.666667 | H49: 0 | I49: 110 | J49: 441.35 | K49: Administracja
B50: 359 | C50: Grupa asortymentowa 2 | E50: 82 | F50: 1797.476667 | G50: 0 | H50: 0 | I50: 116.6666667 | J50: 366.1433333 | K50: Dział utrzymania ruchu
B51: 401 | C51: Grupa asortymentowa 2 | E51: 44 | F51: 1640.833333 | G51: 0 | H51: 0 | I51: 116.6666667 | J51: 334.2366667 | K51: Grupa asortymentowa 2
B52: 403 | C52: Grupa asortymentowa 2 | E52: 628 | F52: 0 | G52: 0 | H52: 1088.666667 | I52: 0 | J52: 221.7633333 | K52: Dział utrzymania ruchu
B53: 412 | C53: Grupa asortymentowa 2 | E53: 53 | F53: 3160.213333 | G53: 0 | H53: 0 | I53: 116.6666667 | J53: 643.7366667 | K53: =IF(E53=0,"",IFERROR(VLOOKUP(E53,$B$20:$C$831,2,),"Brak przypisania!!!")) -> Grupa asortymentowa 4
B54: 428 | C54: Grupa asortymentowa 2 | E54: 426 | F54: 3457.36 | G54: 0 | H54: 0 | I54: 116.6666667 | J54: 636.9766667 | K54: Grupa asortymentowa 4
B55: 436 | C55: Grupa asortymentowa 2 | E55: 386 | F55: 0 | G55: 1266.666667 | H55: 0 | I55: 116.6666667 | J55: 258.02 | K55: Sprzedaż
B56: 437 | C56: Grupa asortymentowa 2 | E56: 11 | F56: 1630 | G56: 0 | H56: 0 | I56: 113.3333333 | J56: 332.03 | K56: Grupa asortymentowa 1
B57: 440 | C57: Grupa asortymentowa 2 | E57: 420 | F57: 1272.956667 | G57: 0 | H57: 0 | I57: 116.6666667 | J57: 259.3 | K57: Administracja
B58: 491 | C58: Grupa asortymentowa 2 | E58: 87 | F58: 141.6666667 | G58: 0 | H58: 0 | I58: 116.6666667 | J58: 25.24666667 | K58: Dział pomocniczy
B59: 497 | C59: Grupa asortymentowa 2 | E59: 13 | F59: 1953.333333 | G59: 0 | H59: 0 | I59: 116.6666667 | J59: 397.8966667 | K59: Administracja
B60: 529 | C60: Grupa asortymentowa 2 | E60: 14 | F60: 2037.04 | G60: 0 | H60: 0 | I60: 116.6666667 | J60: 414.9433333 | K60: Grupa asortymentowa 1
B61: 586 | C61: Grupa asortymentowa 2 | E61: 15 | F61: 1796 | G61: 0 | H61: 0 | I61: 116.6666667 | J61: 365.8466667 | K61: Grupa asortymentowa 1
B62: 590 | C62: Grupa asortymentowa 2 | E62: 51 | F62: 1394.666667 | G62: 0 | H62: 0 | I62: 116.6666667 | J62: 284.0933333 | K62: Grupa asortymentowa 3
B63: 599 | C63: Grupa asortymentowa 2 | E63: 468 | F63: 1310.666667 | G63: 0 | H63: 0 | I63: 116.6666667 | J63: 266.98 | K63: Grupa asortymentowa 1
B64: 431 | C64: Grupa asortymentowa 2 | E64: 429 | F64: 983.3333333 | G64: 0 | H64: 0 | I64: 116.6666667 | J64: 200.3066667 | K64: Administracja
B65: 4 | C65: Administracja | E65: 599 | F65: 1360 | G65: 0 | H65: 0 | I65: 116.6666667 | J65: 277.0333333 | K65: Grupa asortymentowa 2
B66: 6 | C66: Administracja | E66: 440 | F66: 1939 | G66: 0 | H66: 0 | I66: 116.6666667 | J66: 394.98 | K66: Grupa asortymentowa 2
B67: 13 | C67: Administracja | E67: 597 | F67: 0 | G67: 1166.666667 | H67: 0 | I67: 116.6666667 | J67: 237.65 | K67: Sprzedaż
B68: 66 | C68: Administracja | E68: 635 | F68: 0 | G68: 0 | H68: 742.6666667 | I68: 0 | J68: 151.2833333 | K68: Dział utrzymania ruchu
B69: 71 | C69: Administracja | E69: 398 | F69: 2049.933333 | G69: 0 | H69: 0 | I69: 116.6666667 | J69: 417.5733333 | K69: Magazyn
B70: 77 | C70: Administracja | E70: 23 | F70: 2486.773333 | G70: 0 | H70: 0 | I70: 116.6666667 | J70: 506.5566667 | K70: Magazyn
B71: 93 | C71: Administracja | E71: 580 | F71: 711 | G71: 0 | H71: 0 | I71: 116.6666667 | J71: 0 | K71: Dział pomocniczy
B72: 96 | C72: Administracja | E72: 58 | F72: 2538.166667 | G72: 0 | H72: 0 | I72: 116.6666667 | J72: 517.0266667 | K72: Grupa asortymentowa 4
B73: 97 | C73: Administracja | E73: 355 | F73: 1597.333333 | G73: 0 | H73: 0 | I73: 116.6666667 | J73: 325.3766667 | K73: Grupa asortymentowa 2
B74: 108 | C74: Administracja | E74: 96 | F74: 2260 | G74: 0 | H74: 0 | I74: 113.3333333 | J74: 460.3633333 | K74: Administracja
B75: 110 | C75: Administracja | E75: 375 | F75: 1621.04 | G75: 0 | H75: 0 | I75: 116.6666667 | J75: 330.2033333 | K75: Magazyn
B76: 114 | C76: Administracja | E76: 97 | F76: 706.6666667 | G76: 0 | H76: 0 | I76: 116.6666667 | J76: 125.9266667 | K76: Administracja
B77: 115 | C77: Administracja | E77: 16 | F77: 2170.666667 | G77: 0 | H77: 0 | I77: 116.6666667 | J77: 442.1633333 | K77: Grupa asortymentowa 1
B78: 349 | C78: Administracja | E78: 17 | F78: 1894.666667 | G78: 0 | H78: 0 | I78: 116.6666667 | J78: 385.9433333 | K78: Grupa asortymentowa 1
B79: 372 | C79: Administracja | E79: 530 | F79: 1456 | G79: 0 | H79: 0 | I79: 116.6666667 | J79: 296.59 | K79: Grupa asortymentowa 4
B80: 420 | C80: Administracja | E80: 538 | F80: 1747.5 | G80: 0 | H80: 0 | I80: 116.6666667 | J80: 355.9633333 | K80: Grupa asortymentowa 3
B81: 429 | C81: Administracja | E81: 41 | F81: 1422.573333 | G81: 0 | H81: 0 | I81: 116.6666667 | J81: 289.78 | K81: Grupa asortymentowa 2
B82: 500 | C82: Administracja | E82: 633 | F82: 0 | G82: 0 | H82: 787.3333333 | I82: 0 | J82: 160.38 | K82: Dział utrzymania ruchu
B83: 510 | C83: Administracja | E83: 18 | F83: 1813.333333 | G83: 0 | H83: 0 | I83: 113.3333333 | J83: 369.3733333 | K83: Grupa asortymentowa 1
B84: 543 | C84: Administracja | E84: 445 | F84: 1159 | G84: 0 | H84: 0 | I84: 116.6666667 | J84: 236.0933333 | K84: Grupa asortymentowa 4
B85: 545 | C85: Administracja | E85: 477 | F85: 2233.333333 | G85: 0 | H85: 0 | I85: 116.6666667 | J85: 454.93 | K85: Grupa asortymentowa 4
B86: 563 | C86: Administracja | E86: 395 | F86: 1894.666667 | G86: 0 | H86: 0 | I86: 116.6666667 | J86: 385.9433333 | K86: =IF(E86=0,"",IFERROR(VLOOKUP(E86,$B$20:$C$831,2,),"Brak przypisania!!!")) -> Grupa asortymentowa 1
B87: 581 | C87: Administracja | E87: 19 | F87: 1646.666667 | G87: 0 | H87: 0 | I87: 116.6666667 | J87: 335.4233333 | K87: Grupa asortymentowa 1
B88: 611 | C88: Administracja | E88: 391 | F88: 1580 | G88: 0 | H88: 0 | I88: 116.6666667 | J88: 321.8433333 | K88: Grupa asortymentowa 1
B89: 10 | C89: Grupa asortymentowa 1 | E89: 513 | F89: 0 | G89: 1166.666667 | H89: 0 | I89: 116.6666667 | J89: 237.65 | K89: Sprzedaż
B90: 11 | C90: Grupa asortymentowa 1 | E90: 77 | F90: 828.1066667 | G90: 0 | H90: 0 | I90: 116.6666667 | J90: 168.6866667 | K90: Administracja
B91: 14 | C91: Grupa asortymentowa 1 | E91: 93 | F91: 983.3333333 | G91: 0 | H91: 0 | I91: 116.6666667 | J91: 175.23 | K91: Administracja
B92: 15 | C92: Grupa asortymentowa 1 | E92: 626 | F92: 0 | G92: 0 | H92: 1160.666667 | I92: 0 | J92: 236.4266667 | K92: Dział utrzymania ruchu
B93: 16 | C93: Grupa asortymentowa 1 | E93: 28 | F93: 2002 | G93: 0 | H93: 0 | I93: 116.6666667 | J93: 407.81 | K93: Grupa asortymentowa 1
B94: 17 | C94: Grupa asortymentowa 1 | E94: 20 | F94: 2881.666667 | G94: 0 | H94: 0 | I94: 116.6666667 | J94: 586.9966667 | K94: Planowanie produkcji
B95: 18 | C95: Grupa asortymentowa 1 | E95: 494 | F95: 1573.333333 | G95: 0 | H95: 0 | I95: 113.3333333 | J95: 320.4866667 | K95: Grupa asortymentowa 1
B96: 19 | C96: Grupa asortymentowa 1 | E96: 579 | F96: 1513.333333 | G96: 0 | H96: 0 | I96: 116.6666667 | J96: 308.2633333 | K96: Grupa asortymentowa 1
B97: 21 | C97: Grupa asortymentowa 1 | E97: 611 | F97: 2036.666667 | G97: 0 | H97: 0 | I97: 116.6666667 | J97: 414.8733333 | K97: Administracja
B98: 24 | C98: Grupa asortymentowa 1 | E98: 352 | F98: 0 | G98: 1333.333333 | H98: 0 | I98: 116.6666667 | J98: 271.6 | K98: Sprzedaż
B99: 25 | C99: Grupa asortymentowa 1 | E99: 467 | F99: 1962.74 | G99: 0 | H99: 0 | I99: 116.6666667 | J99: 399.81 | K99: Grupa asortymentowa 4
B100: 27 | C100: Grupa asortymentowa 1 | E100: 40 | F100: 1582.5 | G100: 0 | H100: 0 | I100: 113.3333333 | J100: 193.5166667 | K100: Grupa asortymentowa 2
B101: 28 | C101: Grupa asortymentowa 1 | E101: 21 | F101: 1962.266667 | G101: 0 | H101: 0 | I101: 116.6666667 | J101: 399.7133333 | K101: Grupa asortymentowa 1
B102: 43 | C102: Grupa asortymentowa 1 | E102: 517 | F102: 84.41333333 | G102: 0 | H102: 0 | I102: 33.33333333 | J102: 15.12666667 | K102: Grupa asortymentowa 4
B103: 56 | C103: Grupa asortymentowa 1 | E103: 109 | F103: 0 | G103: 2742.666667 | H103: 0 | I103: 110 | J103: 558.6833333 | K103: Marketing
B104: 62 | C104: Grupa asortymentowa 1 | E104: 34 | F104: 2050.826667 | G104: 0 | H104: 0 | I104: 116.6666667 | J104: 417.7533333 | K104: Magazyn
B105: 63 | C105: Grupa asortymentowa 1 | E105: 590 | F105: 1333.333333 | G105: 0 | H105: 0 | I105: 116.6666667 | J105: 271.6 | K105: Grupa asortymentowa 2
B106: 64 | C106: Grupa asortymentowa 1 | E106: 587 | F106: 0 | G106: 0 | H106: 356 | I106: 0 | J106: 72.52 | K106: Dział utrzymania ruchu
B107: 120 | C107: Grupa asortymentowa 1 | E107: 458 | F107: 2848.333333 | G107: 0 | H107: 0 | I107: 116.6666667 | J107: 580.2066667 | K107: Grupa asortymentowa 4
B108: 133 | C108: Grupa asortymentowa 1 | E108: 566 | F108: 70.34333333 | G108: 0 | H108: 0 | I108: 33.33333333 | J108: 12.60666667 | K108: Grupa asortymentowa 1
B109: 358 | C109: Grupa asortymentowa 1 | E109: 516 | F109: 84.41333333 | G109: 0 | H109: 0 | I109: 33.33333333 | J109: 15.12666667 | K109: Grupa asortymentowa 1
B110: 360 | C110: Grupa asortymentowa 1 | E110: 43 | F110: 1653.333333 | G110: 0 | H110: 0 | I110: 116.6666667 | J110: 336.7866667 | K110: Grupa asortymentowa 1
B111: 391 | C111: Grupa asortymentowa 1 | E111: 466 | F111: 1506.666667 | G111: 0 | H111: 0 | I111: 116.6666667 | J111: 306.9066667 | K111: Grupa asortymentowa 4
B112: 395 | C112: Grupa asortymentowa 1 | E112: 133 | F112: 1640 | G112: 0 | H112: 0 | I112: 116.6666667 | J112: 334.0666667 | K112: Grupa asortymentowa 1
B113: 396 | C113: Grupa asortymentowa 1 | E113: 434 | F113: 1513.333333 | G113: 0 | H113: 0 | I113: 113.3333333 | J113: 308.2633333 | K113: Grupa asortymentowa 1
B114: 415 | C114: Grupa asortymentowa 1 | E114: 504 | F114: 1878 | G114: 0 | H114: 0 | I114: 116.6666667 | J114: 382.5466667 | K114: Grupa asortymentowa 4
B115: 434 | C115: Grupa asortymentowa 1 | E115: 6 | F115: 0 | G115: 2933.333333 | H115: 0 | I115: 113.3333333 | J115: 597.52 | K115: Administracja
B116: 468 | C116: Grupa asortymentowa 1 | E116: 500 | F116: 0 | G116: 216.6666667 | H116: 0 | I116: 116.6666667 | J116: 44.13666667 | K116: Administracja
B117: 482 | C117: Grupa asortymentowa 1 | E117: 639 | F117: 0 | G117: 0 | H117: 112 | I117: 0 | J117: 22.81333333 | K117: Dział utrzymania ruchu
B118: 488 | C118: Grupa asortymentowa 1 | E118: 29 | F118: 1558.96 | G118: 0 | H118: 0 | I118: 116.6666667 | J118: 317.56 | K118: Grupa asortymentowa 2
B119: 492 | C119: Grupa asortymentowa 1 | E119: 581 | F119: 859.0933333 | G119: 0 | H119: 0 | I119: 116.6666667 | J119: 174.9966667 | K119: Administracja
B120: 494 | C120: Grupa asortymentowa 1 | E120: 488 | F120: 1482.906667 | G120: 0 | H120: 0 | I120: 116.6666667 | J120: 302.07 | K120: Grupa asortymentowa 1
B121: 516 | C121: Grupa asortymentowa 1 | E121: 115 | F121: 0 | G121: 1300 | H121: 0 | I121: 113.3333333 | J121: 231.66 | K121: Administracja
B122: 566 | C122: Grupa asortymentowa 1 | E122: 135 | F122: 0 | G122: 4748.666667 | H122: 0 | I122: 113.3333333 | J122: 195.1733333 | K122: Marketing
B123: 567 | C123: Grupa asortymentowa 1 | E123: 365 | F123: 0 | G123: 2812 | H123: 0 | I123: 113.3333333 | J123: 572.8033333 | K123: Dział utrzymania ruchu
B124: 579 | C124: Grupa asortymentowa 1 | E124: 136 | F124: 0 | G124: 2699.666667 | H124: 0 | I124: 113.3333333 | J124: 549.9233333 | K124: Planowanie produkcji
B125: 601 | C125: Grupa asortymentowa 1 | E125: 5 | F125: 0 | G125: 5000 | H125: 0 | I125: 116.6666667 | J125: 205.5 | K125: Planowanie produkcji
B126: 526 | C126: Grupa asortymentowa 1 | E126: 461 | F126: 0 | G126: 2200 | H126: 0 | I126: 113.3333333 | J126: 448.14 | K126: Planowanie produkcji
B127: 480 | C127: Grupa asortymentowa 1 | E127: 415 | F127: 1325.666667 | G127: 0 | H127: 0 | I127: 116.6666667 | J127: 270.0433333 | K127: Grupa asortymentowa 1
B128: 67 | C128: Marketing | E128: 601 | F128: 1906.666667 | G128: 0 | H128: 0 | I128: 116.6666667 | J128: 388.3866667 | K128: Grupa asortymentowa 1
B129: 109 | C129: Marketing | E129: 437 | F129: 1135.496667 | G129: 0 | H129: 0 | I129: 116.6666667 | J129: 151.7566667 | K129: Grupa asortymentowa 2
B130: 135 | C130: Marketing | E130: 52 | F130: 2242.92 | G130: 0 | H130: 0 | I130: 116.6666667 | J130: 456.8833333 | K130: Grupa asortymentowa 3
B131: 356 | C131: Marketing | E131: 402 | F131: 1597.5 | G131: 0 | H131: 0 | I131: 116.6666667 | J131: 325.41 | K131: Dział utrzymania ruchu
B132: 608 | C132: Marketing | E132: 349 | F132: 0 | G132: 1833.333333 | H132: 0 | I132: 113.3333333 | J132: 373.45 | K132: Administracja
B133: 625 | C133: Marketing | E133: 33 | F133: 1387.306667 | G133: 0 | H133: 0 | I133: 113.3333333 | J133: 282.5933333 | K133: Magazyn
B134: 1 | C134: Planowanie produkcji | E134: 567 | F134: 68.98333333 | G134: 0 | H134: 0 | I134: 33.33333333 | J134: 11.64333333 | K134: Grupa asortymentowa 1
B135: 5 | C135: Planowanie produkcji | E135: 543 | F135: 0 | G135: 1133.333333 | H135: 0 | I135: 113.3333333 | J135: 230.86 | K135: Administracja
B136: 20 | C136: Planowanie produkcji | E136: 476 | F136: 1507.333333 | G136: 0 | H136: 0 | I136: 116.6666667 | J136: 307.0433333 | K136: Grupa asortymentowa 3
B137: 22 | C137: Planowanie produkcji | E137: 110 | F137: 1980 | G137: 0 | H137: 0 | I137: 116.6666667 | J137: 403.3233333 | K137: Administracja
B138: 136 | C138: Planowanie produkcji | E138: 407 | F138: 1599.826667 | G138: 0 | H138: 0 | I138: 116.6666667 | J138: 325.8866667 | K138: Grupa asortymentowa 3
B139: 461 | C139: Planowanie produkcji | E139: 632 | F139: 0 | G139: 0 | H139: 715.3333333 | I139: 0 | J139: 145.7166667 | K139: Dział utrzymania ruchu
B140: 539 | C140: Planowanie produkcji | E140: 372 | F140: 1993.333333 | G140: 0 | H140: 0 | I140: 116.6666667 | J140: 406.0433333 | K140: Administracja
B141: 602 | C141: Planowanie produkcji | E141: 514 | F141: 0 | G141: 1066.666667 | H141: 0 | I141: 113.3333333 | J141: 217.28 | K141: Sprzedaż
B142: 2 | C142: Sprzedaż | E142: 2 | F142: 0 | G142: 0 | H142: 0 | I142: 116.6666667 | J142: 0 | K142: Sprzedaż
B143: 75 | C143: Sprzedaż | E143: 62 | F143: 2016.186667 | G143: 0 | H143: 0 | I143: 116.6666667 | J143: 410.7 | K143: Grupa asortymentowa 1
B144: 352 | C144: Sprzedaż | E144: 602 | F144: 1663.963333 | G144: 0 | H144: 0 | I144: 116.6666667 | J144: 338.9466667 | K144: Planowanie produkcji
B145: 386 | C145: Sprzedaż | E145: 47 | F145: 966.6666667 | G145: 0 | H145: 0 | I145: 113.3333333 | J145: 196.91 | K145: Dział pomocniczy
B146: 416 | C146: Sprzedaż | E146: 482 | F146: 1701.333333 | G146: 0 | H146: 0 | I146: 116.6666667 | J146: 346.56 | K146: Grupa asortymentowa 1
B147: 481 | C147: Sprzedaż | E147: 568 | F147: 1552 | G147: 0 | H147: 0 | I147: 116.6666667 | J147: 316.1433333 | K147: Dział utrzymania ruchu
B148: 513 | C148: Sprzedaż | E148: 4 | F148: 0 | G148: 666.6666667 | H148: 0 | I148: 113.3333333 | J148: 118.8 | K148: Administracja
B149: 514 | C149: Sprzedaż | E149: 45 | F149: 983.5333333 | G149: 0 | H149: 0 | I149: 116.6666667 | J149: 200.3466667 | K149: Grupa asortymentowa 2
B150: 597 | C150: Sprzedaż | E150: 22 | F150: 2023.333333 | G150: 0 | H150: 0 | I150: 116.6666667 | J150: 412.1533333 | K150: =IF(E150=0,"",IFERROR(VLOOKUP(E150,$B$20:$C$831,2,),"Brak przypisania!!!")) -> Planowanie produkcji
B151: 32 | C151: Magazyn | E151: 108 | F151: 828.1066667 | G151: 0 | H151: 0 | I151: 116.6666667 | J151: 147.57 | K151: Administracja
B152: 398 | C152: Magazyn | E152: 63 | F152: 1664 | G152: 0 | H152: 0 | I152: 116.6666667 | J152: 338.9566667 | K152: Grupa asortymentowa 1
B153: 23 | C153: Magazyn | E153: 24 | F153: 1646.066667 | G153: 0 | H153: 0 | I153: 116.6666667 | J153: 226.8533333 | K153: Grupa asortymentowa 1
B154: 375 | C154: Magazyn | E154: 547 | F154: 1884.546667 | G154: 0 | H154: 0 | I154: 116.6666667 | J154: 383.8833333 | K154: Grupa asortymentowa 3
B155: 34 | C155: Magazyn | E155: 142 | F155: 0 | G155: 3718.333333 | H155: 0 | I155: 113.3333333 | J155: 324.13 | K155: Dział utrzymania ruchu
B156: 33 | C156: Magazyn | E156: 25 | F156: 2492.666667 | G156: 0 | H156: 0 | I156: 116.6666667 | J156: 507.7566667 | K156: Grupa asortymentowa 1
B157: 501 | C157: Magazyn | E157: 359 | F157: 1433.68 | G157: 0 | H157: 0 | I157: 113.3333333 | J157: 292.0433333 | K157: Grupa asortymentowa 2
B158: 464 | C158: Magazyn | E158: 360 | F158: 1486.666667 | G158: 0 | H158: 0 | I158: 116.6666667 | J158: 302.8366667 | K158: Grupa asortymentowa 1
B159: 72 | C159: Dział pomocniczy | E159: 501 | F159: 1653.253333 | G159: 0 | H159: 0 | I159: 116.6666667 | J159: 336.7633333 | K159: Magazyn
B160: 87 | C160: Dział pomocniczy | E160: 495 | F160: 1832.666667 | G160: 0 | H160: 0 | I160: 116.6666667 | J160: 373.3133333 | K160: Grupa asortymentowa 4
B161: 580 | C161: Dział pomocniczy | E161: 1 | F161: 0 | G161: 2333.333333 | H161: 0 | I161: 116.6666667 | J161: 475.3 | K161: Planowanie produkcji
B162: 47 | C162: Dział pomocniczy | E162: 401 | F162: 1290.453333 | G162: 0 | H162: 0 | I162: 116.6666667 | J162: 262.8633333 | K162: Grupa asortymentowa 2
B163: 74 | C163: Dział utrzymania ruchu | E163: 27 | F163: 2170.666667 | G163: 0 | H163: 0 | I163: 116.6666667 | J163: 442.1633333 | K163: Grupa asortymentowa 1
B164: 560 | C164: Dział utrzymania ruchu | E164: 545 | F164: 0 | G164: 1166.666667 | H164: 0 | I164: 116.6666667 | J164: 237.65 | K164: Administracja
B165: 369 | C165: Dział utrzymania ruchu | E165: 114 | F165: 0 | G165: 1500 | H165: 0 | I165: 116.6666667 | J165: 305.55 | K165: Administracja
B166: 627 | C166: Dział utrzymania ruchu | E166: 464 | F166: 2651.666667 | G166: 0 | H166: 0 | I166: 116.6666667 | J166: 540.15 | K166: Magazyn
B167: 82 | C167: Dział utrzymania ruchu | E167: 492 | F167: 1708 | G167: 0 | H167: 0 | I167: 113.3333333 | J167: 347.9166667 | K167: Grupa asortymentowa 1
B168: 628 | C168: Dział utrzymania ruchu | E168: 620 | F168: 1589.333333 | G168: 0 | H168: 0 | I168: 116.6666667 | J168: 323.75 | K168: Dział utrzymania ruchu
B169: 626 | C169: Dział utrzymania ruchu | E169: 481 | F169: 0 | G169: 0 | H169: 0 | I169: 116.6666667 | J169: 0 | K169: Sprzedaż
B170: 631 | C170: Dział utrzymania ruchu | E170: 638 | F170: 0 | G170: 0 | H170: 472 | I170: 0 | J170: 96.14666667 | K170: Dział utrzymania ruchu
B171: 630 | C171: Dział utrzymania ruchu | E171: 615 | F171: 0 | G171: 2576.333333 | H171: 0 | I171: 116.6666667 | J171: 524.8 | K171: Dział utrzymania ruchu
B172: 587 | C172: Dział utrzymania ruchu | E172: 634 | F172: 3175 | G172: 0 | H172: 0 | I172: 116.6666667 | J172: 646.75 | K172: Grupa asortymentowa 4
B173: 365 | C173: Dział utrzymania ruchu | E173: 522 | F173: 1153.133333 | G173: 0 | H173: 0 | I173: 116.6666667 | J173: 234.8966667 | K173: Grupa asortymentowa 3
B174: 402 | C174: Dział utrzymania ruchu | E174: 436 | F174: 1577.413333 | G174: 0 | H174: 0 | I174: 116.6666667 | J174: 321.32 | K174: Grupa asortymentowa 2
B175: 594 | C175: Dział utrzymania ruchu | E175: 64 | F175: 1586.666667 | G175: 0 | H175: 0 | I175: 116.6666667 | J175: 323.2066667 | K175: Grupa asortymentowa 1
B176: 632 | C176: Dział utrzymania ruchu | E176: 10 | F176: 1761.893333 | G176: 0 | H176: 0 | I176: 116.6666667 | J176: 358.9 | K176: Grupa asortymentowa 1
B177: 568 | C177: Dział utrzymania ruchu | E177: 358 | F177: 2036.08 | G177: 0 | H177: 0 | I177: 116.6666667 | J177: 414.75 | K177: Grupa asortymentowa 1
B178: 142 | C178: Dział utrzymania ruchu | E178: 636 | F178: 0 | G178: 0 | H178: 894.6666667 | I178: 0 | J178: 182.2433333 | K178: Dział utrzymania ruchu
B179: 610 | C179: Dział utrzymania ruchu
B180: 620 | C180: Dział utrzymania ruchu
B181: 615 | C181: Dział utrzymania ruchu
B182: 609 | C182: Dział utrzymania ruchu
B183: 603 | C183: Dział utrzymania ruchu
B184: 598 | C184: Dział utrzymania ruchu
B185: 600 | C185: Dział utrzymania ruchu
B186: 605 | C186: Dział utrzymania ruchu
B187: 595 | C187: Dział utrzymania ruchu
B188: 606 | C188: Dział utrzymania ruchu
B189: 588 | C189: Dział utrzymania ruchu
B190: 604 | C190: Dział utrzymania ruchu
B191: 607 | C191: Dział utrzymania ruchu
B192: 592 | C192: Dział utrzymania ruchu
B193: 35 | C193: Magazyn
B194: 614 | C194: Dział utrzymania ruchu
B195: 612 | C195: Dział utrzymania ruchu
B196: 613 | C196: Dział utrzymania ruchu
B197: 616 | C197: Dział utrzymania ruchu
B198: 623 | C198: Dział utrzymania ruchu
B199: 618 | C199: Dział utrzymania ruchu
B200: 619 | C200: Dział utrzymania ruchu
B201: 621 | C201: Dział utrzymania ruchu
B202: 617 | C202: Dział utrzymania ruchu
B203: 553 | C203: Dział utrzymania ruchu
B204: 624 | C204: Dział utrzymania ruchu
... 19 more rows

Sheet Bilans
A1: Struktura z dokładnością do wiersza | J1: Kolumny sprawozdania
A2: Opis wiersza | J2: Bilans otwarcia | K2: Kwiecień | L2: Maj | M2: Czerwiec | N2: Lipiec | O2: Sierpień | P2: Wrzesień | Q2: Październik | R2: Listopad | S2: Grudzień
A3: - | B3: AKTYWA | J3: 0 | K3: 0 | L3: 0 | M3: 0 | N3: 0 | O3: 0 | P3: 0 | Q3: 0 | R3: 0 | S3: 0
B4: - | C4: A. Aktywa trwałe | J4: 14198207.47 | K4: -115618.6633 | L4: -212308.0333 | M4: -79238.75333 | N4: 1958514.243 | O4: 170687.93 | P4: -51525.43 | Q4: -33262.75 | R4: 830424.6 | S4: 0
C5: - | D5: I. Wartości niematerialne i prawne | J5: 85105.2 | K5: -5033.79 | L5: -6922.103333 | M5: -6922.076667 | N5: -6922.076667 | O5: -6922.076667 | P5: 3485.546667 | Q5: 3600.193333 | R5: -9042.09 | S5: 0
D6: - | E6: 1. Koszty zakończonych prac rozwojowych | J6: 0 | K6: 0 | L6: 0 | M6: 0 | N6: 0 | O6: 0 | P6: 0 | Q6: 0 | R6: 0 | S6: 0
F7: 2. Wartość firmy | J7: 0 | K7: 0 | L7: 0 | M7: 0 | N7: 0 | O7: 0 | P7: 0 | Q7: 0 | R7: 0 | S7: 0
E8: 3. Inne wartości niematerialne i prawne | J8: 85105.2 | K8: -5033.79 | L8: -6922.103333 | M8: -6922.076667 | N8: -6922.076667 | O8: -6922.076667 | P8: 3485.546667 | Q8: 3600.193333 | R8: -9042.09 | S8: 0
E9: 4. Zaliczki na wartości niematerialne i prawne | J9: 0 | K9: 0 | L9: 0 | M9: 0 | N9: 0 | O9: 0 | P9: 0 | Q9: 0 | R9: 0 | S9: 0
C10: - | D10: II. Rzeczowe aktywa trwałe | J10: 14113102.27 | K10: -110584.8733 | L10: -205385.93 | M10: -72316.67667 | N10: 1965436.32 | O10: 177610.0067 | P10: -55010.97667 | Q10: -36862.94333 | R10: 839466.69 | S10: 0
D11: - | E11: 1. Środki trwałe | J11: 13094792.34 | K11: -109803.0333 | L11: 195270.1633 | M11: -169301.9367 | N11: -142468.7267 | O11: -142801.7067 | P11: 10238.77333 | Q11: -182798.9733 | R11: 2783562.993 | S11: 0
F12: a) grunty (w tym prawo użytkowania wieczystego gruntu | J12: 672617.8567 | K12: 0 | L12: 0 | M12: 0 | N12: 0 | O12: 0 | P12: 0 | Q12: 54276.33333 | R12: 0 | S12: 0
F13: b) budynki, lokale i obiektyinżynierii lądowej i wodn | J13: 3044713.487 | K13: -5884.033333 | L13: -54882.83333 | M13: -8705.376667 | N13: 1147.406667 | O13: -8744.973333 | P13: -8744.973333 | Q13: -7911.64 | R13: -8747.75 | S13: 0
F14: c) urządzenia techniczne i maszyny | J14: 9137761.543 | K14: -100163.67 | L14: 253384.8167 | M14: -153603.3533 | N14: -146262.7133 | O14: -155033.0933 | P14: -154987.21 | Q14: -222044.92 | R14: 2730126.263 | S14: 0
F15: d) środki transportu | J15: 74446.02333 | K15: -1167.176667 | L15: -1532.92 | M15: -1532.92 | N15: -1532.92 | O15: 26507.58 | P15: 33104.74 | Q15: -2427.61 | R15: -2427.61 | S15: 0
F16: e) inne środki trwałe | J16: 165253.4333 | K16: -2588.153333 | L16: -1698.9 | M16: -5460.286667 | N16: 4179.5 | O16: -5531.22 | P16: 140866.2167 | Q16: -4691.136667 | R16: 64612.09 | S16: 0
E17: 2. Środki trwałe w budowie | J17: 1015784.5 | K17: 218.16 | L17: -399130.6633 | M17: 96985.26 | N17: 2107905.047 | O17: 320411.7133 | P17: -65249.75 | Q17: 145936.03 | R17: -1944096.303 | S17: 0
E18: 3. Zaliczka na środki trwałe w budowie | J18: 2525.43 | K18: -1000 | L18: -1525.43 | M18: 0 | N18: 0 | O18: 0 | P18: 0 | Q18: 0 | R18: 0 | S18: 0
C19: - | D19: III. Należności długoterminowe | J19: 0 | K19: 0 | L19: 0 | M19: 0 | N19: 0 | O19: 0 | P19: 0 | Q19: 0 | R19: 0 | S19: 0
E20: 1. Od jednostek powiązanych | J20: 0 | K20: 0 | L20: 0 | M20: 0 | N20: 0 | O20: 0 | P20: 0 | Q20: 0 | R20: 0 | S20: 0
E21: 2. Od pozost.jedn.w których jednostka posiada zaang. w kapit | J21: 0 | K21: 0 | L21: 0 | M21: 0 | N21: 0 | O21: 0 | P21: 0 | Q21: 0 | R21: 0 | S21: 0
E22: 3. Od pozostałych jednostek | J22: 0 | K22: 0 | L22: 0 | M22: 0 | N22: 0 | O22: 0 | P22: 0 | Q22: 0 | R22: 0 | S22: 0
C23: - | D23: IV. Inwestycje długoterminowe | J23: 0 | K23: 0 | L23: 0 | M23: 0 | N23: 0 | O23: 0 | P23: 0 | Q23: 0 | R23: 0 | S23: 0
E24: 1. Nieruchomości | J24: 0 | K24: 0 | L24: 0 | M24: 0 | N24: 0 | O24: 0 | P24: 0 | Q24: 0 | R24: 0 | S24: 0
E25: 2. Wartości niematerialne i prawne | J25: 0 | K25: 0 | L25: 0 | M25: 0 | N25: 0 | O25: 0 | P25: 0 | Q25: 0 | R25: 0 | S25: 0
D26: - | E26: 3. Długoterminowe aktywa finansowe | J26: 0 | K26: 0 | L26: 0 | M26: 0 | N26: 0 | O26: 0 | P26: 0 | Q26: 0 | R26: 0 | S26: 0
E27: - | F27: a) w jednostkach powiązanych | J27: 0 | K27: 0 | L27: 0 | M27: 0 | N27: 0 | O27: 0 | P27: 0 | Q27: 0 | R27: 0 | S27: 0
G28: - udziały lub akcje | J28: 0 | K28: 0 | L28: 0 | M28: 0 | N28: 0 | O28: 0 | P28: 0 | Q28: 0 | R28: 0 | S28: 0
G29: - inne papiery wartościowe | J29: 0 | K29: 0 | L29: 0 | M29: 0 | N29: 0 | O29: 0 | P29: 0 | Q29: 0 | R29: 0 | S29: 0
G30: - udzielone pożyczki | J30: 0 | K30: 0 | L30: 0 | M30: 0 | N30: 0 | O30: 0 | P30: 0 | Q30: 0 | R30: 0 | S30: 0
G31: - inne długoterminoweaktywa finansowe | J31: 0 | K31: 0 | L31: 0 | M31: 0 | N31: 0 | O31: 0 | P31: 0 | Q31: 0 | R31: 0 | S31: 0
E32: - | F32: b)w pozost.jedn.w których jedn. posiada zaanga.w kapitale | J32: 0 | K32: 0 | L32: 0 | M32: 0 | N32: 0 | O32: 0 | P32: 0 | Q32: 0 | R32: 0 | S32: 0
G33: - udziały i akcje | J33: 0 | K33: 0 | L33: 0 | M33: 0 | N33: 0 | O33: 0 | P33: 0 | Q33: 0 | R33: 0 | S33: 0
G34: - inne papiery wartościowe | J34: 0 | K34: 0 | L34: 0 | M34: 0 | N34: 0 | O34: 0 | P34: 0 | Q34: 0 | R34: 0 | S34: 0
F35: - | G35: - inne długoterm.aktywa finansowe | J35: 0 | K35: 0 | L35: 0 | M35: 0 | N35: 0 | O35: 0 | P35: 0 | Q35: 0 | R35: 0 | S35: 0
H36: - udzielone pożyczki | J36: 0 | K36: 0 | L36: 0 | M36: 0 | N36: 0 | O36: 0 | P36: 0 | Q36: 0 | R36: 0 | S36: 0
E37: - | F37: c) w pozostalych jednostkach | J37: 0 | K37: 0 | L37: 0 | M37: 0 | N37: 0 | O37: 0 | P37: 0 | Q37: 0 | R37: 0 | S37: 0
G38: - udziały i akcje | J38: 0 | K38: 0 | L38: 0 | M38: 0 | N38: 0 | O38: 0 | P38: 0 | Q38: 0 | R38: 0 | S38: 0
G39: - inne papiery wartosciowe | J39: 0 | K39: 0 | L39: 0 | M39: 0 | N39: 0 | O39: 0 | P39: 0 | Q39: 0 | R39: 0 | S39: 0
G40: - udzielone pożyczki | J40: 0 | K40: 0 | L40: 0 | M40: 0 | N40: 0 | O40: 0 | P40: 0 | Q40: 0 | R40: 0 | S40: 0
G41: - inne długotermin.aktywa finansowe | J41: 0 | K41: 0 | L41: 0 | M41: 0 | N41: 0 | O41: 0 | P41: 0 | Q41: 0 | R41: 0 | S41: 0
E42: 4. Inne inwestycje długoterminowe | J42: 0 | K42: 0 | L42: 0 | M42: 0 | N42: 0 | O42: 0 | P42: 0 | Q42: 0 | R42: 0 | S42: 0
C43: - | D43: V. Długoterminowe rozliczenia międzyokresowe | J43: 0 | K43: 0 | L43: 0 | M43: 0 | N43: 0 | O43: 0 | P43: 0 | Q43: 0 | R43: 0 | S43: 0
E44: 1. Aktywa z tytułu odroczonego podatku dochodowego | J44: 0 | K44: 0 | L44: 0 | M44: 0 | N44: 0 | O44: 0 | P44: 0 | Q44: 0 | R44: 0 | S44: 0
E45: 2. Inne rozliczeniamiędzyokresowe | J45: 0 | K45: 0 | L45: 0 | M45: 0 | N45: 0 | O45: 0 | P45: 0 | Q45: 0 | R45: 0 | S45: 0
B46: - | C46: B. Aktywa obrotowe | J46: 18874279.64 | K46: -478381.4967 | L46: 504947.4933 | M46: 291225.4267 | N46: 657219.57 | O46: -576470.6633 | P46: 766049.9967 | Q46: 23171.37333 | R46: 615407.4067 | S46: 0
C47: - | D47: I. Zapasy | J47: 5881705.737 | K47: 129745.7767 | L47: -210467.7967 | M47: 604683.2933 | N47: -100571.1233 | O47: 98694.58 | P47: 145302.3533 | Q47: -249239.33 | R47: 107740.1633 | S47: 0
E48: 1. Materiały | J48: 3376056.847 | K48: 104624.09 | L48: -425110.4233 | M48: 460799.82 | N48: -75684.74667 | O48: -18925.36333 | P48: 27891.41667 | Q48: 61112.07667 | R48: -3729.496667 | S48: 0
E49: 2. Półprodukty i produkty w toku | J49: 572129.73 | K49: 103974.9267 | L49: -244558.98 | M49: 100423.4267 | N49: 11822.69667 | O49: -4400.683333 | P49: 106210.9433 | Q49: -68500.77667 | R49: -42922.58 | S49: 0
E50: 3. Produkty gotowe | J50: 1896949.083 | K50: -93547.43667 | L50: 429676.1233 | M50: 43657.29333 | N50: -20650.17667 | O50: 132451.11 | P50: 21298.26667 | Q50: -253469.9 | R50: 149838.8467 | S50: 0
E51: 4. Towary | J51: 36570.07667 | K51: 14694.19667 | L51: 29525.48333 | M51: -197.2466667 | N51: -16058.89667 | O51: -10430.48333 | P51: -10098.27333 | Q51: 11619.27 | R51: 4553.393333 | S51: 0
E52: 5. Zaliczki na dostawy | J52: 0 | K52: 0 | L52: 0 | M52: 0 | N52: 0 | O52: 0 | P52: 0 | Q52: 0 | R52: 0 | S52: 0
C53: - | D53: II. Należności krótkoterminowe | J53: 11067127.85 | K53: 283306.7967 | L53: 81548.73333 | M53: -721015.96 | N53: 1191007.853 | O53: -341646.3067 | P53: -112410.0033 | Q53: 120765.94 | R53: 426547.2833 | S53: 0
D54: - | E54: 1. Należności od jednostek powiązanych | J54: 0 | K54: 0 | L54: 0 | M54: 0 | N54: 0 | O54: 0 | P54: 0 | Q54: 0 | R54: 0 | S54: 0
E55: - | F55: a) z tytułu dostaw i usług, o okresie spłaty: | J55: 0 | K55: 0 | L55: 0 | M55: 0 | N55: 0 | O55: 0 | P55: 0 | Q55: 0 | R55: 0 | S55: 0
G56: - do 12 miesięcy | J56: 0 | K56: 0 | L56: 0 | M56: 0 | N56: 0 | O56: 0 | P56: 0 | Q56: 0 | R56: 0 | S56: 0
G57: - powyżej 12 miesięcy | J57: 0 | K57: 0 | L57: 0 | M57: 0 | N57: 0 | O57: 0 | P57: 0 | Q57: 0 | R57: 0 | S57: 0
F58: b) inne | J58: 0 | K58: 0 | L58: 0 | M58: 0 | N58: 0 | O58: 0 | P58: 0 | Q58: 0 | R58: 0 | S58: 0
D59: - | E59: 2. Należn. od pozost.jedn.w których jednposiada zaang. kapit | J59: 0 | K59: 0 | L59: 0 | M59: 0 | N59: 0 | O59: 0 | P59: 0 | Q59: 0 | R59: 0 | S59: 0
E60: - | F60: a) z tyt.dostaw i usług o okresie spłaty: | J60: 0 | K60: 0 | L60: 0 | M60: 0 | N60: 0 | O60: 0 | P60: 0 | Q60: 0 | R60: 0 | S60: 0
G61: - do 12 miesięcy | J61: 0 | K61: 0 | L61: 0 | M61: 0 | N61: 0 | O61: 0 | P61: 0 | Q61: 0 | R61: 0 | S61: 0
G62: - powyżej 12 mieisecy | J62: 0 | K62: 0 | L62: 0 | M62: 0 | N62: 0 | O62: 0 | P62: 0 | Q62: 0 | R62: 0 | S62: 0
F63: b) inne | J63: 0 | K63: 0 | L63: 0 | M63: 0 | N63: 0 | O63: 0 | P63: 0 | Q63: 0 | R63: 0 | S63: 0
D64: - | E64: 3. Należności od pozostałych jednostek | J64: 11067127.85 | K64: 283306.7967 | L64: 81548.73333 | M64: -721015.96 | N64: 1191007.853 | O64: -341646.3067 | P64: -112410.0033 | Q64: 120765.94 | R64: 426547.2833 | S64: 0
E65: - | F65: a) z tytułu dostaw i usług, o okresie spłaty: | J65: 10743150.62 | K65: 270769.66 | L65: 27797.04667 | M65: -854004.2367 | N65: 1056198.02 | O65: -396894.7767 | P65: -185687.8833 | Q65: 50534.65667 | R65: 305089.5733 | S65: 0
G66: - do 12 miesięcy | J66: 0 | K66: 0 | L66: 0 | M66: 0 | N66: 0 | O66: 0 | P66: 0 | Q66: 0 | R66: 0 | S66: 0
G67: - powyżej 12 miesięcy | J67: 0 | K67: 0 | L67: 0 | M67: 0 | N67: 0 | O67: 0 | P67: 0 | Q67: 0 | R67: 0 | S67: 0
F68: b) z tytułu podatków, dotacji, ceł, ubezpieczeń społe | J68: 323639.8933 | K68: 6210.396667 | L68: 51985.46 | M68: 132988.2767 | N68: 134809.8333 | O68: 55159.47 | P68: 73277.88 | Q68: 70293.78333 | R68: 121457.71 | S68: 0
F69: c) inne | J69: 337.34 | K69: 6326.74 | L69: 1766.226667 | M69: 0 | N69: 0 | O69: 89 | P69: 0 | Q69: -62.5 | R69: 0 | S69: 0
F70: d) dochody na drodze sądowej | J70: 0 | K70: 0 | L70: 0 | M70: 0 | N70: 0 | O70: 0 | P70: 0 | Q70: 0 | R70: 0 | S70: 0
C71: - | D71: III. Inwestycje krótkoterminowe | J71: 1712416.513 | K71: -881229.74 | L71: 610937.9333 | M71: 325351.7367 | N71: -415842.4533 | O71: -315759.41 | P71: 748901.18 | Q71: 169628.6533 | R71: 87004.37667 | S71: 0
D72: - | E72: 1. Krótkoterminowe aktywa finansowe | J72: 1712416.513 | K72: -881229.74 | L72: 610937.9333 | M72: 325351.7367 | N72: -415842.4533 | O72: -315759.41 | P72: 748901.18 | Q72: 169628.6533 | R72: 87004.37667 | S72: 0
F73: a) w jednostkach powiązanych | J73: 0 | K73: 0 | L73: 0 | M73: 0 | N73: 0 | O73: 0 | P73: 0 | Q73: 0 | R73: 0 | S73: 0
F74: - udziały lub akcje | J74: 0 | K74: 0 | L74: 0 | M74: 0 | N74: 0 | O74: 0 | P74: 0 | Q74: 0 | R74: 0 | S74: 0
F75: - inne papiery wartościowe | J75: 0 | K75: 0 | L75: 0 | M75: 0 | N75: 0 | O75: 0 | P75: 0 | Q75: 0 | R75: 0 | S75: 0
F76: - udzielone pożyczki | J76: 0 | K76: 0 | L76: 0 | M76: 0 | N76: 0 | O76: 0 | P76: 0 | Q76: 0 | R76: 0 | S76: 0
F77: - inne krótkoterminowe aktywa finansowe | J77: 0 | K77: 0 | L77: 0 | M77: 0 | N77: 0 | O77: 0 | P77: 0 | Q77: 0 | R77: 0 | S77: 0
F78: b) w pozostałych jednostkach | J78: 0 | K78: 0 | L78: 0 | M78: 0 | N78: 0 | O78: 0 | P78: 0 | Q78: 0 | R78: 0 | S78: 0
F79: - udziały lub akcje | J79: 0 | K79: 0 | L79: 0 | M79: 0 | N79: 0 | O79: 0 | P79: 0 | Q79: 0 | R79: 0 | S79: 0
F80: - inne papiery wartościowe | J80: 0 | K80: 0 | L80: 0 | M80: 0 | N80: 0 | O80: 0 | P80: 0 | Q80: 0 | R80: 0 | S80: 0
F81: - udzielone pożyczki | J81: 0 | K81: 0 | L81: 0 | M81: 0 | N81: 0 | O81: 0 | P81: 0 | Q81: 0 | R81: 0 | S81: 0
F82: - inne krótkoterminowe aktywa finansowe | J82: 0 | K82: 0 | L82: 0 | M82: 0 | N82: 0 | O82: 0 | P82: 0 | Q82: 0 | R82: 0 | S82: 0
E83: - | F83: c) środki pieniężne i inne aktywa pieniężne | J83: 1712416.513 | K83: -881229.74 | L83: 610937.9333 | M83: 325351.7367 | N83: -415842.4533 | O83: -315759.41 | P83: 748901.18 | Q83: 169628.6533 | R83: 87004.37667 | S83: 0
G84: - środki pieniężne w kasie i na rachunkach | J84: 1712416.513 | K84: -881229.74 | L84: 610937.9333 | M84: 325351.7367 | N84: -415842.4533 | O84: -315759.41 | P84: 748901.18 | Q84: 169628.6533 | R84: 87004.37667 | S84: 0
G85: - inne środki pieniężne | J85: 0 | K85: 0 | L85: 0 | M85: 0 | N85: 0 | O85: 0 | P85: 0 | Q85: 0 | R85: 0 | S85: 0
G86: - inne aktywa pieniężne | J86: 0 | K86: 0 | L86: 0 | M86: 0 | N86: 0 | O86: 0 | P86: 0 | Q86: 0 | R86: 0 | S86: 0
E87: 2. Inne inwestycje krótkoterminowe | J87: 0 | K87: 0 | L87: 0 | M87: 0 | N87: 0 | O87: 0 | P87: 0 | Q87: 0 | R87: 0 | S87: 0
D88: IV. Krótkoterminowe rozliczenia międzyokresowe | J88: 213029.54 | K88: -10204.33 | L88: 22928.62333 | M88: 82206.35667 | N88: -17374.70667 | O88: -17759.52667 | P88: -15743.53333 | Q88: -17983.89 | R88: -5884.416667 | S88: 0
C89: C. Należne wpłaty na kapital (fundusz podstawowy) | J89: 0 | K89: 0 | L89: 0 | M89: 0 | N89: 0 | O89: 0 | P89: 0 | Q89: 0 | R89: 0 | S89: 0
C90: D.Udziały akcje własne | J90: 0 | K90: 0 | L90: 0 | M90: 0 | N90: 0 | O90: 0 | P90: 0 | Q90: 0 | R90: 0 | S90: 0
B91: AKTYWA RAZEM: | J91: 33072487.12 | K91: -594000.16 | L91: 292639.46 | M91: 211986.6733 | N91: 2615733.813 | O91: -405782.7333 | P91: 714524.5667 | Q91: -10091.37667 | R91: 1445832.007 | S91: 0
A92: - | B92: PASYWA | J92: 0 | K92: 0 | L92: 0 | M92: 0 | N92: 0 | O92: 0 | P92: 0 | Q92: 0 | R92: 0 | S92: 0
B93: - | C93: A. Kapitał (fundusz) własny | J93: 17637751.03 | K93: 279174.2467 | L93: 314348.62 | M93: 407437.4967 | N93: 725726.04 | O93: 383327.4067 | P93: 363483.5633 | Q93: 408226.2367 | R93: 649066.6967 | S93: 0
D94: I. Kapitał (fundusz) podstawowy | J94: 666.6666667 | K94: 0 | L94: 0 | M94: 0 | N94: 0 | O94: 0 | P94: 0 | Q94: 0 | R94: 0 | S94: 0
C95: - | D95: II. Kapitał (fundusz) zapasowy, w tym: | J95: 250529.9867 | K95: 0 | L95: 0 | M95: 7798.436667 | N95: 0 | O95: 0 | P95: 0 | Q95: 0 | R95: 0 | S95: 0
E96: - nadwyzka wart.sprzed.(wart.emis)nad wart.nom.udział.akc | J96: 0 | K96: 0 | L96: 0 | M96: 0 | N96: 0 | O96: 0 | P96: 0 | Q96: 0 | R96: 0 | S96: 0
C97: - | D97: III. Kapitał Fundusz z aktualizacji wyceny, w tym: | J97: 7989.036667 | K97: 0 | L97: 0 | M97: -7798.436667 | N97: 0 | O97: 0 | P97: 0 | Q97: 0 | R97: 0 | S97: 0
E98: - z tytułu aktualizacji wartosci godziwej | J98: 0 | K98: 0 | L98: 0 | M98: 0 | N98: 0 | O98: 0 | P98: 0 | Q98: 0 | R98: 0 | S98: 0
C99: - | D99: IV. Pozostałe kapitały (fundusze) rezerwowe | J99: 528250.2433 | K99: 0 | L99: 0 | M99: 0 | N99: 0 | O99: 0 | P99: 0 | Q99: 0 | R99: 0 | S99: 0
E100: - tworzone zgodnie z umowa (statutem) spółki | J100: 528250.2433 | K100: 0 | L100: 0 | M100: 0 | N100: 0 | O100: 0 | P100: 0 | Q100: 0 | R100: 0 | S100: 0
E101: - na udziały akcje własne | J101: 0 | K101: 0 | L101: 0 | M101: 0 | N101: 0 | O101: 0 | P101: 0 | Q101: 0 | R101: 0 | S101: 0
D102: V. Zysk (strata) z lat ubiegłych | J102: 16850315.1 | K102: 0 | L102: 0 | M102: 0 | N102: 0 | O102: 0 | P102: 0 | Q102: 0 | R102: 0 | S102: 0
D103: VI. Zysk (strata) netto | J103: 0 | K103: 279174.2467 | L103: 314348.62 | M103: 407437.4967 | N103: 725726.04 | O103: 383327.4067 | P103: 363483.5633 | Q103: 408226.2367 | R103: 649066.6967 | S103: 0
D104: VII. Odpisy z zysku netto w ciągu roku obrotowego (wielkoś | J104: 0 | K104: 0 | L104: 0 | M104: 0 | N104: 0 | O104: 0 | P104: 0 | Q104: 0 | R104: 0 | S104: 0
B105: - | C105: B. Zobowiązania i rezerwy na zobowiązania | J105: 15434736.08 | K105: -873174.4067 | L105: -21709.16 | M105: -195450.8233 | N105: 1890007.773 | O105: -789110.14 | P105: 351041.0033 | Q105: -418322.5967 | R105: 796770.96 | S105: 0
C106: - | D106: I. Rezerwy na zobowiązania | J106: 0 | K106: 0 | L106: 0 | M106: 0 | N106: 0 | O106: 0 | P106: 0 | Q106: 0 | R106: 0 | S106: 0
E107: 1. Rezerwa z tytułu odroczonego podatku dochodowego | J107: 0 | K107: 0 | L107: 0 | M107: 0 | N107: 0 | O107: 0 | P107: 0 | Q107: 0 | R107: 0 | S107: 0
D108: - | E108: 2. Rezerwa na świadczenia emerytalne i podobne | J108: 0 | K108: 0 | L108: 0 | M108: 0 | N108: 0 | O108: 0 | P108: 0 | Q108: 0 | R108: 0 | S108: 0
F109: - długoterminowa | J109: 0 | K109: 0 | L109: 0 | M109: 0 | N109: 0 | O109: 0 | P109: 0 | Q109: 0 | R109: 0 | S109: 0
F110: - krótkoterminowa | J110: 0 | K110: 0 | L110: 0 | M110: 0 | N110: 0 | O110: 0 | P110: 0 | Q110: 0 | R110: 0 | S110: 0
D111: - | E111: 3. Pozostałe rezerwy | J111: 0 | K111: 0 | L111: 0 | M111: 0 | N111: 0 | O111: 0 | P111: 0 | Q111: 0 | R111: 0 | S111: 0
F112: - długoterminowa | J112: 0 | K112: 0 | L112: 0 | M112: 0 | N112: 0 | O112: 0 | P112: 0 | Q112: 0 | R112: 0 | S112: 0
F113: - krótkoterminowa | J113: 0 | K113: 0 | L113: 0 | M113: 0 | N113: 0 | O113: 0 | P113: 0 | Q113: 0 | R113: 0 | S113: 0
C114: - | D114: II. Zobowiązania długoterminowe | J114: 1830565.66 | K114: -126259.5833 | L114: -171129.7167 | M114: -148694.65 | N114: 517972.02 | O114: 1514658.45 | P114: -143706.8633 | Q114: -192109.18 | R114: 749644.29 | S114: 0
E115: 1. Wobec jednostek powiązanych | J115: 0 | K115: 0 | L115: 0 | M115: 0 | N115: 0 | O115: 0 | P115: 0 | Q115: 0 | R115: 0 | S115: 0
E116: 2, Wobec pozost jedn.w których jedn,.posiada zaang,w kapit. | J116: 0 | K116: 0 | L116: 0 | M116: 0 | N116: 0 | O116: 0 | P116: 0 | Q116: 0 | R116: 0 | S116: 0
D117: - | E117: 3. Wobec pozostałych jednostek | J117: 1830565.66 | K117: -126259.5833 | L117: -171129.7167 | M117: -148694.65 | N117: 517972.02 | O117: 1514658.45 | P117: -143706.8633 | Q117: -192109.18 | R117: 749644.29 | S117: 0
F118: a) kredyty i pożyczki | J118: 1830565.66 | K118: -126259.5833 | L118: -171129.7167 | M118: -148694.65 | N118: 517972.02 | O118: 1514658.45 | P118: -143706.8633 | Q118: -192109.18 | R118: 749644.29 | S118: 0
F119: b) z tytułu dłużnych papierów wartościowych | J119: 0 | K119: 0 | L119: 0 | M119: 0 | N119: 0 | O119: 0 | P119: 0 | Q119: 0 | R119: 0 | S119: 0
F120: c) inne zobowiązania finansowe | J120: 0 | K120: 0 | L120: 0 | M120: 0 | N120: 0 | O120: 0 | P120: 0 | Q120: 0 | R120: 0 | S120: 0
F121: d. zonbowiazania wekslowe | J121: 0 | K121: 0 | L121: 0 | M121: 0 | N121: 0 | O121: 0 | P121: 0 | Q121: 0 | R121: 0 | S121: 0
F122: e) inne | J122: 0 | K122: 0 | L122: 0 | M122: 0 | N122: 0 | O122: 0 | P122: 0 | Q122: 0 | R122: 0 | S122: 0
C123: - | D123: III. Zobowiązania krótkoterminowe | J123: 11147671.79 | K123: -725630.3 | L123: 193466.9867 | M123: -3859.743333 | N123: 1414432.183 | O123: -2261418.633 | P123: 536675.4933 | Q123: -185064.99 | R123: 12183.08333 | S123: 0
D124: - | E124: 1. Zobowiązania wobec jednostek powiązanych | J124: 0 | K124: 0 | L124: 0 | M124: 0 | N124: 0 | O124: 0 | P124: 0 | Q124: 0 | R124: 0 | S124: 0
E125: - | F125: a) z tytułu dostaw i usług, o okresie wymagalności: | J125: 0 | K125: 0 | L125: 0 | M125: 0 | N125: 0 | O125: 0 | P125: 0 | Q125: 0 | R125: 0 | S125: 0
G126: - do 12 miesięcy | J126: 0 | K126: 0 | L126: 0 | M126: 0 | N126: 0 | O126: 0 | P126: 0 | Q126: 0 | R126: 0 | S126: 0
G127: - powyżej 12 miesięcy | J127: 0 | K127: 0 | L127: 0 | M127: 0 | N127: 0 | O127: 0 | P127: 0 | Q127: 0 | R127: 0 | S127: 0
F128: b) inne | J128: 0 | K128: 0 | L128: 0 | M128: 0 | N128: 0 | O128: 0 | P128: 0 | Q128: 0 | R128: 0 | S128: 0
D129: - | E129: 2. Zobow.wobec poz..jedn.w których jedn.posiada zaang. w ka | J129: 0 | K129: 0 | L129: 0 | M129: 0 | N129: 0 | O129: 0 | P129: 0 | Q129: 0 | R129: 0 | S129: 0
E130: - | F130: a) z tyt.dostaw i usług o okresie wymagalności: | J130: 0 | K130: 0 | L130: 0 | M130: 0 | N130: 0 | O130: 0 | P130: 0 | Q130: 0 | R130: 0 | S130: 0
G131: - do 12 miesięcy | J131: 0 | K131: 0 | L131: 0 | M131: 0 | N131: 0 | O131: 0 | P131: 0 | Q131: 0 | R131: 0 | S131: 0
G132: - powyżej 12 miesięcy | J132: 0 | K132: 0 | L132: 0 | M132: 0 | N132: 0 | O132: 0 | P132: 0 | Q132: 0 | R132: 0 | S132: 0
F133: b) inne | J133: 0 | K133: 0 | L133: 0 | M133: 0 | N133: 0 | O133: 0 | P133: 0 | Q133: 0 | R133: 0 | S133: 0
D134: - | E134: 3. Zobowiązania wobec pozostałych jednostek | J134: 11139873.01 | K134: -725263.6333 | L134: 174670.4367 | M134: -4836.076667 | N134: 1413287.183 | O134: -2262662.967 | P134: 535643.8267 | Q134: -186126.99 | R134: 27673.41667 | S134: 0
F135: a) kredyty i pożyczki | J135: 0 | K135: 0 | L135: 0 | M135: 0 | N135: 0 | O135: 0 | P135: 0 | Q135: 0 | R135: 0 | S135: 0
F136: b) z tytułu dłużnych papierów wartościowych | J136: 0 | K136: 0 | L136: 0 | M136: 0 | N136: 0 | O136: 0 | P136: 0 | Q136: 0 | R136: 0 | S136: 0
F137: c) inne zobowiązania finansowe | J137: 0 | K137: 0 | L137: 0 | M137: 0 | N137: 0 | O137: 0 | P137: 0 | Q137: 0 | R137: 0 | S137: 0
E138: - | F138: d) z tytułu dostaw i usług, o okresie wymagalności: | J138: 3797241.347 | K138: -607255.42 | L138: 77310.27333 | M138: 47213.93 | N138: 1286269.77 | O138: -2007640.53 | P138: 577911.8067 | Q138: -164240.7933 | R138: 488473.8833 | S138: 0
G139: - do 12 miesięcy | J139: 0 | K139: 0 | L139: 0 | M139: 0 | N139: 0 | O139: 0 | P139: 0 | Q139: 0 | R139: 0 | S139: 0
G140: - powyżej 12 miesięcy | J140: 0 | K140: 0 | L140: 0 | M140: 0 | N140: 0 | O140: 0 | P140: 0 | Q140: 0 | R140: 0 | S140: 0
F141: e) zaliczki otrzymane na dostawy | J141: 111341.5433 | K141: 13258.67667 | L141: 24698.07333 | M141: -12770.16 | N141: 21122.80333 | O141: 23714.71333 | P141: 38785.36333 | Q141: -120117.5267 | R141: -34814.47667 | S141: 0
F142: f) zobowiązania wekslowe | J142: 0 | K142: 0 | L142: 0 | M142: 0 | N142: 0 | O142: 0 | P142: 0 | Q142: 0 | R142: 0 | S142: 0
F143: g) z tytułu podatków, ceł, ubezpieczeń i innych świa | J143: 522814.3733 | K143: -195706.1067 | L143: 68206.06667 | M143: -74144.61 | N143: 134421.5367 | O143: -76241.91667 | P143: -19932.06333 | Q143: 86014.87667 | R143: -87702.34333 | S143: 0
F144: h) z tytułu wynagrodzeń | J144: 82591.02333 | K144: 98679.54333 | L144: 33296.56667 | M144: -34117.40667 | N144: 32338.14 | O144: -5676.823333 | P144: -30075.26333 | Q144: -2043.55 | R144: 17243.88 | S144: 0
F145: i) inne | J145: 6625884.723 | K145: -34240.32667 | L145: -28840.54333 | M145: 68982.17 | N145: -60865.06667 | O145: -196818.41 | P145: -31046.01667 | Q145: 14260.00333 | R145: -355527.5267 | S145: 0
E146: 4. Fundusze specjalne | J146: 7798.783333 | K146: -366.6666667 | L146: 18796.55 | M146: 976.3333333 | N146: 1145 | O146: 1244.333333 | P146: 1031.666667 | Q146: 1062 | R146: -15490.33333 | S146: 0
C147: - | D147: IV. Rozliczenia międzyokresowe | J147: 2456498.63 | K147: -21284.52333 | L147: -44046.43 | M147: -42896.43 | N147: -42396.43 | O147: -42349.95667 | P147: -41927.62667 | Q147: -41148.42667 | R147: 34943.58667 | S147: 0
E148: 1. Ujemna wartość firmy | J148: 0 | K148: 0 | L148: 0 | M148: 0 | N148: 0 | O148: 0 | P148: 0 | Q148: 0 | R148: 0 | S148: 0
D149: - | E149: 2. Inne rozliczenia międzyokresowe | J149: 2456498.63 | K149: -21284.52333 | L149: -44046.43 | M149: -42896.43 | N149: -42396.43 | O149: -42349.95667 | P149: -41927.62667 | Q149: -41148.42667 | R149: 34943.58667 | S149: 0
F150: - długoterminowe | J150: 2456498.63 | K150: -21284.52333 | L150: -44046.43 | M150: -42896.43 | N150: -42396.43 | O150: -42349.95667 | P150: -41927.62667 | Q150: -41148.42667 | R150: 34943.58667 | S150: 0
F151: - krótkoterminowe | J151: 0 | K151: 0 | L151: 0 | M151: 0 | N151: 0 | O151: 0 | P151: 0 | Q151: 0 | R151: 0 | S151: 0
B152: PASYWA RAZEM: | J152: 33072487.12 | K152: -594000.16 | L152: 292639.46 | M152: 211986.6733 | N152: 2615733.813 | O152: -405782.7333 | P152: 714524.5667 | Q152: -10096.36 | R152: 1445837.657 | S152: 0

Sheet RZiS
A1: Struktura z dokładnością do wiersza | G1: Kolumny sprawozdania
A2: Opis wiersza | G2: Bilans otwarcia. | H2: Kwiecień | I2: Maj | J2: Czerwiec | K2: Lipiec | L2: Sierpień | M2: Wrzesień | N2: Październik | O2: Listopad | P2: Grudzień
A3: - | B3: A. Przychody netto ze sprzedaży produktów, towarów i materiałów | G3: 0 | H3: 3748472.393 | I3: 6025980.517 | J3: 5727438.307 | K3: 6120446.94 | L3: 5400227.357 | M3: 5282348.53 | N3: 6309728.573 | O3: 5876565.197 | P3: 0
C4: - od jednostek powiązanych | G4: 0 | H4: 0 | I4: 0 | J4: 0 | K4: 0 | L4: 0 | M4: 0 | N4: 0 | O4: 0 | P4: 0
C5: I. Przychody netto ze sprzedaży produktów | G5: 0 | H5: 3608846.213 | I5: 5844893.167 | J5: 5538193.823 | K5: 6048903.543 | L5: 5358555.51 | M5: 5065963.563 | N5: 6108365.717 | O5: 5808950.61 | P5: 0
C6: II. Przychody netto ze sprzedaży towarów i materiałów | G6: 0 | H6: 139626.18 | I6: 181087.35 | J6: 189244.4833 | K6: 71543.39667 | L6: 41671.84667 | M6: 216384.9667 | N6: 201362.8567 | O6: 67614.58667 | P6: 0
A7: - | B7: B. Koszty sprzedanych produktów, towarów i materiałów, w tym | G7: 0 | H7: 3409478.73 | I7: 5567369.49 | J7: 5244637.55 | K7: 5322528.233 | L7: 4926658.16 | M7: 4844919.98 | N7: 5842851.55 | O7: 5156964.127 | P7: 0
C8: - od jednostek powiązanych | G8: 0 | H8: 0 | I8: 0 | J8: 0 | K8: 0 | L8: 0 | M8: 0 | N8: 0 | O8: 0 | P8: 0
C9: I. Koszt wytworzenia sprzedanych produktów | G9: 0 | H9: 3270917.67 | I9: 5380682.263 | J9: 5053922.123 | K9: 5251157.42 | L9: 4884904.347 | M9: 4629294.177 | N9: 5644401.253 | O9: 5089497.013 | P9: 0
C10: II. Wartość sprzedanych towarów i materiałów | G10: 0 | H10: 138561.06 | I10: 186687.2267 | J10: 190715.4267 | K10: 71370.81333 | L10: 41753.81333 | M10: 215625.8033 | N10: 198450.2967 | O10: 67467.11333 | P10: 0
B11: C. Zysk (strata) brutto ze sprzedaży (A-B) | G11: 0 | H11: 338993.6633 | I11: 458611.0267 | J11: 482800.7567 | K11: 797918.7067 | L11: 473569.1967 | M11: 437428.55 | N11: 466877.0233 | O11: 719601.07 | P11: 0
B12: D. Koszty sprzedaży | G12: 0 | H12: 0 | I12: 0 | J12: 0 | K12: 0 | L12: 0 | M12: 0 | N12: 0 | O12: 0 | P12: 0
B13: E. Koszty ogólnego zarządu | G13: 0 | H13: 75211.47667 | I13: 126526.4067 | J13: 120228.14 | K13: 128072.61 | L13: 139657.5433 | M13: 119944.0967 | N13: 129192.4067 | O13: 121284.9833 | P13: 0
B14: F. Zysk (strata) brutto ze sprzedaży (C-D-E) | G14: 0 | H14: 263782.1867 | I14: 332084.62 | J14: 362572.6167 | K14: 669846.0967 | L14: 333911.6533 | M14: 317484.4533 | N14: 337684.6167 | O14: 598316.0867 | P14: 0
A15: - | B15: G. Pozostałe przychody operacyjne | G15: 0 | H15: 29050.13667 | I15: 50674.57 | J15: 50475.49333 | K15: 50156.59333 | L15: 48975.66667 | M15: 48927.7 | N15: 52069.11 | O15: 49302.85 | P15: 0
C16: I. Zysk ze zbycia niefinansowych aktywów trwałych | G16: 0 | H16: 0 | I16: 0 | J16: 0 | K16: 0 | L16: 0 | M16: 0 | N16: 0 | O16: 0 | P16: 0
C17: II. Dotacje | G17: 0 | H17: 0 | I17: 0 | J17: 0 | K17: 0 | L17: 0 | M17: 0 | N17: 0 | O17: 0 | P17: 0
C18: III. Aktualizacja wartości aktywów niefinansowych | G18: 0 | H18: 0 | I18: 0 | J18: 0 | K18: 0 | L18: 0 | M18: 0 | N18: 0 | O18: 0 | P18: 0
C19: IV. Inne przychody operacyjne | G19: 0 | H19: 29050.13667 | I19: 50674.57 | J19: 50475.49333 | K19: 50156.59333 | L19: 48975.66667 | M19: 48927.7 | N19: 52069.11 | O19: 49302.85 | P19: 0
A20: - | B20: H. Pozostałe koszty operacyjne | G20: 0 | H20: 795.6433333 | I20: 52539.07 | J20: 15.24666667 | K20: -114.71 | L20: 756.2433333 | M20: 2759.84 | N20: 1542.65 | O20: 3319.66 | P20: 0
C21: I. Strata ze zbycia niefinansowych aktywów trwałych | G21: 0 | H21: 0 | I21: 0 | J21: 0 | K21: 0 | L21: 0 | M21: 0 | N21: 0 | O21: 0 | P21: 0
C22: II. Aktualizacja wartości aktywów niefinansowych | G22: 0 | H22: 0 | I22: 0 | J22: 0 | K22: 0 | L22: 0 | M22: 0 | N22: 0 | O22: 0 | P22: 0
C23: III. Inne koszty operacyjne | G23: 0 | H23: 795.6433333 | I23: 52539.07 | J23: 15.24666667 | K23: -114.71 | L23: 756.2433333 | M23: 2759.84 | N23: 1542.65 | O23: 3319.66 | P23: 0
B24: I. Zysk (strata) z działalności operacyjnej (F+G-H) | G24: 0 | H24: 292036.68 | I24: 330220.12 | J24: 413032.8633 | K24: 720117.4 | L24: 382131.0767 | M24: 363652.3133 | N24: 388211.0767 | O24: 644299.2767 | P24: 0
A25: - | B25: J. Przychody finansowe | G25: 0 | H25: 12106.82 | I25: 21945.17 | J25: 22343.00333 | K25: 25464.39667 | L25: 26362.35667 | M25: 14885.39333 | N25: 45082.62 | O25: 30779.23667 | P25: 0
B26: - | C26: I. Dywidendy i udziały w zyskach, w tym: | G26: 0 | H26: 0 | I26: 0 | J26: 0 | K26: 0 | L26: 0 | M26: 0 | N26: 0 | O26: 0 | P26: 0
C27: - | D27: a) od jednostek powiązanych, w tym: | G27: 0 | H27: 0 | I27: 0 | J27: 0 | K27: 0 | L27: 0 | M27: 0 | N27: 0 | O27: 0 | P27: 0
E28: - w których jednostka posiada zaangaż. w kapitale | G28: 0 | H28: 0 | I28: 0 | J28: 0 | K28: 0 | L28: 0 | M28: 0 | N28: 0 | O28: 0 | P28: 0
C29: - | D29: b) od jednostek pozostałych | G29: 0 | H29: 0 | I29: 0 | J29: 0 | K29: 0 | L29: 0 | M29: 0 | N29: 0 | O29: 0 | P29: 0
E30: - w których jednostka posiada zaangaż. w kapitale | G30: 0 | H30: 0 | I30: 0 | J30: 0 | K30: 0 | L30: 0 | M30: 0 | N30: 0 | O30: 0 | P30: 0
B31: - | C31: II. Odsetki, w tym: | G31: 0 | H31: 259.5 | I31: 448.56 | J31: 490.2133333 | K31: 516.0266667 | L31: 671.4766667 | M31: 538.5 | N31: 772.09 | O31: 879.1466667 | P31: 0
D32: - od jednostek powiązanych | G32: 0 | H32: 0 | I32: 0 | J32: 0 | K32: 0 | L32: 0 | M32: 0 | N32: 0 | O32: 0 | P32: 0
B33: - | C33: III. Zysk ze zbycia inwestycji, w tym | G33: 0 | H33: 0 | I33: 0 | J33: 0 | K33: 0 | L33: 0 | M33: 0 | N33: 0 | O33: 0 | P33: 0
D34: - w jednostkach powiązanych | G34: 0 | H34: 0 | I34: 0 | J34: 0 | K34: 0 | L34: 0 | M34: 0 | N34: 0 | O34: 0 | P34: 0
C35: IV. Aktualizacja wartości aktywow finansowych | G35: 0 | H35: 0 | I35: 0 | J35: 0 | K35: 0 | L35: 0 | M35: 0 | N35: 0 | O35: 0 | P35: 0
C36: V. Inne | G36: 0 | H36: 11847.32 | I36: 21496.61 | J36: 21852.79 | K36: 24948.37 | L36: 25690.88 | M36: 14346.89333 | N36: 44310.53 | O36: 29900.09 | P36: 0
A37: - | B37: K. Koszty finansowe | G37: 0 | H37: 24969.25333 | I37: 37816.67 | J37: 27938.37 | K37: 19855.75667 | L37: 25166.02667 | M37: 15054.14333 | N37: 25067.46 | O37: 26011.81667 | P37: 0
B38: - | C38: I. Odsetki, w tym: | G38: 0 | H38: 756.4566667 | I38: 2475.253333 | J38: 1434.056667 | K38: 2886.6 | L38: 3564.933333 | M38: 3190.886667 | N38: 4807.753333 | O38: 4438.683333 | P38: 0
D39: - od jednostek powiązanych | G39: 0 | H39: 0 | I39: 0 | J39: 0 | K39: 0 | L39: 0 | M39: 0 | N39: 0 | O39: 0 | P39: 0
C40: II. Strata ze zbycia inwestycji | G40: 0 | H40: 0 | I40: 0 | J40: 0 | K40: 0 | L40: 0 | M40: 0 | N40: 0 | O40: 0 | P40: 0
C41: III. Aktualizacja wartości inwestycji | G41: 0 | H41: 0 | I41: 0 | J41: 0 | K41: 0 | L41: 0 | M41: 0 | N41: 0 | O41: 0 | P41: 0
C42: IV. Inne | G42: 0 | H42: 24212.79667 | I42: 35341.41667 | J42: 26504.31333 | K42: 16969.15667 | L42: 21601.09333 | M42: 11863.25667 | N42: 20259.70667 | O42: 21573.13333 | P42: 0
B43: L. Zysk (strata) brutto (I+J-K) | G43: 0 | H43: 279174.2467 | I43: 314348.62 | J43: 407437.4967 | K43: 725726.04 | L43: 383327.4067 | M43: 363483.5633 | N43: 408226.2367 | O43: 649066.6967 | P43: 0
B44: M. Podatek dochodowy | G44: 0 | H44: 0 | I44: 0 | J44: 0 | K44: 0 | L44: 0 | M44: 0 | N44: 0 | O44: 0 | P44: 0
B45: N. Pozostałe obowiązkowe zmniejszenia zysku (zwiększenia str | G45: 0 | H45: 0 | I45: 0 | J45: 0 | K45: 0 | L45: 0 | M45: 0 | N45: 0 | O45: 0 | P45: 0
B46: O. Zysk (strata) netto (L-M-N) | G46: 0 | H46: 279174.2467 | I46: 314348.62 | J46: 407437.4967 | K46: 725726.04 | L46: 383327.4067 | M46: 363483.5633 | N46: 408226.2367 | O46: 649066.6967 | P46: 0
G47: 0 | H47: 0 | I47: 0 | J47: 0 | K47: 0 | L47: 0 | M47: 0 | N47: 0 | O47: 0 | P47: 0
G48: 0 | H48: 0 | I48: 0 | J48: 0 | K48: 0 | L48: 0 | M48: 0 | N48: 0 | O48: 0 | P48: 0
E52: Wskaźnik | H52: 4 | I52: 5 | J52: 6 | K52: 7 | L52: 8 | M52: 9 | N52: 10 | O52: 11 | P52: 12
E53: Wskaźnik zyskowności sprzedaży | H53: =H11/H3 -> 0.09043515005 | I53: 0.07610562719 | J53: 0.08429610776 | K53: 0.1303693528 | L53: 0.08769430718 | M53: 0.08280948285 | N53: 0.07399320239 | O53: 0.1224526651
E54: Wskaźnik zyskowności EBIT | H54: =H24/H3 -> 0.07790818482 | I54: 0.05479940054 | J54: 0.07211476427 | K54: 0.1176576494 | L54: 0.0707620349 | M54: 0.06884292304 | N54: 0.06152579658 | O54: 0.1096387524
E55: Wskaźnik zyskowności brutto | H55: =H43/H3 -> 0.07447680478 | I55: 0.05216555532 | J55: 0.07113782373 | K55: 0.1185740269 | L55: 0.07098356816 | M55: 0.06881097702 | N55: 0.06469790767 | O55: 0.110450012

Sheet ZAKŁADKI WYNIKOWE
B5: ZAKŁADKI WYNIKOWE
B7: >> 1 | C7: Pulpit Prezesa
B8: >> 2 | C8: Analiza sprzedaży i rentowności
B9: >> 3 | C9: Analiza grup asortymentowych (1)
B10: >> 4 | C10: Analiza grup asortymentowych (2)
B11: >> 5 | C11: Analiza kluczowych klientów
B12: >> 6 | C12: Przepływy pieniężne
B13: >> 7 | C13: Analiza kapitału obrotowego
B16: Zakładki wynikowe prezentują dane otrzymane z przeliczeń danych wsadowych w formie wykresów i tabel. Wśród zakładek wynikowych można wyróżnić zakłdkę z pulpitem głównym (Pulpit Prezesa), który obejmuje główne obszary analizy. Kolejne zakładki stanowią natomiast rozszerzenie analiz w poszczególnych obszarach

Sheet Pulpit Prezesa
B2: *tys. PLN (chyba, że wskazano inaczej)
B3: ANALIZA SPRZEDAŻY I RENTOWNOŚCI
E4: Zmiana do analogicznego okresu 2016 r.
E7: 0.781736129
E8: Dynamika 2016/2015
E9: 0.138666603
E11: Zmiana do analogicznego okresu 2016 r.
E14: 0.6810921462
E15: Dynamika 2016/2015
E16: 0.346813041
B19: ANALIZA PRZEPŁYWÓW PIENIĘŻNYCH | L19: KAPITAŁ OBROTOWY NETTO | R19: ANALIZA EFEKTYWNOŚCI
M20: Miesiąc bieżący | O20: Analiza rotacji według magazynów | R20: Sprzedaż/pracownika sprzedaży (PLN)
L21: NALEŻNOŚCI | M21: 45 | N21: dni | R21: 2017-11-30 | S21: 2017-10-31 | T21: Średnia 6M
R22: 798649.9264 | S22: -0.4202306239 | T22: -0.3962183753
L23: ZOBOWIĄZANIA | M23: 14.02596493 | N23: dni | R23: Sprzedaż/pracowników ogółem (PLN)
R24: 2017-11-30 | S24: 2017-10-31 | T24: Średnia 6M
L25: ZAPASY | M25: 7 | N25: dni | R25: 71880.80448 | S25: -0.06145251397 | T25: -0.07570851404
R26: Sprzedaż/pracowników produkcji (PLN)
L27: OKG | M27: 37.97403507 | N27: dni | R27: 2017-11-30 | S27: 2017-10-31 | T27: Średnia 6M
R28: 140242.3025 | S28: -0.05434782609 | T28: -0.07826081233

Sheet Analiza sprzedaży i rentowności
B2: *tys. PLN (chyba, że wskazano inaczej)
B3: ANALIZA PRZYCHODÓW I RENTOWNOŚCI
F5: Zmiana do analogicznego okresu 2016 r.
F7: 0.781736129
F8: Dynamika 2016/2015
F10: 0.138666603
F17: Zmiana do analogicznego okresu 2016 r.
F19: 0.346813041
F20: Dynamika 2016/2015
F22: 0.6810921462

Sheet Analiza grup asortymentowych(1)
B2: *tys. PLN (chyba, że wskazano inaczej)
B3: ANALIZA PRZYCHODÓW I RENTOWNOŚCI GNIAZD PRODUKCYJNYCH

Sheet Analiza grup asortymentowych(2)
B2: *tys. PLN (chyba, że wskazano inaczej)
B3: ANALIZA MARŻY PO TECHNICZNYM KOSZCIE WYTWORZENIA
B4: Grupa asortymentowa 1
B10: Grupa asortymentowa 2
B16: Grupa asortymentowa 3
B22: Grupa asortymentowa 4
B28: Grupa asortymentowa 5

Sheet Analiza kluczowych klientów
B2: *tys. PLN (chyba, że wskazano inaczej)
B3: ANALIZA KLUCZOWYCH KLIENTÓW
I4: Przychody ze sprzedaży
B5: WYBIERZ KLIENTA (dwukrotne kliknięcie żółtego pola)
B7: klient 522
B9: WYBIERZ KLIENTA (dwukrotne kliknięcie żółtego pola)
B11: Klient 384
B13: WYBIERZ KLIENTA (dwukrotne kliknięcie żółtego pola)
B15: Klient 122
B19: Klient 162
B23: Klient 345
B27: Klient 163
AM31: KENT CZ s.r.o. | AQ31: Printed Polythene Ltd
AD32: ='Baza klientów'!B1 -> Klient 522 | AE32: =ISNUMBER(SEARCH($AH$32,AD32)) -> FALSE | AF32: =IF(AE32=TRUE,COUNTIF($AE$32:AE32,TRUE()),"") ->  | AG32: =IFERROR(INDEX($AD:$AD,MATCH(ROWS($AD$32:AD32),$AF:$AF,0)),"") ->  | AH32: FOLPLAST Spółka z o.o. | AI32: =OFFSET('Analiza kluczowych klientów'!$AG$32,0,0,MAX($AF:$AF),1) ->  | AJ32: =ISNUMBER(SEARCH($AM$31,AD32)) -> FALSE | AK32: =IF(AJ32=TRUE,COUNTIF($AJ$32:AJ32,TRUE()),"") ->  | AL32: =IFERROR(INDEX($AD:$AD,MATCH(ROWS($AD$32:AD32),$AK:$AK,0)),"") ->  | AM32: =OFFSET('Analiza kluczowych klientów'!$AL$32,0,0,MAX($AK:$AK),1) ->  | AN32: =ISNUMBER(SEARCH($AQ$31,$AD32)) -> FALSE | AO32: =IF(AN32=TRUE,COUNTIF($AN$32:AN32,TRUE()),"") ->  | AP32: =IFERROR(INDEX($AD:$AD,MATCH(ROWS($AD$32:$AD32),$AO:$AO,0)),"") ->  | AQ32: =OFFSET('Analiza kluczowych klientów'!$AP$32,0,0,MAX($AO:$AO),1) -> 
AD33: ='Baza klientów'!B2 -> Klient 162 | AE33: =ISNUMBER(SEARCH($AH$32,AD33)) -> FALSE | AF33: =IF(AE33=TRUE,COUNTIF($AE$32:AE33,TRUE()),"") ->  | AG33: =IFERROR(INDEX($AD:$AD,MATCH(ROWS($AD$32:AD33),$AF:$AF,0)),"") ->  | AJ33: =ISNUMBER(SEARCH($AM$31,AD33)) -> FALSE | AK33: =IF(AJ33=TRUE,COUNTIF($AJ$32:AJ33,TRUE()),"") ->  | AL33: =IFERROR(INDEX($AD:$AD,MATCH(ROWS($AD$32:AD33),$AK:$AK,0)),"") ->  | AN33: =ISNUMBER(SEARCH($AQ$31,$AD33)) -> FALSE | AO33: =IF(AN33=TRUE,COUNTIF($AN$32:AN33,TRUE()),"") ->  | AP33: =IFERROR(INDEX($AD:$AD,MATCH(ROWS($AD$32:$AD33),$AO:$AO,0)),"") -> 
AD34: ='Baza klientów'!B3 -> Klient 259 | AE34: FALSE | AF34: =IF(AE34=TRUE,COUNTIF($AE$32:AE34,TRUE()),"") ->  | AG34: =IFERROR(INDEX($AD:$AD,MATCH(ROWS($AD$32:AD34),$AF:$AF,0)),"") ->  | AJ34: FALSE | AK34: =IF(AJ34=TRUE,COUNTIF($AJ$32:AJ34,TRUE()),"") ->  | AL34: =IFERROR(INDEX($AD:$AD,MATCH(ROWS($AD$32:AD34),$AK:$AK,0)),"") ->  | AN34: FALSE | AO34: =IF(AN34=TRUE,COUNTIF($AN$32:AN34,TRUE()),"") ->  | AP34: =IFERROR(INDEX($AD:$AD,MATCH(ROWS($AD$32:$AD34),$AO:$AO,0)),"") -> 
AD35: ='Baza klientów'!B4 -> Klient 83 | AE35: FALSE | AF35: =IF(AE35=TRUE,COUNTIF($AE$32:AE35,TRUE()),"") ->  | AG35: =IFERROR(INDEX($AD:$AD,MATCH(ROWS($AD$32:AD35),$AF:$AF,0)),"") ->  | AJ35: FALSE | AK35: =IF(AJ35=TRUE,COUNTIF($AJ$32:AJ35,TRUE()),"") ->  | AL35: =IFERROR(INDEX($AD:$AD,MATCH(ROWS($AD$32:AD35),$AK:$AK,0)),"") ->  | AN35: FALSE | AO35: =IF(AN35=TRUE,COUNTIF($AN$32:AN35,TRUE()),"") ->  | AP35: =IFERROR(INDEX($AD:$AD,MATCH(ROWS($AD$32:$AD35),$AO:$AO,0)),"") -> 
AD36: ='Baza klientów'!B5 -> Klient 374 | AE36: FALSE | AF36: =IF(AE36=TRUE,COUNTIF($AE$32:AE36,TRUE()),"") ->  | AG36: =IFERROR(INDEX($AD:$AD,MATCH(ROWS($AD$32:AD36),$AF:$AF,0)),"") ->  | AJ36: FALSE | AK36: =IF(AJ36=TRUE,COUNTIF($AJ$32:AJ36,TRUE()),"") ->  | AL36: =IFERROR(INDEX($AD:$AD,MATCH(ROWS($AD$32:AD36),$AK:$AK,0)),"") ->  | AN36: FALSE | AO36: =IF(AN36=TRUE,COUNTIF($AN$32:AN36,TRUE()),"") ->  | AP36: =IFERROR(INDEX($AD:$AD,MATCH(ROWS($AD$32:$AD36),$AO:$AO,0)),"") -> 
AD37: ='Baza klientów'!B6 -> Klient 486 | AE37: FALSE | AF37: =IF(AE37=TRUE,COUNTIF($AE$32:AE37,TRUE()),"") ->  | AG37: =IFERROR(INDEX($AD:$AD,MATCH(ROWS($AD$32:AD37),$AF:$AF,0)),"") ->  | AJ37: FALSE | AK37: =IF(AJ37=TRUE,COUNTIF($AJ$32:AJ37,TRUE()),"") ->  | AL37: =IFERROR(INDEX($AD:$AD,MATCH(ROWS($AD$32:AD37),$AK:$AK,0)),"") ->  | AN37: FALSE | AO37: =IF(AN37=TRUE,COUNTIF($AN$32:AN37,TRUE()),"") ->  | AP37: =IFERROR(INDEX($AD:$AD,MATCH(ROWS($AD$32:$AD37),$AO:$AO,0)),"") -> 
AD38: ='Baza klientów'!B7 -> Klient 384 | AE38: FALSE | AF38: =IF(AE38=TRUE,COUNTIF($AE$32:AE38,TRUE()),"") ->  | AG38: =IFERROR(INDEX($AD:$AD,MATCH(ROWS($AD$32:AD38),$AF:$AF,0)),"") ->  | AJ38: FALSE | AK38: =IF(AJ38=TRUE,COUNTIF($AJ$32:AJ38,TRUE()),"") ->  | AL38: =IFERROR(INDEX($AD:$AD,MATCH(ROWS($AD$32:AD38),$AK:$AK,0)),"") ->  | AN38: FALSE | AO38: =IF(AN38=TRUE,COUNTIF($AN$32:AN38,TRUE()),"") ->  | AP38: =IFERROR(INDEX($AD:$AD,MATCH(ROWS($AD$32:$AD38),$AO:$AO,0)),"") -> 
AD39: ='Baza klientów'!B8 -> Klient 397 | AE39: FALSE | AF39: =IF(AE39=TRUE,COUNTIF($AE$32:AE39,TRUE()),"") ->  | AG39: =IFERROR(INDEX($AD:$AD,MATCH(ROWS($AD$32:AD39),$AF:$AF,0)),"") ->  | AJ39: FALSE | AK39: =IF(AJ39=TRUE,COUNTIF($AJ$32:AJ39,TRUE()),"") ->  | AL39: =IFERROR(INDEX($AD:$AD,MATCH(ROWS($AD$32:AD39),$AK:$AK,0)),"") ->  | AN39: FALSE | AO39: =IF(AN39=TRUE,COUNTIF($AN$32:AN39,TRUE()),"") ->  | AP39: =IFERROR(INDEX($AD:$AD,MATCH(ROWS($AD$32:$AD39),$AO:$AO,0)),"") -> 
AD40: ='Baza klientów'!B9 -> Klient 449 | AE40: FALSE | AF40: =IF(AE40=TRUE,COUNTIF($AE$32:AE40,TRUE()),"") ->  | AG40: =IFERROR(INDEX($AD:$AD,MATCH(ROWS($AD$32:AD40),$AF:$AF,0)),"") ->  | AJ40: FALSE | AK40: =IF(AJ40=TRUE,COUNTIF($AJ$32:AJ40,TRUE()),"") ->  | AL40: =IFERROR(INDEX($AD:$AD,MATCH(ROWS($AD$32:AD40),$AK:$AK,0)),"") ->  | AN40: FALSE | AO40: =IF(AN40=TRUE,COUNTIF($AN$32:AN40,TRUE()),"") ->  | AP40: =IFERROR(INDEX($AD:$AD,MATCH(ROWS($AD$32:$AD40),$AO:$AO,0)),"") -> 
AD41: ='Baza klientów'!B10 -> Klient 547 | AE41: FALSE | AF41: =IF(AE41=TRUE,COUNTIF($AE$32:AE41,TRUE()),"") ->  | AG41: =IFERROR(INDEX($AD:$AD,MATCH(ROWS($AD$32:AD41),$AF:$AF,0)),"") ->  | AJ41: FALSE | AK41: =IF(AJ41=TRUE,COUNTIF($AJ$32:AJ41,TRUE()),"") ->  | AL41: =IFERROR(INDEX($AD:$AD,MATCH(ROWS($AD$32:AD41),$AK:$AK,0)),"") ->  | AN41: FALSE | AO41: =IF(AN41=TRUE,COUNTIF($AN$32:AN41,TRUE()),"") ->  | AP41: =IFERROR(INDEX($AD:$AD,MATCH(ROWS($AD$32:$AD41),$AO:$AO,0)),"") -> 
AD42: ='Baza klientów'!B11 -> Klient 327 | AE42: FALSE | AF42: =IF(AE42=TRUE,COUNTIF($AE$32:AE42,TRUE()),"") ->  | AG42: =IFERROR(INDEX($AD:$AD,MATCH(ROWS($AD$32:AD42),$AF:$AF,0)),"") ->  | AJ42: FALSE | AK42: =IF(AJ42=TRUE,COUNTIF($AJ$32:AJ42,TRUE()),"") ->  | AL42: =IFERROR(INDEX($AD:$AD,MATCH(ROWS($AD$32:AD42),$AK:$AK,0)),"") ->  | AN42: FALSE | AO42: =IF(AN42=TRUE,COUNTIF($AN$32:AN42,TRUE()),"") ->  | AP42: =IFERROR(INDEX($AD:$AD,MATCH(ROWS($AD$32:$AD42),$AO:$AO,0)),"") -> 
AD43: ='Baza klientów'!B12 -> Klient 346 | AE43: FALSE | AF43: =IF(AE43=TRUE,COUNTIF($AE$32:AE43,TRUE()),"") ->  | AG43: =IFERROR(INDEX($AD:$AD,MATCH(ROWS($AD$32:AD43),$AF:$AF,0)),"") ->  | AJ43: FALSE | AK43: =IF(AJ43=TRUE,COUNTIF($AJ$32:AJ43,TRUE()),"") ->  | AL43: =IFERROR(INDEX($AD:$AD,MATCH(ROWS($AD$32:AD43),$AK:$AK,0)),"") ->  | AN43: FALSE | AO43: =IF(AN43=TRUE,COUNTIF($AN$32:AN43,TRUE()),"") ->  | AP43: =IFERROR(INDEX($AD:$AD,MATCH(ROWS($AD$32:$AD43),$AO:$AO,0)),"") -> 
AD44: ='Baza klientów'!B13 -> Klient 122 | AE44: FALSE | AF44: =IF(AE44=TRUE,COUNTIF($AE$32:AE44,TRUE()),"") ->  | AG44: =IFERROR(INDEX($AD:$AD,MATCH(ROWS($AD$32:AD44),$AF:$AF,0)),"") ->  | AJ44: FALSE | AK44: =IF(AJ44=TRUE,COUNTIF($AJ$32:AJ44,TRUE()),"") ->  | AL44: =IFERROR(INDEX($AD:$AD,MATCH(ROWS($AD$32:AD44),$AK:$AK,0)),"") ->  | AN44: FALSE | AO44: =IF(AN44=TRUE,COUNTIF($AN$32:AN44,TRUE()),"") ->  | AP44: =IFERROR(INDEX($AD:$AD,MATCH(ROWS($AD$32:$AD44),$AO:$AO,0)),"") -> 
AD45: ='Baza klientów'!B14 -> Klient 488 | AE45: FALSE | AF45: =IF(AE45=TRUE,COUNTIF($AE$32:AE45,TRUE()),"") ->  | AG45: =IFERROR(INDEX($AD:$AD,MATCH(ROWS($AD$32:AD45),$AF:$AF,0)),"") ->  | AJ45: FALSE | AK45: =IF(AJ45=TRUE,COUNTIF($AJ$32:AJ45,TRUE()),"") ->  | AL45: =IFERROR(INDEX($AD:$AD,MATCH(ROWS($AD$32:AD45),$AK:$AK,0)),"") ->  | AN45: FALSE | AO45: =IF(AN45=TRUE,COUNTIF($AN$32:AN45,TRUE()),"") ->  | AP45: =IFERROR(INDEX($AD:$AD,MATCH(ROWS($AD$32:$AD45),$AO:$AO,0)),"") -> 
AD46: ='Baza klientów'!B15 -> Klient 442 | AE46: FALSE | AF46: =IF(AE46=TRUE,COUNTIF($AE$32:AE46,TRUE()),"") ->  | AG46: =IFERROR(INDEX($AD:$AD,MATCH(ROWS($AD$32:AD46),$AF:$AF,0)),"") ->  | AJ46: FALSE | AK46: =IF(AJ46=TRUE,COUNTIF($AJ$32:AJ46,TRUE()),"") ->  | AL46: =IFERROR(INDEX($AD:$AD,MATCH(ROWS($AD$32:AD46),$AK:$AK,0)),"") ->  | AN46: FALSE | AO46: =IF(AN46=TRUE,COUNTIF($AN$32:AN46,TRUE()),"") ->  | AP46: =IFERROR(INDEX($AD:$AD,MATCH(ROWS($AD$32:$AD46),$AO:$AO,0)),"") -> 
AD47: ='Baza klientów'!B16 -> Klient 138 | AE47: FALSE | AF47: =IF(AE47=TRUE,COUNTIF($AE$32:AE47,TRUE()),"") ->  | AG47: =IFERROR(INDEX($AD:$AD,MATCH(ROWS($AD$32:AD47),$AF:$AF,0)),"") ->  | AJ47: FALSE | AK47: =IF(AJ47=TRUE,COUNTIF($AJ$32:AJ47,TRUE()),"") ->  | AL47: =IFERROR(INDEX($AD:$AD,MATCH(ROWS($AD$32:AD47),$AK:$AK,0)),"") ->  | AN47: FALSE | AO47: =IF(AN47=TRUE,COUNTIF($AN$32:AN47,TRUE()),"") ->  | AP47: =IFERROR(INDEX($AD:$AD,MATCH(ROWS($AD$32:$AD47),$AO:$AO,0)),"") -> 
AD48: ='Baza klientów'!B17 -> Klient 369 | AE48: FALSE | AF48: =IF(AE48=TRUE,COUNTIF($AE$32:AE48,TRUE()),"") ->  | AG48: =IFERROR(INDEX($AD:$AD,MATCH(ROWS($AD$32:AD48),$AF:$AF,0)),"") ->  | AJ48: FALSE | AK48: =IF(AJ48=TRUE,COUNTIF($AJ$32:AJ48,TRUE()),"") ->  | AL48: =IFERROR(INDEX($AD:$AD,MATCH(ROWS($AD$32:AD48),$AK:$AK,0)),"") ->  | AN48: FALSE | AO48: =IF(AN48=TRUE,COUNTIF($AN$32:AN48,TRUE()),"") ->  | AP48: =IFERROR(INDEX($AD:$AD,MATCH(ROWS($AD$32:$AD48),$AO:$AO,0)),"") -> 
AD49: ='Baza klientów'!B18 -> Klient 281 | AE49: FALSE | AF49: =IF(AE49=TRUE,COUNTIF($AE$32:AE49,TRUE()),"") ->  | AG49: =IFERROR(INDEX($AD:$AD,MATCH(ROWS($AD$32:AD49),$AF:$AF,0)),"") ->  | AJ49: FALSE | AK49: =IF(AJ49=TRUE,COUNTIF($AJ$32:AJ49,TRUE()),"") ->  | AL49: =IFERROR(INDEX($AD:$AD,MATCH(ROWS($AD$32:AD49),$AK:$AK,0)),"") ->  | AN49: FALSE | AO49: =IF(AN49=TRUE,COUNTIF($AN$32:AN49,TRUE()),"") ->  | AP49: =IFERROR(INDEX($AD:$AD,MATCH(ROWS($AD$32:$AD49),$AO:$AO,0)),"") -> 
AD50: ='Baza klientów'!B19 -> Klient 448 | AE50: FALSE | AF50: =IF(AE50=TRUE,COUNTIF($AE$32:AE50,TRUE()),"") ->  | AG50: =IFERROR(INDEX($AD:$AD,MATCH(ROWS($AD$32:AD50),$AF:$AF,0)),"") ->  | AJ50: FALSE | AK50: =IF(AJ50=TRUE,COUNTIF($AJ$32:AJ50,TRUE()),"") ->  | AL50: =IFERROR(INDEX($AD:$AD,MATCH(ROWS($AD$32:AD50),$AK:$AK,0)),"") ->  | AN50: FALSE | AO50: =IF(AN50=TRUE,COUNTIF($AN$32:AN50,TRUE()),"") ->  | AP50: =IFERROR(INDEX($AD:$AD,MATCH(ROWS($AD$32:$AD50),$AO:$AO,0)),"") -> 
AD51: ='Baza klientów'!B20 -> Klient 381 | AE51: FALSE | AF51: =IF(AE51=TRUE,COUNTIF($AE$32:AE51,TRUE()),"") ->  | AG51: =IFERROR(INDEX($AD:$AD,MATCH(ROWS($AD$32:AD51),$AF:$AF,0)),"") ->  | AJ51: FALSE | AK51: =IF(AJ51=TRUE,COUNTIF($AJ$32:AJ51,TRUE()),"") ->  | AL51: =IFERROR(INDEX($AD:$AD,MATCH(ROWS($AD$32:AD51),$AK:$AK,0)),"") ->  | AN51: FALSE | AO51: =IF(AN51=TRUE,COUNTIF($AN$32:AN51,TRUE()),"") ->  | AP51: =IFERROR(INDEX($AD:$AD,MATCH(ROWS($AD$32:$AD51),$AO:$AO,0)),"") -> 
AD52: ='Baza klientów'!B21 -> Klient 169 | AE52: FALSE | AF52: =IF(AE52=TRUE,COUNTIF($AE$32:AE52,TRUE()),"") ->  | AG52: =IFERROR(INDEX($AD:$AD,MATCH(ROWS($AD$32:AD52),$AF:$AF,0)),"") ->  | AJ52: FALSE | AK52: =IF(AJ52=TRUE,COUNTIF($AJ$32:AJ52,TRUE()),"") ->  | AL52: =IFERROR(INDEX($AD:$AD,MATCH(ROWS($AD$32:AD52),$AK:$AK,0)),"") ->  | AN52: FALSE | AO52: =IF(AN52=TRUE,COUNTIF($AN$32:AN52,TRUE()),"") ->  | AP52: =IFERROR(INDEX($AD:$AD,MATCH(ROWS($AD$32:$AD52),$AO:$AO,0)),"") -> 
AD53: ='Baza klientów'!B22 -> Klient 317 | AE53: FALSE | AF53: =IF(AE53=TRUE,COUNTIF($AE$32:AE53,TRUE()),"") ->  | AG53: =IFERROR(INDEX($AD:$AD,MATCH(ROWS($AD$32:AD53),$AF:$AF,0)),"") ->  | AJ53: FALSE | AK53: =IF(AJ53=TRUE,COUNTIF($AJ$32:AJ53,TRUE()),"") ->  | AL53: =IFERROR(INDEX($AD:$AD,MATCH(ROWS($AD$32:AD53),$AK:$AK,0)),"") ->  | AN53: FALSE | AO53: =IF(AN53=TRUE,COUNTIF($AN$32:AN53,TRUE()),"") ->  | AP53: =IFERROR(INDEX($AD:$AD,MATCH(ROWS($AD$32:$AD53),$AO:$AO,0)),"") -> 
AD54: ='Baza klientów'!B23 -> Klient 496 | AE54: FALSE | AF54: =IF(AE54=TRUE,COUNTIF($AE$32:AE54,TRUE()),"") ->  | AG54: =IFERROR(INDEX($AD:$AD,MATCH(ROWS($AD$32:AD54),$AF:$AF,0)),"") ->  | AJ54: FALSE | AK54: =IF(AJ54=TRUE,COUNTIF($AJ$32:AJ54,TRUE()),"") ->  | AL54: =IFERROR(INDEX($AD:$AD,MATCH(ROWS($AD$32:AD54),$AK:$AK,0)),"") ->  | AN54: FALSE | AO54: =IF(AN54=TRUE,COUNTIF($AN$32:AN54,TRUE()),"") ->  | AP54: =IFERROR(INDEX($AD:$AD,MATCH(ROWS($AD$32:$AD54),$AO:$AO,0)),"") -> 
AD55: ='Baza klientów'!B24 -> Klient 338 | AE55: FALSE | AF55: =IF(AE55=TRUE,COUNTIF($AE$32:AE55,TRUE()),"") ->  | AG55: =IFERROR(INDEX($AD:$AD,MATCH(ROWS($AD$32:AD55),$AF:$AF,0)),"") ->  | AJ55: FALSE | AK55: =IF(AJ55=TRUE,COUNTIF($AJ$32:AJ55,TRUE()),"") ->  | AL55: =IFERROR(INDEX($AD:$AD,MATCH(ROWS($AD$32:AD55),$AK:$AK,0)),"") ->  | AN55: FALSE | AO55: =IF(AN55=TRUE,COUNTIF($AN$32:AN55,TRUE()),"") ->  | AP55: =IFERROR(INDEX($AD:$AD,MATCH(ROWS($AD$32:$AD55),$AO:$AO,0)),"") -> 
AD56: ='Baza klientów'!B25 -> Klient 483 | AE56: FALSE | AF56: =IF(AE56=TRUE,COUNTIF($AE$32:AE56,TRUE()),"") ->  | AG56: =IFERROR(INDEX($AD:$AD,MATCH(ROWS($AD$32:AD56),$AF:$AF,0)),"") ->  | AJ56: FALSE | AK56: =IF(AJ56=TRUE,COUNTIF($AJ$32:AJ56,TRUE()),"") ->  | AL56: =IFERROR(INDEX($AD:$AD,MATCH(ROWS($AD$32:AD56),$AK:$AK,0)),"") ->  | AN56: FALSE | AO56: =IF(AN56=TRUE,COUNTIF($AN$32:AN56,TRUE()),"") ->  | AP56: =IFERROR(INDEX($AD:$AD,MATCH(ROWS($AD$32:$AD56),$AO:$AO,0)),"") -> 
AD57: ='Baza klientów'!B26 -> Klient 145 | AE57: FALSE | AF57: =IF(AE57=TRUE,COUNTIF($AE$32:AE57,TRUE()),"") ->  | AG57: =IFERROR(INDEX($AD:$AD,MATCH(ROWS($AD$32:AD57),$AF:$AF,0)),"") ->  | AJ57: FALSE | AK57: =IF(AJ57=TRUE,COUNTIF($AJ$32:AJ57,TRUE()),"") ->  | AL57: =IFERROR(INDEX($AD:$AD,MATCH(ROWS($AD$32:AD57),$AK:$AK,0)),"") ->  | AN57: FALSE | AO57: =IF(AN57=TRUE,COUNTIF($AN$32:AN57,TRUE()),"") ->  | AP57: =IFERROR(INDEX($AD:$AD,MATCH(ROWS($AD$32:$AD57),$AO:$AO,0)),"") -> 
AD58: ='Baza klientów'!B27 -> Klient 315 | AE58: FALSE | AF58: =IF(AE58=TRUE,COUNTIF($AE$32:AE58,TRUE()),"") ->  | AG58: =IFERROR(INDEX($AD:$AD,MATCH(ROWS($AD$32:AD58),$AF:$AF,0)),"") ->  | AJ58: FALSE | AK58: =IF(AJ58=TRUE,COUNTIF($AJ$32:AJ58,TRUE()),"") ->  | AL58: =IFERROR(INDEX($AD:$AD,MATCH(ROWS($AD$32:AD58),$AK:$AK,0)),"") ->  | AN58: FALSE | AO58: =IF(AN58=TRUE,COUNTIF($AN$32:AN58,TRUE()),"") ->  | AP58: =IFERROR(INDEX($AD:$AD,MATCH(ROWS($AD$32:$AD58),$AO:$AO,0)),"") -> 
AD59: ='Baza klientów'!B28 -> Klient 561 | AE59: FALSE | AF59: =IF(AE59=TRUE,COUNTIF($AE$32:AE59,TRUE()),"") ->  | AG59: =IFERROR(INDEX($AD:$AD,MATCH(ROWS($AD$32:AD59),$AF:$AF,0)),"") ->  | AJ59: FALSE | AK59: =IF(AJ59=TRUE,COUNTIF($AJ$32:AJ59,TRUE()),"") ->  | AL59: =IFERROR(INDEX($AD:$AD,MATCH(ROWS($AD$32:AD59),$AK:$AK,0)),"") ->  | AN59: FALSE | AO59: =IF(AN59=TRUE,COUNTIF($AN$32:AN59,TRUE()),"") ->  | AP59: =IFERROR(INDEX($AD:$AD,MATCH(ROWS($AD$32:$AD59),$AO:$AO,0)),"") -> 
AD60: ='Baza klientów'!B29 -> Klient 520 | AE60: FALSE | AF60: =IF(AE60=TRUE,COUNTIF($AE$32:AE60,TRUE()),"") ->  | AG60: =IFERROR(INDEX($AD:$AD,MATCH(ROWS($AD$32:AD60),$AF:$AF,0)),"") ->  | AJ60: FALSE | AK60: =IF(AJ60=TRUE,COUNTIF($AJ$32:AJ60,TRUE()),"") ->  | AL60: =IFERROR(INDEX($AD:$AD,MATCH(ROWS($AD$32:AD60),$AK:$AK,0)),"") ->  | AN60: FALSE | AO60: =IF(AN60=TRUE,COUNTIF($AN$32:AN60,TRUE()),"") ->  | AP60: =IFERROR(INDEX($AD:$AD,MATCH(ROWS($AD$32:$AD60),$AO:$AO,0)),"") -> 
AD61: ='Baza klientów'!B30 -> Klient 382 | AE61: FALSE | AF61: =IF(AE61=TRUE,COUNTIF($AE$32:AE61,TRUE()),"") ->  | AG61: =IFERROR(INDEX($AD:$AD,MATCH(ROWS($AD$32:AD61),$AF:$AF,0)),"") ->  | AJ61: FALSE | AK61: =IF(AJ61=TRUE,COUNTIF($AJ$32:AJ61,TRUE()),"") ->  | AL61: =IFERROR(INDEX($AD:$AD,MATCH(ROWS($AD$32:AD61),$AK:$AK,0)),"") ->  | AN61: FALSE | AO61: =IF(AN61=TRUE,COUNTIF($AN$32:AN61,TRUE()),"") ->  | AP61: =IFERROR(INDEX($AD:$AD,MATCH(ROWS($AD$32:$AD61),$AO:$AO,0)),"") -> 
AD62: ='Baza klientów'!B31 -> Klient 163 | AE62: FALSE | AF62: =IF(AE62=TRUE,COUNTIF($AE$32:AE62,TRUE()),"") ->  | AG62: =IFERROR(INDEX($AD:$AD,MATCH(ROWS($AD$32:AD62),$AF:$AF,0)),"") ->  | AJ62: FALSE | AK62: =IF(AJ62=TRUE,COUNTIF($AJ$32:AJ62,TRUE()),"") ->  | AL62: =IFERROR(INDEX($AD:$AD,MATCH(ROWS($AD$32:AD62),$AK:$AK,0)),"") ->  | AN62: FALSE | AO62: =IF(AN62=TRUE,COUNTIF($AN$32:AN62,TRUE()),"") ->  | AP62: =IFERROR(INDEX($AD:$AD,MATCH(ROWS($AD$32:$AD62),$AO:$AO,0)),"") -> 
AD63: ='Baza klientów'!B32 -> Klient 32 | AE63: FALSE | AF63: =IF(AE63=TRUE,COUNTIF($AE$32:AE63,TRUE()),"") ->  | AG63: =IFERROR(INDEX($AD:$AD,MATCH(ROWS($AD$32:AD63),$AF:$AF,0)),"") ->  | AJ63: FALSE | AK63: =IF(AJ63=TRUE,COUNTIF($AJ$32:AJ63,TRUE()),"") ->  | AL63: =IFERROR(INDEX($AD:$AD,MATCH(ROWS($AD$32:AD63),$AK:$AK,0)),"") ->  | AN63: FALSE | AO63: =IF(AN63=TRUE,COUNTIF($AN$32:AN63,TRUE()),"") ->  | AP63: =IFERROR(INDEX($AD:$AD,MATCH(ROWS($AD$32:$AD63),$AO:$AO,0)),"") -> 
AD64: ='Baza klientów'!B33 -> Klient 135 | AE64: FALSE | AF64: =IF(AE64=TRUE,COUNTIF($AE$32:AE64,TRUE()),"") ->  | AG64: =IFERROR(INDEX($AD:$AD,MATCH(ROWS($AD$32:AD64),$AF:$AF,0)),"") ->  | AJ64: FALSE | AK64: =IF(AJ64=TRUE,COUNTIF($AJ$32:AJ64,TRUE()),"") ->  | AL64: =IFERROR(INDEX($AD:$AD,MATCH(ROWS($AD$32:AD64),$AK:$AK,0)),"") ->  | AN64: FALSE | AO64: =IF(AN64=TRUE,COUNTIF($AN$32:AN64,TRUE()),"") ->  | AP64: =IFERROR(INDEX($AD:$AD,MATCH(ROWS($AD$32:$AD64),$AO:$AO,0)),"") -> 
AD65: ='Baza klientów'!B34 -> Klient 437 | AE65: FALSE | AF65: =IF(AE65=TRUE,COUNTIF($AE$32:AE65,TRUE()),"") ->  | AG65: =IFERROR(INDEX($AD:$AD,MATCH(ROWS($AD$32:AD65),$AF:$AF,0)),"") ->  | AJ65: FALSE | AK65: =IF(AJ65=TRUE,COUNTIF($AJ$32:AJ65,TRUE()),"") ->  | AL65: =IFERROR(INDEX($AD:$AD,MATCH(ROWS($AD$32:AD65),$AK:$AK,0)),"") ->  | AN65: FALSE | AO65: =IF(AN65=TRUE,COUNTIF($AN$32:AN65,TRUE()),"") ->  | AP65: =IFERROR(INDEX($AD:$AD,MATCH(ROWS($AD$32:$AD65),$AO:$AO,0)),"") -> 
AD66: ='Baza klientów'!B35 -> Klient 236 | AE66: FALSE | AF66: =IF(AE66=TRUE,COUNTIF($AE$32:AE66,TRUE()),"") ->  | AG66: =IFERROR(INDEX($AD:$AD,MATCH(ROWS($AD$32:AD66),$AF:$AF,0)),"") ->  | AJ66: FALSE | AK66: =IF(AJ66=TRUE,COUNTIF($AJ$32:AJ66,TRUE()),"") ->  | AL66: =IFERROR(INDEX($AD:$AD,MATCH(ROWS($AD$32:AD66),$AK:$AK,0)),"") ->  | AN66: FALSE | AO66: =IF(AN66=TRUE,COUNTIF($AN$32:AN66,TRUE()),"") ->  | AP66: =IFERROR(INDEX($AD:$AD,MATCH(ROWS($AD$32:$AD66),$AO:$AO,0)),"") -> 
AD67: ='Baza klientów'!B36 -> Klient 110 | AE67: FALSE | AF67: =IF(AE67=TRUE,COUNTIF($AE$32:AE67,TRUE()),"") ->  | AG67: =IFERROR(INDEX($AD:$AD,MATCH(ROWS($AD$32:AD67),$AF:$AF,0)),"") ->  | AJ67: FALSE | AK67: =IF(AJ67=TRUE,COUNTIF($AJ$32:AJ67,TRUE()),"") ->  | AL67: =IFERROR(INDEX($AD:$AD,MATCH(ROWS($AD$32:AD67),$AK:$AK,0)),"") ->  | AN67: FALSE | AO67: =IF(AN67=TRUE,COUNTIF($AN$32:AN67,TRUE()),"") ->  | AP67: =IFERROR(INDEX($AD:$AD,MATCH(ROWS($AD$32:$AD67),$AO:$AO,0)),"") -> 
AD68: ='Baza klientów'!B37 -> Klient 7 | AE68: FALSE | AF68: =IF(AE68=TRUE,COUNTIF($AE$32:AE68,TRUE()),"") ->  | AG68: =IFERROR(INDEX($AD:$AD,MATCH(ROWS($AD$32:AD68),$AF:$AF,0)),"") ->  | AJ68: FALSE | AK68: =IF(AJ68=TRUE,COUNTIF($AJ$32:AJ68,TRUE()),"") ->  | AL68: =IFERROR(INDEX($AD:$AD,MATCH(ROWS($AD$32:AD68),$AK:$AK,0)),"") ->  | AN68: FALSE | AO68: =IF(AN68=TRUE,COUNTIF($AN$32:AN68,TRUE()),"") ->  | AP68: =IFERROR(INDEX($AD:$AD,MATCH(ROWS($AD$32:$AD68),$AO:$AO,0)),"") -> 
AD69: ='Baza klientów'!B38 -> Klient 380 | AE69: FALSE | AF69: =IF(AE69=TRUE,COUNTIF($AE$32:AE69,TRUE()),"") ->  | AG69: =IFERROR(INDEX($AD:$AD,MATCH(ROWS($AD$32:AD69),$AF:$AF,0)),"") ->  | AJ69: FALSE | AK69: =IF(AJ69=TRUE,COUNTIF($AJ$32:AJ69,TRUE()),"") ->  | AL69: =IFERROR(INDEX($AD:$AD,MATCH(ROWS($AD$32:AD69),$AK:$AK,0)),"") ->  | AN69: FALSE | AO69: =IF(AN69=TRUE,COUNTIF($AN$32:AN69,TRUE()),"") ->  | AP69: =IFERROR(INDEX($AD:$AD,MATCH(ROWS($AD$32:$AD69),$AO:$AO,0)),"") -> 
AD70: ='Baza klientów'!B39 -> Klient 293 | AE70: FALSE | AF70: =IF(AE70=TRUE,COUNTIF($AE$32:AE70,TRUE()),"") ->  | AG70: =IFERROR(INDEX($AD:$AD,MATCH(ROWS($AD$32:AD70),$AF:$AF,0)),"") ->  | AJ70: FALSE | AK70: =IF(AJ70=TRUE,COUNTIF($AJ$32:AJ70,TRUE()),"") ->  | AL70: =IFERROR(INDEX($AD:$AD,MATCH(ROWS($AD$32:AD70),$AK:$AK,0)),"") ->  | AN70: FALSE | AO70: =IF(AN70=TRUE,COUNTIF($AN$32:AN70,TRUE()),"") ->  | AP70: =IFERROR(INDEX($AD:$AD,MATCH(ROWS($AD$32:$AD70),$AO:$AO,0)),"") -> 
AD71: ='Baza klientów'!B40 -> Klient 286 | AE71: FALSE | AF71: =IF(AE71=TRUE,COUNTIF($AE$32:AE71,TRUE()),"") ->  | AG71: =IFERROR(INDEX($AD:$AD,MATCH(ROWS($AD$32:AD71),$AF:$AF,0)),"") ->  | AJ71: FALSE | AK71: =IF(AJ71=TRUE,COUNTIF($AJ$32:AJ71,TRUE()),"") ->  | AL71: =IFERROR(INDEX($AD:$AD,MATCH(ROWS($AD$32:AD71),$AK:$AK,0)),"") ->  | AN71: FALSE | AO71: =IF(AN71=TRUE,COUNTIF($AN$32:AN71,TRUE()),"") ->  | AP71: =IFERROR(INDEX($AD:$AD,MATCH(ROWS($AD$32:$AD71),$AO:$AO,0)),"") -> 
AD72: ='Baza klientów'!B41 -> Klient 167 | AE72: FALSE | AF72: =IF(AE72=TRUE,COUNTIF($AE$32:AE72,TRUE()),"") ->  | AG72: =IFERROR(INDEX($AD:$AD,MATCH(ROWS($AD$32:AD72),$AF:$AF,0)),"") ->  | AJ72: FALSE | AK72: =IF(AJ72=TRUE,COUNTIF($AJ$32:AJ72,TRUE()),"") ->  | AL72: =IFERROR(INDEX($AD:$AD,MATCH(ROWS($AD$32:AD72),$AK:$AK,0)),"") ->  | AN72: FALSE | AO72: =IF(AN72=TRUE,COUNTIF($AN$32:AN72,TRUE()),"") ->  | AP72: =IFERROR(INDEX($AD:$AD,MATCH(ROWS($AD$32:$AD72),$AO:$AO,0)),"") -> 
AD73: ='Baza klientów'!B42 -> Klient 230 | AE73: FALSE | AF73: =IF(AE73=TRUE,COUNTIF($AE$32:AE73,TRUE()),"") ->  | AG73: =IFERROR(INDEX($AD:$AD,MATCH(ROWS($AD$32:AD73),$AF:$AF,0)),"") ->  | AJ73: FALSE | AK73: =IF(AJ73=TRUE,COUNTIF($AJ$32:AJ73,TRUE()),"") ->  | AL73: =IFERROR(INDEX($AD:$AD,MATCH(ROWS($AD$32:AD73),$AK:$AK,0)),"") ->  | AN73: FALSE | AO73: =IF(AN73=TRUE,COUNTIF($AN$32:AN73,TRUE()),"") ->  | AP73: =IFERROR(INDEX($AD:$AD,MATCH(ROWS($AD$32:$AD73),$AO:$AO,0)),"") -> 
AD74: ='Baza klientów'!B43 -> Klient 19 | AE74: FALSE | AF74: =IF(AE74=TRUE,COUNTIF($AE$32:AE74,TRUE()),"") ->  | AG74: =IFERROR(INDEX($AD:$AD,MATCH(ROWS($AD$32:AD74),$AF:$AF,0)),"") ->  | AJ74: FALSE | AK74: =IF(AJ74=TRUE,COUNTIF($AJ$32:AJ74,TRUE()),"") ->  | AL74: =IFERROR(INDEX($AD:$AD,MATCH(ROWS($AD$32:AD74),$AK:$AK,0)),"") ->  | AN74: FALSE | AO74: =IF(AN74=TRUE,COUNTIF($AN$32:AN74,TRUE()),"") ->  | AP74: =IFERROR(INDEX($AD:$AD,MATCH(ROWS($AD$32:$AD74),$AO:$AO,0)),"") -> 
AD75: ='Baza klientów'!B44 -> Klient 8 | AE75: FALSE | AF75: =IF(AE75=TRUE,COUNTIF($AE$32:AE75,TRUE()),"") ->  | AG75: =IFERROR(INDEX($AD:$AD,MATCH(ROWS($AD$32:AD75),$AF:$AF,0)),"") ->  | AJ75: FALSE | AK75: =IF(AJ75=TRUE,COUNTIF($AJ$32:AJ75,TRUE()),"") ->  | AL75: =IFERROR(INDEX($AD:$AD,MATCH(ROWS($AD$32:AD75),$AK:$AK,0)),"") ->  | AN75: FALSE | AO75: =IF(AN75=TRUE,COUNTIF($AN$32:AN75,TRUE()),"") ->  | AP75: =IFERROR(INDEX($AD:$AD,MATCH(ROWS($AD$32:$AD75),$AO:$AO,0)),"") -> 
AD76: ='Baza klientów'!B45 -> Klient 495 | AE76: FALSE | AF76: =IF(AE76=TRUE,COUNTIF($AE$32:AE76,TRUE()),"") ->  | AG76: =IFERROR(INDEX($AD:$AD,MATCH(ROWS($AD$32:AD76),$AF:$AF,0)),"") ->  | AJ76: FALSE | AK76: =IF(AJ76=TRUE,COUNTIF($AJ$32:AJ76,TRUE()),"") ->  | AL76: =IFERROR(INDEX($AD:$AD,MATCH(ROWS($AD$32:AD76),$AK:$AK,0)),"") ->  | AN76: FALSE | AO76: =IF(AN76=TRUE,COUNTIF($AN$32:AN76,TRUE()),"") ->  | AP76: =IFERROR(INDEX($AD:$AD,MATCH(ROWS($AD$32:$AD76),$AO:$AO,0)),"") -> 
AD77: ='Baza klientów'!B46 -> Klient 506 | AE77: FALSE | AF77: =IF(AE77=TRUE,COUNTIF($AE$32:AE77,TRUE()),"") ->  | AG77: =IFERROR(INDEX($AD:$AD,MATCH(ROWS($AD$32:AD77),$AF:$AF,0)),"") ->  | AJ77: FALSE | AK77: =IF(AJ77=TRUE,COUNTIF($AJ$32:AJ77,TRUE()),"") ->  | AL77: =IFERROR(INDEX($AD:$AD,MATCH(ROWS($AD$32:AD77),$AK:$AK,0)),"") ->  | AN77: FALSE | AO77: =IF(AN77=TRUE,COUNTIF($AN$32:AN77,TRUE()),"") ->  | AP77: =IFERROR(INDEX($AD:$AD,MATCH(ROWS($AD$32:$AD77),$AO:$AO,0)),"") -> 
AD78: ='Baza klientów'!B47 -> Klient 265 | AE78: FALSE | AF78: =IF(AE78=TRUE,COUNTIF($AE$32:AE78,TRUE()),"") ->  | AG78: =IFERROR(INDEX($AD:$AD,MATCH(ROWS($AD$32:AD78),$AF:$AF,0)),"") ->  | AJ78: FALSE | AK78: =IF(AJ78=TRUE,COUNTIF($AJ$32:AJ78,TRUE()),"") ->  | AL78: =IFERROR(INDEX($AD:$AD,MATCH(ROWS($AD$32:AD78),$AK:$AK,0)),"") ->  | AN78: FALSE | AO78: =IF(AN78=TRUE,COUNTIF($AN$32:AN78,TRUE()),"") ->  | AP78: =IFERROR(INDEX($AD:$AD,MATCH(ROWS($AD$32:$AD78),$AO:$AO,0)),"") -> 
AD79: ='Baza klientów'!B48 -> Klient 447 | AE79: FALSE | AF79: =IF(AE79=TRUE,COUNTIF($AE$32:AE79,TRUE()),"") ->  | AG79: =IFERROR(INDEX($AD:$AD,MATCH(ROWS($AD$32:AD79),$AF:$AF,0)),"") ->  | AJ79: FALSE | AK79: =IF(AJ79=TRUE,COUNTIF($AJ$32:AJ79,TRUE()),"") ->  | AL79: =IFERROR(INDEX($AD:$AD,MATCH(ROWS($AD$32:AD79),$AK:$AK,0)),"") ->  | AN79: FALSE | AO79: =IF(AN79=TRUE,COUNTIF($AN$32:AN79,TRUE()),"") ->  | AP79: =IFERROR(INDEX($AD:$AD,MATCH(ROWS($AD$32:$AD79),$AO:$AO,0)),"") -> 
AD80: ='Baza klientów'!B49 -> Klient 139 | AE80: FALSE | AF80: =IF(AE80=TRUE,COUNTIF($AE$32:AE80,TRUE()),"") ->  | AG80: =IFERROR(INDEX($AD:$AD,MATCH(ROWS($AD$32:AD80),$AF:$AF,0)),"") ->  | AJ80: FALSE | AK80: =IF(AJ80=TRUE,COUNTIF($AJ$32:AJ80,TRUE()),"") ->  | AL80: =IFERROR(INDEX($AD:$AD,MATCH(ROWS($AD$32:AD80),$AK:$AK,0)),"") ->  | AN80: FALSE | AO80: =IF(AN80=TRUE,COUNTIF($AN$32:AN80,TRUE()),"") ->  | AP80: =IFERROR(INDEX($AD:$AD,MATCH(ROWS($AD$32:$AD80),$AO:$AO,0)),"") -> 
AD81: ='Baza klientów'!B50 -> Klient 40 | AE81: FALSE | AF81: =IF(AE81=TRUE,COUNTIF($AE$32:AE81,TRUE()),"") ->  | AG81: =IFERROR(INDEX($AD:$AD,MATCH(ROWS($AD$32:AD81),$AF:$AF,0)),"") ->  | AJ81: FALSE | AK81: =IF(AJ81=TRUE,COUNTIF($AJ$32:AJ81,TRUE()),"") ->  | AL81: =IFERROR(INDEX($AD:$AD,MATCH(ROWS($AD$32:AD81),$AK:$AK,0)),"") ->  | AN81: FALSE | AO81: =IF(AN81=TRUE,COUNTIF($AN$32:AN81,TRUE()),"") ->  | AP81: =IFERROR(INDEX($AD:$AD,MATCH(ROWS($AD$32:$AD81),$AO:$AO,0)),"") -> 
AD82: ='Baza klientów'!B51 -> Klient 218 | AE82: FALSE | AF82: =IF(AE82=TRUE,COUNTIF($AE$32:AE82,TRUE()),"") ->  | AG82: =IFERROR(INDEX($AD:$AD,MATCH(ROWS($AD$32:AD82),$AF:$AF,0)),"") ->  | AJ82: FALSE | AK82: =IF(AJ82=TRUE,COUNTIF($AJ$32:AJ82,TRUE()),"") ->  | AL82: =IFERROR(INDEX($AD:$AD,MATCH(ROWS($AD$32:AD82),$AK:$AK,0)),"") ->  | AN82: FALSE | AO82: =IF(AN82=TRUE,COUNTIF($AN$32:AN82,TRUE()),"") ->  | AP82: =IFERROR(INDEX($AD:$AD,MATCH(ROWS($AD$32:$AD82),$AO:$AO,0)),"") -> 
AD83: ='Baza klientów'!B52 -> Klient 492 | AE83: FALSE | AF83: =IF(AE83=TRUE,COUNTIF($AE$32:AE83,TRUE()),"") ->  | AG83: =IFERROR(INDEX($AD:$AD,MATCH(ROWS($AD$32:AD83),$AF:$AF,0)),"") ->  | AJ83: FALSE | AK83: =IF(AJ83=TRUE,COUNTIF($AJ$32:AJ83,TRUE()),"") ->  | AL83: =IFERROR(INDEX($AD:$AD,MATCH(ROWS($AD$32:AD83),$AK:$AK,0)),"") ->  | AN83: FALSE | AO83: =IF(AN83=TRUE,COUNTIF($AN$32:AN83,TRUE()),"") ->  | AP83: =IFERROR(INDEX($AD:$AD,MATCH(ROWS($AD$32:$AD83),$AO:$AO,0)),"") -> 
AD84: ='Baza klientów'!B53 -> Klient 435 | AE84: FALSE | AF84: =IF(AE84=TRUE,COUNTIF($AE$32:AE84,TRUE()),"") ->  | AG84: =IFERROR(INDEX($AD:$AD,MATCH(ROWS($AD$32:AD84),$AF:$AF,0)),"") ->  | AJ84: FALSE | AK84: =IF(AJ84=TRUE,COUNTIF($AJ$32:AJ84,TRUE()),"") ->  | AL84: =IFERROR(INDEX($AD:$AD,MATCH(ROWS($AD$32:AD84),$AK:$AK,0)),"") ->  | AN84: FALSE | AO84: =IF(AN84=TRUE,COUNTIF($AN$32:AN84,TRUE()),"") ->  | AP84: =IFERROR(INDEX($AD:$AD,MATCH(ROWS($AD$32:$AD84),$AO:$AO,0)),"") -> 
AD85: ='Baza klientów'!B54 -> Klient 53 | AE85: FALSE | AF85: =IF(AE85=TRUE,COUNTIF($AE$32:AE85,TRUE()),"") ->  | AG85: =IFERROR(INDEX($AD:$AD,MATCH(ROWS($AD$32:AD85),$AF:$AF,0)),"") ->  | AJ85: FALSE | AK85: =IF(AJ85=TRUE,COUNTIF($AJ$32:AJ85,TRUE()),"") ->  | AL85: =IFERROR(INDEX($AD:$AD,MATCH(ROWS($AD$32:AD85),$AK:$AK,0)),"") ->  | AN85: FALSE | AO85: =IF(AN85=TRUE,COUNTIF($AN$32:AN85,TRUE()),"") ->  | AP85: =IFERROR(INDEX($AD:$AD,MATCH(ROWS($AD$32:$AD85),$AO:$AO,0)),"") -> 
AD86: ='Baza klientów'!B55 -> Klient 125 | AE86: FALSE | AF86: =IF(AE86=TRUE,COUNTIF($AE$32:AE86,TRUE()),"") ->  | AG86: =IFERROR(INDEX($AD:$AD,MATCH(ROWS($AD$32:AD86),$AF:$AF,0)),"") ->  | AJ86: FALSE | AK86: =IF(AJ86=TRUE,COUNTIF($AJ$32:AJ86,TRUE()),"") ->  | AL86: =IFERROR(INDEX($AD:$AD,MATCH(ROWS($AD$32:AD86),$AK:$AK,0)),"") ->  | AN86: FALSE | AO86: =IF(AN86=TRUE,COUNTIF($AN$32:AN86,TRUE()),"") ->  | AP86: =IFERROR(INDEX($AD:$AD,MATCH(ROWS($AD$32:$AD86),$AO:$AO,0)),"") -> 
AD87: ='Baza klientów'!B56 -> Klient 97 | AE87: FALSE | AF87: =IF(AE87=TRUE,COUNTIF($AE$32:AE87,TRUE()),"") ->  | AG87: =IFERROR(INDEX($AD:$AD,MATCH(ROWS($AD$32:AD87),$AF:$AF,0)),"") ->  | AJ87: FALSE | AK87: =IF(AJ87=TRUE,COUNTIF($AJ$32:AJ87,TRUE()),"") ->  | AL87: =IFERROR(INDEX($AD:$AD,MATCH(ROWS($AD$32:AD87),$AK:$AK,0)),"") ->  | AN87: FALSE | AO87: =IF(AN87=TRUE,COUNTIF($AN$32:AN87,TRUE()),"") ->  | AP87: =IFERROR(INDEX($AD:$AD,MATCH(ROWS($AD$32:$AD87),$AO:$AO,0)),"") -> 
AD88: ='Baza klientów'!B57 -> Klient 515 | AE88: FALSE | AF88: =IF(AE88=TRUE,COUNTIF($AE$32:AE88,TRUE()),"") ->  | AG88: =IFERROR(INDEX($AD:$AD,MATCH(ROWS($AD$32:AD88),$AF:$AF,0)),"") ->  | AJ88: FALSE | AK88: =IF(AJ88=TRUE,COUNTIF($AJ$32:AJ88,TRUE()),"") ->  | AL88: =IFERROR(INDEX($AD:$AD,MATCH(ROWS($AD$32:AD88),$AK:$AK,0)),"") ->  | AN88: FALSE | AO88: =IF(AN88=TRUE,COUNTIF($AN$32:AN88,TRUE()),"") ->  | AP88: =IFERROR(INDEX($AD:$AD,MATCH(ROWS($AD$32:$AD88),$AO:$AO,0)),"") -> 
AD89: ='Baza klientów'!B58 -> Klient 101 | AE89: FALSE | AF89: =IF(AE89=TRUE,COUNTIF($AE$32:AE89,TRUE()),"") ->  | AG89: =IFERROR(INDEX($AD:$AD,MATCH(ROWS($AD$32:AD89),$AF:$AF,0)),"") ->  | AJ89: FALSE | AK89: =IF(AJ89=TRUE,COUNTIF($AJ$32:AJ89,TRUE()),"") ->  | AL89: =IFERROR(INDEX($AD:$AD,MATCH(ROWS($AD$32:AD89),$AK:$AK,0)),"") ->  | AN89: FALSE | AO89: =IF(AN89=TRUE,COUNTIF($AN$32:AN89,TRUE()),"") ->  | AP89: =IFERROR(INDEX($AD:$AD,MATCH(ROWS($AD$32:$AD89),$AO:$AO,0)),"") -> 
AD90: ='Baza klientów'!B59 -> Klient 434 | AE90: FALSE | AF90: =IF(AE90=TRUE,COUNTIF($AE$32:AE90,TRUE()),"") ->  | AG90: =IFERROR(INDEX($AD:$AD,MATCH(ROWS($AD$32:AD90),$AF:$AF,0)),"") ->  | AJ90: FALSE | AK90: =IF(AJ90=TRUE,COUNTIF($AJ$32:AJ90,TRUE()),"") ->  | AL90: =IFERROR(INDEX($AD:$AD,MATCH(ROWS($AD$32:AD90),$AK:$AK,0)),"") ->  | AN90: FALSE | AO90: =IF(AN90=TRUE,COUNTIF($AN$32:AN90,TRUE()),"") ->  | AP90: =IFERROR(INDEX($AD:$AD,MATCH(ROWS($AD$32:$AD90),$AO:$AO,0)),"") -> 
AD91: ='Baza klientów'!B60 -> Klient 20 | AE91: FALSE | AF91: =IF(AE91=TRUE,COUNTIF($AE$32:AE91,TRUE()),"") ->  | AG91: =IFERROR(INDEX($AD:$AD,MATCH(ROWS($AD$32:AD91),$AF:$AF,0)),"") ->  | AJ91: FALSE | AK91: =IF(AJ91=TRUE,COUNTIF($AJ$32:AJ91,TRUE()),"") ->  | AL91: =IFERROR(INDEX($AD:$AD,MATCH(ROWS($AD$32:AD91),$AK:$AK,0)),"") ->  | AN91: FALSE | AO91: =IF(AN91=TRUE,COUNTIF($AN$32:AN91,TRUE()),"") ->  | AP91: =IFERROR(INDEX($AD:$AD,MATCH(ROWS($AD$32:$AD91),$AO:$AO,0)),"") -> 
AD92: ='Baza klientów'!B61 -> Klient 11 | AE92: FALSE | AF92: =IF(AE92=TRUE,COUNTIF($AE$32:AE92,TRUE()),"") ->  | AG92: =IFERROR(INDEX($AD:$AD,MATCH(ROWS($AD$32:AD92),$AF:$AF,0)),"") ->  | AJ92: FALSE | AK92: =IF(AJ92=TRUE,COUNTIF($AJ$32:AJ92,TRUE()),"") ->  | AL92: =IFERROR(INDEX($AD:$AD,MATCH(ROWS($AD$32:AD92),$AK:$AK,0)),"") ->  | AN92: FALSE | AO92: =IF(AN92=TRUE,COUNTIF($AN$32:AN92,TRUE()),"") ->  | AP92: =IFERROR(INDEX($AD:$AD,MATCH(ROWS($AD$32:$AD92),$AO:$AO,0)),"") -> 
AD93: ='Baza klientów'!B62 -> Klient 133 | AE93: FALSE | AF93: =IF(AE93=TRUE,COUNTIF($AE$32:AE93,TRUE()),"") ->  | AG93: =IFERROR(INDEX($AD:$AD,MATCH(ROWS($AD$32:AD93),$AF:$AF,0)),"") ->  | AJ93: FALSE | AK93: =IF(AJ93=TRUE,COUNTIF($AJ$32:AJ93,TRUE()),"") ->  | AL93: =IFERROR(INDEX($AD:$AD,MATCH(ROWS($AD$32:AD93),$AK:$AK,0)),"") ->  | AN93: FALSE | AO93: =IF(AN93=TRUE,COUNTIF($AN$32:AN93,TRUE()),"") ->  | AP93: =IFERROR(INDEX($AD:$AD,MATCH(ROWS($AD$32:$AD93),$AO:$AO,0)),"") -> 
AD94: ='Baza klientów'!B63 -> Klient 487 | AE94: FALSE | AF94: =IF(AE94=TRUE,COUNTIF($AE$32:AE94,TRUE()),"") ->  | AG94: =IFERROR(INDEX($AD:$AD,MATCH(ROWS($AD$32:AD94),$AF:$AF,0)),"") ->  | AJ94: FALSE | AK94: =IF(AJ94=TRUE,COUNTIF($AJ$32:AJ94,TRUE()),"") ->  | AL94: =IFERROR(INDEX($AD:$AD,MATCH(ROWS($AD$32:AD94),$AK:$AK,0)),"") ->  | AN94: FALSE | AO94: =IF(AN94=TRUE,COUNTIF($AN$32:AN94,TRUE()),"") ->  | AP94: =IFERROR(INDEX($AD:$AD,MATCH(ROWS($AD$32:$AD94),$AO:$AO,0)),"") -> 
AD95: ='Baza klientów'!B64 -> Klient 166 | AE95: FALSE | AF95: =IF(AE95=TRUE,COUNTIF($AE$32:AE95,TRUE()),"") ->  | AG95: =IFERROR(INDEX($AD:$AD,MATCH(ROWS($AD$32:AD95),$AF:$AF,0)),"") ->  | AJ95: FALSE | AK95: =IF(AJ95=TRUE,COUNTIF($AJ$32:AJ95,TRUE()),"") ->  | AL95: =IFERROR(INDEX($AD:$AD,MATCH(ROWS($AD$32:AD95),$AK:$AK,0)),"") ->  | AN95: FALSE | AO95: =IF(AN95=TRUE,COUNTIF($AN$32:AN95,TRUE()),"") ->  | AP95: =IFERROR(INDEX($AD:$AD,MATCH(ROWS($AD$32:$AD95),$AO:$AO,0)),"") -> 
AD96: ='Baza klientów'!B65 -> Klient 129 | AE96: FALSE | AF96: =IF(AE96=TRUE,COUNTIF($AE$32:AE96,TRUE()),"") ->  | AG96: =IFERROR(INDEX($AD:$AD,MATCH(ROWS($AD$32:AD96),$AF:$AF,0)),"") ->  | AJ96: FALSE | AK96: =IF(AJ96=TRUE,COUNTIF($AJ$32:AJ96,TRUE()),"") ->  | AL96: =IFERROR(INDEX($AD:$AD,MATCH(ROWS($AD$32:AD96),$AK:$AK,0)),"") ->  | AN96: FALSE | AO96: =IF(AN96=TRUE,COUNTIF($AN$32:AN96,TRUE()),"") ->  | AP96: =IFERROR(INDEX($AD:$AD,MATCH(ROWS($AD$32:$AD96),$AO:$AO,0)),"") -> 
AD97: ='Baza klientów'!B66 -> Klient 454 | AE97: =ISNUMBER(SEARCH($AH$32,AD97)) -> FALSE | AF97: =IF(AE97=TRUE,COUNTIF($AE$32:AE97,TRUE()),"") ->  | AG97: =IFERROR(INDEX($AD:$AD,MATCH(ROWS($AD$32:AD97),$AF:$AF,0)),"") ->  | AJ97: =ISNUMBER(SEARCH($AM$31,AD97)) -> FALSE | AK97: =IF(AJ97=TRUE,COUNTIF($AJ$32:AJ97,TRUE()),"") ->  | AL97: =IFERROR(INDEX($AD:$AD,MATCH(ROWS($AD$32:AD97),$AK:$AK,0)),"") ->  | AN97: =ISNUMBER(SEARCH($AQ$31,$AD97)) -> FALSE | AO97: =IF(AN97=TRUE,COUNTIF($AN$32:AN97,TRUE()),"") ->  | AP97: =IFERROR(INDEX($AD:$AD,MATCH(ROWS($AD$32:$AD97),$AO:$AO,0)),"") -> 
AD98: ='Baza klientów'!B67 -> Klient 237 | AE98: FALSE | AF98: =IF(AE98=TRUE,COUNTIF($AE$32:AE98,TRUE()),"") ->  | AG98: =IFERROR(INDEX($AD:$AD,MATCH(ROWS($AD$32:AD98),$AF:$AF,0)),"") ->  | AJ98: FALSE | AK98: =IF(AJ98=TRUE,COUNTIF($AJ$32:AJ98,TRUE()),"") ->  | AL98: =IFERROR(INDEX($AD:$AD,MATCH(ROWS($AD$32:AD98),$AK:$AK,0)),"") ->  | AN98: FALSE | AO98: =IF(AN98=TRUE,COUNTIF($AN$32:AN98,TRUE()),"") ->  | AP98: =IFERROR(INDEX($AD:$AD,MATCH(ROWS($AD$32:$AD98),$AO:$AO,0)),"") -> 
AD99: ='Baza klientów'!B68 -> Klient 343 | AE99: FALSE | AF99: =IF(AE99=TRUE,COUNTIF($AE$32:AE99,TRUE()),"") ->  | AG99: =IFERROR(INDEX($AD:$AD,MATCH(ROWS($AD$32:AD99),$AF:$AF,0)),"") ->  | AJ99: FALSE | AK99: =IF(AJ99=TRUE,COUNTIF($AJ$32:AJ99,TRUE()),"") ->  | AL99: =IFERROR(INDEX($AD:$AD,MATCH(ROWS($AD$32:AD99),$AK:$AK,0)),"") ->  | AN99: FALSE | AO99: =IF(AN99=TRUE,COUNTIF($AN$32:AN99,TRUE()),"") ->  | AP99: =IFERROR(INDEX($AD:$AD,MATCH(ROWS($AD$32:$AD99),$AO:$AO,0)),"") -> 
AD100: ='Baza klientów'!B69 -> Klient 222 | AE100: FALSE | AF100: =IF(AE100=TRUE,COUNTIF($AE$32:AE100,TRUE()),"") ->  | AG100: =IFERROR(INDEX($AD:$AD,MATCH(ROWS($AD$32:AD100),$AF:$AF,0)),"") ->  | AJ100: FALSE | AK100: =IF(AJ100=TRUE,COUNTIF($AJ$32:AJ100,TRUE()),"") ->  | AL100: =IFERROR(INDEX($AD:$AD,MATCH(ROWS($AD$32:AD100),$AK:$AK,0)),"") ->  | AN100: FALSE | AO100: =IF(AN100=TRUE,COUNTIF($AN$32:AN100,TRUE()),"") ->  | AP100: =IFERROR(INDEX($AD:$AD,MATCH(ROWS($AD$32:$AD100),$AO:$AO,0)),"") -> 
AD101: ='Baza klientów'!B70 -> Klient 345 | AE101: FALSE | AF101: =IF(AE101=TRUE,COUNTIF($AE$32:AE101,TRUE()),"") ->  | AG101: =IFERROR(INDEX($AD:$AD,MATCH(ROWS($AD$32:AD101),$AF:$AF,0)),"") ->  | AJ101: FALSE | AK101: =IF(AJ101=TRUE,COUNTIF($AJ$32:AJ101,TRUE()),"") ->  | AL101: =IFERROR(INDEX($AD:$AD,MATCH(ROWS($AD$32:AD101),$AK:$AK,0)),"") ->  | AN101: FALSE | AO101: =IF(AN101=TRUE,COUNTIF($AN$32:AN101,TRUE()),"") ->  | AP101: =IFERROR(INDEX($AD:$AD,MATCH(ROWS($AD$32:$AD101),$AO:$AO,0)),"") -> 
AD102: ='Baza klientów'!B71 -> Klient 337 | AE102: FALSE | AF102: =IF(AE102=TRUE,COUNTIF($AE$32:AE102,TRUE()),"") ->  | AG102: =IFERROR(INDEX($AD:$AD,MATCH(ROWS($AD$32:AD102),$AF:$AF,0)),"") ->  | AJ102: FALSE | AK102: =IF(AJ102=TRUE,COUNTIF($AJ$32:AJ102,TRUE()),"") ->  | AL102: =IFERROR(INDEX($AD:$AD,MATCH(ROWS($AD$32:AD102),$AK:$AK,0)),"") ->  | AN102: FALSE | AO102: =IF(AN102=TRUE,COUNTIF($AN$32:AN102,TRUE()),"") ->  | AP102: =IFERROR(INDEX($AD:$AD,MATCH(ROWS($AD$32:$AD102),$AO:$AO,0)),"") -> 
AD103: ='Baza klientów'!B72 -> Klient 415 | AE103: FALSE | AF103: =IF(AE103=TRUE,COUNTIF($AE$32:AE103,TRUE()),"") ->  | AG103: =IFERROR(INDEX($AD:$AD,MATCH(ROWS($AD$32:AD103),$AF:$AF,0)),"") ->  | AJ103: FALSE | AK103: =IF(AJ103=TRUE,COUNTIF($AJ$32:AJ103,TRUE()),"") ->  | AL103: =IFERROR(INDEX($AD:$AD,MATCH(ROWS($AD$32:AD103),$AK:$AK,0)),"") ->  | AN103: FALSE | AO103: =IF(AN103=TRUE,COUNTIF($AN$32:AN103,TRUE()),"") ->  | AP103: =IFERROR(INDEX($AD:$AD,MATCH(ROWS($AD$32:$AD103),$AO:$AO,0)),"") -> 
AD104: ='Baza klientów'!B73 -> Klient 356 | AE104: FALSE | AF104: =IF(AE104=TRUE,COUNTIF($AE$32:AE104,TRUE()),"") ->  | AG104: =IFERROR(INDEX($AD:$AD,MATCH(ROWS($AD$32:AD104),$AF:$AF,0)),"") ->  | AJ104: FALSE | AK104: =IF(AJ104=TRUE,COUNTIF($AJ$32:AJ104,TRUE()),"") ->  | AL104: =IFERROR(INDEX($AD:$AD,MATCH(ROWS($AD$32:AD104),$AK:$AK,0)),"") ->  | AN104: FALSE | AO104: =IF(AN104=TRUE,COUNTIF($AN$32:AN104,TRUE()),"") ->  | AP104: =IFERROR(INDEX($AD:$AD,MATCH(ROWS($AD$32:$AD104),$AO:$AO,0)),"") -> 
AD105: ='Baza klientów'!B74 -> Klient 60 | AE105: FALSE | AF105: =IF(AE105=TRUE,COUNTIF($AE$32:AE105,TRUE()),"") ->  | AG105: =IFERROR(INDEX($AD:$AD,MATCH(ROWS($AD$32:AD105),$AF:$AF,0)),"") ->  | AJ105: FALSE | AK105: =IF(AJ105=TRUE,COUNTIF($AJ$32:AJ105,TRUE()),"") ->  | AL105: =IFERROR(INDEX($AD:$AD,MATCH(ROWS($AD$32:AD105),$AK:$AK,0)),"") ->  | AN105: FALSE | AO105: =IF(AN105=TRUE,COUNTIF($AN$32:AN105,TRUE()),"") ->  | AP105: =IFERROR(INDEX($AD:$AD,MATCH(ROWS($AD$32:$AD105),$AO:$AO,0)),"") -> 
AD106: ='Baza klientów'!B75 -> Klient 324 | AE106: FALSE | AF106: =IF(AE106=TRUE,COUNTIF($AE$32:AE106,TRUE()),"") ->  | AG106: =IFERROR(INDEX($AD:$AD,MATCH(ROWS($AD$32:AD106),$AF:$AF,0)),"") ->  | AJ106: FALSE | AK106: =IF(AJ106=TRUE,COUNTIF($AJ$32:AJ106,TRUE()),"") ->  | AL106: =IFERROR(INDEX($AD:$AD,MATCH(ROWS($AD$32:AD106),$AK:$AK,0)),"") ->  | AN106: FALSE | AO106: =IF(AN106=TRUE,COUNTIF($AN$32:AN106,TRUE()),"") ->  | AP106: =IFERROR(INDEX($AD:$AD,MATCH(ROWS($AD$32:$AD106),$AO:$AO,0)),"") -> 
AD107: ='Baza klientów'!B76 -> Klient 401 | AE107: FALSE | AF107: =IF(AE107=TRUE,COUNTIF($AE$32:AE107,TRUE()),"") ->  | AG107: =IFERROR(INDEX($AD:$AD,MATCH(ROWS($AD$32:AD107),$AF:$AF,0)),"") ->  | AJ107: FALSE | AK107: =IF(AJ107=TRUE,COUNTIF($AJ$32:AJ107,TRUE()),"") ->  | AL107: =IFERROR(INDEX($AD:$AD,MATCH(ROWS($AD$32:AD107),$AK:$AK,0)),"") ->  | AN107: FALSE | AO107: =IF(AN107=TRUE,COUNTIF($AN$32:AN107,TRUE()),"") ->  | AP107: =IFERROR(INDEX($AD:$AD,MATCH(ROWS($AD$32:$AD107),$AO:$AO,0)),"") -> 
AD108: ='Baza klientów'!B77 -> Klient 6 | AE108: FALSE | AF108: =IF(AE108=TRUE,COUNTIF($AE$32:AE108,TRUE()),"") ->  | AG108: =IFERROR(INDEX($AD:$AD,MATCH(ROWS($AD$32:AD108),$AF:$AF,0)),"") ->  | AJ108: FALSE | AK108: =IF(AJ108=TRUE,COUNTIF($AJ$32:AJ108,TRUE()),"") ->  | AL108: =IFERROR(INDEX($AD:$AD,MATCH(ROWS($AD$32:AD108),$AK:$AK,0)),"") ->  | AN108: FALSE | AO108: =IF(AN108=TRUE,COUNTIF($AN$32:AN108,TRUE()),"") ->  | AP108: =IFERROR(INDEX($AD:$AD,MATCH(ROWS($AD$32:$AD108),$AO:$AO,0)),"") -> 
AD109: ='Baza klientów'!B78 -> Klient 223 | AE109: FALSE | AF109: =IF(AE109=TRUE,COUNTIF($AE$32:AE109,TRUE()),"") ->  | AG109: =IFERROR(INDEX($AD:$AD,MATCH(ROWS($AD$32:AD109),$AF:$AF,0)),"") ->  | AJ109: FALSE | AK109: =IF(AJ109=TRUE,COUNTIF($AJ$32:AJ109,TRUE()),"") ->  | AL109: =IFERROR(INDEX($AD:$AD,MATCH(ROWS($AD$32:AD109),$AK:$AK,0)),"") ->  | AN109: FALSE | AO109: =IF(AN109=TRUE,COUNTIF($AN$32:AN109,TRUE()),"") ->  | AP109: =IFERROR(INDEX($AD:$AD,MATCH(ROWS($AD$32:$AD109),$AO:$AO,0)),"") -> 
AD110: ='Baza klientów'!B79 -> Klient 102 | AE110: FALSE | AF110: =IF(AE110=TRUE,COUNTIF($AE$32:AE110,TRUE()),"") ->  | AG110: =IFERROR(INDEX($AD:$AD,MATCH(ROWS($AD$32:AD110),$AF:$AF,0)),"") ->  | AJ110: FALSE | AK110: =IF(AJ110=TRUE,COUNTIF($AJ$32:AJ110,TRUE()),"") ->  | AL110: =IFERROR(INDEX($AD:$AD,MATCH(ROWS($AD$32:AD110),$AK:$AK,0)),"") ->  | AN110: FALSE | AO110: =IF(AN110=TRUE,COUNTIF($AN$32:AN110,TRUE()),"") ->  | AP110: =IFERROR(INDEX($AD:$AD,MATCH(ROWS($AD$32:$AD110),$AO:$AO,0)),"") -> 
AD111: ='Baza klientów'!B80 -> Klient 336 | AE111: FALSE | AF111: =IF(AE111=TRUE,COUNTIF($AE$32:AE111,TRUE()),"") ->  | AG111: =IFERROR(INDEX($AD:$AD,MATCH(ROWS($AD$32:AD111),$AF:$AF,0)),"") ->  | AJ111: FALSE | AK111: =IF(AJ111=TRUE,COUNTIF($AJ$32:AJ111,TRUE()),"") ->  | AL111: =IFERROR(INDEX($AD:$AD,MATCH(ROWS($AD$32:AD111),$AK:$AK,0)),"") ->  | AN111: FALSE | AO111: =IF(AN111=TRUE,COUNTIF($AN$32:AN111,TRUE()),"") ->  | AP111: =IFERROR(INDEX($AD:$AD,MATCH(ROWS($AD$32:$AD111),$AO:$AO,0)),"") -> 
AD112: ='Baza klientów'!B81 -> Klient 34 | AE112: FALSE | AF112: =IF(AE112=TRUE,COUNTIF($AE$32:AE112,TRUE()),"") ->  | AG112: =IFERROR(INDEX($AD:$AD,MATCH(ROWS($AD$32:AD112),$AF:$AF,0)),"") ->  | AJ112: FALSE | AK112: =IF(AJ112=TRUE,COUNTIF($AJ$32:AJ112,TRUE()),"") ->  | AL112: =IFERROR(INDEX($AD:$AD,MATCH(ROWS($AD$32:AD112),$AK:$AK,0)),"") ->  | AN112: FALSE | AO112: =IF(AN112=TRUE,COUNTIF($AN$32:AN112,TRUE()),"") ->  | AP112: =IFERROR(INDEX($AD:$AD,MATCH(ROWS($AD$32:$AD112),$AO:$AO,0)),"") -> 
AD113: ='Baza klientów'!B82 -> Klient 513 | AE113: FALSE | AF113: =IF(AE113=TRUE,COUNTIF($AE$32:AE113,TRUE()),"") ->  | AG113: =IFERROR(INDEX($AD:$AD,MATCH(ROWS($AD$32:AD113),$AF:$AF,0)),"") ->  | AJ113: FALSE | AK113: =IF(AJ113=TRUE,COUNTIF($AJ$32:AJ113,TRUE()),"") ->  | AL113: =IFERROR(INDEX($AD:$AD,MATCH(ROWS($AD$32:AD113),$AK:$AK,0)),"") ->  | AN113: FALSE | AO113: =IF(AN113=TRUE,COUNTIF($AN$32:AN113,TRUE()),"") ->  | AP113: =IFERROR(INDEX($AD:$AD,MATCH(ROWS($AD$32:$AD113),$AO:$AO,0)),"") -> 
AD114: ='Baza klientów'!B83 -> Klient 505 | AE114: FALSE | AF114: =IF(AE114=TRUE,COUNTIF($AE$32:AE114,TRUE()),"") ->  | AG114: =IFERROR(INDEX($AD:$AD,MATCH(ROWS($AD$32:AD114),$AF:$AF,0)),"") ->  | AJ114: FALSE | AK114: =IF(AJ114=TRUE,COUNTIF($AJ$32:AJ114,TRUE()),"") ->  | AL114: =IFERROR(INDEX($AD:$AD,MATCH(ROWS($AD$32:AD114),$AK:$AK,0)),"") ->  | AN114: FALSE | AO114: =IF(AN114=TRUE,COUNTIF($AN$32:AN114,TRUE()),"") ->  | AP114: =IFERROR(INDEX($AD:$AD,MATCH(ROWS($AD$32:$AD114),$AO:$AO,0)),"") -> 
AD115: ='Baza klientów'!B84 -> Klient 491 | AE115: FALSE | AF115: =IF(AE115=TRUE,COUNTIF($AE$32:AE115,TRUE()),"") ->  | AG115: =IFERROR(INDEX($AD:$AD,MATCH(ROWS($AD$32:AD115),$AF:$AF,0)),"") ->  | AJ115: FALSE | AK115: =IF(AJ115=TRUE,COUNTIF($AJ$32:AJ115,TRUE()),"") ->  | AL115: =IFERROR(INDEX($AD:$AD,MATCH(ROWS($AD$32:AD115),$AK:$AK,0)),"") ->  | AN115: FALSE | AO115: =IF(AN115=TRUE,COUNTIF($AN$32:AN115,TRUE()),"") ->  | AP115: =IFERROR(INDEX($AD:$AD,MATCH(ROWS($AD$32:$AD115),$AO:$AO,0)),"") -> 
AD116: ='Baza klientów'!B85 -> Klient 390 | AE116: FALSE | AF116: =IF(AE116=TRUE,COUNTIF($AE$32:AE116,TRUE()),"") ->  | AG116: =IFERROR(INDEX($AD:$AD,MATCH(ROWS($AD$32:AD116),$AF:$AF,0)),"") ->  | AJ116: FALSE | AK116: =IF(AJ116=TRUE,COUNTIF($AJ$32:AJ116,TRUE()),"") ->  | AL116: =IFERROR(INDEX($AD:$AD,MATCH(ROWS($AD$32:AD116),$AK:$AK,0)),"") ->  | AN116: FALSE | AO116: =IF(AN116=TRUE,COUNTIF($AN$32:AN116,TRUE()),"") ->  | AP116: =IFERROR(INDEX($AD:$AD,MATCH(ROWS($AD$32:$AD116),$AO:$AO,0)),"") -> 
AD117: ='Baza klientów'!B86 -> Klient 150 | AE117: FALSE | AF117: =IF(AE117=TRUE,COUNTIF($AE$32:AE117,TRUE()),"") ->  | AG117: =IFERROR(INDEX($AD:$AD,MATCH(ROWS($AD$32:AD117),$AF:$AF,0)),"") ->  | AJ117: FALSE | AK117: =IF(AJ117=TRUE,COUNTIF($AJ$32:AJ117,TRUE()),"") ->  | AL117: =IFERROR(INDEX($AD:$AD,MATCH(ROWS($AD$32:AD117),$AK:$AK,0)),"") ->  | AN117: FALSE | AO117: =IF(AN117=TRUE,COUNTIF($AN$32:AN117,TRUE()),"") ->  | AP117: =IFERROR(INDEX($AD:$AD,MATCH(ROWS($AD$32:$AD117),$AO:$AO,0)),"") -> 
AD118: ='Baza klientów'!B87 -> Klient 159 | AE118: FALSE | AF118: =IF(AE118=TRUE,COUNTIF($AE$32:AE118,TRUE()),"") ->  | AG118: =IFERROR(INDEX($AD:$AD,MATCH(ROWS($AD$32:AD118),$AF:$AF,0)),"") ->  | AJ118: FALSE | AK118: =IF(AJ118=TRUE,COUNTIF($AJ$32:AJ118,TRUE()),"") ->  | AL118: =IFERROR(INDEX($AD:$AD,MATCH(ROWS($AD$32:AD118),$AK:$AK,0)),"") ->  | AN118: FALSE | AO118: =IF(AN118=TRUE,COUNTIF($AN$32:AN118,TRUE()),"") ->  | AP118: =IFERROR(INDEX($AD:$AD,MATCH(ROWS($AD$32:$AD118),$AO:$AO,0)),"") -> 
AD119: ='Baza klientów'!B88 -> Klient 514 | AE119: FALSE | AF119: =IF(AE119=TRUE,COUNTIF($AE$32:AE119,TRUE()),"") ->  | AG119: =IFERROR(INDEX($AD:$AD,MATCH(ROWS($AD$32:AD119),$AF:$AF,0)),"") ->  | AJ119: FALSE | AK119: =IF(AJ119=TRUE,COUNTIF($AJ$32:AJ119,TRUE()),"") ->  | AL119: =IFERROR(INDEX($AD:$AD,MATCH(ROWS($AD$32:AD119),$AK:$AK,0)),"") ->  | AN119: FALSE | AO119: =IF(AN119=TRUE,COUNTIF($AN$32:AN119,TRUE()),"") ->  | AP119: =IFERROR(INDEX($AD:$AD,MATCH(ROWS($AD$32:$AD119),$AO:$AO,0)),"") -> 
AD120: ='Baza klientów'!B89 -> Klient 25 | AE120: FALSE | AF120: =IF(AE120=TRUE,COUNTIF($AE$32:AE120,TRUE()),"") ->  | AG120: =IFERROR(INDEX($AD:$AD,MATCH(ROWS($AD$32:AD120),$AF:$AF,0)),"") ->  | AJ120: FALSE | AK120: =IF(AJ120=TRUE,COUNTIF($AJ$32:AJ120,TRUE()),"") ->  | AL120: =IFERROR(INDEX($AD:$AD,MATCH(ROWS($AD$32:AD120),$AK:$AK,0)),"") ->  | AN120: FALSE | AO120: =IF(AN120=TRUE,COUNTIF($AN$32:AN120,TRUE()),"") ->  | AP120: =IFERROR(INDEX($AD:$AD,MATCH(ROWS($AD$32:$AD120),$AO:$AO,0)),"") -> 
AD121: ='Baza klientów'!B90 -> Klient 549 | AE121: FALSE | AF121: =IF(AE121=TRUE,COUNTIF($AE$32:AE121,TRUE()),"") ->  | AG121: =IFERROR(INDEX($AD:$AD,MATCH(ROWS($AD$32:AD121),$AF:$AF,0)),"") ->  | AJ121: FALSE | AK121: =IF(AJ121=TRUE,COUNTIF($AJ$32:AJ121,TRUE()),"") ->  | AL121: =IFERROR(INDEX($AD:$AD,MATCH(ROWS($AD$32:AD121),$AK:$AK,0)),"") ->  | AN121: FALSE | AO121: =IF(AN121=TRUE,COUNTIF($AN$32:AN121,TRUE()),"") ->  | AP121: =IFERROR(INDEX($AD:$AD,MATCH(ROWS($AD$32:$AD121),$AO:$AO,0)),"") -> 
AD122: ='Baza klientów'!B91 -> Klient 87 | AE122: FALSE | AF122: =IF(AE122=TRUE,COUNTIF($AE$32:AE122,TRUE()),"") ->  | AG122: =IFERROR(INDEX($AD:$AD,MATCH(ROWS($AD$32:AD122),$AF:$AF,0)),"") ->  | AJ122: FALSE | AK122: =IF(AJ122=TRUE,COUNTIF($AJ$32:AJ122,TRUE()),"") ->  | AL122: =IFERROR(INDEX($AD:$AD,MATCH(ROWS($AD$32:AD122),$AK:$AK,0)),"") ->  | AN122: FALSE | AO122: =IF(AN122=TRUE,COUNTIF($AN$32:AN122,TRUE()),"") ->  | AP122: =IFERROR(INDEX($AD:$AD,MATCH(ROWS($AD$32:$AD122),$AO:$AO,0)),"") -> 
AD123: ='Baza klientów'!B92 -> Klient 115 | AE123: FALSE | AF123: =IF(AE123=TRUE,COUNTIF($AE$32:AE123,TRUE()),"") ->  | AG123: =IFERROR(INDEX($AD:$AD,MATCH(ROWS($AD$32:AD123),$AF:$AF,0)),"") ->  | AJ123: FALSE | AK123: =IF(AJ123=TRUE,COUNTIF($AJ$32:AJ123,TRUE()),"") ->  | AL123: =IFERROR(INDEX($AD:$AD,MATCH(ROWS($AD$32:AD123),$AK:$AK,0)),"") ->  | AN123: FALSE | AO123: =IF(AN123=TRUE,COUNTIF($AN$32:AN123,TRUE()),"") ->  | AP123: =IFERROR(INDEX($AD:$AD,MATCH(ROWS($AD$32:$AD123),$AO:$AO,0)),"") -> 
AD124: ='Baza klientów'!B93 -> Klient 537 | AE124: FALSE | AF124: =IF(AE124=TRUE,COUNTIF($AE$32:AE124,TRUE()),"") ->  | AG124: =IFERROR(INDEX($AD:$AD,MATCH(ROWS($AD$32:AD124),$AF:$AF,0)),"") ->  | AJ124: FALSE | AK124: =IF(AJ124=TRUE,COUNTIF($AJ$32:AJ124,TRUE()),"") ->  | AL124: =IFERROR(INDEX($AD:$AD,MATCH(ROWS($AD$32:AD124),$AK:$AK,0)),"") ->  | AN124: FALSE | AO124: =IF(AN124=TRUE,COUNTIF($AN$32:AN124,TRUE()),"") ->  | AP124: =IFERROR(INDEX($AD:$AD,MATCH(ROWS($AD$32:$AD124),$AO:$AO,0)),"") -> 
AD125: ='Baza klientów'!B94 -> Klient 46 | AE125: FALSE | AF125: =IF(AE125=TRUE,COUNTIF($AE$32:AE125,TRUE()),"") ->  | AG125: =IFERROR(INDEX($AD:$AD,MATCH(ROWS($AD$32:AD125),$AF:$AF,0)),"") ->  | AJ125: FALSE | AK125: =IF(AJ125=TRUE,COUNTIF($AJ$32:AJ125,TRUE()),"") ->  | AL125: =IFERROR(INDEX($AD:$AD,MATCH(ROWS($AD$32:AD125),$AK:$AK,0)),"") ->  | AN125: FALSE | AO125: =IF(AN125=TRUE,COUNTIF($AN$32:AN125,TRUE()),"") ->  | AP125: =IFERROR(INDEX($AD:$AD,MATCH(ROWS($AD$32:$AD125),$AO:$AO,0)),"") -> 
AD126: ='Baza klientów'!B95 -> Klient 421 | AE126: FALSE | AF126: =IF(AE126=TRUE,COUNTIF($AE$32:AE126,TRUE()),"") ->  | AG126: =IFERROR(INDEX($AD:$AD,MATCH(ROWS($AD$32:AD126),$AF:$AF,0)),"") ->  | AJ126: FALSE | AK126: =IF(AJ126=TRUE,COUNTIF($AJ$32:AJ126,TRUE()),"") ->  | AL126: =IFERROR(INDEX($AD:$AD,MATCH(ROWS($AD$32:AD126),$AK:$AK,0)),"") ->  | AN126: FALSE | AO126: =IF(AN126=TRUE,COUNTIF($AN$32:AN126,TRUE()),"") ->  | AP126: =IFERROR(INDEX($AD:$AD,MATCH(ROWS($AD$32:$AD126),$AO:$AO,0)),"") -> 
AD127: ='Baza klientów'!B96 -> Klient 314 | AE127: FALSE | AF127: =IF(AE127=TRUE,COUNTIF($AE$32:AE127,TRUE()),"") ->  | AG127: =IFERROR(INDEX($AD:$AD,MATCH(ROWS($AD$32:AD127),$AF:$AF,0)),"") ->  | AJ127: FALSE | AK127: =IF(AJ127=TRUE,COUNTIF($AJ$32:AJ127,TRUE()),"") ->  | AL127: =IFERROR(INDEX($AD:$AD,MATCH(ROWS($AD$32:AD127),$AK:$AK,0)),"") ->  | AN127: FALSE | AO127: =IF(AN127=TRUE,COUNTIF($AN$32:AN127,TRUE()),"") ->  | AP127: =IFERROR(INDEX($AD:$AD,MATCH(ROWS($AD$32:$AD127),$AO:$AO,0)),"") -> 
AD128: ='Baza klientów'!B97 -> Klient 490 | AE128: FALSE | AF128: =IF(AE128=TRUE,COUNTIF($AE$32:AE128,TRUE()),"") ->  | AG128: =IFERROR(INDEX($AD:$AD,MATCH(ROWS($AD$32:AD128),$AF:$AF,0)),"") ->  | AJ128: FALSE | AK128: =IF(AJ128=TRUE,COUNTIF($AJ$32:AJ128,TRUE()),"") ->  | AL128: =IFERROR(INDEX($AD:$AD,MATCH(ROWS($AD$32:AD128),$AK:$AK,0)),"") ->  | AN128: FALSE | AO128: =IF(AN128=TRUE,COUNTIF($AN$32:AN128,TRUE()),"") ->  | AP128: =IFERROR(INDEX($AD:$AD,MATCH(ROWS($AD$32:$AD128),$AO:$AO,0)),"") -> 
AD129: ='Baza klientów'!B98 -> Klient 36 | AE129: FALSE | AF129: =IF(AE129=TRUE,COUNTIF($AE$32:AE129,TRUE()),"") ->  | AG129: =IFERROR(INDEX($AD:$AD,MATCH(ROWS($AD$32:AD129),$AF:$AF,0)),"") ->  | AJ129: FALSE | AK129: =IF(AJ129=TRUE,COUNTIF($AJ$32:AJ129,TRUE()),"") ->  | AL129: =IFERROR(INDEX($AD:$AD,MATCH(ROWS($AD$32:AD129),$AK:$AK,0)),"") ->  | AN129: FALSE | AO129: =IF(AN129=TRUE,COUNTIF($AN$32:AN129,TRUE()),"") ->  | AP129: =IFERROR(INDEX($AD:$AD,MATCH(ROWS($AD$32:$AD129),$AO:$AO,0)),"") -> 
AD130: ='Baza klientów'!B99 -> Klient 438 | AE130: FALSE | AF130: =IF(AE130=TRUE,COUNTIF($AE$32:AE130,TRUE()),"") ->  | AG130: =IFERROR(INDEX($AD:$AD,MATCH(ROWS($AD$32:AD130),$AF:$AF,0)),"") ->  | AJ130: FALSE | AK130: =IF(AJ130=TRUE,COUNTIF($AJ$32:AJ130,TRUE()),"") ->  | AL130: =IFERROR(INDEX($AD:$AD,MATCH(ROWS($AD$32:AD130),$AK:$AK,0)),"") ->  | AN130: FALSE | AO130: =IF(AN130=TRUE,COUNTIF($AN$32:AN130,TRUE()),"") ->  | AP130: =IFERROR(INDEX($AD:$AD,MATCH(ROWS($AD$32:$AD130),$AO:$AO,0)),"") -> 
AD131: ='Baza klientów'!B100 -> Klient 463 | AE131: FALSE | AF131: =IF(AE131=TRUE,COUNTIF($AE$32:AE131,TRUE()),"") ->  | AG131: =IFERROR(INDEX($AD:$AD,MATCH(ROWS($AD$32:AD131),$AF:$AF,0)),"") ->  | AJ131: FALSE | AK131: =IF(AJ131=TRUE,COUNTIF($AJ$32:AJ131,TRUE()),"") ->  | AL131: =IFERROR(INDEX($AD:$AD,MATCH(ROWS($AD$32:AD131),$AK:$AK,0)),"") ->  | AN131: FALSE | AO131: =IF(AN131=TRUE,COUNTIF($AN$32:AN131,TRUE()),"") ->  | AP131: =IFERROR(INDEX($AD:$AD,MATCH(ROWS($AD$32:$AD131),$AO:$AO,0)),"") -> 
AD132: ='Baza klientów'!B101 -> Klient 532 | AE132: FALSE | AF132: =IF(AE132=TRUE,COUNTIF($AE$32:AE132,TRUE()),"") ->  | AG132: =IFERROR(INDEX($AD:$AD,MATCH(ROWS($AD$32:AD132),$AF:$AF,0)),"") ->  | AJ132: FALSE | AK132: =IF(AJ132=TRUE,COUNTIF($AJ$32:AJ132,TRUE()),"") ->  | AL132: =IFERROR(INDEX($AD:$AD,MATCH(ROWS($AD$32:AD132),$AK:$AK,0)),"") ->  | AN132: FALSE | AO132: =IF(AN132=TRUE,COUNTIF($AN$32:AN132,TRUE()),"") ->  | AP132: =IFERROR(INDEX($AD:$AD,MATCH(ROWS($AD$32:$AD132),$AO:$AO,0)),"") -> 
AD133: ='Baza klientów'!B102 -> Klient 301 | AE133: FALSE | AF133: =IF(AE133=TRUE,COUNTIF($AE$32:AE133,TRUE()),"") ->  | AG133: =IFERROR(INDEX($AD:$AD,MATCH(ROWS($AD$32:AD133),$AF:$AF,0)),"") ->  | AJ133: FALSE | AK133: =IF(AJ133=TRUE,COUNTIF($AJ$32:AJ133,TRUE()),"") ->  | AL133: =IFERROR(INDEX($AD:$AD,MATCH(ROWS($AD$32:AD133),$AK:$AK,0)),"") ->  | AN133: FALSE | AO133: =IF(AN133=TRUE,COUNTIF($AN$32:AN133,TRUE()),"") ->  | AP133: =IFERROR(INDEX($AD:$AD,MATCH(ROWS($AD$32:$AD133),$AO:$AO,0)),"") -> 
AD134: ='Baza klientów'!B103 -> Klient 310 | AE134: FALSE | AF134: =IF(AE134=TRUE,COUNTIF($AE$32:AE134,TRUE()),"") ->  | AG134: =IFERROR(INDEX($AD:$AD,MATCH(ROWS($AD$32:AD134),$AF:$AF,0)),"") ->  | AJ134: FALSE | AK134: =IF(AJ134=TRUE,COUNTIF($AJ$32:AJ134,TRUE()),"") ->  | AL134: =IFERROR(INDEX($AD:$AD,MATCH(ROWS($AD$32:AD134),$AK:$AK,0)),"") ->  | AN134: FALSE | AO134: =IF(AN134=TRUE,COUNTIF($AN$32:AN134,TRUE()),"") ->  | AP134: =IFERROR(INDEX($AD:$AD,MATCH(ROWS($AD$32:$AD134),$AO:$AO,0)),"") -> 
AD135: ='Baza klientów'!B104 -> Klient 316 | AE135: FALSE | AF135: =IF(AE135=TRUE,COUNTIF($AE$32:AE135,TRUE()),"") ->  | AG135: =IFERROR(INDEX($AD:$AD,MATCH(ROWS($AD$32:AD135),$AF:$AF,0)),"") ->  | AJ135: FALSE | AK135: =IF(AJ135=TRUE,COUNTIF($AJ$32:AJ135,TRUE()),"") ->  | AL135: =IFERROR(INDEX($AD:$AD,MATCH(ROWS($AD$32:AD135),$AK:$AK,0)),"") ->  | AN135: FALSE | AO135: =IF(AN135=TRUE,COUNTIF($AN$32:AN135,TRUE()),"") ->  | AP135: =IFERROR(INDEX($AD:$AD,MATCH(ROWS($AD$32:$AD135),$AO:$AO,0)),"") -> 
AD136: ='Baza klientów'!B105 -> 0 | AE136: FALSE | AF136: =IF(AE136=TRUE,COUNTIF($AE$32:AE136,TRUE()),"") ->  | AG136: =IFERROR(INDEX($AD:$AD,MATCH(ROWS($AD$32:AD136),$AF:$AF,0)),"") ->  | AJ136: FALSE | AK136: =IF(AJ136=TRUE,COUNTIF($AJ$32:AJ136,TRUE()),"") ->  | AL136: =IFERROR(INDEX($AD:$AD,MATCH(ROWS($AD$32:AD136),$AK:$AK,0)),"") ->  | AN136: FALSE | AO136: =IF(AN136=TRUE,COUNTIF($AN$32:AN136,TRUE()),"") ->  | AP136: =IFERROR(INDEX($AD:$AD,MATCH(ROWS($AD$32:$AD136),$AO:$AO,0)),"") -> 
AD137: ='Baza klientów'!B106 -> 0 | AE137: FALSE | AF137: =IF(AE137=TRUE,COUNTIF($AE$32:AE137,TRUE()),"") ->  | AG137: =IFERROR(INDEX($AD:$AD,MATCH(ROWS($AD$32:AD137),$AF:$AF,0)),"") ->  | AJ137: FALSE | AK137: =IF(AJ137=TRUE,COUNTIF($AJ$32:AJ137,TRUE()),"") ->  | AL137: =IFERROR(INDEX($AD:$AD,MATCH(ROWS($AD$32:AD137),$AK:$AK,0)),"") ->  | AN137: FALSE | AO137: =IF(AN137=TRUE,COUNTIF($AN$32:AN137,TRUE()),"") ->  | AP137: =IFERROR(INDEX($AD:$AD,MATCH(ROWS($AD$32:$AD137),$AO:$AO,0)),"") -> 
AD138: ='Baza klientów'!B107 -> 0 | AE138: FALSE | AF138: =IF(AE138=TRUE,COUNTIF($AE$32:AE138,TRUE()),"") ->  | AG138: =IFERROR(INDEX($AD:$AD,MATCH(ROWS($AD$32:AD138),$AF:$AF,0)),"") ->  | AJ138: FALSE | AK138: =IF(AJ138=TRUE,COUNTIF($AJ$32:AJ138,TRUE()),"") ->  | AL138: =IFERROR(INDEX($AD:$AD,MATCH(ROWS($AD$32:AD138),$AK:$AK,0)),"") ->  | AN138: FALSE | AO138: =IF(AN138=TRUE,COUNTIF($AN$32:AN138,TRUE()),"") ->  | AP138: =IFERROR(INDEX($AD:$AD,MATCH(ROWS($AD$32:$AD138),$AO:$AO,0)),"") -> 
AD139: ='Baza klientów'!B108 -> 0 | AE139: FALSE | AF139: =IF(AE139=TRUE,COUNTIF($AE$32:AE139,TRUE()),"") ->  | AG139: =IFERROR(INDEX($AD:$AD,MATCH(ROWS($AD$32:AD139),$AF:$AF,0)),"") ->  | AJ139: FALSE | AK139: =IF(AJ139=TRUE,COUNTIF($AJ$32:AJ139,TRUE()),"") ->  | AL139: =IFERROR(INDEX($AD:$AD,MATCH(ROWS($AD$32:AD139),$AK:$AK,0)),"") ->  | AN139: FALSE | AO139: =IF(AN139=TRUE,COUNTIF($AN$32:AN139,TRUE()),"") ->  | AP139: =IFERROR(INDEX($AD:$AD,MATCH(ROWS($AD$32:$AD139),$AO:$AO,0)),"") -> 
AD140: ='Baza klientów'!B109 -> 0 | AE140: FALSE | AF140: =IF(AE140=TRUE,COUNTIF($AE$32:AE140,TRUE()),"") ->  | AG140: =IFERROR(INDEX($AD:$AD,MATCH(ROWS($AD$32:AD140),$AF:$AF,0)),"") ->  | AJ140: FALSE | AK140: =IF(AJ140=TRUE,COUNTIF($AJ$32:AJ140,TRUE()),"") ->  | AL140: =IFERROR(INDEX($AD:$AD,MATCH(ROWS($AD$32:AD140),$AK:$AK,0)),"") ->  | AN140: FALSE | AO140: =IF(AN140=TRUE,COUNTIF($AN$32:AN140,TRUE()),"") ->  | AP140: =IFERROR(INDEX($AD:$AD,MATCH(ROWS($AD$32:$AD140),$AO:$AO,0)),"") -> 
AD141: ='Baza klientów'!B110 -> 0 | AE141: FALSE | AF141: =IF(AE141=TRUE,COUNTIF($AE$32:AE141,TRUE()),"") ->  | AG141: =IFERROR(INDEX($AD:$AD,MATCH(ROWS($AD$32:AD141),$AF:$AF,0)),"") ->  | AJ141: FALSE | AK141: =IF(AJ141=TRUE,COUNTIF($AJ$32:AJ141,TRUE()),"") ->  | AL141: =IFERROR(INDEX($AD:$AD,MATCH(ROWS($AD$32:AD141),$AK:$AK,0)),"") ->  | AN141: FALSE | AO141: =IF(AN141=TRUE,COUNTIF($AN$32:AN141,TRUE()),"") ->  | AP141: =IFERROR(INDEX($AD:$AD,MATCH(ROWS($AD$32:$AD141),$AO:$AO,0)),"") -> 
AD142: ='Baza klientów'!B111 -> 0 | AE142: FALSE | AF142: =IF(AE142=TRUE,COUNTIF($AE$32:AE142,TRUE()),"") ->  | AG142: =IFERROR(INDEX($AD:$AD,MATCH(ROWS($AD$32:AD142),$AF:$AF,0)),"") ->  | AJ142: FALSE | AK142: =IF(AJ142=TRUE,COUNTIF($AJ$32:AJ142,TRUE()),"") ->  | AL142: =IFERROR(INDEX($AD:$AD,MATCH(ROWS($AD$32:AD142),$AK:$AK,0)),"") ->  | AN142: FALSE | AO142: =IF(AN142=TRUE,COUNTIF($AN$32:AN142,TRUE()),"") ->  | AP142: =IFERROR(INDEX($AD:$AD,MATCH(ROWS($AD$32:$AD142),$AO:$AO,0)),"") -> 
AD143: ='Baza klientów'!B112 -> 0 | AE143: FALSE | AF143: =IF(AE143=TRUE,COUNTIF($AE$32:AE143,TRUE()),"") ->  | AG143: =IFERROR(INDEX($AD:$AD,MATCH(ROWS($AD$32:AD143),$AF:$AF,0)),"") ->  | AJ143: FALSE | AK143: =IF(AJ143=TRUE,COUNTIF($AJ$32:AJ143,TRUE()),"") ->  | AL143: =IFERROR(INDEX($AD:$AD,MATCH(ROWS($AD$32:AD143),$AK:$AK,0)),"") ->  | AN143: FALSE | AO143: =IF(AN143=TRUE,COUNTIF($AN$32:AN143,TRUE()),"") ->  | AP143: =IFERROR(INDEX($AD:$AD,MATCH(ROWS($AD$32:$AD143),$AO:$AO,0)),"") -> 
AD144: ='Baza klientów'!B113 -> 0 | AE144: FALSE | AF144: =IF(AE144=TRUE,COUNTIF($AE$32:AE144,TRUE()),"") ->  | AG144: =IFERROR(INDEX($AD:$AD,MATCH(ROWS($AD$32:AD144),$AF:$AF,0)),"") ->  | AJ144: FALSE | AK144: =IF(AJ144=TRUE,COUNTIF($AJ$32:AJ144,TRUE()),"") ->  | AL144: =IFERROR(INDEX($AD:$AD,MATCH(ROWS($AD$32:AD144),$AK:$AK,0)),"") ->  | AN144: FALSE | AO144: =IF(AN144=TRUE,COUNTIF($AN$32:AN144,TRUE()),"") ->  | AP144: =IFERROR(INDEX($AD:$AD,MATCH(ROWS($AD$32:$AD144),$AO:$AO,0)),"") -> 
AD145: ='Baza klientów'!B114 -> 0 | AE145: FALSE | AF145: =IF(AE145=TRUE,COUNTIF($AE$32:AE145,TRUE()),"") ->  | AG145: =IFERROR(INDEX($AD:$AD,MATCH(ROWS($AD$32:AD145),$AF:$AF,0)),"") ->  | AJ145: FALSE | AK145: =IF(AJ145=TRUE,COUNTIF($AJ$32:AJ145,TRUE()),"") ->  | AL145: =IFERROR(INDEX($AD:$AD,MATCH(ROWS($AD$32:AD145),$AK:$AK,0)),"") ->  | AN145: FALSE | AO145: =IF(AN145=TRUE,COUNTIF($AN$32:AN145,TRUE()),"") ->  | AP145: =IFERROR(INDEX($AD:$AD,MATCH(ROWS($AD$32:$AD145),$AO:$AO,0)),"") -> 
AD146: ='Baza klientów'!B115 -> 0 | AE146: FALSE | AF146: =IF(AE146=TRUE,COUNTIF($AE$32:AE146,TRUE()),"") ->  | AG146: =IFERROR(INDEX($AD:$AD,MATCH(ROWS($AD$32:AD146),$AF:$AF,0)),"") ->  | AJ146: FALSE | AK146: =IF(AJ146=TRUE,COUNTIF($AJ$32:AJ146,TRUE()),"") ->  | AL146: =IFERROR(INDEX($AD:$AD,MATCH(ROWS($AD$32:AD146),$AK:$AK,0)),"") ->  | AN146: FALSE | AO146: =IF(AN146=TRUE,COUNTIF($AN$32:AN146,TRUE()),"") ->  | AP146: =IFERROR(INDEX($AD:$AD,MATCH(ROWS($AD$32:$AD146),$AO:$AO,0)),"") -> 
AD147: ='Baza klientów'!B116 -> 0 | AE147: FALSE | AF147: =IF(AE147=TRUE,COUNTIF($AE$32:AE147,TRUE()),"") ->  | AG147: =IFERROR(INDEX($AD:$AD,MATCH(ROWS($AD$32:AD147),$AF:$AF,0)),"") ->  | AJ147: FALSE | AK147: =IF(AJ147=TRUE,COUNTIF($AJ$32:AJ147,TRUE()),"") ->  | AL147: =IFERROR(INDEX($AD:$AD,MATCH(ROWS($AD$32:AD147),$AK:$AK,0)),"") ->  | AN147: FALSE | AO147: =IF(AN147=TRUE,COUNTIF($AN$32:AN147,TRUE()),"") ->  | AP147: =IFERROR(INDEX($AD:$AD,MATCH(ROWS($AD$32:$AD147),$AO:$AO,0)),"") -> 
AD148: ='Baza klientów'!B117 -> 0 | AE148: FALSE | AF148: =IF(AE148=TRUE,COUNTIF($AE$32:AE148,TRUE()),"") ->  | AG148: =IFERROR(INDEX($AD:$AD,MATCH(ROWS($AD$32:AD148),$AF:$AF,0)),"") ->  | AJ148: FALSE | AK148: =IF(AJ148=TRUE,COUNTIF($AJ$32:AJ148,TRUE()),"") ->  | AL148: =IFERROR(INDEX($AD:$AD,MATCH(ROWS($AD$32:AD148),$AK:$AK,0)),"") ->  | AN148: FALSE | AO148: =IF(AN148=TRUE,COUNTIF($AN$32:AN148,TRUE()),"") ->  | AP148: =IFERROR(INDEX($AD:$AD,MATCH(ROWS($AD$32:$AD148),$AO:$AO,0)),"") -> 
AD149: ='Baza klientów'!B118 -> 0 | AE149: FALSE | AF149: =IF(AE149=TRUE,COUNTIF($AE$32:AE149,TRUE()),"") ->  | AG149: =IFERROR(INDEX($AD:$AD,MATCH(ROWS($AD$32:AD149),$AF:$AF,0)),"") ->  | AJ149: FALSE | AK149: =IF(AJ149=TRUE,COUNTIF($AJ$32:AJ149,TRUE()),"") ->  | AL149: =IFERROR(INDEX($AD:$AD,MATCH(ROWS($AD$32:AD149),$AK:$AK,0)),"") ->  | AN149: FALSE | AO149: =IF(AN149=TRUE,COUNTIF($AN$32:AN149,TRUE()),"") ->  | AP149: =IFERROR(INDEX($AD:$AD,MATCH(ROWS($AD$32:$AD149),$AO:$AO,0)),"") -> 
AD150: ='Baza klientów'!B119 -> 0 | AE150: FALSE | AF150: =IF(AE150=TRUE,COUNTIF($AE$32:AE150,TRUE()),"") ->  | AG150: =IFERROR(INDEX($AD:$AD,MATCH(ROWS($AD$32:AD150),$AF:$AF,0)),"") ->  | AJ150: FALSE | AK150: =IF(AJ150=TRUE,COUNTIF($AJ$32:AJ150,TRUE()),"") ->  | AL150: =IFERROR(INDEX($AD:$AD,MATCH(ROWS($AD$32:AD150),$AK:$AK,0)),"") ->  | AN150: FALSE | AO150: =IF(AN150=TRUE,COUNTIF($AN$32:AN150,TRUE()),"") ->  | AP150: =IFERROR(INDEX($AD:$AD,MATCH(ROWS($AD$32:$AD150),$AO:$AO,0)),"") -> 
AD151: ='Baza klientów'!B120 -> 0 | AE151: FALSE | AF151: =IF(AE151=TRUE,COUNTIF($AE$32:AE151,TRUE()),"") ->  | AG151: =IFERROR(INDEX($AD:$AD,MATCH(ROWS($AD$32:AD151),$AF:$AF,0)),"") ->  | AJ151: FALSE | AK151: =IF(AJ151=TRUE,COUNTIF($AJ$32:AJ151,TRUE()),"") ->  | AL151: =IFERROR(INDEX($AD:$AD,MATCH(ROWS($AD$32:AD151),$AK:$AK,0)),"") ->  | AN151: FALSE | AO151: =IF(AN151=TRUE,COUNTIF($AN$32:AN151,TRUE()),"") ->  | AP151: =IFERROR(INDEX($AD:$AD,MATCH(ROWS($AD$32:$AD151),$AO:$AO,0)),"") -> 
AD152: ='Baza klientów'!B121 -> 0 | AE152: FALSE | AF152: =IF(AE152=TRUE,COUNTIF($AE$32:AE152,TRUE()),"") ->  | AG152: =IFERROR(INDEX($AD:$AD,MATCH(ROWS($AD$32:AD152),$AF:$AF,0)),"") ->  | AJ152: FALSE | AK152: =IF(AJ152=TRUE,COUNTIF($AJ$32:AJ152,TRUE()),"") ->  | AL152: =IFERROR(INDEX($AD:$AD,MATCH(ROWS($AD$32:AD152),$AK:$AK,0)),"") ->  | AN152: FALSE | AO152: =IF(AN152=TRUE,COUNTIF($AN$32:AN152,TRUE()),"") ->  | AP152: =IFERROR(INDEX($AD:$AD,MATCH(ROWS($AD$32:$AD152),$AO:$AO,0)),"") -> 
AD153: ='Baza klientów'!B122 -> 0 | AE153: FALSE | AF153: =IF(AE153=TRUE,COUNTIF($AE$32:AE153,TRUE()),"") ->  | AG153: =IFERROR(INDEX($AD:$AD,MATCH(ROWS($AD$32:AD153),$AF:$AF,0)),"") ->  | AJ153: FALSE | AK153: =IF(AJ153=TRUE,COUNTIF($AJ$32:AJ153,TRUE()),"") ->  | AL153: =IFERROR(INDEX($AD:$AD,MATCH(ROWS($AD$32:AD153),$AK:$AK,0)),"") ->  | AN153: FALSE | AO153: =IF(AN153=TRUE,COUNTIF($AN$32:AN153,TRUE()),"") ->  | AP153: =IFERROR(INDEX($AD:$AD,MATCH(ROWS($AD$32:$AD153),$AO:$AO,0)),"") -> 
AD154: ='Baza klientów'!B123 -> 0 | AE154: FALSE | AF154: =IF(AE154=TRUE,COUNTIF($AE$32:AE154,TRUE()),"") ->  | AG154: =IFERROR(INDEX($AD:$AD,MATCH(ROWS($AD$32:AD154),$AF:$AF,0)),"") ->  | AJ154: FALSE | AK154: =IF(AJ154=TRUE,COUNTIF($AJ$32:AJ154,TRUE()),"") ->  | AL154: =IFERROR(INDEX($AD:$AD,MATCH(ROWS($AD$32:AD154),$AK:$AK,0)),"") ->  | AN154: FALSE | AO154: =IF(AN154=TRUE,COUNTIF($AN$32:AN154,TRUE()),"") ->  | AP154: =IFERROR(INDEX($AD:$AD,MATCH(ROWS($AD$32:$AD154),$AO:$AO,0)),"") -> 
AD155: ='Baza klientów'!B124 -> 0 | AE155: FALSE | AF155: =IF(AE155=TRUE,COUNTIF($AE$32:AE155,TRUE()),"") ->  | AG155: =IFERROR(INDEX($AD:$AD,MATCH(ROWS($AD$32:AD155),$AF:$AF,0)),"") ->  | AJ155: FALSE | AK155: =IF(AJ155=TRUE,COUNTIF($AJ$32:AJ155,TRUE()),"") ->  | AL155: =IFERROR(INDEX($AD:$AD,MATCH(ROWS($AD$32:AD155),$AK:$AK,0)),"") ->  | AN155: FALSE | AO155: =IF(AN155=TRUE,COUNTIF($AN$32:AN155,TRUE()),"") ->  | AP155: =IFERROR(INDEX($AD:$AD,MATCH(ROWS($AD$32:$AD155),$AO:$AO,0)),"") -> 
AD156: ='Baza klientów'!B125 -> 0 | AE156: FALSE | AF156: =IF(AE156=TRUE,COUNTIF($AE$32:AE156,TRUE()),"") ->  | AG156: =IFERROR(INDEX($AD:$AD,MATCH(ROWS($AD$32:AD156),$AF:$AF,0)),"") ->  | AJ156: FALSE | AK156: =IF(AJ156=TRUE,COUNTIF($AJ$32:AJ156,TRUE()),"") ->  | AL156: =IFERROR(INDEX($AD:$AD,MATCH(ROWS($AD$32:AD156),$AK:$AK,0)),"") ->  | AN156: FALSE | AO156: =IF(AN156=TRUE,COUNTIF($AN$32:AN156,TRUE()),"") ->  | AP156: =IFERROR(INDEX($AD:$AD,MATCH(ROWS($AD$32:$AD156),$AO:$AO,0)),"") -> 
AD157: ='Baza klientów'!B126 -> 0 | AE157: FALSE | AF157: =IF(AE157=TRUE,COUNTIF($AE$32:AE157,TRUE()),"") ->  | AG157: =IFERROR(INDEX($AD:$AD,MATCH(ROWS($AD$32:AD157),$AF:$AF,0)),"") ->  | AJ157: FALSE | AK157: =IF(AJ157=TRUE,COUNTIF($AJ$32:AJ157,TRUE()),"") ->  | AL157: =IFERROR(INDEX($AD:$AD,MATCH(ROWS($AD$32:AD157),$AK:$AK,0)),"") ->  | AN157: FALSE | AO157: =IF(AN157=TRUE,COUNTIF($AN$32:AN157,TRUE()),"") ->  | AP157: =IFERROR(INDEX($AD:$AD,MATCH(ROWS($AD$32:$AD157),$AO:$AO,0)),"") -> 
AD158: ='Baza klientów'!B127 -> 0 | AE158: FALSE | AF158: =IF(AE158=TRUE,COUNTIF($AE$32:AE158,TRUE()),"") ->  | AG158: =IFERROR(INDEX($AD:$AD,MATCH(ROWS($AD$32:AD158),$AF:$AF,0)),"") ->  | AJ158: FALSE | AK158: =IF(AJ158=TRUE,COUNTIF($AJ$32:AJ158,TRUE()),"") ->  | AL158: =IFERROR(INDEX($AD:$AD,MATCH(ROWS($AD$32:AD158),$AK:$AK,0)),"") ->  | AN158: FALSE | AO158: =IF(AN158=TRUE,COUNTIF($AN$32:AN158,TRUE()),"") ->  | AP158: =IFERROR(INDEX($AD:$AD,MATCH(ROWS($AD$32:$AD158),$AO:$AO,0)),"") -> 
AD159: ='Baza klientów'!B128 -> 0 | AE159: FALSE | AF159: =IF(AE159=TRUE,COUNTIF($AE$32:AE159,TRUE()),"") ->  | AG159: =IFERROR(INDEX($AD:$AD,MATCH(ROWS($AD$32:AD159),$AF:$AF,0)),"") ->  | AJ159: FALSE | AK159: =IF(AJ159=TRUE,COUNTIF($AJ$32:AJ159,TRUE()),"") ->  | AL159: =IFERROR(INDEX($AD:$AD,MATCH(ROWS($AD$32:AD159),$AK:$AK,0)),"") ->  | AN159: FALSE | AO159: =IF(AN159=TRUE,COUNTIF($AN$32:AN159,TRUE()),"") ->  | AP159: =IFERROR(INDEX($AD:$AD,MATCH(ROWS($AD$32:$AD159),$AO:$AO,0)),"") -> 
AD160: ='Baza klientów'!B129 -> 0 | AE160: FALSE | AF160: =IF(AE160=TRUE,COUNTIF($AE$32:AE160,TRUE()),"") ->  | AG160: =IFERROR(INDEX($AD:$AD,MATCH(ROWS($AD$32:AD160),$AF:$AF,0)),"") ->  | AJ160: FALSE | AK160: =IF(AJ160=TRUE,COUNTIF($AJ$32:AJ160,TRUE()),"") ->  | AL160: =IFERROR(INDEX($AD:$AD,MATCH(ROWS($AD$32:AD160),$AK:$AK,0)),"") ->  | AN160: FALSE | AO160: =IF(AN160=TRUE,COUNTIF($AN$32:AN160,TRUE()),"") ->  | AP160: =IFERROR(INDEX($AD:$AD,MATCH(ROWS($AD$32:$AD160),$AO:$AO,0)),"") -> 
AD161: ='Baza klientów'!B130 -> 0 | AE161: =ISNUMBER(SEARCH($AH$32,AD161)) -> FALSE | AF161: =IF(AE161=TRUE,COUNTIF($AE$32:AE161,TRUE()),"") ->  | AG161: =IFERROR(INDEX($AD:$AD,MATCH(ROWS($AD$32:AD161),$AF:$AF,0)),"") ->  | AJ161: =ISNUMBER(SEARCH($AM$31,AD161)) -> FALSE | AK161: =IF(AJ161=TRUE,COUNTIF($AJ$32:AJ161,TRUE()),"") ->  | AL161: =IFERROR(INDEX($AD:$AD,MATCH(ROWS($AD$32:AD161),$AK:$AK,0)),"") ->  | AN161: =ISNUMBER(SEARCH($AQ$31,$AD161)) -> FALSE | AO161: =IF(AN161=TRUE,COUNTIF($AN$32:AN161,TRUE()),"") ->  | AP161: =IFERROR(INDEX($AD:$AD,MATCH(ROWS($AD$32:$AD161),$AO:$AO,0)),"") -> 
AD162: ='Baza klientów'!B131 -> 0 | AE162: FALSE | AF162: =IF(AE162=TRUE,COUNTIF($AE$32:AE162,TRUE()),"") ->  | AG162: =IFERROR(INDEX($AD:$AD,MATCH(ROWS($AD$32:AD162),$AF:$AF,0)),"") ->  | AJ162: FALSE | AK162: =IF(AJ162=TRUE,COUNTIF($AJ$32:AJ162,TRUE()),"") ->  | AL162: =IFERROR(INDEX($AD:$AD,MATCH(ROWS($AD$32:AD162),$AK:$AK,0)),"") ->  | AN162: FALSE | AO162: =IF(AN162=TRUE,COUNTIF($AN$32:AN162,TRUE()),"") ->  | AP162: =IFERROR(INDEX($AD:$AD,MATCH(ROWS($AD$32:$AD162),$AO:$AO,0)),"") -> 
AD163: ='Baza klientów'!B132 -> 0 | AE163: FALSE | AF163: =IF(AE163=TRUE,COUNTIF($AE$32:AE163,TRUE()),"") ->  | AG163: =IFERROR(INDEX($AD:$AD,MATCH(ROWS($AD$32:AD163),$AF:$AF,0)),"") ->  | AJ163: FALSE | AK163: =IF(AJ163=TRUE,COUNTIF($AJ$32:AJ163,TRUE()),"") ->  | AL163: =IFERROR(INDEX($AD:$AD,MATCH(ROWS($AD$32:AD163),$AK:$AK,0)),"") ->  | AN163: FALSE | AO163: =IF(AN163=TRUE,COUNTIF($AN$32:AN163,TRUE()),"") ->  | AP163: =IFERROR(INDEX($AD:$AD,MATCH(ROWS($AD$32:$AD163),$AO:$AO,0)),"") -> 
AD164: ='Baza klientów'!B133 -> 0 | AE164: FALSE | AF164: =IF(AE164=TRUE,COUNTIF($AE$32:AE164,TRUE()),"") ->  | AG164: =IFERROR(INDEX($AD:$AD,MATCH(ROWS($AD$32:AD164),$AF:$AF,0)),"") ->  | AJ164: FALSE | AK164: =IF(AJ164=TRUE,COUNTIF($AJ$32:AJ164,TRUE()),"") ->  | AL164: =IFERROR(INDEX($AD:$AD,MATCH(ROWS($AD$32:AD164),$AK:$AK,0)),"") ->  | AN164: FALSE | AO164: =IF(AN164=TRUE,COUNTIF($AN$32:AN164,TRUE()),"") ->  | AP164: =IFERROR(INDEX($AD:$AD,MATCH(ROWS($AD$32:$AD164),$AO:$AO,0)),"") -> 
AD165: ='Baza klientów'!B134 -> 0 | AE165: FALSE | AF165: =IF(AE165=TRUE,COUNTIF($AE$32:AE165,TRUE()),"") ->  | AG165: =IFERROR(INDEX($AD:$AD,MATCH(ROWS($AD$32:AD165),$AF:$AF,0)),"") ->  | AJ165: FALSE | AK165: =IF(AJ165=TRUE,COUNTIF($AJ$32:AJ165,TRUE()),"") ->  | AL165: =IFERROR(INDEX($AD:$AD,MATCH(ROWS($AD$32:AD165),$AK:$AK,0)),"") ->  | AN165: FALSE | AO165: =IF(AN165=TRUE,COUNTIF($AN$32:AN165,TRUE()),"") ->  | AP165: =IFERROR(INDEX($AD:$AD,MATCH(ROWS($AD$32:$AD165),$AO:$AO,0)),"") -> 
AD166: ='Baza klientów'!B135 -> 0 | AE166: FALSE | AF166: =IF(AE166=TRUE,COUNTIF($AE$32:AE166,TRUE()),"") ->  | AG166: =IFERROR(INDEX($AD:$AD,MATCH(ROWS($AD$32:AD166),$AF:$AF,0)),"") ->  | AJ166: FALSE | AK166: =IF(AJ166=TRUE,COUNTIF($AJ$32:AJ166,TRUE()),"") ->  | AL166: =IFERROR(INDEX($AD:$AD,MATCH(ROWS($AD$32:AD166),$AK:$AK,0)),"") ->  | AN166: FALSE | AO166: =IF(AN166=TRUE,COUNTIF($AN$32:AN166,TRUE()),"") ->  | AP166: =IFERROR(INDEX($AD:$AD,MATCH(ROWS($AD$32:$AD166),$AO:$AO,0)),"") -> 
AD167: ='Baza klientów'!B136 -> 0 | AE167: FALSE | AF167: =IF(AE167=TRUE,COUNTIF($AE$32:AE167,TRUE()),"") ->  | AG167: =IFERROR(INDEX($AD:$AD,MATCH(ROWS($AD$32:AD167),$AF:$AF,0)),"") ->  | AJ167: FALSE | AK167: =IF(AJ167=TRUE,COUNTIF($AJ$32:AJ167,TRUE()),"") ->  | AL167: =IFERROR(INDEX($AD:$AD,MATCH(ROWS($AD$32:AD167),$AK:$AK,0)),"") ->  | AN167: FALSE | AO167: =IF(AN167=TRUE,COUNTIF($AN$32:AN167,TRUE()),"") ->  | AP167: =IFERROR(INDEX($AD:$AD,MATCH(ROWS($AD$32:$AD167),$AO:$AO,0)),"") -> 
AD168: ='Baza klientów'!B137 -> 0 | AE168: FALSE | AF168: =IF(AE168=TRUE,COUNTIF($AE$32:AE168,TRUE()),"") ->  | AG168: =IFERROR(INDEX($AD:$AD,MATCH(ROWS($AD$32:AD168),$AF:$AF,0)),"") ->  | AJ168: FALSE | AK168: =IF(AJ168=TRUE,COUNTIF($AJ$32:AJ168,TRUE()),"") ->  | AL168: =IFERROR(INDEX($AD:$AD,MATCH(ROWS($AD$32:AD168),$AK:$AK,0)),"") ->  | AN168: FALSE | AO168: =IF(AN168=TRUE,COUNTIF($AN$32:AN168,TRUE()),"") ->  | AP168: =IFERROR(INDEX($AD:$AD,MATCH(ROWS($AD$32:$AD168),$AO:$AO,0)),"") -> 
AD169: ='Baza klientów'!B138 -> 0 | AE169: FALSE | AF169: =IF(AE169=TRUE,COUNTIF($AE$32:AE169,TRUE()),"") ->  | AG169: =IFERROR(INDEX($AD:$AD,MATCH(ROWS($AD$32:AD169),$AF:$AF,0)),"") ->  | AJ169: FALSE | AK169: =IF(AJ169=TRUE,COUNTIF($AJ$32:AJ169,TRUE()),"") ->  | AL169: =IFERROR(INDEX($AD:$AD,MATCH(ROWS($AD$32:AD169),$AK:$AK,0)),"") ->  | AN169: FALSE | AO169: =IF(AN169=TRUE,COUNTIF($AN$32:AN169,TRUE()),"") ->  | AP169: =IFERROR(INDEX($AD:$AD,MATCH(ROWS($AD$32:$AD169),$AO:$AO,0)),"") -> 
AD170: ='Baza klientów'!B139 -> 0 | AE170: FALSE | AF170: =IF(AE170=TRUE,COUNTIF($AE$32:AE170,TRUE()),"") ->  | AG170: =IFERROR(INDEX($AD:$AD,MATCH(ROWS($AD$32:AD170),$AF:$AF,0)),"") ->  | AJ170: FALSE | AK170: =IF(AJ170=TRUE,COUNTIF($AJ$32:AJ170,TRUE()),"") ->  | AL170: =IFERROR(INDEX($AD:$AD,MATCH(ROWS($AD$32:AD170),$AK:$AK,0)),"") ->  | AN170: FALSE | AO170: =IF(AN170=TRUE,COUNTIF($AN$32:AN170,TRUE()),"") ->  | AP170: =IFERROR(INDEX($AD:$AD,MATCH(ROWS($AD$32:$AD170),$AO:$AO,0)),"") -> 
AD171: ='Baza klientów'!B140 -> 0 | AE171: FALSE | AF171: =IF(AE171=TRUE,COUNTIF($AE$32:AE171,TRUE()),"") ->  | AG171: =IFERROR(INDEX($AD:$AD,MATCH(ROWS($AD$32:AD171),$AF:$AF,0)),"") ->  | AJ171: FALSE | AK171: =IF(AJ171=TRUE,COUNTIF($AJ$32:AJ171,TRUE()),"") ->  | AL171: =IFERROR(INDEX($AD:$AD,MATCH(ROWS($AD$32:AD171),$AK:$AK,0)),"") ->  | AN171: FALSE | AO171: =IF(AN171=TRUE,COUNTIF($AN$32:AN171,TRUE()),"") ->  | AP171: =IFERROR(INDEX($AD:$AD,MATCH(ROWS($AD$32:$AD171),$AO:$AO,0)),"") -> 
AD172: ='Baza klientów'!B141 -> 0 | AE172: FALSE | AF172: =IF(AE172=TRUE,COUNTIF($AE$32:AE172,TRUE()),"") ->  | AG172: =IFERROR(INDEX($AD:$AD,MATCH(ROWS($AD$32:AD172),$AF:$AF,0)),"") ->  | AJ172: FALSE | AK172: =IF(AJ172=TRUE,COUNTIF($AJ$32:AJ172,TRUE()),"") ->  | AL172: =IFERROR(INDEX($AD:$AD,MATCH(ROWS($AD$32:AD172),$AK:$AK,0)),"") ->  | AN172: FALSE | AO172: =IF(AN172=TRUE,COUNTIF($AN$32:AN172,TRUE()),"") ->  | AP172: =IFERROR(INDEX($AD:$AD,MATCH(ROWS($AD$32:$AD172),$AO:$AO,0)),"") -> 
AD173: ='Baza klientów'!B142 -> 0 | AE173: FALSE | AF173: =IF(AE173=TRUE,COUNTIF($AE$32:AE173,TRUE()),"") ->  | AG173: =IFERROR(INDEX($AD:$AD,MATCH(ROWS($AD$32:AD173),$AF:$AF,0)),"") ->  | AJ173: FALSE | AK173: =IF(AJ173=TRUE,COUNTIF($AJ$32:AJ173,TRUE()),"") ->  | AL173: =IFERROR(INDEX($AD:$AD,MATCH(ROWS($AD$32:AD173),$AK:$AK,0)),"") ->  | AN173: FALSE | AO173: =IF(AN173=TRUE,COUNTIF($AN$32:AN173,TRUE()),"") ->  | AP173: =IFERROR(INDEX($AD:$AD,MATCH(ROWS($AD$32:$AD173),$AO:$AO,0)),"") -> 
AD174: ='Baza klientów'!B143 -> 0 | AE174: FALSE | AF174: =IF(AE174=TRUE,COUNTIF($AE$32:AE174,TRUE()),"") ->  | AG174: =IFERROR(INDEX($AD:$AD,MATCH(ROWS($AD$32:AD174),$AF:$AF,0)),"") ->  | AJ174: FALSE | AK174: =IF(AJ174=TRUE,COUNTIF($AJ$32:AJ174,TRUE()),"") ->  | AL174: =IFERROR(INDEX($AD:$AD,MATCH(ROWS($AD$32:AD174),$AK:$AK,0)),"") ->  | AN174: FALSE | AO174: =IF(AN174=TRUE,COUNTIF($AN$32:AN174,TRUE()),"") ->  | AP174: =IFERROR(INDEX($AD:$AD,MATCH(ROWS($AD$32:$AD174),$AO:$AO,0)),"") -> 
AD175: ='Baza klientów'!B144 -> 0 | AE175: FALSE | AF175: =IF(AE175=TRUE,COUNTIF($AE$32:AE175,TRUE()),"") ->  | AG175: =IFERROR(INDEX($AD:$AD,MATCH(ROWS($AD$32:AD175),$AF:$AF,0)),"") ->  | AJ175: FALSE | AK175: =IF(AJ175=TRUE,COUNTIF($AJ$32:AJ175,TRUE()),"") ->  | AL175: =IFERROR(INDEX($AD:$AD,MATCH(ROWS($AD$32:AD175),$AK:$AK,0)),"") ->  | AN175: FALSE | AO175: =IF(AN175=TRUE,COUNTIF($AN$32:AN175,TRUE()),"") ->  | AP175: =IFERROR(INDEX($AD:$AD,MATCH(ROWS($AD$32:$AD175),$AO:$AO,0)),"") -> 
AD176: ='Baza klientów'!B145 -> 0 | AE176: FALSE | AF176: =IF(AE176=TRUE,COUNTIF($AE$32:AE176,TRUE()),"") ->  | AG176: =IFERROR(INDEX($AD:$AD,MATCH(ROWS($AD$32:AD176),$AF:$AF,0)),"") ->  | AJ176: FALSE | AK176: =IF(AJ176=TRUE,COUNTIF($AJ$32:AJ176,TRUE()),"") ->  | AL176: =IFERROR(INDEX($AD:$AD,MATCH(ROWS($AD$32:AD176),$AK:$AK,0)),"") ->  | AN176: FALSE | AO176: =IF(AN176=TRUE,COUNTIF($AN$32:AN176,TRUE()),"") ->  | AP176: =IFERROR(INDEX($AD:$AD,MATCH(ROWS($AD$32:$AD176),$AO:$AO,0)),"") -> 
AD177: ='Baza klientów'!B146 -> 0 | AE177: FALSE | AF177: =IF(AE177=TRUE,COUNTIF($AE$32:AE177,TRUE()),"") ->  | AG177: =IFERROR(INDEX($AD:$AD,MATCH(ROWS($AD$32:AD177),$AF:$AF,0)),"") ->  | AJ177: FALSE | AK177: =IF(AJ177=TRUE,COUNTIF($AJ$32:AJ177,TRUE()),"") ->  | AL177: =IFERROR(INDEX($AD:$AD,MATCH(ROWS($AD$32:AD177),$AK:$AK,0)),"") ->  | AN177: FALSE | AO177: =IF(AN177=TRUE,COUNTIF($AN$32:AN177,TRUE()),"") ->  | AP177: =IFERROR(INDEX($AD:$AD,MATCH(ROWS($AD$32:$AD177),$AO:$AO,0)),"") -> 
AD178: ='Baza klientów'!B147 -> 0 | AE178: FALSE | AF178: =IF(AE178=TRUE,COUNTIF($AE$32:AE178,TRUE()),"") ->  | AG178: =IFERROR(INDEX($AD:$AD,MATCH(ROWS($AD$32:AD178),$AF:$AF,0)),"") ->  | AJ178: FALSE | AK178: =IF(AJ178=TRUE,COUNTIF($AJ$32:AJ178,TRUE()),"") ->  | AL178: =IFERROR(INDEX($AD:$AD,MATCH(ROWS($AD$32:AD178),$AK:$AK,0)),"") ->  | AN178: FALSE | AO178: =IF(AN178=TRUE,COUNTIF($AN$32:AN178,TRUE()),"") ->  | AP178: =IFERROR(INDEX($AD:$AD,MATCH(ROWS($AD$32:$AD178),$AO:$AO,0)),"") -> 
AD179: ='Baza klientów'!B148 -> 0 | AE179: FALSE | AF179: =IF(AE179=TRUE,COUNTIF($AE$32:AE179,TRUE()),"") ->  | AG179: =IFERROR(INDEX($AD:$AD,MATCH(ROWS($AD$32:AD179),$AF:$AF,0)),"") ->  | AJ179: FALSE | AK179: =IF(AJ179=TRUE,COUNTIF($AJ$32:AJ179,TRUE()),"") ->  | AL179: =IFERROR(INDEX($AD:$AD,MATCH(ROWS($AD$32:AD179),$AK:$AK,0)),"") ->  | AN179: FALSE | AO179: =IF(AN179=TRUE,COUNTIF($AN$32:AN179,TRUE()),"") ->  | AP179: =IFERROR(INDEX($AD:$AD,MATCH(ROWS($AD$32:$AD179),$AO:$AO,0)),"") -> 
AD180: ='Baza klientów'!B149 -> 0 | AE180: FALSE | AF180: =IF(AE180=TRUE,COUNTIF($AE$32:AE180,TRUE()),"") ->  | AG180: =IFERROR(INDEX($AD:$AD,MATCH(ROWS($AD$32:AD180),$AF:$AF,0)),"") ->  | AJ180: FALSE | AK180: =IF(AJ180=TRUE,COUNTIF($AJ$32:AJ180,TRUE()),"") ->  | AL180: =IFERROR(INDEX($AD:$AD,MATCH(ROWS($AD$32:AD180),$AK:$AK,0)),"") ->  | AN180: FALSE | AO180: =IF(AN180=TRUE,COUNTIF($AN$32:AN180,TRUE()),"") ->  | AP180: =IFERROR(INDEX($AD:$AD,MATCH(ROWS($AD$32:$AD180),$AO:$AO,0)),"") -> 
AD181: ='Baza klientów'!B150 -> 0 | AE181: FALSE | AF181: =IF(AE181=TRUE,COUNTIF($AE$32:AE181,TRUE()),"") ->  | AG181: =IFERROR(INDEX($AD:$AD,MATCH(ROWS($AD$32:AD181),$AF:$AF,0)),"") ->  | AJ181: FALSE | AK181: =IF(AJ181=TRUE,COUNTIF($AJ$32:AJ181,TRUE()),"") ->  | AL181: =IFERROR(INDEX($AD:$AD,MATCH(ROWS($AD$32:AD181),$AK:$AK,0)),"") ->  | AN181: FALSE | AO181: =IF(AN181=TRUE,COUNTIF($AN$32:AN181,TRUE()),"") ->  | AP181: =IFERROR(INDEX($AD:$AD,MATCH(ROWS($AD$32:$AD181),$AO:$AO,0)),"") -> 
AD182: ='Baza klientów'!B151 -> 0 | AE182: FALSE | AF182: =IF(AE182=TRUE,COUNTIF($AE$32:AE182,TRUE()),"") ->  | AG182: =IFERROR(INDEX($AD:$AD,MATCH(ROWS($AD$32:AD182),$AF:$AF,0)),"") ->  | AJ182: FALSE | AK182: =IF(AJ182=TRUE,COUNTIF($AJ$32:AJ182,TRUE()),"") ->  | AL182: =IFERROR(INDEX($AD:$AD,MATCH(ROWS($AD$32:AD182),$AK:$AK,0)),"") ->  | AN182: FALSE | AO182: =IF(AN182=TRUE,COUNTIF($AN$32:AN182,TRUE()),"") ->  | AP182: =IFERROR(INDEX($AD:$AD,MATCH(ROWS($AD$32:$AD182),$AO:$AO,0)),"") -> 
AD183: ='Baza klientów'!B152 -> 0 | AE183: FALSE | AF183: =IF(AE183=TRUE,COUNTIF($AE$32:AE183,TRUE()),"") ->  | AG183: =IFERROR(INDEX($AD:$AD,MATCH(ROWS($AD$32:AD183),$AF:$AF,0)),"") ->  | AJ183: FALSE | AK183: =IF(AJ183=TRUE,COUNTIF($AJ$32:AJ183,TRUE()),"") ->  | AL183: =IFERROR(INDEX($AD:$AD,MATCH(ROWS($AD$32:AD183),$AK:$AK,0)),"") ->  | AN183: FALSE | AO183: =IF(AN183=TRUE,COUNTIF($AN$32:AN183,TRUE()),"") ->  | AP183: =IFERROR(INDEX($AD:$AD,MATCH(ROWS($AD$32:$AD183),$AO:$AO,0)),"") -> 
AD184: ='Baza klientów'!B153 -> 0 | AE184: FALSE | AF184: =IF(AE184=TRUE,COUNTIF($AE$32:AE184,TRUE()),"") ->  | AG184: =IFERROR(INDEX($AD:$AD,MATCH(ROWS($AD$32:AD184),$AF:$AF,0)),"") ->  | AJ184: FALSE | AK184: =IF(AJ184=TRUE,COUNTIF($AJ$32:AJ184,TRUE()),"") ->  | AL184: =IFERROR(INDEX($AD:$AD,MATCH(ROWS($AD$32:AD184),$AK:$AK,0)),"") ->  | AN184: FALSE | AO184: =IF(AN184=TRUE,COUNTIF($AN$32:AN184,TRUE()),"") ->  | AP184: =IFERROR(INDEX($AD:$AD,MATCH(ROWS($AD$32:$AD184),$AO:$AO,0)),"") -> 
AD185: ='Baza klientów'!B154 -> 0 | AE185: FALSE | AF185: =IF(AE185=TRUE,COUNTIF($AE$32:AE185,TRUE()),"") ->  | AG185: =IFERROR(INDEX($AD:$AD,MATCH(ROWS($AD$32:AD185),$AF:$AF,0)),"") ->  | AJ185: FALSE | AK185: =IF(AJ185=TRUE,COUNTIF($AJ$32:AJ185,TRUE()),"") ->  | AL185: =IFERROR(INDEX($AD:$AD,MATCH(ROWS($AD$32:AD185),$AK:$AK,0)),"") ->  | AN185: FALSE | AO185: =IF(AN185=TRUE,COUNTIF($AN$32:AN185,TRUE()),"") ->  | AP185: =IFERROR(INDEX($AD:$AD,MATCH(ROWS($AD$32:$AD185),$AO:$AO,0)),"") -> 
AD186: ='Baza klientów'!B155 -> 0 | AE186: FALSE | AF186: =IF(AE186=TRUE,COUNTIF($AE$32:AE186,TRUE()),"") ->  | AG186: =IFERROR(INDEX($AD:$AD,MATCH(ROWS($AD$32:AD186),$AF:$AF,0)),"") ->  | AJ186: FALSE | AK186: =IF(AJ186=TRUE,COUNTIF($AJ$32:AJ186,TRUE()),"") ->  | AL186: =IFERROR(INDEX($AD:$AD,MATCH(ROWS($AD$32:AD186),$AK:$AK,0)),"") ->  | AN186: FALSE | AO186: =IF(AN186=TRUE,COUNTIF($AN$32:AN186,TRUE()),"") ->  | AP186: =IFERROR(INDEX($AD:$AD,MATCH(ROWS($AD$32:$AD186),$AO:$AO,0)),"") -> 
AD187: ='Baza klientów'!B156 -> 0 | AE187: FALSE | AF187: =IF(AE187=TRUE,COUNTIF($AE$32:AE187,TRUE()),"") ->  | AG187: =IFERROR(INDEX($AD:$AD,MATCH(ROWS($AD$32:AD187),$AF:$AF,0)),"") ->  | AJ187: FALSE | AK187: =IF(AJ187=TRUE,COUNTIF($AJ$32:AJ187,TRUE()),"") ->  | AL187: =IFERROR(INDEX($AD:$AD,MATCH(ROWS($AD$32:AD187),$AK:$AK,0)),"") ->  | AN187: FALSE | AO187: =IF(AN187=TRUE,COUNTIF($AN$32:AN187,TRUE()),"") ->  | AP187: =IFERROR(INDEX($AD:$AD,MATCH(ROWS($AD$32:$AD187),$AO:$AO,0)),"") -> 
AD188: ='Baza klientów'!B157 -> 0 | AE188: FALSE | AF188: =IF(AE188=TRUE,COUNTIF($AE$32:AE188,TRUE()),"") ->  | AG188: =IFERROR(INDEX($AD:$AD,MATCH(ROWS($AD$32:AD188),$AF:$AF,0)),"") ->  | AJ188: FALSE | AK188: =IF(AJ188=TRUE,COUNTIF($AJ$32:AJ188,TRUE()),"") ->  | AL188: =IFERROR(INDEX($AD:$AD,MATCH(ROWS($AD$32:AD188),$AK:$AK,0)),"") ->  | AN188: FALSE | AO188: =IF(AN188=TRUE,COUNTIF($AN$32:AN188,TRUE()),"") ->  | AP188: =IFERROR(INDEX($AD:$AD,MATCH(ROWS($AD$32:$AD188),$AO:$AO,0)),"") -> 
AD189: ='Baza klientów'!B158 -> 0 | AE189: FALSE | AF189: =IF(AE189=TRUE,COUNTIF($AE$32:AE189,TRUE()),"") ->  | AG189: =IFERROR(INDEX($AD:$AD,MATCH(ROWS($AD$32:AD189),$AF:$AF,0)),"") ->  | AJ189: FALSE | AK189: =IF(AJ189=TRUE,COUNTIF($AJ$32:AJ189,TRUE()),"") ->  | AL189: =IFERROR(INDEX($AD:$AD,MATCH(ROWS($AD$32:AD189),$AK:$AK,0)),"") ->  | AN189: FALSE | AO189: =IF(AN189=TRUE,COUNTIF($AN$32:AN189,TRUE()),"") ->  | AP189: =IFERROR(INDEX($AD:$AD,MATCH(ROWS($AD$32:$AD189),$AO:$AO,0)),"") -> 
AD190: ='Baza klientów'!B159 -> 0 | AE190: FALSE | AF190: =IF(AE190=TRUE,COUNTIF($AE$32:AE190,TRUE()),"") ->  | AG190: =IFERROR(INDEX($AD:$AD,MATCH(ROWS($AD$32:AD190),$AF:$AF,0)),"") ->  | AJ190: FALSE | AK190: =IF(AJ190=TRUE,COUNTIF($AJ$32:AJ190,TRUE()),"") ->  | AL190: =IFERROR(INDEX($AD:$AD,MATCH(ROWS($AD$32:AD190),$AK:$AK,0)),"") ->  | AN190: FALSE | AO190: =IF(AN190=TRUE,COUNTIF($AN$32:AN190,TRUE()),"") ->  | AP190: =IFERROR(INDEX($AD:$AD,MATCH(ROWS($AD$32:$AD190),$AO:$AO,0)),"") -> 
AD191: ='Baza klientów'!B160 -> 0 | AE191: FALSE | AF191: =IF(AE191=TRUE,COUNTIF($AE$32:AE191,TRUE()),"") ->  | AG191: =IFERROR(INDEX($AD:$AD,MATCH(ROWS($AD$32:AD191),$AF:$AF,0)),"") ->  | AJ191: FALSE | AK191: =IF(AJ191=TRUE,COUNTIF($AJ$32:AJ191,TRUE()),"") ->  | AL191: =IFERROR(INDEX($AD:$AD,MATCH(ROWS($AD$32:AD191),$AK:$AK,0)),"") ->  | AN191: FALSE | AO191: =IF(AN191=TRUE,COUNTIF($AN$32:AN191,TRUE()),"") ->  | AP191: =IFERROR(INDEX($AD:$AD,MATCH(ROWS($AD$32:$AD191),$AO:$AO,0)),"") -> 
AD192: ='Baza klientów'!B161 -> 0 | AE192: FALSE | AF192: =IF(AE192=TRUE,COUNTIF($AE$32:AE192,TRUE()),"") ->  | AG192: =IFERROR(INDEX($AD:$AD,MATCH(ROWS($AD$32:AD192),$AF:$AF,0)),"") ->  | AJ192: FALSE | AK192: =IF(AJ192=TRUE,COUNTIF($AJ$32:AJ192,TRUE()),"") ->  | AL192: =IFERROR(INDEX($AD:$AD,MATCH(ROWS($AD$32:AD192),$AK:$AK,0)),"") ->  | AN192: FALSE | AO192: =IF(AN192=TRUE,COUNTIF($AN$32:AN192,TRUE()),"") ->  | AP192: =IFERROR(INDEX($AD:$AD,MATCH(ROWS($AD$32:$AD192),$AO:$AO,0)),"") -> 
AD193: ='Baza klientów'!B162 -> 0 | AE193: FALSE | AF193: =IF(AE193=TRUE,COUNTIF($AE$32:AE193,TRUE()),"") ->  | AG193: =IFERROR(INDEX($AD:$AD,MATCH(ROWS($AD$32:AD193),$AF:$AF,0)),"") ->  | AJ193: FALSE | AK193: =IF(AJ193=TRUE,COUNTIF($AJ$32:AJ193,TRUE()),"") ->  | AL193: =IFERROR(INDEX($AD:$AD,MATCH(ROWS($AD$32:AD193),$AK:$AK,0)),"") ->  | AN193: FALSE | AO193: =IF(AN193=TRUE,COUNTIF($AN$32:AN193,TRUE()),"") ->  | AP193: =IFERROR(INDEX($AD:$AD,MATCH(ROWS($AD$32:$AD193),$AO:$AO,0)),"") -> 
AD194: ='Baza klientów'!B163 -> 0 | AE194: FALSE | AF194: =IF(AE194=TRUE,COUNTIF($AE$32:AE194,TRUE()),"") ->  | AG194: =IFERROR(INDEX($AD:$AD,MATCH(ROWS($AD$32:AD194),$AF:$AF,0)),"") ->  | AJ194: FALSE | AK194: =IF(AJ194=TRUE,COUNTIF($AJ$32:AJ194,TRUE()),"") ->  | AL194: =IFERROR(INDEX($AD:$AD,MATCH(ROWS($AD$32:AD194),$AK:$AK,0)),"") ->  | AN194: FALSE | AO194: =IF(AN194=TRUE,COUNTIF($AN$32:AN194,TRUE()),"") ->  | AP194: =IFERROR(INDEX($AD:$AD,MATCH(ROWS($AD$32:$AD194),$AO:$AO,0)),"") -> 
AD195: ='Baza klientów'!B164 -> 0 | AE195: FALSE | AF195: =IF(AE195=TRUE,COUNTIF($AE$32:AE195,TRUE()),"") ->  | AG195: =IFERROR(INDEX($AD:$AD,MATCH(ROWS($AD$32:AD195),$AF:$AF,0)),"") ->  | AJ195: FALSE | AK195: =IF(AJ195=TRUE,COUNTIF($AJ$32:AJ195,TRUE()),"") ->  | AL195: =IFERROR(INDEX($AD:$AD,MATCH(ROWS($AD$32:AD195),$AK:$AK,0)),"") ->  | AN195: FALSE | AO195: =IF(AN195=TRUE,COUNTIF($AN$32:AN195,TRUE()),"") ->  | AP195: =IFERROR(INDEX($AD:$AD,MATCH(ROWS($AD$32:$AD195),$AO:$AO,0)),"") -> 
AD196: ='Baza klientów'!B165 -> 0 | AE196: FALSE | AF196: =IF(AE196=TRUE,COUNTIF($AE$32:AE196,TRUE()),"") ->  | AG196: =IFERROR(INDEX($AD:$AD,MATCH(ROWS($AD$32:AD196),$AF:$AF,0)),"") ->  | AJ196: FALSE | AK196: =IF(AJ196=TRUE,COUNTIF($AJ$32:AJ196,TRUE()),"") ->  | AL196: =IFERROR(INDEX($AD:$AD,MATCH(ROWS($AD$32:AD196),$AK:$AK,0)),"") ->  | AN196: FALSE | AO196: =IF(AN196=TRUE,COUNTIF($AN$32:AN196,TRUE()),"") ->  | AP196: =IFERROR(INDEX($AD:$AD,MATCH(ROWS($AD$32:$AD196),$AO:$AO,0)),"") -> 
AD197: ='Baza klientów'!B166 -> 0 | AE197: FALSE | AF197: =IF(AE197=TRUE,COUNTIF($AE$32:AE197,TRUE()),"") ->  | AG197: =IFERROR(INDEX($AD:$AD,MATCH(ROWS($AD$32:AD197),$AF:$AF,0)),"") ->  | AJ197: FALSE | AK197: =IF(AJ197=TRUE,COUNTIF($AJ$32:AJ197,TRUE()),"") ->  | AL197: =IFERROR(INDEX($AD:$AD,MATCH(ROWS($AD$32:AD197),$AK:$AK,0)),"") ->  | AN197: FALSE | AO197: =IF(AN197=TRUE,COUNTIF($AN$32:AN197,TRUE()),"") ->  | AP197: =IFERROR(INDEX($AD:$AD,MATCH(ROWS($AD$32:$AD197),$AO:$AO,0)),"") -> 
AD198: ='Baza klientów'!B167 -> 0 | AE198: FALSE | AF198: =IF(AE198=TRUE,COUNTIF($AE$32:AE198,TRUE()),"") ->  | AG198: =IFERROR(INDEX($AD:$AD,MATCH(ROWS($AD$32:AD198),$AF:$AF,0)),"") ->  | AJ198: FALSE | AK198: =IF(AJ198=TRUE,COUNTIF($AJ$32:AJ198,TRUE()),"") ->  | AL198: =IFERROR(INDEX($AD:$AD,MATCH(ROWS($AD$32:AD198),$AK:$AK,0)),"") ->  | AN198: FALSE | AO198: =IF(AN198=TRUE,COUNTIF($AN$32:AN198,TRUE()),"") ->  | AP198: =IFERROR(INDEX($AD:$AD,MATCH(ROWS($AD$32:$AD198),$AO:$AO,0)),"") -> 
AD199: ='Baza klientów'!B168 -> 0 | AE199: FALSE | AF199: =IF(AE199=TRUE,COUNTIF($AE$32:AE199,TRUE()),"") ->  | AG199: =IFERROR(INDEX($AD:$AD,MATCH(ROWS($AD$32:AD199),$AF:$AF,0)),"") ->  | AJ199: FALSE | AK199: =IF(AJ199=TRUE,COUNTIF($AJ$32:AJ199,TRUE()),"") ->  | AL199: =IFERROR(INDEX($AD:$AD,MATCH(ROWS($AD$32:AD199),$AK:$AK,0)),"") ->  | AN199: FALSE | AO199: =IF(AN199=TRUE,COUNTIF($AN$32:AN199,TRUE()),"") ->  | AP199: =IFERROR(INDEX($AD:$AD,MATCH(ROWS($AD$32:$AD199),$AO:$AO,0)),"") -> 
AD200: ='Baza klientów'!B169 -> 0 | AE200: FALSE | AF200: =IF(AE200=TRUE,COUNTIF($AE$32:AE200,TRUE()),"") ->  | AG200: =IFERROR(INDEX($AD:$AD,MATCH(ROWS($AD$32:AD200),$AF:$AF,0)),"") ->  | AJ200: FALSE | AK200: =IF(AJ200=TRUE,COUNTIF($AJ$32:AJ200,TRUE()),"") ->  | AL200: =IFERROR(INDEX($AD:$AD,MATCH(ROWS($AD$32:AD200),$AK:$AK,0)),"") ->  | AN200: FALSE | AO200: =IF(AN200=TRUE,COUNTIF($AN$32:AN200,TRUE()),"") ->  | AP200: =IFERROR(INDEX($AD:$AD,MATCH(ROWS($AD$32:$AD200),$AO:$AO,0)),"") -> 
AD201: ='Baza klientów'!B170 -> 0 | AE201: FALSE | AF201: =IF(AE201=TRUE,COUNTIF($AE$32:AE201,TRUE()),"") ->  | AG201: =IFERROR(INDEX($AD:$AD,MATCH(ROWS($AD$32:AD201),$AF:$AF,0)),"") ->  | AJ201: FALSE | AK201: =IF(AJ201=TRUE,COUNTIF($AJ$32:AJ201,TRUE()),"") ->  | AL201: =IFERROR(INDEX($AD:$AD,MATCH(ROWS($AD$32:AD201),$AK:$AK,0)),"") ->  | AN201: FALSE | AO201: =IF(AN201=TRUE,COUNTIF($AN$32:AN201,TRUE()),"") ->  | AP201: =IFERROR(INDEX($AD:$AD,MATCH(ROWS($AD$32:$AD201),$AO:$AO,0)),"") -> 
AD202: ='Baza klientów'!B171 -> 0 | AE202: FALSE | AF202: =IF(AE202=TRUE,COUNTIF($AE$32:AE202,TRUE()),"") ->  | AG202: =IFERROR(INDEX($AD:$AD,MATCH(ROWS($AD$32:AD202),$AF:$AF,0)),"") ->  | AJ202: FALSE | AK202: =IF(AJ202=TRUE,COUNTIF($AJ$32:AJ202,TRUE()),"") ->  | AL202: =IFERROR(INDEX($AD:$AD,MATCH(ROWS($AD$32:AD202),$AK:$AK,0)),"") ->  | AN202: FALSE | AO202: =IF(AN202=TRUE,COUNTIF($AN$32:AN202,TRUE()),"") ->  | AP202: =IFERROR(INDEX($AD:$AD,MATCH(ROWS($AD$32:$AD202),$AO:$AO,0)),"") -> 
AD203: ='Baza klientów'!B172 -> 0 | AE203: FALSE | AF203: =IF(AE203=TRUE,COUNTIF($AE$32:AE203,TRUE()),"") ->  | AG203: =IFERROR(INDEX($AD:$AD,MATCH(ROWS($AD$32:AD203),$AF:$AF,0)),"") ->  | AJ203: FALSE | AK203: =IF(AJ203=TRUE,COUNTIF($AJ$32:AJ203,TRUE()),"") ->  | AL203: =IFERROR(INDEX($AD:$AD,MATCH(ROWS($AD$32:AD203),$AK:$AK,0)),"") ->  | AN203: FALSE | AO203: =IF(AN203=TRUE,COUNTIF($AN$32:AN203,TRUE()),"") ->  | AP203: =IFERROR(INDEX($AD:$AD,MATCH(ROWS($AD$32:$AD203),$AO:$AO,0)),"") -> 
AD204: ='Baza klientów'!B173 -> 0 | AE204: FALSE | AF204: =IF(AE204=TRUE,COUNTIF($AE$32:AE204,TRUE()),"") ->  | AG204: =IFERROR(INDEX($AD:$AD,MATCH(ROWS($AD$32:AD204),$AF:$AF,0)),"") ->  | AJ204: FALSE | AK204: =IF(AJ204=TRUE,COUNTIF($AJ$32:AJ204,TRUE()),"") ->  | AL204: =IFERROR(INDEX($AD:$AD,MATCH(ROWS($AD$32:AD204),$AK:$AK,0)),"") ->  | AN204: FALSE | AO204: =IF(AN204=TRUE,COUNTIF($AN$32:AN204,TRUE()),"") ->  | AP204: =IFERROR(INDEX($AD:$AD,MATCH(ROWS($AD$32:$AD204),$AO:$AO,0)),"") -> 
AD205: ='Baza klientów'!B174 -> 0 | AE205: FALSE | AF205: =IF(AE205=TRUE,COUNTIF($AE$32:AE205,TRUE()),"") ->  | AG205: =IFERROR(INDEX($AD:$AD,MATCH(ROWS($AD$32:AD205),$AF:$AF,0)),"") ->  | AJ205: FALSE | AK205: =IF(AJ205=TRUE,COUNTIF($AJ$32:AJ205,TRUE()),"") ->  | AL205: =IFERROR(INDEX($AD:$AD,MATCH(ROWS($AD$32:AD205),$AK:$AK,0)),"") ->  | AN205: FALSE | AO205: =IF(AN205=TRUE,COUNTIF($AN$32:AN205,TRUE()),"") ->  | AP205: =IFERROR(INDEX($AD:$AD,MATCH(ROWS($AD$32:$AD205),$AO:$AO,0)),"") -> 
AD206: ='Baza klientów'!B175 -> 0 | AE206: FALSE | AF206: =IF(AE206=TRUE,COUNTIF($AE$32:AE206,TRUE()),"") ->  | AG206: =IFERROR(INDEX($AD:$AD,MATCH(ROWS($AD$32:AD206),$AF:$AF,0)),"") ->  | AJ206: FALSE | AK206: =IF(AJ206=TRUE,COUNTIF($AJ$32:AJ206,TRUE()),"") ->  | AL206: =IFERROR(INDEX($AD:$AD,MATCH(ROWS($AD$32:AD206),$AK:$AK,0)),"") ->  | AN206: FALSE | AO206: =IF(AN206=TRUE,COUNTIF($AN$32:AN206,TRUE()),"") ->  | AP206: =IFERROR(INDEX($AD:$AD,MATCH(ROWS($AD$32:$AD206),$AO:$AO,0)),"") -> 
AD207: ='Baza klientów'!B176 -> 0 | AE207: FALSE | AF207: =IF(AE207=TRUE,COUNTIF($AE$32:AE207,TRUE()),"") ->  | AG207: =IFERROR(INDEX($AD:$AD,MATCH(ROWS($AD$32:AD207),$AF:$AF,0)),"") ->  | AJ207: FALSE | AK207: =IF(AJ207=TRUE,COUNTIF($AJ$32:AJ207,TRUE()),"") ->  | AL207: =IFERROR(INDEX($AD:$AD,MATCH(ROWS($AD$32:AD207),$AK:$AK,0)),"") ->  | AN207: FALSE | AO207: =IF(AN207=TRUE,COUNTIF($AN$32:AN207,TRUE()),"") ->  | AP207: =IFERROR(INDEX($AD:$AD,MATCH(ROWS($AD$32:$AD207),$AO:$AO,0)),"") -> 
AD208: ='Baza klientów'!B177 -> 0 | AE208: FALSE | AF208: =IF(AE208=TRUE,COUNTIF($AE$32:AE208,TRUE()),"") ->  | AG208: =IFERROR(INDEX($AD:$AD,MATCH(ROWS($AD$32:AD208),$AF:$AF,0)),"") ->  | AJ208: FALSE | AK208: =IF(AJ208=TRUE,COUNTIF($AJ$32:AJ208,TRUE()),"") ->  | AL208: =IFERROR(INDEX($AD:$AD,MATCH(ROWS($AD$32:AD208),$AK:$AK,0)),"") ->  | AN208: FALSE | AO208: =IF(AN208=TRUE,COUNTIF($AN$32:AN208,TRUE()),"") ->  | AP208: =IFERROR(INDEX($AD:$AD,MATCH(ROWS($AD$32:$AD208),$AO:$AO,0)),"") -> 
AD209: ='Baza klientów'!B178 -> 0 | AE209: FALSE | AF209: =IF(AE209=TRUE,COUNTIF($AE$32:AE209,TRUE()),"") ->  | AG209: =IFERROR(INDEX($AD:$AD,MATCH(ROWS($AD$32:AD209),$AF:$AF,0)),"") ->  | AJ209: FALSE | AK209: =IF(AJ209=TRUE,COUNTIF($AJ$32:AJ209,TRUE()),"") ->  | AL209: =IFERROR(INDEX($AD:$AD,MATCH(ROWS($AD$32:AD209),$AK:$AK,0)),"") ->  | AN209: FALSE | AO209: =IF(AN209=TRUE,COUNTIF($AN$32:AN209,TRUE()),"") ->  | AP209: =IFERROR(INDEX($AD:$AD,MATCH(ROWS($AD$32:$AD209),$AO:$AO,0)),"") -> 
AD210: ='Baza klientów'!B179 -> 0 | AE210: FALSE | AF210: =IF(AE210=TRUE,COUNTIF($AE$32:AE210,TRUE()),"") ->  | AG210: =IFERROR(INDEX($AD:$AD,MATCH(ROWS($AD$32:AD210),$AF:$AF,0)),"") ->  | AJ210: FALSE | AK210: =IF(AJ210=TRUE,COUNTIF($AJ$32:AJ210,TRUE()),"") ->  | AL210: =IFERROR(INDEX($AD:$AD,MATCH(ROWS($AD$32:AD210),$AK:$AK,0)),"") ->  | AN210: FALSE | AO210: =IF(AN210=TRUE,COUNTIF($AN$32:AN210,TRUE()),"") ->  | AP210: =IFERROR(INDEX($AD:$AD,MATCH(ROWS($AD$32:$AD210),$AO:$AO,0)),"") -> 
AD211: ='Baza klientów'!B180 -> 0 | AE211: FALSE | AF211: =IF(AE211=TRUE,COUNTIF($AE$32:AE211,TRUE()),"") ->  | AG211: =IFERROR(INDEX($AD:$AD,MATCH(ROWS($AD$32:AD211),$AF:$AF,0)),"") ->  | AJ211: FALSE | AK211: =IF(AJ211=TRUE,COUNTIF($AJ$32:AJ211,TRUE()),"") ->  | AL211: =IFERROR(INDEX($AD:$AD,MATCH(ROWS($AD$32:AD211),$AK:$AK,0)),"") ->  | AN211: FALSE | AO211: =IF(AN211=TRUE,COUNTIF($AN$32:AN211,TRUE()),"") ->  | AP211: =IFERROR(INDEX($AD:$AD,MATCH(ROWS($AD$32:$AD211),$AO:$AO,0)),"") -> 
AD212: ='Baza klientów'!B181 -> 0 | AE212: FALSE | AF212: =IF(AE212=TRUE,COUNTIF($AE$32:AE212,TRUE()),"") ->  | AG212: =IFERROR(INDEX($AD:$AD,MATCH(ROWS($AD$32:AD212),$AF:$AF,0)),"") ->  | AJ212: FALSE | AK212: =IF(AJ212=TRUE,COUNTIF($AJ$32:AJ212,TRUE()),"") ->  | AL212: =IFERROR(INDEX($AD:$AD,MATCH(ROWS($AD$32:AD212),$AK:$AK,0)),"") ->  | AN212: FALSE | AO212: =IF(AN212=TRUE,COUNTIF($AN$32:AN212,TRUE()),"") ->  | AP212: =IFERROR(INDEX($AD:$AD,MATCH(ROWS($AD$32:$AD212),$AO:$AO,0)),"") -> 
AD213: ='Baza klientów'!B182 -> 0 | AE213: FALSE | AF213: =IF(AE213=TRUE,COUNTIF($AE$32:AE213,TRUE()),"") ->  | AG213: =IFERROR(INDEX($AD:$AD,MATCH(ROWS($AD$32:AD213),$AF:$AF,0)),"") ->  | AJ213: FALSE | AK213: =IF(AJ213=TRUE,COUNTIF($AJ$32:AJ213,TRUE()),"") ->  | AL213: =IFERROR(INDEX($AD:$AD,MATCH(ROWS($AD$32:AD213),$AK:$AK,0)),"") ->  | AN213: FALSE | AO213: =IF(AN213=TRUE,COUNTIF($AN$32:AN213,TRUE()),"") ->  | AP213: =IFERROR(INDEX($AD:$AD,MATCH(ROWS($AD$32:$AD213),$AO:$AO,0)),"") -> 
AD214: ='Baza klientów'!B183 -> 0 | AE214: FALSE | AF214: =IF(AE214=TRUE,COUNTIF($AE$32:AE214,TRUE()),"") ->  | AG214: =IFERROR(INDEX($AD:$AD,MATCH(ROWS($AD$32:AD214),$AF:$AF,0)),"") ->  | AJ214: FALSE | AK214: =IF(AJ214=TRUE,COUNTIF($AJ$32:AJ214,TRUE()),"") ->  | AL214: =IFERROR(INDEX($AD:$AD,MATCH(ROWS($AD$32:AD214),$AK:$AK,0)),"") ->  | AN214: FALSE | AO214: =IF(AN214=TRUE,COUNTIF($AN$32:AN214,TRUE()),"") ->  | AP214: =IFERROR(INDEX($AD:$AD,MATCH(ROWS($AD$32:$AD214),$AO:$AO,0)),"") -> 
AD215: ='Baza klientów'!B184 -> 0 | AE215: FALSE | AF215: =IF(AE215=TRUE,COUNTIF($AE$32:AE215,TRUE()),"") ->  | AG215: =IFERROR(INDEX($AD:$AD,MATCH(ROWS($AD$32:AD215),$AF:$AF,0)),"") ->  | AJ215: FALSE | AK215: =IF(AJ215=TRUE,COUNTIF($AJ$32:AJ215,TRUE()),"") ->  | AL215: =IFERROR(INDEX($AD:$AD,MATCH(ROWS($AD$32:AD215),$AK:$AK,0)),"") ->  | AN215: FALSE | AO215: =IF(AN215=TRUE,COUNTIF($AN$32:AN215,TRUE()),"") ->  | AP215: =IFERROR(INDEX($AD:$AD,MATCH(ROWS($AD$32:$AD215),$AO:$AO,0)),"") -> 
AD216: ='Baza klientów'!B185 -> 0 | AE216: FALSE | AF216: =IF(AE216=TRUE,COUNTIF($AE$32:AE216,TRUE()),"") ->  | AG216: =IFERROR(INDEX($AD:$AD,MATCH(ROWS($AD$32:AD216),$AF:$AF,0)),"") ->  | AJ216: FALSE | AK216: =IF(AJ216=TRUE,COUNTIF($AJ$32:AJ216,TRUE()),"") ->  | AL216: =IFERROR(INDEX($AD:$AD,MATCH(ROWS($AD$32:AD216),$AK:$AK,0)),"") ->  | AN216: FALSE | AO216: =IF(AN216=TRUE,COUNTIF($AN$32:AN216,TRUE()),"") ->  | AP216: =IFERROR(INDEX($AD:$AD,MATCH(ROWS($AD$32:$AD216),$AO:$AO,0)),"") -> 
AD217: ='Baza klientów'!B186 -> 0 | AE217: FALSE | AF217: =IF(AE217=TRUE,COUNTIF($AE$32:AE217,TRUE()),"") ->  | AG217: =IFERROR(INDEX($AD:$AD,MATCH(ROWS($AD$32:AD217),$AF:$AF,0)),"") ->  | AJ217: FALSE | AK217: =IF(AJ217=TRUE,COUNTIF($AJ$32:AJ217,TRUE()),"") ->  | AL217: =IFERROR(INDEX($AD:$AD,MATCH(ROWS($AD$32:AD217),$AK:$AK,0)),"") ->  | AN217: FALSE | AO217: =IF(AN217=TRUE,COUNTIF($AN$32:AN217,TRUE()),"") ->  | AP217: =IFERROR(INDEX($AD:$AD,MATCH(ROWS($AD$32:$AD217),$AO:$AO,0)),"") -> 
AD218: ='Baza klientów'!B187 -> 0 | AE218: FALSE | AF218: =IF(AE218=TRUE,COUNTIF($AE$32:AE218,TRUE()),"") ->  | AG218: =IFERROR(INDEX($AD:$AD,MATCH(ROWS($AD$32:AD218),$AF:$AF,0)),"") ->  | AJ218: FALSE | AK218: =IF(AJ218=TRUE,COUNTIF($AJ$32:AJ218,TRUE()),"") ->  | AL218: =IFERROR(INDEX($AD:$AD,MATCH(ROWS($AD$32:AD218),$AK:$AK,0)),"") ->  | AN218: FALSE | AO218: =IF(AN218=TRUE,COUNTIF($AN$32:AN218,TRUE()),"") ->  | AP218: =IFERROR(INDEX($AD:$AD,MATCH(ROWS($AD$32:$AD218),$AO:$AO,0)),"") -> 
... 2032 more rows

Sheet Przepływy pienieżne
B2: *tys. PLN (chyba, że wskazano inaczej)
B3: ANALIZA PRZEPŁYWÓW PIENIĘŻNYCH

Sheet Analiza kapitału obrotowego
B2: *tys. PLN (chyba, że wskazano inaczej)
B3: ANALIZA KAPITAŁU OBROTOWEGO
C5: Miesiąc bieżący
B6: NALEŻNOŚCI | C6: 45 | D6: dni
B8: ZOBOWIĄZANIA | C8: 14.02596493 | D8: dni
B10: ZAPASY | C10: 7 | D10: dni
B12: OKG | C12: 37.97403507 | D12: dni
B14: ANALIZA STRUKTURY ZAPASÓW
B22: ANALIZA STANÓW MAGAZYNOWYCH WEDŁUG KLIENTÓW

Sheet Analiza stanów magazynowych
B2: ANALIZA STANÓW MAGAZYNOWYCH
B3: Magazyn klienta 374 | N3: Magazyn klienta 522
B16: Magazyn klienta 102 | N16: Magazyn główny

Sheet Przeliczenia (hidden)
A9: Aktualizacja
A10: Aktualny rok | B10: 2017
A11: Aktualny miesiąc | B11: 11
A12: Pierwszy rok analizy | B12: 2014
A13: Ostatni rok
A14: Koniec miesiąca | B14: =EOMONTH(DATE(B10,B11-1,1),1) -> 2017-11-30
A15: Benchmark | B15: 6
B18: Analiza przychodów i rentowności po klientach
B20: Numer kolumny miesiąca bieżącego | D20: =MATCH(E139,'Analiza sprzedaży'!35:35,)-27 ->  | E20: =MATCH(D139,'Analiza sprzedaży'!35:35,)-27 -> 18 | F20: =MATCH(C139,'Analiza sprzedaży'!35:35,)-27 -> 21
B22: ` | C22: =IFERROR(MATCH(C23,'Analiza sprzedaży'!$35:$35,)-27,"") ->  | D22: =IFERROR(MATCH(D23,'Analiza sprzedaży'!$35:$35,)-27,"") ->  | E22: =IFERROR(MATCH(E23,'Analiza sprzedaży'!$35:$35,)-27,"") ->  | F22: =IFERROR(MATCH(F23,'Analiza sprzedaży'!$35:$35,)-27,"") ->  | G22: =IFERROR(MATCH(G23,'Analiza sprzedaży'!$35:$35,)-27,"") ->  | H22: =IFERROR(MATCH(H23,'Analiza sprzedaży'!$35:$35,)-27,"") ->  | I22: =IFERROR(MATCH(I23,'Analiza sprzedaży'!$35:$35,)-27,"") ->  | J22: =IFERROR(MATCH(J23,'Analiza sprzedaży'!$35:$35,)-27,"") ->  | K22: =IFERROR(MATCH(K23,'Analiza sprzedaży'!$35:$35,)-27,"") ->  | L22: =IFERROR(MATCH(L23,'Analiza sprzedaży'!$35:$35,)-27,"") ->  | M22: =IFERROR(MATCH(M23,'Analiza sprzedaży'!$35:$35,)-27,"") ->  | N22: =IFERROR(MATCH(N23,'Analiza sprzedaży'!$35:$35,)-27,"") ->  | O22: =IFERROR(MATCH(O23,'Analiza sprzedaży'!$35:$35,)-27,"") ->  | P22: =IFERROR(MATCH(P23,'Analiza sprzedaży'!$35:$35,)-27,"") ->  | Q22: =IFERROR(MATCH(Q23,'Analiza sprzedaży'!$35:$35,)-27,"") ->  | R22: =IFERROR(MATCH(R23,'Analiza sprzedaży'!$35:$35,)-27,"") ->  | S22: =IFERROR(MATCH(S23,'Analiza sprzedaży'!$35:$35,)-27,"") ->  | T22: =IFERROR(MATCH(T23,'Analiza sprzedaży'!$35:$35,)-27,"") ->  | U22: =IFERROR(MATCH(U23,'Analiza sprzedaży'!$35:$35,)-27,"") ->  | V22: =IFERROR(MATCH(V23,'Analiza sprzedaży'!$35:$35,)-27,"") ->  | W22: =IFERROR(MATCH(W23,'Analiza sprzedaży'!$35:$35,)-27,"") ->  | X22: =IFERROR(MATCH(X23,'Analiza sprzedaży'!$35:$35,)-27,"") ->  | Y22: =IFERROR(MATCH(Y23,'Analiza sprzedaży'!$35:$35,)-27,"") ->  | Z22: =IFERROR(MATCH(Z23,'Analiza sprzedaży'!$35:$35,)-27,"") ->  | AA22: =IFERROR(MATCH(AA23,'Analiza sprzedaży'!$35:$35,)-27,"") ->  | AB22: =IFERROR(MATCH(AB23,'Analiza sprzedaży'!$35:$35,)-27,"") ->  | AC22: =IFERROR(MATCH(AC23,'Analiza sprzedaży'!$35:$35,)-27,"") ->  | AD22: =IFERROR(MATCH(AD23,'Analiza sprzedaży'!$35:$35,)-27,"") ->  | AE22: =IFERROR(MATCH(AE23,'Analiza sprzedaży'!$35:$35,)-27,"") ->  | AF22: =IFERROR(MATCH(AF23,'Analiza sprzedaży'!$35:$35,)-27,"") ->  | AG22: =IFERROR(MATCH(AG23,'Analiza sprzedaży'!$35:$35,)-27,"") ->  | AH22: =IFERROR(MATCH(AH23,'Analiza sprzedaży'!$35:$35,)-27,"") ->  | AI22: =IFERROR(MATCH(AI23,'Analiza sprzedaży'!$35:$35,)-27,"") ->  | AJ22: =IFERROR(MATCH(AJ23,'Analiza sprzedaży'!$35:$35,)-27,"") ->  | AK22: =IFERROR(MATCH(AK23,'Analiza sprzedaży'!$35:$35,)-27,"") ->  | AL22: =IFERROR(MATCH(AL23,'Analiza sprzedaży'!$35:$35,)-27,"") ->  | AM22: =IFERROR(MATCH(AM23,'Analiza sprzedaży'!$35:$35,)-27,"") ->  | AN22: =IFERROR(MATCH(AN23,'Analiza sprzedaży'!$35:$35,)-27,"") ->  | AO22: =IFERROR(MATCH(AO23,'Analiza sprzedaży'!$35:$35,)-27,"") ->  | AP22: =IFERROR(MATCH(AP23,'Analiza sprzedaży'!$35:$35,)-27,"") -> 0 | AQ22: =IFERROR(MATCH(AQ23,'Analiza sprzedaży'!$35:$35,)-27,"") -> 3 | AR22: =IFERROR(MATCH(AR23,'Analiza sprzedaży'!$35:$35,)-27,"") -> 6 | AS22: =IFERROR(MATCH(AS23,'Analiza sprzedaży'!$35:$35,)-27,"") -> 9 | AT22: =IFERROR(MATCH(AT23,'Analiza sprzedaży'!$35:$35,)-27,"") -> 12 | AU22: =IFERROR(MATCH(AU23,'Analiza sprzedaży'!$35:$35,)-27,"") -> 15 | AV22: =IFERROR(MATCH(AV23,'Analiza sprzedaży'!$35:$35,)-27,"") -> 18 | AW22: =IFERROR(MATCH(AW23,'Analiza sprzedaży'!$35:$35,)-27,"") -> 21 | AX22: =IFERROR(MATCH(AX23,'Analiza sprzedaży'!$35:$35,)-27,"") ->  | AY22: =IFERROR(MATCH(AY23,'Analiza sprzedaży'!$35:$35,)-27,"") ->  | AZ22: =IFERROR(MATCH(AZ23,'Analiza sprzedaży'!$35:$35,)-27,"") ->  | BA22: =IFERROR(MATCH(BA23,'Analiza sprzedaży'!$35:$35,)-27,"") ->  | BB22: =IFERROR(MATCH(BB23,'Analiza sprzedaży'!$35:$35,)-27,"") ->  | BC22: =IFERROR(MATCH(BC23,'Analiza sprzedaży'!$35:$35,)-27,"") ->  | BD22: =IFERROR(MATCH(BD23,'Analiza sprzedaży'!$35:$35,)-27,"") ->  | BE22: =IFERROR(MATCH(BE23,'Analiza sprzedaży'!$35:$35,)-27,"") ->  | BF22: =IFERROR(MATCH(BF23,'Analiza sprzedaży'!$35:$35,)-27,"") ->  | BG22: =IFERROR(MATCH(BG23,'Analiza sprzedaży'!$35:$35,)-27,"") ->  | BH22: =IFERROR(MATCH(BH23,'Analiza sprzedaży'!$35:$35,)-27,"") ->  | BI22: =IFERROR(MATCH(BI23,'Analiza sprzedaży'!$35:$35,)-27,"") ->  | BJ22: =IFERROR(MATCH(BJ23,'Analiza sprzedaży'!$35:$35,)-27,"") ->  | BK22: =IFERROR(MATCH(BK23,'Analiza sprzedaży'!$35:$35,)-27,"") ->  | BL22: =IFERROR(MATCH(BL23,'Analiza sprzedaży'!$35:$35,)-27,"") ->  | BM22: =IFERROR(MATCH(BM23,'Analiza sprzedaży'!$35:$35,)-27,"") ->  | BN22: =IFERROR(MATCH(BN23,'Analiza sprzedaży'!$35:$35,)-27,"") ->  | BO22: =IFERROR(MATCH(BO23,'Analiza sprzedaży'!$35:$35,)-27,"") ->  | BP22: =IFERROR(MATCH(BP23,'Analiza sprzedaży'!$35:$35,)-27,"") ->  | BQ22: =IFERROR(MATCH(BQ23,'Analiza sprzedaży'!$35:$35,)-27,"") ->  | BR22: =IFERROR(MATCH(BR23,'Analiza sprzedaży'!$35:$35,)-27,"") ->  | BS22: =IFERROR(MATCH(BS23,'Analiza sprzedaży'!$35:$35,)-27,"") ->  | BT22: =IFERROR(MATCH(BT23,'Analiza sprzedaży'!$35:$35,)-27,"") ->  | BU22: =IFERROR(MATCH(BU23,'Analiza sprzedaży'!$35:$35,)-27,"") ->  | BV22: =IFERROR(MATCH(BV23,'Analiza sprzedaży'!$35:$35,)-27,"") ->  | BW22: =IFERROR(MATCH(BW23,'Analiza sprzedaży'!$35:$35,)-27,"") ->  | BX22: =IFERROR(MATCH(BX23,'Analiza sprzedaży'!$35:$35,)-27,"") ->  | BY22: =IFERROR(MATCH(BY23,'Analiza sprzedaży'!$35:$35,)-27,"") ->  | BZ22: =IFERROR(MATCH(BZ23,'Analiza sprzedaży'!$35:$35,)-27,"") ->  | CA22: =IFERROR(MATCH(CA23,'Analiza sprzedaży'!$35:$35,)-27,"") ->  | CB22: =IFERROR(MATCH(CB23,'Analiza sprzedaży'!$35:$35,)-27,"") ->  | CC22: =IFERROR(MATCH(CC23,'Analiza sprzedaży'!$35:$35,)-27,"") ->  | CD22: =IFERROR(MATCH(CD23,'Analiza sprzedaży'!$35:$35,)-27,"") ->  | CE22: =IFERROR(MATCH(CE23,'Analiza sprzedaży'!$35:$35,)-27,"") ->  | CF22: =IFERROR(MATCH(CF23,'Analiza sprzedaży'!$35:$35,)-27,"") ->  | CG22: =IFERROR(MATCH(CG23,'Analiza sprzedaży'!$35:$35,)-27,"") ->  | CH22: =IFERROR(MATCH(CH23,'Analiza sprzedaży'!$35:$35,)-27,"") ->  | CI22: =IFERROR(MATCH(CI23,'Analiza sprzedaży'!$35:$35,)-27,"") ->  | CJ22: =IFERROR(MATCH(CJ23,'Analiza sprzedaży'!$35:$35,)-27,"") ->  | CK22: =IFERROR(MATCH(CK23,'Analiza sprzedaży'!$35:$35,)-27,"") ->  | CL22: =IFERROR(MATCH(CL23,'Analiza sprzedaży'!$35:$35,)-27,"") ->  | CM22: =IFERROR(MATCH(CM23,'Analiza sprzedaży'!$35:$35,)-27,"") ->  | CN22: =IFERROR(MATCH(CN23,'Analiza sprzedaży'!$35:$35,)-27,"") ->  | CO22: =IFERROR(MATCH(CO23,'Analiza sprzedaży'!$35:$35,)-27,"") ->  | CP22: =IFERROR(MATCH(CP23,'Analiza sprzedaży'!$35:$35,)-27,"") ->  | CQ22: =IFERROR(MATCH(CQ23,'Analiza sprzedaży'!$35:$35,)-27,"") ->  | CR22: =IFERROR(MATCH(CR23,'Analiza sprzedaży'!$35:$35,)-27,"") ->  | CS22: =IFERROR(MATCH(CS23,'Analiza sprzedaży'!$35:$35,)-27,"") ->  | CT22: =IFERROR(MATCH(CT23,'Analiza sprzedaży'!$35:$35,)-27,"") ->  | CU22: =IFERROR(MATCH(CU23,'Analiza sprzedaży'!$35:$35,)-27,"") ->  | CV22: =IFERROR(MATCH(CV23,'Analiza sprzedaży'!$35:$35,)-27,"") ->  | CW22: =IFERROR(MATCH(CW23,'Analiza sprzedaży'!$35:$35,)-27,"") ->  | CX22: =IFERROR(MATCH(CX23,'Analiza sprzedaży'!$35:$35,)-27,"") ->  | CY22: =IFERROR(MATCH(CY23,'Analiza sprzedaży'!$35:$35,)-27,"") ->  | CZ22: =IFERROR(MATCH(CZ23,'Analiza sprzedaży'!$35:$35,)-27,"") ->  | DA22: =IFERROR(MATCH(DA23,'Analiza sprzedaży'!$35:$35,)-27,"") ->  | DB22: =IFERROR(MATCH(DB23,'Analiza sprzedaży'!$35:$35,)-27,"") ->  | DC22: =IFERROR(MATCH(DC23,'Analiza sprzedaży'!$35:$35,)-27,"") ->  | DD22: =IFERROR(MATCH(DD23,'Analiza sprzedaży'!$35:$35,)-27,"") ->  | DE22: =IFERROR(MATCH(DE23,'Analiza sprzedaży'!$35:$35,)-27,"") ->  | DF22: =IFERROR(MATCH(DF23,'Analiza sprzedaży'!$35:$35,)-27,"") ->  | DG22: =IFERROR(MATCH(DG23,'Analiza sprzedaży'!$35:$35,)-27,"") ->  | DH22: =IFERROR(MATCH(DH23,'Analiza sprzedaży'!$35:$35,)-27,"") ->  | DI22: =IFERROR(MATCH(DI23,'Analiza sprzedaży'!$35:$35,)-27,"") ->  | DJ22: =IFERROR(MATCH(DJ23,'Analiza sprzedaży'!$35:$35,)-27,"") ->  | DK22: =IFERROR(MATCH(DK23,'Analiza sprzedaży'!$35:$35,)-27,"") ->  | DL22: =IFERROR(MATCH(DL23,'Analiza sprzedaży'!$35:$35,)-27,"") ->  | DM22: =IFERROR(MATCH(DM23,'Analiza sprzedaży'!$35:$35,)-27,"") ->  | DN22: =IFERROR(MATCH(DN23,'Analiza sprzedaży'!$35:$35,)-27,"") ->  | DO22: =IFERROR(MATCH(DO23,'Analiza sprzedaży'!$35:$35,)-27,"") ->  | DP22: =IFERROR(MATCH(DP23,'Analiza sprzedaży'!$35:$35,)-27,"") ->  | DQ22: =IFERROR(MATCH(DQ23,'Analiza sprzedaży'!$35:$35,)-27,"") ->  | DR22: =IFERROR(MATCH(DR23,'Analiza sprzedaży'!$35:$35,)-27,"") ->  | DS22: =IFERROR(MATCH(DS23,'Analiza sprzedaży'!$35:$35,)-27,"") ->  | DT22: =IFERROR(MATCH(DT23,'Analiza sprzedaży'!$35:$35,)-27,"") ->  | DU22: =IFERROR(MATCH(DU23,'Analiza sprzedaży'!$35:$35,)-27,"") ->  | DV22: =IFERROR(MATCH(DV23,'Analiza sprzedaży'!$35:$35,)-27,"") ->  | DW22: =IFERROR(MATCH(DW23,'Analiza sprzedaży'!$35:$35,)-27,"") ->  | DX22: =IFERROR(MATCH(DX23,'Analiza sprzedaży'!$35:$35,)-27,"") ->  | DY22: =IFERROR(MATCH(DY23,'Analiza sprzedaży'!$35:$35,)-27,"") ->  | DZ22: =IFERROR(MATCH(DZ23,'Analiza sprzedaży'!$35:$35,)-27,"") ->  | EA22: =IFERROR(MATCH(EA23,'Analiza sprzedaży'!$35:$35,)-27,"") ->  | EB22: =IFERROR(MATCH(EB23,'Analiza sprzedaży'!$35:$35,)-27,"") ->  | EC22: =IFERROR(MATCH(EC23,'Analiza sprzedaży'!$35:$35,)-27,"") ->  | ED22: =IFERROR(MATCH(ED23,'Analiza sprzedaży'!$35:$35,)-27,"") ->  | EE22: =IFERROR(MATCH(EE23,'Analiza sprzedaży'!$35:$35,)-27,"") ->  | EF22: =IFERROR(MATCH(EF23,'Analiza sprzedaży'!$35:$35,)-27,"") ->  | EG22: =IFERROR(MATCH(EG23,'Analiza sprzedaży'!$35:$35,)-27,"") ->  | EH22: =IFERROR(MATCH(EH23,'Analiza sprzedaży'!$35:$35,)-27,"") ->  | EI22: =IFERROR(MATCH(EI23,'Analiza sprzedaży'!$35:$35,)-27,"") ->  | EJ22: =IFERROR(MATCH(EJ23,'Analiza sprzedaży'!$35:$35,)-27,"") ->  | EK22: =IFERROR(MATCH(EK23,'Analiza sprzedaży'!$35:$35,)-27,"") ->  | EL22: =IFERROR(MATCH(EL23,'Analiza sprzedaży'!$35:$35,)-27,"") ->  | EM22: =IFERROR(MATCH(EM23,'Analiza sprzedaży'!$35:$35,)-27,"") ->  | EN22: =IFERROR(MATCH(EN23,'Analiza sprzedaży'!$35:$35,)-27,"") ->  | EO22: =IFERROR(MATCH(EO23,'Analiza sprzedaży'!$35:$35,)-27,"") ->  | EP22: =IFERROR(MATCH(EP23,'Analiza sprzedaży'!$35:$35,)-27,"") ->  | EQ22: =IFERROR(MATCH(EQ23,'Analiza sprzedaży'!$35:$35,)-27,"") ->  | ER22: =IFERROR(MATCH(ER23,'Analiza sprzedaży'!$35:$35,)-27,"") ->  | ES22: =IFERROR(MATCH(ES23,'Analiza sprzedaży'!$35:$35,)-27,"") ->  | ET22: =IFERROR(MATCH(ET23,'Analiza sprzedaży'!$35:$35,)-27,"") ->  | EU22: =IFERROR(MATCH(EU23,'Analiza sprzedaży'!$35:$35,)-27,"") ->  | EV22: =IFERROR(MATCH(EV23,'Analiza sprzedaży'!$35:$35,)-27,"") ->  | EW22: =IFERROR(MATCH(EW23,'Analiza sprzedaży'!$35:$35,)-27,"") ->  | EX22: =IFERROR(MATCH(EX23,'Analiza sprzedaży'!$35:$35,)-27,"") ->  | EY22: =IFERROR(MATCH(EY23,'Analiza sprzedaży'!$35:$35,)-27,"") ->  | EZ22: =IFERROR(MATCH(EZ23,'Analiza sprzedaży'!$35:$35,)-27,"") ->  | FA22: =IFERROR(MATCH(FA23,'Analiza sprzedaży'!$35:$35,)-27,"") ->  | FB22: =IFERROR(MATCH(FB23,'Analiza sprzedaży'!$35:$35,)-27,"") ->  | FC22: =IFERROR(MATCH(FC23,'Analiza sprzedaży'!$35:$35,)-27,"") ->  | FD22: =IFERROR(MATCH(FD23,'Analiza sprzedaży'!$35:$35,)-27,"") ->  | FE22: =IFERROR(MATCH(FE23,'Analiza sprzedaży'!$35:$35,)-27,"") ->  | FF22: =IFERROR(MATCH(FF23,'Analiza sprzedaży'!$35:$35,)-27,"") ->  | FG22: =IFERROR(MATCH(FG23,'Analiza sprzedaży'!$35:$35,)-27,"") ->  | FH22: =IFERROR(MATCH(FH23,'Analiza sprzedaży'!$35:$35,)-27,"") ->  | FI22: =IFERROR(MATCH(FI23,'Analiza sprzedaży'!$35:$35,)-27,"") ->  | FJ22: =IFERROR(MATCH(FJ23,'Analiza sprzedaży'!$35:$35,)-27,"") ->  | FK22: =IFERROR(MATCH(FK23,'Analiza sprzedaży'!$35:$35,)-27,"") ->  | FL22: =IFERROR(MATCH(FL23,'Analiza sprzedaży'!$35:$35,)-27,"") ->  | FM22: =IFERROR(MATCH(FM23,'Analiza sprzedaży'!$35:$35,)-27,"") ->  | FN22: =IFERROR(MATCH(FN23,'Analiza sprzedaży'!$35:$35,)-27,"") ->  | FO22: =IFERROR(MATCH(FO23,'Analiza sprzedaży'!$35:$35,)-27,"") ->  | FP22: =IFERROR(MATCH(FP23,'Analiza sprzedaży'!$35:$35,)-27,"") ->  | FQ22: =IFERROR(MATCH(FQ23,'Analiza sprzedaży'!$35:$35,)-27,"") ->  | FR22: =IFERROR(MATCH(FR23,'Analiza sprzedaży'!$35:$35,)-27,"") ->  | FS22: =IFERROR(MATCH(FS23,'Analiza sprzedaży'!$35:$35,)-27,"") ->  | FT22: =IFERROR(MATCH(FT23,'Analiza sprzedaży'!$35:$35,)-27,"") ->  | FU22: =IFERROR(MATCH(FU23,'Analiza sprzedaży'!$35:$35,)-27,"") ->  | FV22: =IFERROR(MATCH(FV23,'Analiza sprzedaży'!$35:$35,)-27,"") ->  | FW22: =IFERROR(MATCH(FW23,'Analiza sprzedaży'!$35:$35,)-27,"") ->  | FX22: =IFERROR(MATCH(FX23,'Analiza sprzedaży'!$35:$35,)-27,"") ->  | FY22: =IFERROR(MATCH(FY23,'Analiza sprzedaży'!$35:$35,)-27,"") ->  | FZ22: =IFERROR(MATCH(FZ23,'Analiza sprzedaży'!$35:$35,)-27,"") ->  | GA22: =IFERROR(MATCH(GA23,'Analiza sprzedaży'!$35:$35,)-27,"") ->  | GB22: =IFERROR(MATCH(GB23,'Analiza sprzedaży'!$35:$35,)-27,"") ->  | GC22: =IFERROR(MATCH(GC23,'Analiza sprzedaży'!$35:$35,)-27,"") ->  | GD22: =IFERROR(MATCH(GD23,'Analiza sprzedaży'!$35:$35,)-27,"") ->  | GE22: =IFERROR(MATCH(GE23,'Analiza sprzedaży'!$35:$35,)-27,"") ->  | GF22: =IFERROR(MATCH(GF23,'Analiza sprzedaży'!$35:$35,)-27,"") ->  | GG22: =IFERROR(MATCH(GG23,'Analiza sprzedaży'!$35:$35,)-27,"") ->  | GH22: =IFERROR(MATCH(GH23,'Analiza sprzedaży'!$35:$35,)-27,"") ->  | GI22: =IFERROR(MATCH(GI23,'Analiza sprzedaży'!$35:$35,)-27,"") ->  | GJ22: =IFERROR(MATCH(GJ23,'Analiza sprzedaży'!$35:$35,)-27,"") ->  | GK22: =IFERROR(MATCH(GK23,'Analiza sprzedaży'!$35:$35,)-27,"") ->  | GL22: =IFERROR(MATCH(GL23,'Analiza sprzedaży'!$35:$35,)-27,"") ->  | GM22: =IFERROR(MATCH(GM23,'Analiza sprzedaży'!$35:$35,)-27,"") ->  | GN22: =IFERROR(MATCH(GN23,'Analiza sprzedaży'!$35:$35,)-27,"") ->  | GO22: =IFERROR(MATCH(GO23,'Analiza sprzedaży'!$35:$35,)-27,"") ->  | GP22: =IFERROR(MATCH(GP23,'Analiza sprzedaży'!$35:$35,)-27,"") ->  | GQ22: =IFERROR(MATCH(GQ23,'Analiza sprzedaży'!$35:$35,)-27,"") ->  | GR22: =IFERROR(MATCH(GR23,'Analiza sprzedaży'!$35:$35,)-27,"") ->  | GS22: =IFERROR(MATCH(GS23,'Analiza sprzedaży'!$35:$35,)-27,"") ->  | GT22: =IFERROR(MATCH(GT23,'Analiza sprzedaży'!$35:$35,)-27,"") ->  | GU22: =IFERROR(MATCH(GU23,'Analiza sprzedaży'!$35:$35,)-27,"") ->  | GV22: =IFERROR(MATCH(GV23,'Analiza sprzedaży'!$35:$35,)-27,"") ->  | GW22: =IFERROR(MATCH(GW23,'Analiza sprzedaży'!$35:$35,)-27,"") ->  | GX22: =IFERROR(MATCH(GX23,'Analiza sprzedaży'!$35:$35,)-27,"") ->  | GY22: =IFERROR(MATCH(GY23,'Analiza sprzedaży'!$35:$35,)-27,"") ->  | GZ22: =IFERROR(MATCH(GZ23,'Analiza sprzedaży'!$35:$35,)-27,"") ->  | HA22: =IFERROR(MATCH(HA23,'Analiza sprzedaży'!$35:$35,)-27,"") ->  | HB22: =IFERROR(MATCH(HB23,'Analiza sprzedaży'!$35:$35,)-27,"") ->  | HC22: =IFERROR(MATCH(HC23,'Analiza sprzedaży'!$35:$35,)-27,"") ->  | HD22: =IFERROR(MATCH(HD23,'Analiza sprzedaży'!$35:$35,)-27,"") ->  | HE22: =IFERROR(MATCH(HE23,'Analiza sprzedaży'!$35:$35,)-27,"") ->  | HF22: =IFERROR(MATCH(HF23,'Analiza sprzedaży'!$35:$35,)-27,"") ->  | HG22: =IFERROR(MATCH(HG23,'Analiza sprzedaży'!$35:$35,)-27,"") ->  | HH22: =IFERROR(MATCH(HH23,'Analiza sprzedaży'!$35:$35,)-27,"") ->  | HI22: =IFERROR(MATCH(HI23,'Analiza sprzedaży'!$35:$35,)-27,"") ->  | HJ22: =IFERROR(MATCH(HJ23,'Analiza sprzedaży'!$35:$35,)-27,"") ->  | HK22: =IFERROR(MATCH(HK23,'Analiza sprzedaży'!$35:$35,)-27,"") ->  | HL22: =IFERROR(MATCH(HL23,'Analiza sprzedaży'!$35:$35,)-27,"") ->  | HM22: =IFERROR(MATCH(HM23,'Analiza sprzedaży'!$35:$35,)-27,"") ->  | HN22: =IFERROR(MATCH(HN23,'Analiza sprzedaży'!$35:$35,)-27,"") ->  | HO22: =IFERROR(MATCH(HO23,'Analiza sprzedaży'!$35:$35,)-27,"") ->  | HP22: =IFERROR(MATCH(HP23,'Analiza sprzedaży'!$35:$35,)-27,"") ->  | HQ22: =IFERROR(MATCH(HQ23,'Analiza sprzedaży'!$35:$35,)-27,"") ->  | HR22: =IFERROR(MATCH(HR23,'Analiza sprzedaży'!$35:$35,)-27,"") ->  | HS22: =IFERROR(MATCH(HS23,'Analiza sprzedaży'!$35:$35,)-27,"") ->  | HT22: =IFERROR(MATCH(HT23,'Analiza sprzedaży'!$35:$35,)-27,"") ->  | HU22: =IFERROR(MATCH(HU23,'Analiza sprzedaży'!$35:$35,)-27,"") ->  | HV22: =IFERROR(MATCH(HV23,'Analiza sprzedaży'!$35:$35,)-27,"") ->  | HW22: =IFERROR(MATCH(HW23,'Analiza sprzedaży'!$35:$35,)-27,"") ->  | HX22: =IFERROR(MATCH(HX23,'Analiza sprzedaży'!$35:$35,)-27,"") ->  | HY22: =IFERROR(MATCH(HY23,'Analiza sprzedaży'!$35:$35,)-27,"") ->  | HZ22: =IFERROR(MATCH(HZ23,'Analiza sprzedaży'!$35:$35,)-27,"") ->  | IA22: =IFERROR(MATCH(IA23,'Analiza sprzedaży'!$35:$35,)-27,"") ->  | IB22: =IFERROR(MATCH(IB23,'Analiza sprzedaży'!$35:$35,)-27,"") ->  | IC22: =IFERROR(MATCH(IC23,'Analiza sprzedaży'!$35:$35,)-27,"") ->  | ID22: =IFERROR(MATCH(ID23,'Analiza sprzedaży'!$35:$35,)-27,"") ->  | IE22: =IFERROR(MATCH(IE23,'Analiza sprzedaży'!$35:$35,)-27,"") ->  | IF22: =IFERROR(MATCH(IF23,'Analiza sprzedaży'!$35:$35,)-27,"") ->  | IG22: =IFERROR(MATCH(IG23,'Analiza sprzedaży'!$35:$35,)-27,"") ->  | IH22: =IFERROR(MATCH(IH23,'Analiza sprzedaży'!$35:$35,)-27,"") ->  | II22: =IFERROR(MATCH(II23,'Analiza sprzedaży'!$35:$35,)-27,"") ->  | IJ22: =IFERROR(MATCH(IJ23,'Analiza sprzedaży'!$35:$35,)-27,"") ->  | IK22: =IFERROR(MATCH(IK23,'Analiza sprzedaży'!$35:$35,)-27,"") ->  | IL22: =IFERROR(MATCH(IL23,'Analiza sprzedaży'!$35:$35,)-27,"") ->  | IM22: =IFERROR(MATCH(IM23,'Analiza sprzedaży'!$35:$35,)-27,"") ->  | IN22: =IFERROR(MATCH(IN23,'Analiza sprzedaży'!$35:$35,)-27,"") ->  | IO22: =IFERROR(MATCH(IO23,'Analiza sprzedaży'!$35:$35,)-27,"") ->  | IP22: =IFERROR(MATCH(IP23,'Analiza sprzedaży'!$35:$35,)-27,"") ->  | IQ22: =IFERROR(MATCH(IQ23,'Analiza sprzedaży'!$35:$35,)-27,"") ->  | IR22: =IFERROR(MATCH(IR23,'Analiza sprzedaży'!$35:$35,)-27,"") ->  | IS22: =IFERROR(MATCH(IS23,'Analiza sprzedaży'!$35:$35,)-27,"") ->  | IT22: =IFERROR(MATCH(IT23,'Analiza sprzedaży'!$35:$35,)-27,"") ->  | IU22: =IFERROR(MATCH(IU23,'Analiza sprzedaży'!$35:$35,)-27,"") ->  | IV22: =IFERROR(MATCH(IV23,'Analiza sprzedaży'!$35:$35,)-27,"") ->  | IW22: =IFERROR(MATCH(IW23,'Analiza sprzedaży'!$35:$35,)-27,"") ->  | IX22: =IFERROR(MATCH(IX23,'Analiza sprzedaży'!$35:$35,)-27,"") ->  | IY22: =IFERROR(MATCH(IY23,'Analiza sprzedaży'!$35:$35,)-27,"") ->  | IZ22: =IFERROR(MATCH(IZ23,'Analiza sprzedaży'!$35:$35,)-27,"") ->  | JA22: =IFERROR(MATCH(JA23,'Analiza sprzedaży'!$35:$35,)-27,"") ->  | JB22: =IFERROR(MATCH(JB23,'Analiza sprzedaży'!$35:$35,)-27,"") ->  | JC22: =IFERROR(MATCH(JC23,'Analiza sprzedaży'!$35:$35,)-27,"") ->  | JD22: =IFERROR(MATCH(JD23,'Analiza sprzedaży'!$35:$35,)-27,"") ->  | JE22: =IFERROR(MATCH(JE23,'Analiza sprzedaży'!$35:$35,)-27,"") ->  | JF22: =IFERROR(MATCH(JF23,'Analiza sprzedaży'!$35:$35,)-27,"") ->  | JG22: =IFERROR(MATCH(JG23,'Analiza sprzedaży'!$35:$35,)-27,"") ->  | JH22: =IFERROR(MATCH(JH23,'Analiza sprzedaży'!$35:$35,)-27,"") ->  | JI22: =IFERROR(MATCH(JI23,'Analiza sprzedaży'!$35:$35,)-27,"") ->  | JJ22: =IFERROR(MATCH(JJ23,'Analiza sprzedaży'!$35:$35,)-27,"") ->  | JK22: =IFERROR(MATCH(JK23,'Analiza sprzedaży'!$35:$35,)-27,"") ->  | JL22: =IFERROR(MATCH(JL23,'Analiza sprzedaży'!$35:$35,)-27,"") ->  | JM22: =IFERROR(MATCH(JM23,'Analiza sprzedaży'!$35:$35,)-27,"") ->  | JN22: =IFERROR(MATCH(JN23,'Analiza sprzedaży'!$35:$35,)-27,"") ->  | JO22: =IFERROR(MATCH(JO23,'Analiza sprzedaży'!$35:$35,)-27,"") ->  | JP22: =IFERROR(MATCH(JP23,'Analiza sprzedaży'!$35:$35,)-27,"") ->  | JQ22: =IFERROR(MATCH(JQ23,'Analiza sprzedaży'!$35:$35,)-27,"") ->  | JR22: =IFERROR(MATCH(JR23,'Analiza sprzedaży'!$35:$35,)-27,"") ->  | JS22: =IFERROR(MATCH(JS23,'Analiza sprzedaży'!$35:$35,)-27,"") ->  | JT22: =IFERROR(MATCH(JT23,'Analiza sprzedaży'!$35:$35,)-27,"") ->  | JU22: =IFERROR(MATCH(JU23,'Analiza sprzedaży'!$35:$35,)-27,"") ->  | JV22: =IFERROR(MATCH(JV23,'Analiza sprzedaży'!$35:$35,)-27,"") ->  | JW22: =IFERROR(MATCH(JW23,'Analiza sprzedaży'!$35:$35,)-27,"") ->  | JX22: =IFERROR(MATCH(JX23,'Analiza sprzedaży'!$35:$35,)-27,"") ->  | JY22: =IFERROR(MATCH(JY23,'Analiza sprzedaży'!$35:$35,)-27,"") ->  | JZ22: =IFERROR(MATCH(JZ23,'Analiza sprzedaży'!$35:$35,)-27,"") ->  | KA22: =IFERROR(MATCH(KA23,'Analiza sprzedaży'!$35:$35,)-27,"") ->  | KB22: =IFERROR(MATCH(KB23,'Analiza sprzedaży'!$35:$35,)-27,"") ->  | KC22: =IFERROR(MATCH(KC23,'Analiza sprzedaży'!$35:$35,)-27,"") ->  | KD22: =IFERROR(MATCH(KD23,'Analiza sprzedaży'!$35:$35,)-27,"") ->  | KE22: =IFERROR(MATCH(KE23,'Analiza sprzedaży'!$35:$35,)-27,"") ->  | KF22: =IFERROR(MATCH(KF23,'Analiza sprzedaży'!$35:$35,)-27,"") ->  | KG22: =IFERROR(MATCH(KG23,'Analiza sprzedaży'!$35:$35,)-27,"") ->  | KH22: =IFERROR(MATCH(KH23,'Analiza sprzedaży'!$35:$35,)-27,"") ->  | KI22: =IFERROR(MATCH(KI23,'Analiza sprzedaży'!$35:$35,)-27,"") ->  | KJ22: =IFERROR(MATCH(KJ23,'Analiza sprzedaży'!$35:$35,)-27,"") ->  | KK22: =IFERROR(MATCH(KK23,'Analiza sprzedaży'!$35:$35,)-27,"") ->  | KL22: =IFERROR(MATCH(KL23,'Analiza sprzedaży'!$35:$35,)-27,"") ->  | KM22: =IFERROR(MATCH(KM23,'Analiza sprzedaży'!$35:$35,)-27,"") ->  | KN22: =IFERROR(MATCH(KN23,'Analiza sprzedaży'!$35:$35,)-27,"") ->  | KO22: =IFERROR(MATCH(KO23,'Analiza sprzedaży'!$35:$35,)-27,"") ->  | KP22: =IFERROR(MATCH(KP23,'Analiza sprzedaży'!$35:$35,)-27,"") ->  | KQ22: =IFERROR(MATCH(KQ23,'Analiza sprzedaży'!$35:$35,)-27,"") ->  | KR22: =IFERROR(MATCH(KR23,'Analiza sprzedaży'!$35:$35,)-27,"") ->  | KS22: =IFERROR(MATCH(KS23,'Analiza sprzedaży'!$35:$35,)-27,"") ->  | KT22: =IFERROR(MATCH(KT23,'Analiza sprzedaży'!$35:$35,)-27,"") ->  | KU22: =IFERROR(MATCH(KU23,'Analiza sprzedaży'!$35:$35,)-27,"") ->  | KV22: =IFERROR(MATCH(KV23,'Analiza sprzedaży'!$35:$35,)-27,"") ->  | KW22: =IFERROR(MATCH(KW23,'Analiza sprzedaży'!$35:$35,)-27,"") ->  | KX22: =IFERROR(MATCH(KX23,'Analiza sprzedaży'!$35:$35,)-27,"") ->  | KY22: =IFERROR(MATCH(KY23,'Analiza sprzedaży'!$35:$35,)-27,"") ->  | KZ22: =IFERROR(MATCH(KZ23,'Analiza sprzedaży'!$35:$35,)-27,"") ->  | LA22: =IFERROR(MATCH(LA23,'Analiza sprzedaży'!$35:$35,)-27,"") ->  | LB22: =IFERROR(MATCH(LB23,'Analiza sprzedaży'!$35:$35,)-27,"") ->  | LC22: =IFERROR(MATCH(LC23,'Analiza sprzedaży'!$35:$35,)-27,"") ->  | LD22: =IFERROR(MATCH(LD23,'Analiza sprzedaży'!$35:$35,)-27,"") ->  | LE22: =IFERROR(MATCH(LE23,'Analiza sprzedaży'!$35:$35,)-27,"") ->  | LF22: =IFERROR(MATCH(LF23,'Analiza sprzedaży'!$35:$35,)-27,"") ->  | LG22: =IFERROR(MATCH(LG23,'Analiza sprzedaży'!$35:$35,)-27,"") ->  | LH22: =IFERROR(MATCH(LH23,'Analiza sprzedaży'!$35:$35,)-27,"") ->  | LI22: =IFERROR(MATCH(LI23,'Analiza sprzedaży'!$35:$35,)-27,"") ->  | LJ22: =IFERROR(MATCH(LJ23,'Analiza sprzedaży'!$35:$35,)-27,"") ->  | LK22: =IFERROR(MATCH(LK23,'Analiza sprzedaży'!$35:$35,)-27,"") ->  | LL22: =IFERROR(MATCH(LL23,'Analiza sprzedaży'!$35:$35,)-27,"") ->  | LM22: =IFERROR(MATCH(LM23,'Analiza sprzedaży'!$35:$35,)-27,"") ->  | LN22: =IFERROR(MATCH(LN23,'Analiza sprzedaży'!$35:$35,)-27,"") ->  | LO22: =IFERROR(MATCH(LO23,'Analiza sprzedaży'!$35:$35,)-27,"") ->  | LP22: =IFERROR(MATCH(LP23,'Analiza sprzedaży'!$35:$35,)-27,"") ->  | LQ22: =IFERROR(MATCH(LQ23,'Analiza sprzedaży'!$35:$35,)-27,"") ->  | LR22: =IFERROR(MATCH(LR23,'Analiza sprzedaży'!$35:$35,)-27,"") ->  | LS22: =IFERROR(MATCH(LS23,'Analiza sprzedaży'!$35:$35,)-27,"") ->  | LT22: =IFERROR(MATCH(LT23,'Analiza sprzedaży'!$35:$35,)-27,"") ->  | LU22: =IFERROR(MATCH(LU23,'Analiza sprzedaży'!$35:$35,)-27,"") ->  | LV22: =IFERROR(MATCH(LV23,'Analiza sprzedaży'!$35:$35,)-27,"") ->  | LW22: =IFERROR(MATCH(LW23,'Analiza sprzedaży'!$35:$35,)-27,"") ->  | LX22: =IFERROR(MATCH(LX23,'Analiza sprzedaży'!$35:$35,)-27,"") ->  | LY22: =IFERROR(MATCH(LY23,'Analiza sprzedaży'!$35:$35,)-27,"") ->  | LZ22: =IFERROR(MATCH(LZ23,'Analiza sprzedaży'!$35:$35,)-27,"") ->  | MA22: =IFERROR(MATCH(MA23,'Analiza sprzedaży'!$35:$35,)-27,"") ->  | MB22: =IFERROR(MATCH(MB23,'Analiza sprzedaży'!$35:$35,)-27,"") ->  | MC22: =IFERROR(MATCH(MC23,'Analiza sprzedaży'!$35:$35,)-27,"") ->  | MD22: =IFERROR(MATCH(MD23,'Analiza sprzedaży'!$35:$35,)-27,"") ->  | ME22: =IFERROR(MATCH(ME23,'Analiza sprzedaży'!$35:$35,)-27,"") ->  | MF22: =IFERROR(MATCH(MF23,'Analiza sprzedaży'!$35:$35,)-27,"") ->  | MG22: =IFERROR(MATCH(MG23,'Analiza sprzedaży'!$35:$35,)-27,"") ->  | MH22: =IFERROR(MATCH(MH23,'Analiza sprzedaży'!$35:$35,)-27,"") ->  | MI22: =IFERROR(MATCH(MI23,'Analiza sprzedaży'!$35:$35,)-27,"") ->  | MJ22: =IFERROR(MATCH(MJ23,'Analiza sprzedaży'!$35:$35,)-27,"") ->  | MK22: =IFERROR(MATCH(MK23,'Analiza sprzedaży'!$35:$35,)-27,"") ->  | ML22: =IFERROR(MATCH(ML23,'Analiza sprzedaży'!$35:$35,)-27,"") ->  | MM22: =IFERROR(MATCH(MM23,'Analiza sprzedaży'!$35:$35,)-27,"") ->  | MN22: =IFERROR(MATCH(MN23,'Analiza sprzedaży'!$35:$35,)-27,"") ->  | MO22: =IFERROR(MATCH(MO23,'Analiza sprzedaży'!$35:$35,)-27,"") ->  | MP22: =IFERROR(MATCH(MP23,'Analiza sprzedaży'!$35:$35,)-27,"") ->  | MQ22: =IFERROR(MATCH(MQ23,'Analiza sprzedaży'!$35:$35,)-27,"") ->  | MR22: =IFERROR(MATCH(MR23,'Analiza sprzedaży'!$35:$35,)-27,"") ->  | MS22: =IFERROR(MATCH(MS23,'Analiza sprzedaży'!$35:$35,)-27,"") ->  | MT22: =IFERROR(MATCH(MT23,'Analiza sprzedaży'!$35:$35,)-27,"") ->  | MU22: =IFERROR(MATCH(MU23,'Analiza sprzedaży'!$35:$35,)-27,"") ->  | MV22: =IFERROR(MATCH(MV23,'Analiza sprzedaży'!$35:$35,)-27,"") ->  | MW22: =IFERROR(MATCH(MW23,'Analiza sprzedaży'!$35:$35,)-27,"") ->  | MX22: =IFERROR(MATCH(MX23,'Analiza sprzedaży'!$35:$35,)-27,"") ->  | MY22: =IFERROR(MATCH(MY23,'Analiza sprzedaży'!$35:$35,)-27,"") ->  | MZ22: =IFERROR(MATCH(MZ23,'Analiza sprzedaży'!$35:$35,)-27,"") ->  | NA22: =IFERROR(MATCH(NA23,'Analiza sprzedaży'!$35:$35,)-27,"") ->  | NB22: =IFERROR(MATCH(NB23,'Analiza sprzedaży'!$35:$35,)-27,"") ->  | NC22: =IFERROR(MATCH(NC23,'Analiza sprzedaży'!$35:$35,)-27,"") ->  | ND22: =IFERROR(MATCH(ND23,'Analiza sprzedaży'!$35:$35,)-27,"") ->  | NE22: =IFERROR(MATCH(NE23,'Analiza sprzedaży'!$35:$35,)-27,"") ->  | NF22: =IFERROR(MATCH(NF23,'Analiza sprzedaży'!$35:$35,)-27,"") ->  | NG22: =IFERROR(MATCH(NG23,'Analiza sprzedaży'!$35:$35,)-27,"") ->  | NH22: =IFERROR(MATCH(NH23,'Analiza sprzedaży'!$35:$35,)-27,"") ->  | NI22: =IFERROR(MATCH(NI23,'Analiza sprzedaży'!$35:$35,)-27,"") ->  | NJ22: =IFERROR(MATCH(NJ23,'Analiza sprzedaży'!$35:$35,)-27,"") ->  | NK22: =IFERROR(MATCH(NK23,'Analiza sprzedaży'!$35:$35,)-27,"") ->  | NL22: =IFERROR(MATCH(NL23,'Analiza sprzedaży'!$35:$35,)-27,"") ->  | NM22: =IFERROR(MATCH(NM23,'Analiza sprzedaży'!$35:$35,)-27,"") ->  | NN22: =IFERROR(MATCH(NN23,'Analiza sprzedaży'!$35:$35,)-27,"") ->  | NO22: =IFERROR(MATCH(NO23,'Analiza sprzedaży'!$35:$35,)-27,"") ->  | NP22: =IFERROR(MATCH(NP23,'Analiza sprzedaży'!$35:$35,)-27,"") ->  | NQ22: =IFERROR(MATCH(NQ23,'Analiza sprzedaży'!$35:$35,)-27,"") ->  | NR22: =IFERROR(MATCH(NR23,'Analiza sprzedaży'!$35:$35,)-27,"") ->  | NS22: =IFERROR(MATCH(NS23,'Analiza sprzedaży'!$35:$35,)-27,"") ->  | NT22: =IFERROR(MATCH(NT23,'Analiza sprzedaży'!$35:$35,)-27,"") ->  | NU22: =IFERROR(MATCH(NU23,'Analiza sprzedaży'!$35:$35,)-27,"") ->  | NV22: =IFERROR(MATCH(NV23,'Analiza sprzedaży'!$35:$35,)-27,"") ->  | NW22: =IFERROR(MATCH(NW23,'Analiza sprzedaży'!$35:$35,)-27,"") ->  | NX22: =IFERROR(MATCH(NX23,'Analiza sprzedaży'!$35:$35,)-27,"") ->  | NY22: =IFERROR(MATCH(NY23,'Analiza sprzedaży'!$35:$35,)-27,"") ->  | NZ22: =IFERROR(MATCH(NZ23,'Analiza sprzedaży'!$35:$35,)-27,"") ->  | OA22: =IFERROR(MATCH(OA23,'Analiza sprzedaży'!$35:$35,)-27,"") ->  | OB22: =IFERROR(MATCH(OB23,'Analiza sprzedaży'!$35:$35,)-27,"") ->  | OC22: =IFERROR(MATCH(OC23,'Analiza sprzedaży'!$35:$35,)-27,"") ->  | OD22: =IFERROR(MATCH(OD23,'Analiza sprzedaży'!$35:$35,)-27,"") ->  | OE22: =IFERROR(MATCH(OE23,'Analiza sprzedaży'!$35:$35,)-27,"") ->  | OF22: =IFERROR(MATCH(OF23,'Analiza sprzedaży'!$35:$35,)-27,"") ->  | OG22: =IFERROR(MATCH(OG23,'Analiza sprzedaży'!$35:$35,)-27,"") ->  | OH22: =IFERROR(MATCH(OH23,'Analiza sprzedaży'!$35:$35,)-27,"") ->  | OI22: =IFERROR(MATCH(OI23,'Analiza sprzedaży'!$35:$35,)-27,"") ->  | OJ22: =IFERROR(MATCH(OJ23,'Analiza sprzedaży'!$35:$35,)-27,"") ->  | OK22: =IFERROR(MATCH(OK23,'Analiza sprzedaży'!$35:$35,)-27,"") ->  | OL22: =IFERROR(MATCH(OL23,'Analiza sprzedaży'!$35:$35,)-27,"") ->  | OM22: =IFERROR(MATCH(OM23,'Analiza sprzedaży'!$35:$35,)-27,"") ->  | ON22: =IFERROR(MATCH(ON23,'Analiza sprzedaży'!$35:$35,)-27,"") ->  | OO22: =IFERROR(MATCH(OO23,'Analiza sprzedaży'!$35:$35,)-27,"") ->  | OP22: =IFERROR(MATCH(OP23,'Analiza sprzedaży'!$35:$35,)-27,"") ->  | OQ22: =IFERROR(MATCH(OQ23,'Analiza sprzedaży'!$35:$35,)-27,"") ->  | OR22: =IFERROR(MATCH(OR23,'Analiza sprzedaży'!$35:$35,)-27,"") ->  | OS22: =IFERROR(MATCH(OS23,'Analiza sprzedaży'!$35:$35,)-27,"") ->  | OT22: =IFERROR(MATCH(OT23,'Analiza sprzedaży'!$35:$35,)-27,"") ->  | OU22: =IFERROR(MATCH(OU23,'Analiza sprzedaży'!$35:$35,)-27,"") ->  | OV22: =IFERROR(MATCH(OV23,'Analiza sprzedaży'!$35:$35,)-27,"") ->  | OW22: =IFERROR(MATCH(OW23,'Analiza sprzedaży'!$35:$35,)-27,"") ->  | OX22: =IFERROR(MATCH(OX23,'Analiza sprzedaży'!$35:$35,)-27,"") ->  | OY22: =IFERROR(MATCH(OY23,'Analiza sprzedaży'!$35:$35,)-27,"") ->  | OZ22: =IFERROR(MATCH(OZ23,'Analiza sprzedaży'!$35:$35,)-27,"") ->  | PA22: =IFERROR(MATCH(PA23,'Analiza sprzedaży'!$35:$35,)-27,"") ->  | PB22: =IFERROR(MATCH(PB23,'Analiza sprzedaży'!$35:$35,)-27,"") ->  | PC22: =IFERROR(MATCH(PC23,'Analiza sprzedaży'!$35:$35,)-27,"") ->  | PD22: =IFERROR(MATCH(PD23,'Analiza sprzedaży'!$35:$35,)-27,"") ->  | PE22: =IFERROR(MATCH(PE23,'Analiza sprzedaży'!$35:$35,)-27,"") ->  | PF22: =IFERROR(MATCH(PF23,'Analiza sprzedaży'!$35:$35,)-27,"") ->  | PG22: =IFERROR(MATCH(PG23,'Analiza sprzedaży'!$35:$35,)-27,"") ->  | PH22: =IFERROR(MATCH(PH23,'Analiza sprzedaży'!$35:$35,)-27,"") ->  | PI22: =IFERROR(MATCH(PI23,'Analiza sprzedaży'!$35:$35,)-27,"") ->  | PJ22: =IFERROR(MATCH(PJ23,'Analiza sprzedaży'!$35:$35,)-27,"") ->  | PK22: =IFERROR(MATCH(PK23,'Analiza sprzedaży'!$35:$35,)-27,"") ->  | PL22: =IFERROR(MATCH(PL23,'Analiza sprzedaży'!$35:$35,)-27,"") ->  | PM22: =IFERROR(MATCH(PM23,'Analiza sprzedaży'!$35:$35,)-27,"") ->  | PN22: =IFERROR(MATCH(PN23,'Analiza sprzedaży'!$35:$35,)-27,"") ->  | PO22: =IFERROR(MATCH(PO23,'Analiza sprzedaży'!$35:$35,)-27,"") ->  | PP22: =IFERROR(MATCH(PP23,'Analiza sprzedaży'!$35:$35,)-27,"") ->  | PQ22: =IFERROR(MATCH(PQ23,'Analiza sprzedaży'!$35:$35,)-27,"") ->  | PR22: =IFERROR(MATCH(PR23,'Analiza sprzedaży'!$35:$35,)-27,"") ->  | PS22: =IFERROR(MATCH(PS23,'Analiza sprzedaży'!$35:$35,)-27,"") ->  | PT22: =IFERROR(MATCH(PT23,'Analiza sprzedaży'!$35:$35,)-27,"") ->  | PU22: =IFERROR(MATCH(PU23,'Analiza sprzedaży'!$35:$35,)-27,"") ->  | PV22: =IFERROR(MATCH(PV23,'Analiza sprzedaży'!$35:$35,)-27,"") ->  | PW22: =IFERROR(MATCH(PW23,'Analiza sprzedaży'!$35:$35,)-27,"") ->  | PX22: =IFERROR(MATCH(PX23,'Analiza sprzedaży'!$35:$35,)-27,"") ->  | PY22: =IFERROR(MATCH(PY23,'Analiza sprzedaży'!$35:$35,)-27,"") ->  | PZ22: =IFERROR(MATCH(PZ23,'Analiza sprzedaży'!$35:$35,)-27,"") ->  | QA22: =IFERROR(MATCH(QA23,'Analiza sprzedaży'!$35:$35,)-27,"") ->  | QB22: =IFERROR(MATCH(QB23,'Analiza sprzedaży'!$35:$35,)-27,"") ->  | QC22: =IFERROR(MATCH(QC23,'Analiza sprzedaży'!$35:$35,)-27,"") ->  | QD22: =IFERROR(MATCH(QD23,'Analiza sprzedaży'!$35:$35,)-27,"") ->  | QE22: =IFERROR(MATCH(QE23,'Analiza sprzedaży'!$35:$35,)-27,"") ->  | QF22: =IFERROR(MATCH(QF23,'Analiza sprzedaży'!$35:$35,)-27,"") ->  | QG22: =IFERROR(MATCH(QG23,'Analiza sprzedaży'!$35:$35,)-27,"") ->  | QH22: =IFERROR(MATCH(QH23,'Analiza sprzedaży'!$35:$35,)-27,"") ->  | QI22: =IFERROR(MATCH(QI23,'Analiza sprzedaży'!$35:$35,)-27,"") ->  | QJ22: =IFERROR(MATCH(QJ23,'Analiza sprzedaży'!$35:$35,)-27,"") ->  | QK22: =IFERROR(MATCH(QK23,'Analiza sprzedaży'!$35:$35,)-27,"") ->  | QL22: =IFERROR(MATCH(QL23,'Analiza sprzedaży'!$35:$35,)-27,"") ->  | QM22: =IFERROR(MATCH(QM23,'Analiza sprzedaży'!$35:$35,)-27,"") ->  | QN22: =IFERROR(MATCH(QN23,'Analiza sprzedaży'!$35:$35,)-27,"") ->  | QO22: =IFERROR(MATCH(QO23,'Analiza sprzedaży'!$35:$35,)-27,"") ->  | QP22: =IFERROR(MATCH(QP23,'Analiza sprzedaży'!$35:$35,)-27,"") ->  | QQ22: =IFERROR(MATCH(QQ23,'Analiza sprzedaży'!$35:$35,)-27,"") ->  | QR22: =IFERROR(MATCH(QR23,'Analiza sprzedaży'!$35:$35,)-27,"") ->  | QS22: =IFERROR(MATCH(QS23,'Analiza sprzedaży'!$35:$35,)-27,"") ->  | QT22: =IFERROR(MATCH(QT23,'Analiza sprzedaży'!$35:$35,)-27,"") ->  | QU22: =IFERROR(MATCH(QU23,'Analiza sprzedaży'!$35:$35,)-27,"") ->  | QV22: =IFERROR(MATCH(QV23,'Analiza sprzedaży'!$35:$35,)-27,"") ->  | QW22: =IFERROR(MATCH(QW23,'Analiza sprzedaży'!$35:$35,)-27,"") ->  | QX22: =IFERROR(MATCH(QX23,'Analiza sprzedaży'!$35:$35,)-27,"") ->  | QY22: =IFERROR(MATCH(QY23,'Analiza sprzedaży'!$35:$35,)-27,"") ->  | QZ22: =IFERROR(MATCH(QZ23,'Analiza sprzedaży'!$35:$35,)-27,"") ->  | RA22: =IFERROR(MATCH(RA23,'Analiza sprzedaży'!$35:$35,)-27,"") ->  | RB22: =IFERROR(MATCH(RB23,'Analiza sprzedaży'!$35:$35,)-27,"") ->  | RC22: =IFERROR(MATCH(RC23,'Analiza sprzedaży'!$35:$35,)-27,"") ->  | RD22: =IFERROR(MATCH(RD23,'Analiza sprzedaży'!$35:$35,)-27,"") ->  | RE22: =IFERROR(MATCH(RE23,'Analiza sprzedaży'!$35:$35,)-27,"") ->  | RF22: =IFERROR(MATCH(RF23,'Analiza sprzedaży'!$35:$35,)-27,"") ->  | RG22: =IFERROR(MATCH(RG23,'Analiza sprzedaży'!$35:$35,)-27,"") ->  | RH22: =IFERROR(MATCH(RH23,'Analiza sprzedaży'!$35:$35,)-27,"") ->  | RI22: =IFERROR(MATCH(RI23,'Analiza sprzedaży'!$35:$35,)-27,"") ->  | RJ22: =IFERROR(MATCH(RJ23,'Analiza sprzedaży'!$35:$35,)-27,"") ->  | RK22: =IFERROR(MATCH(RK23,'Analiza sprzedaży'!$35:$35,)-27,"") ->  | RL22: =IFERROR(MATCH(RL23,'Analiza sprzedaży'!$35:$35,)-27,"") ->  | RM22: =IFERROR(MATCH(RM23,'Analiza sprzedaży'!$35:$35,)-27,"") ->  | RN22: =IFERROR(MATCH(RN23,'Analiza sprzedaży'!$35:$35,)-27,"") ->  | RO22: =IFERROR(MATCH(RO23,'Analiza sprzedaży'!$35:$35,)-27,"") ->  | RP22: =IFERROR(MATCH(RP23,'Analiza sprzedaży'!$35:$35,)-27,"") ->  | RQ22: =IFERROR(MATCH(RQ23,'Analiza sprzedaży'!$35:$35,)-27,"") ->  | RR22: =IFERROR(MATCH(RR23,'Analiza sprzedaży'!$35:$35,)-27,"") ->  | RS22: =IFERROR(MATCH(RS23,'Analiza sprzedaży'!$35:$35,)-27,"") ->  | RT22: =IFERROR(MATCH(RT23,'Analiza sprzedaży'!$35:$35,)-27,"") ->  | RU22: =IFERROR(MATCH(RU23,'Analiza sprzedaży'!$35:$35,)-27,"") ->  | RV22: =IFERROR(MATCH(RV23,'Analiza sprzedaży'!$35:$35,)-27,"") ->  | RW22: =IFERROR(MATCH(RW23,'Analiza sprzedaży'!$35:$35,)-27,"") ->  | RX22: =IFERROR(MATCH(RX23,'Analiza sprzedaży'!$35:$35,)-27,"") ->  | RY22: =IFERROR(MATCH(RY23,'Analiza sprzedaży'!$35:$35,)-27,"") ->  | RZ22: =IFERROR(MATCH(RZ23,'Analiza sprzedaży'!$35:$35,)-27,"") ->  | SA22: =IFERROR(MATCH(SA23,'Analiza sprzedaży'!$35:$35,)-27,"") ->  | SB22: =IFERROR(MATCH(SB23,'Analiza sprzedaży'!$35:$35,)-27,"") ->  | SC22: =IFERROR(MATCH(SC23,'Analiza sprzedaży'!$35:$35,)-27,"") ->  | SD22: =IFERROR(MATCH(SD23,'Analiza sprzedaży'!$35:$35,)-27,"") ->  | SE22: =IFERROR(MATCH(SE23,'Analiza sprzedaży'!$35:$35,)-27,"") ->  | SF22: =IFERROR(MATCH(SF23,'Analiza sprzedaży'!$35:$35,)-27,"") ->  | SG22: =IFERROR(MATCH(SG23,'Analiza sprzedaży'!$35:$35,)-27,"") ->  | SH22: =IFERROR(MATCH(SH23,'Analiza sprzedaży'!$35:$35,)-27,"") ->  | SI22: =IFERROR(MATCH(SI23,'Analiza sprzedaży'!$35:$35,)-27,"") ->  | SJ22: =IFERROR(MATCH(SJ23,'Analiza sprzedaży'!$35:$35,)-27,"") ->  | SK22: =IFERROR(MATCH(SK23,'Analiza sprzedaży'!$35:$35,)-27,"") ->  | SL22: =IFERROR(MATCH(SL23,'Analiza sprzedaży'!$35:$35,)-27,"") ->  | SM22: =IFERROR(MATCH(SM23,'Analiza sprzedaży'!$35:$35,)-27,"") ->  | SN22: =IFERROR(MATCH(SN23,'Analiza sprzedaży'!$35:$35,)-27,"") ->  | SO22: =IFERROR(MATCH(SO23,'Analiza sprzedaży'!$35:$35,)-27,"") ->  | SP22: =IFERROR(MATCH(SP23,'Analiza sprzedaży'!$35:$35,)-27,"") ->  | SQ22: =IFERROR(MATCH(SQ23,'Analiza sprzedaży'!$35:$35,)-27,"") ->  | SR22: =IFERROR(MATCH(SR23,'Analiza sprzedaży'!$35:$35,)-27,"") ->  | SS22: =IFERROR(MATCH(SS23,'Analiza sprzedaży'!$35:$35,)-27,"") ->  | ST22: =IFERROR(MATCH(ST23,'Analiza sprzedaży'!$35:$35,)-27,"") ->  | SU22: =IFERROR(MATCH(SU23,'Analiza sprzedaży'!$35:$35,)-27,"") ->  | SV22: =IFERROR(MATCH(SV23,'Analiza sprzedaży'!$35:$35,)-27,"") ->  | SW22: =IFERROR(MATCH(SW23,'Analiza sprzedaży'!$35:$35,)-27,"") ->  | SX22: =IFERROR(MATCH(SX23,'Analiza sprzedaży'!$35:$35,)-27,"") ->  | SY22: =IFERROR(MATCH(SY23,'Analiza sprzedaży'!$35:$35,)-27,"") ->  | SZ22: =IFERROR(MATCH(SZ23,'Analiza sprzedaży'!$35:$35,)-27,"") ->  | TA22: =IFERROR(MATCH(TA23,'Analiza sprzedaży'!$35:$35,)-27,"") ->  | TB22: =IFERROR(MATCH(TB23,'Analiza sprzedaży'!$35:$35,)-27,"") ->  | TC22: =IFERROR(MATCH(TC23,'Analiza sprzedaży'!$35:$35,)-27,"") ->  | TD22: =IFERROR(MATCH(TD23,'Analiza sprzedaży'!$35:$35,)-27,"") ->  | TE22: =IFERROR(MATCH(TE23,'Analiza sprzedaży'!$35:$35,)-27,"") ->  | TF22: =IFERROR(MATCH(TF23,'Analiza sprzedaży'!$35:$35,)-27,"") ->  | TG22: =IFERROR(MATCH(TG23,'Analiza sprzedaży'!$35:$35,)-27,"") ->  | TH22: =IFERROR(MATCH(TH23,'Analiza sprzedaży'!$35:$35,)-27,"") ->  | TI22: =IFERROR(MATCH(TI23,'Analiza sprzedaży'!$35:$35,)-27,"") ->  | TJ22: =IFERROR(MATCH(TJ23,'Analiza sprzedaży'!$35:$35,)-27,"") ->  | TK22: =IFERROR(MATCH(TK23,'Analiza sprzedaży'!$35:$35,)-27,"") ->  | TL22: =IFERROR(MATCH(TL23,'Analiza sprzedaży'!$35:$35,)-27,"") ->  | TM22: =IFERROR(MATCH(TM23,'Analiza sprzedaży'!$35:$35,)-27,"") ->  | TN22: =IFERROR(MATCH(TN23,'Analiza sprzedaży'!$35:$35,)-27,"") ->  | TO22: =IFERROR(MATCH(TO23,'Analiza sprzedaży'!$35:$35,)-27,"") ->  | TP22: =IFERROR(MATCH(TP23,'Analiza sprzedaży'!$35:$35,)-27,"") ->  | TQ22: =IFERROR(MATCH(TQ23,'Analiza sprzedaży'!$35:$35,)-27,"") ->  | TR22: =IFERROR(MATCH(TR23,'Analiza sprzedaży'!$35:$35,)-27,"") ->  | TS22: =IFERROR(MATCH(TS23,'Analiza sprzedaży'!$35:$35,)-27,"") ->  | TT22: =IFERROR(MATCH(TT23,'Analiza sprzedaży'!$35:$35,)-27,"") ->  | TU22: =IFERROR(MATCH(TU23,'Analiza sprzedaży'!$35:$35,)-27,"") ->  | TV22: =IFERROR(MATCH(TV23,'Analiza sprzedaży'!$35:$35,)-27,"") ->  | TW22: =IFERROR(MATCH(TW23,'Analiza sprzedaży'!$35:$35,)-27,"") ->  | TX22: =IFERROR(MATCH(TX23,'Analiza sprzedaży'!$35:$35,)-27,"") ->  | TY22: =IFERROR(MATCH(TY23,'Analiza sprzedaży'!$35:$35,)-27,"") ->  | TZ22: =IFERROR(MATCH(TZ23,'Analiza sprzedaży'!$35:$35,)-27,"") ->  | UA22: =IFERROR(MATCH(UA23,'Analiza sprzedaży'!$35:$35,)-27,"") ->  | UB22: =IFERROR(MATCH(UB23,'Analiza sprzedaży'!$35:$35,)-27,"") ->  | UC22: =IFERROR(MATCH(UC23,'Analiza sprzedaży'!$35:$35,)-27,"") ->  | UD22: =IFERROR(MATCH(UD23,'Analiza sprzedaży'!$35:$35,)-27,"") ->  | UE22: =IFERROR(MATCH(UE23,'Analiza sprzedaży'!$35:$35,)-27,"") ->  | UF22: =IFERROR(MATCH(UF23,'Analiza sprzedaży'!$35:$35,)-27,"") ->  | UG22: =IFERROR(MATCH(UG23,'Analiza sprzedaży'!$35:$35,)-27,"") ->  | UH22: =IFERROR(MATCH(UH23,'Analiza sprzedaży'!$35:$35,)-27,"") ->  | UI22: =IFERROR(MATCH(UI23,'Analiza sprzedaży'!$35:$35,)-27,"") ->  | UJ22: =IFERROR(MATCH(UJ23,'Analiza sprzedaży'!$35:$35,)-27,"") ->  | UK22: =IFERROR(MATCH(UK23,'Analiza sprzedaży'!$35:$35,)-27,"") ->  | UL22: =IFERROR(MATCH(UL23,'Analiza sprzedaży'!$35:$35,)-27,"") ->  | UM22: =IFERROR(MATCH(UM23,'Analiza sprzedaży'!$35:$35,)-27,"") ->  | UN22: =IFERROR(MATCH(UN23,'Analiza sprzedaży'!$35:$35,)-27,"") ->  | UO22: =IFERROR(MATCH(UO23,'Analiza sprzedaży'!$35:$35,)-27,"") ->  | UP22: =IFERROR(MATCH(UP23,'Analiza sprzedaży'!$35:$35,)-27,"") ->  | UQ22: =IFERROR(MATCH(UQ23,'Analiza sprzedaży'!$35:$35,)-27,"") ->  | UR22: =IFERROR(MATCH(UR23,'Analiza sprzedaży'!$35:$35,)-27,"") ->  | US22: =IFERROR(MATCH(US23,'Analiza sprzedaży'!$35:$35,)-27,"") ->  | UT22: =IFERROR(MATCH(UT23,'Analiza sprzedaży'!$35:$35,)-27,"") -> 
B23: Przychody ze sprzedaży według klientów | C23: 2014-01-31 | D23: =EOMONTH(C23,1) -> 2014-02-28 | E23: =EOMONTH(D23,1) -> 2014-03-31 | F23: 2014-04-30 | G23: 2014-05-31 | H23: 2014-06-30 | I23: 2014-07-31 | J23: 2014-08-31 | K23: 2014-09-30 | L23: 2014-10-31 | M23: 2014-11-30 | N23: 2014-12-31 | O23: 2015-01-31 | P23: 2015-02-28 | Q23: 2015-03-31 | R23: 2015-04-30 | S23: 2015-05-31 | T23: 2015-06-30 | U23: 2015-07-31 | V23: 2015-08-31 | W23: 2015-09-30 | X23: 2015-10-31 | Y23: 2015-11-30 | Z23: 2015-12-31 | AA23: 2016-01-31 | AB23: 2016-02-29 | AC23: 2016-03-31 | AD23: 2016-04-30 | AE23: 2016-05-31 | AF23: 2016-06-30 | AG23: 2016-07-31 | AH23: 2016-08-31 | AI23: 2016-09-30 | AJ23: 2016-10-31 | AK23: 2016-11-30 | AL23: 2016-12-31 | AM23: 2017-01-31 | AN23: 2017-02-28 | AO23: 2017-03-31 | AP23: 2017-04-30 | AQ23: 2017-05-31 | AR23: 2017-06-30 | AS23: 2017-07-31 | AT23: 2017-08-31 | AU23: 2017-09-30 | AV23: 2017-10-31 | AW23: 2017-11-30 | AX23: 2017-12-31 | AY23: 2018-01-31 | AZ23: 2018-02-28 | BA23: 2018-03-31 | BB23: 2018-04-30 | BC23: 2018-05-31 | BD23: 2018-06-30 | BE23: 2018-07-31 | BF23: 2018-08-31 | BG23: 2018-09-30 | BH23: 2018-10-31 | BI23: 2018-11-30 | BJ23: 2018-12-31 | BK23: 2019-01-31 | BL23: 2019-02-28 | BM23: 2019-03-31 | BN23: 2019-04-30 | BO23: 2019-05-31 | BP23: 2019-06-30 | BQ23: =EOMONTH(BP23,1) -> 2019-07-31 | BR23: 2019-08-31 | BS23: 2019-09-30 | BT23: 2019-10-31 | BU23: 2019-11-30 | BV23: 2019-12-31 | BW23: 2020-01-31 | BX23: 2020-02-29 | BY23: 2020-03-31 | BZ23: 2020-04-30 | CA23: 2020-05-31 | CB23: 2020-06-30 | CC23: 2020-07-31 | CD23: 2020-08-31 | CE23: 2020-09-30 | CF23: 2020-10-31 | CG23: 2020-11-30 | CH23: 2020-12-31 | CI23: 2021-01-31 | CJ23: 2021-02-28 | CK23: 2021-03-31 | CL23: 2021-04-30 | CM23: 2021-05-31 | CN23: 2021-06-30 | CO23: 2021-07-31 | CP23: 2021-08-31 | CQ23: 2021-09-30 | CR23: 2021-10-31 | CS23: 2021-11-30 | CT23: 2021-12-31 | CU23: 2022-01-31 | CV23: 2022-02-28 | CW23: 2022-03-31 | CX23: 2022-04-30 | CY23: 2022-05-31 | CZ23: 2022-06-30 | DA23: 2022-07-31 | DB23: 2022-08-31 | DC23: 2022-09-30 | DD23: 2022-10-31 | DE23: 2022-11-30 | DF23: 2022-12-31 | DG23: 2023-01-31 | DH23: 2023-02-28 | DI23: 2023-03-31 | DJ23: 2023-04-30 | DK23: 2023-05-31 | DL23: 2023-06-30 | DM23: 2023-07-31 | DN23: 2023-08-31 | DO23: 2023-09-30 | DP23: 2023-10-31 | DQ23: 2023-11-30 | DR23: 2023-12-31 | DS23: 2024-01-31 | DT23: 2024-02-29 | DU23: 2024-03-31 | DV23: 2024-04-30 | DW23: 2024-05-31 | DX23: 2024-06-30 | DY23: 2024-07-31 | DZ23: 2024-08-31 | EA23: 2024-09-30 | EB23: 2024-10-31 | EC23: =EOMONTH(EB23,1) -> 2024-11-30 | ED23: 2024-12-31 | EE23: 2025-01-31 | EF23: 2025-02-28 | EG23: 2025-03-31 | EH23: 2025-04-30 | EI23: 2025-05-31 | EJ23: 2025-06-30 | EK23: 2025-07-31 | EL23: 2025-08-31 | EM23: 2025-09-30 | EN23: 2025-10-31 | EO23: 2025-11-30 | EP23: 2025-12-31 | EQ23: 2026-01-31 | ER23: 2026-02-28 | ES23: 2026-03-31 | ET23: 2026-04-30 | EU23: 2026-05-31 | EV23: 2026-06-30 | EW23: 2026-07-31 | EX23: 2026-08-31 | EY23: 2026-09-30 | EZ23: 2026-10-31 | FA23: 2026-11-30 | FB23: 2026-12-31 | FC23: 2027-01-31 | FD23: 2027-02-28 | FE23: 2027-03-31 | FF23: 2027-04-30 | FG23: 2027-05-31 | FH23: 2027-06-30 | FI23: 2027-07-31 | FJ23: 2027-08-31 | FK23: 2027-09-30 | FL23: 2027-10-31 | FM23: 2027-11-30 | FN23: 2027-12-31 | FO23: 2028-01-31 | FP23: 2028-02-29 | FQ23: 2028-03-31 | FR23: 2028-04-30 | FS23: 2028-05-31 | FT23: 2028-06-30 | FU23: 2028-07-31 | FV23: 2028-08-31 | FW23: 2028-09-30 | FX23: 2028-10-31 | FY23: 2028-11-30 | FZ23: 2028-12-31 | GA23: 2029-01-31 | GB23: 2029-02-28 | GC23: 2029-03-31 | GD23: 2029-04-30 | GE23: 2029-05-31 | GF23: 2029-06-30 | GG23: 2029-07-31 | GH23: 2029-08-31 | GI23: 2029-09-30 | GJ23: 2029-10-31 | GK23: 2029-11-30 | GL23: 2029-12-31 | GM23: 2030-01-31 | GN23: 2030-02-28 | GO23: =EOMONTH(GN23,1) -> 2030-03-31 | GP23: 2030-04-30 | GQ23: 2030-05-31 | GR23: 2030-06-30 | GS23: 2030-07-31 | GT23: 2030-08-31 | GU23: 2030-09-30 | GV23: 2030-10-31 | GW23: 2030-11-30 | GX23: 2030-12-31 | GY23: 2031-01-31 | GZ23: 2031-02-28 | HA23: 2031-03-31 | HB23: 2031-04-30 | HC23: 2031-05-31 | HD23: 2031-06-30 | HE23: 2031-07-31 | HF23: 2031-08-31 | HG23: 2031-09-30 | HH23: 2031-10-31 | HI23: 2031-11-30 | HJ23: 2031-12-31 | HK23: 2032-01-31 | HL23: 2032-02-29 | HM23: 2032-03-31 | HN23: 2032-04-30 | HO23: 2032-05-31 | HP23: 2032-06-30 | HQ23: 2032-07-31 | HR23: 2032-08-31 | HS23: 2032-09-30 | HT23: 2032-10-31 | HU23: 2032-11-30 | HV23: 2032-12-31 | HW23: 2033-01-31 | HX23: 2033-02-28 | HY23: 2033-03-31 | HZ23: 2033-04-30 | IA23: 2033-05-31 | IB23: 2033-06-30 | IC23: 2033-07-31 | ID23: 2033-08-31 | IE23: 2033-09-30 | IF23: 2033-10-31 | IG23: 2033-11-30 | IH23: 2033-12-31 | II23: 2034-01-31 | IJ23: 2034-02-28 | IK23: 2034-03-31 | IL23: 2034-04-30 | IM23: 2034-05-31 | IN23: 2034-06-30 | IO23: 2034-07-31 | IP23: 2034-08-31 | IQ23: 2034-09-30 | IR23: 2034-10-31 | IS23: 2034-11-30 | IT23: 2034-12-31 | IU23: 2035-01-31 | IV23: 2035-02-28 | IW23: 2035-03-31 | IX23: 2035-04-30 | IY23: 2035-05-31 | IZ23: 2035-06-30 | JA23: =EOMONTH(IZ23,1) -> 2035-07-31 | JB23: 2035-08-31 | JC23: 2035-09-30 | JD23: 2035-10-31 | JE23: 2035-11-30 | JF23: 2035-12-31 | JG23: 2036-01-31 | JH23: 2036-02-29 | JI23: 2036-03-31 | JJ23: 2036-04-30 | JK23: 2036-05-31 | JL23: 2036-06-30 | JM23: 2036-07-31 | JN23: 2036-08-31 | JO23: 2036-09-30 | JP23: 2036-10-31 | JQ23: 2036-11-30 | JR23: 2036-12-31 | JS23: 2037-01-31 | JT23: 2037-02-28 | JU23: 2037-03-31 | JV23: 2037-04-30 | JW23: 2037-05-31 | JX23: 2037-06-30 | JY23: 2037-07-31 | JZ23: 2037-08-31 | KA23: 2037-09-30 | KB23: 2037-10-31 | KC23: 2037-11-30 | KD23: 2037-12-31 | KE23: 2038-01-31 | KF23: 2038-02-28 | KG23: 2038-03-31 | KH23: 2038-04-30 | KI23: 2038-05-31 | KJ23: 2038-06-30 | KK23: 2038-07-31 | KL23: 2038-08-31 | KM23: 2038-09-30 | KN23: 2038-10-31 | KO23: 2038-11-30 | KP23: 2038-12-31 | KQ23: 2039-01-31 | KR23: 2039-02-28 | KS23: 2039-03-31 | KT23: 2039-04-30 | KU23: 2039-05-31 | KV23: 2039-06-30 | KW23: 2039-07-31 | KX23: 2039-08-31 | KY23: 2039-09-30 | KZ23: 2039-10-31 | LA23: 2039-11-30 | LB23: 2039-12-31 | LC23: 2040-01-31 | LD23: 2040-02-29 | LE23: 2040-03-31 | LF23: 2040-04-30 | LG23: 2040-05-31 | LH23: 2040-06-30 | LI23: 2040-07-31 | LJ23: 2040-08-31 | LK23: 2040-09-30 | LL23: 2040-10-31 | LM23: =EOMONTH(LL23,1) -> 2040-11-30 | LN23: 2040-12-31 | LO23: 2041-01-31 | LP23: 2041-02-28 | LQ23: 2041-03-31 | LR23: 2041-04-30 | LS23: 2041-05-31 | LT23: 2041-06-30 | LU23: 2041-07-31 | LV23: 2041-08-31 | LW23: 2041-09-30 | LX23: 2041-10-31 | LY23: 2041-11-30 | LZ23: 2041-12-31 | MA23: 2042-01-31 | MB23: 2042-02-28 | MC23: 2042-03-31 | MD23: 2042-04-30 | ME23: 2042-05-31 | MF23: 2042-06-30 | MG23: 2042-07-31 | MH23: 2042-08-31 | MI23: 2042-09-30 | MJ23: 2042-10-31 | MK23: 2042-11-30 | ML23: 2042-12-31 | MM23: 2043-01-31 | MN23: 2043-02-28 | MO23: 2043-03-31 | MP23: 2043-04-30 | MQ23: 2043-05-31 | MR23: 2043-06-30 | MS23: 2043-07-31 | MT23: 2043-08-31 | MU23: 2043-09-30 | MV23: 2043-10-31 | MW23: 2043-11-30 | MX23: 2043-12-31 | MY23: 2044-01-31 | MZ23: 2044-02-29 | NA23: 2044-03-31 | NB23: 2044-04-30 | NC23: 2044-05-31 | ND23: 2044-06-30 | NE23: 2044-07-31 | NF23: 2044-08-31 | NG23: 2044-09-30 | NH23: 2044-10-31 | NI23: 2044-11-30 | NJ23: 2044-12-31 | NK23: 2045-01-31 | NL23: 2045-02-28 | NM23: 2045-03-31 | NN23: 2045-04-30 | NO23: 2045-05-31 | NP23: 2045-06-30 | NQ23: 2045-07-31 | NR23: 2045-08-31 | NS23: 2045-09-30 | NT23: 2045-10-31 | NU23: 2045-11-30 | NV23: 2045-12-31 | NW23: 2046-01-31 | NX23: 2046-02-28 | NY23: =EOMONTH(NX23,1) -> 2046-03-31 | NZ23: 2046-04-30 | OA23: 2046-05-31 | OB23: 2046-06-30 | OC23: 2046-07-31 | OD23: 2046-08-31 | OE23: 2046-09-30 | OF23: 2046-10-31 | OG23: 2046-11-30 | OH23: 2046-12-31 | OI23: 2047-01-31 | OJ23: 2047-02-28 | OK23: 2047-03-31 | OL23: 2047-04-30 | OM23: 2047-05-31 | ON23: 2047-06-30 | OO23: 2047-07-31 | OP23: 2047-08-31 | OQ23: 2047-09-30 | OR23: 2047-10-31 | OS23: 2047-11-30 | OT23: 2047-12-31 | OU23: 2048-01-31 | OV23: 2048-02-29 | OW23: 2048-03-31 | OX23: 2048-04-30 | OY23: 2048-05-31 | OZ23: 2048-06-30 | PA23: 2048-07-31 | PB23: 2048-08-31 | PC23: 2048-09-30 | PD23: 2048-10-31 | PE23: 2048-11-30 | PF23: 2048-12-31 | PG23: 2049-01-31 | PH23: 2049-02-28 | PI23: 2049-03-31 | PJ23: 2049-04-30 | PK23: 2049-05-31 | PL23: 2049-06-30 | PM23: 2049-07-31 | PN23: 2049-08-31 | PO23: 2049-09-30 | PP23: 2049-10-31 | PQ23: 2049-11-30 | PR23: 2049-12-31 | PS23: 2050-01-31 | PT23: 2050-02-28 | PU23: 2050-03-31 | PV23: 2050-04-30 | PW23: 2050-05-31 | PX23: 2050-06-30 | PY23: 2050-07-31 | PZ23: 2050-08-31 | QA23: 2050-09-30 | QB23: 2050-10-31 | QC23: 2050-11-30 | QD23: 2050-12-31 | QE23: 2051-01-31 | QF23: 2051-02-28 | QG23: 2051-03-31 | QH23: 2051-04-30 | QI23: 2051-05-31 | QJ23: 2051-06-30 | QK23: =EOMONTH(QJ23,1) -> 2051-07-31 | QL23: 2051-08-31 | QM23: 2051-09-30 | QN23: 2051-10-31 | QO23: 2051-11-30 | QP23: 2051-12-31 | QQ23: 2052-01-31 | QR23: 2052-02-29 | QS23: 2052-03-31 | QT23: 2052-04-30 | QU23: 2052-05-31 | QV23: 2052-06-30 | QW23: 2052-07-31 | QX23: 2052-08-31 | QY23: 2052-09-30 | QZ23: 2052-10-31 | RA23: 2052-11-30 | RB23: 2052-12-31 | RC23: 2053-01-31 | RD23: 2053-02-28 | RE23: 2053-03-31 | RF23: 2053-04-30 | RG23: 2053-05-31 | RH23: 2053-06-30 | RI23: 2053-07-31 | RJ23: 2053-08-31 | RK23: 2053-09-30 | RL23: 2053-10-31 | RM23: 2053-11-30 | RN23: 2053-12-31 | RO23: 2054-01-31 | RP23: 2054-02-28 | RQ23: 2054-03-31 | RR23: 2054-04-30 | RS23: 2054-05-31 | RT23: 2054-06-30 | RU23: 2054-07-31 | RV23: 2054-08-31 | RW23: 2054-09-30 | RX23: 2054-10-31 | RY23: 2054-11-30 | RZ23: 2054-12-31 | SA23: 2055-01-31 | SB23: 2055-02-28 | SC23: 2055-03-31 | SD23: 2055-04-30 | SE23: 2055-05-31 | SF23: 2055-06-30 | SG23: 2055-07-31 | SH23: 2055-08-31 | SI23: 2055-09-30 | SJ23: 2055-10-31 | SK23: 2055-11-30 | SL23: 2055-12-31 | SM23: 2056-01-31 | SN23: 2056-02-29 | SO23: 2056-03-31 | SP23: 2056-04-30 | SQ23: 2056-05-31 | SR23: 2056-06-30 | SS23: 2056-07-31 | ST23: 2056-08-31 | SU23: 2056-09-30 | SV23: 2056-10-31 | SW23: =EOMONTH(SV23,1) -> 2056-11-30 | SX23: 2056-12-31 | SY23: 2057-01-31 | SZ23: 2057-02-28 | TA23: 2057-03-31 | TB23: 2057-04-30 | TC23: 2057-05-31 | TD23: 2057-06-30 | TE23: 2057-07-31 | TF23: 2057-08-31 | TG23: 2057-09-30 | TH23: 2057-10-31 | TI23: 2057-11-30 | TJ23: 2057-12-31 | TK23: 2058-01-31 | TL23: 2058-02-28 | TM23: 2058-03-31 | TN23: 2058-04-30 | TO23: 2058-05-31 | TP23: 2058-06-30 | TQ23: 2058-07-31 | TR23: 2058-08-31 | TS23: 2058-09-30 | TT23: 2058-10-31 | TU23: 2058-11-30 | TV23: 2058-12-31 | TW23: 2059-01-31 | TX23: 2059-02-28 | TY23: 2059-03-31 | TZ23: 2059-04-30 | UA23: 2059-05-31 | UB23: 2059-06-30 | UC23: 2059-07-31 | UD23: 2059-08-31 | UE23: 2059-09-30 | UF23: 2059-10-31 | UG23: 2059-11-30 | UH23: 2059-12-31 | UI23: 2060-01-31 | UJ23: 2060-02-29 | UK23: 2060-03-31 | UL23: 2060-04-30 | UM23: 2060-05-31 | UN23: 2060-06-30 | UO23: 2060-07-31 | UP23: 2060-08-31 | UQ23: 2060-09-30 | UR23: 2060-10-31 | US23: 2060-11-30 | UT23: 2060-12-31
